Workbook

Sheet Data Input Instructions (hidden)
A3: Worksheet ID | B3: Worksheet | C3: Input Data Notes
A4: 1 | B4: Data Current Rates | C4: R2 Service Charge should already be net of RRRP credit
A5: 1 | B5: Data Current Rates | C5: Demand billed RTSR should already be loss adjusted
A6: 2 | B6: Data Proposed Rates | C6: Mapped from Draft Rates file prepared for Claude
A7: 2 | B7: Data Proposed Rates | C7: Row 5 with header name TEXT is precedent to templates; changes to TEXT need to reflected in templates
A8: 2 | B8: Data Proposed Rates | C8: Templates are set up with 2-dimension vlookups so it will accommodate inserted/deleted rows and/or columns
A9: 3 | B9: Data Billing Quantities | C9: Row 4 with header name TEXT is precedent to templates; changes to TEXT need to reflected in templates
A10: 3 | B10: Data Billing Quantities | C10: Templates are set up with 2-dimension vlookups so it will accommodate inserted/deleted rows and/or columns
A11: 4 | B11: Data Pass Through | C11: Changes to Pass Through rates can be manually input on this sheet, which is precedent to the templates
A12: 4 | B12: Data Pass Through | C12: Links to templates from Column A TEXT; any changes in the TEXT of the charge names must be reflected in the templates
A13: 5 | B13: Data BI List | C13: Instruction Sheet for macro to create individual bill impact worksheets
A14: 5 | B14: Data BI List | C14: Need to MANUALLY update Test Year to appear as header on all bill impact worksheets
A15: 6 | B15: Data BI Summary | C15: This replaces the need for cell references in summary sheet, and displays value for totals so rows can be added to templates and worksheets without having to update the summary sheet
B16: Bill Impact Summary | C16: This file has 2 hidden columns needed to link to worksheets; see Col E and F

Sheet Data Current Rates (hidden)
A1: Estimated 2022 rates for HONI Legacy and Acquired customers
H2: Charges inherited from Acquisition
A3: 1 | B3: 2 | C3: 3 | D3: 4 | E3: 5 | F3: 6 | G3: 7 | H3: NPDI & HCHI | I3: NPDI | J3: WHSI | K3: WHSI | L3: HCHI
A4: Rate Class | B4: Fixed Charge ($/month) | C4: Current Variable Charge ($/kWh or $/kW) | D4: Fixed Base Rate Adjustment for Past Tax Amounts ($/month) | E4: Volumetric Base Rate Adjustment for Past Tax Amounts ($/kWh or $/kW) | F4: Current RTSR-NW ($/kWh or $/kW) | G4: Current RTSR-CONN ($/kWh or $/kW) | H4: Current Low Voltage Volumetric ($/kWh or $/kW) | I4: Current Rate Rider for Application of Tax Changes | J4: Current Rate Rider for Recovery of Smart Meter | K4: Rate Rider for Recovery of Incremental Capital | L4: Funding Adder for Renewable Energy Generation
A5: Rate as shown on Bill Impact Sheet | B5: Service Charge | C5: Distribution Volumetric Charge | D5: Fixed Base Rate Adjustment to Recover Past Tax Amounts | E5: Volumetric Base Rate Adjustment to Recover Past Tax Amounts | F5: Retail Transmission Rate – Network Service Rate | G5: Retail Transmission Rate – Line and Transformation Connection Service Rate | H5: Low Voltage Service Rate | I5: Rate Rider for Application of Tax Change | J5: Rate Rider for Recovery of Smart Meter Incremental Revenue Requirement | K5: Rate Rider for Recovery of Incremental Capital | L5: Funding Adder for Renewable Energy Generation
A6: UR | B6: 37.66 | C6: 0 | D6: 0.83 | F6: 0.0106 | G6: 0.0077
A7: R1 | B7: 55.52 | C7: 0.0099 | D7: 1.56 | F7: 0.0098 | G7: 0.0073
A8: R2 | B8: 66.8 | C8: 0.0159 | D8: 4.42 | F8: 0.0092 | G8: 0.0068
A9: Seasonal | B9: 57.87 | C9: 0.0308 | D9: 1.79 | F9: 0.0077 | G9: 0.0061
A10: GSe | B10: 33.8 | C10: 0.0673 | D10: 1.11 | E10: 0.0022 | F10: 0.0077 | G10: 0.0056
A11: UGe | B11: 26.69 | C11: 0.0321 | D11: 0.81 | E11: 0.001 | F11: 0.0083 | G11: 0.0057
A12: St Lgt | B12: 3.67 | C12: 0.1123 | D12: 0.11 | E12: 0.0034 | F12: 0.0064 | G12: 0.0036
A13: Sen Lgt | B13: 3.14 | C13: 0.1705 | D13: 0.14 | E13: 0.0078 | F13: 0.0064 | G13: 0.0037
A14: USL | B14: 39.42 | C14: 0.0263 | D14: 0.89 | E14: 0.0006 | F14: 0.0065 | G14: 0.0046
A15: GSd | B15: 112.58 | C15: 19.1989 | D15: 4.34 | E15: 0.7338 | F15: 2.4328 | G15: 1.7088
A16: UGd | B16: 103.78 | C16: 11.0659 | D16: 3.92 | E16: 0.4134 | F16: 3.118 | G16: 2.1715
A17: Dgen | B17: 202.25 | C17: 10.499 | D17: 1.74 | E17: 0.0883 | F17: 1.1826 | G17: 0.8325
A18: ST | B18: 1369.806957 | C18: 1.6077 | D18: 36.18 | E18: 0.054 | F18: 4.2841 | G18: 2.9641
A19: WHSI_RES | B19: 31.08 | C19: 0 | F19: 0.0092 | G19: 0.0064 | J19: 0.64 | K19: 0.0008
A20: WHSI_GS<50 | B20: 26.08 | C20: 0.0151 | F20: 0.0083 | G20: 0.006 | J20: 4.24 | K20: 0.0007
A21: WHSI_GS 50>999 | B21: 144.9 | C21: 2.6687 | F21: 3.5638 | G21: 2.5609 | J21: 0 | K21: 0.3251
A22: WHSI_GS >1,000kW | B22: 537.17 | C22: 2.8365 | F22: 3.5638 | G22: 2.5609 | J22: 0 | K22: 0.4795
A23: WHSI_St Lgt | B23: 3.19 | C23: 12.895 | F23: 2.6302 | G23: 1.8902 | J23: 0 | K23: 0.2187
A24: WHSI_USL | B24: 10.9 | C24: 0.0126 | F24: 0.0083 | G24: 0.006 | J24: 0 | K24: 0.0008
A25: NPDI_RES | B25: 38.69 | C25: 0 | F25: 0.0083 | G25: 0.0039 | H25: 0.0009 | I25: 0.0002
A26: NPDI_GS<50 | B26: 52.54 | C26: 0.0164 | F26: 0.0077 | G26: 0.0033 | H26: 0.0008 | I26: 0.0001
A27: NPDI_GS >50 | B27: 258.16 | C27: 4.1636 | F27: 3.1089 | G27: 1.3103 | H27: 0.305 | I27: 0.0211
A28: NPDI_St Lgt | B28: 2.08 | C28: 7.8083 | F28: 2.3447 | G28: 1.013 | H28: 0.2407 | I28: 0.2079
A29: NPDI_Sen Lgt | B29: 6.87 | C29: 20.4309 | F29: 2.3566 | G29: 1.0341 | H29: 0.2358 | I29: 0.0655
A30: NPDI_USL | B30: 16.29 | C30: 0.0092 | F30: 0.0077 | G30: 0.0033 | H30: 0.0008 | I30: 0.0002
A31: HCHI_RES | B31: 36.91 | C31: 0 | F31: 0.0079 | G31: 0.0061 | H31: 0.0004 | L31: 0.0002
A32: HCHI_GS<50 | B32: 27.89 | C32: 0.0196 | F32: 0.0072 | G32: 0.0057 | H32: 0.0004 | L32: 0.0002
A33: HCHI_GS >50 | B33: 86.56 | C33: 4.0727 | F33: 3.0442 | G33: 2.4143 | H33: 0.155 | L33: 0.0195
A34: HCHI_St Lgt | B34: 5.9 | C34: 15.1033 | F34: 2.1988 | G34: 1.7344 | H34: 0.113 | L34: 0.2152
A35: HCHI_Sen Lgt | B35: 14.73 | C35: 38.0228 | F35: 2.2099 | G35: 1.7706 | H35: 0.1099 | L35: 0.6224
A36: HCHI_USL | B36: 20.2 | C36: 0.0025 | F36: 0.0072 | G36: 0.0057 | H36: 0.0004 | L36: 0.0002

Sheet Data Proposed Rates (hidden)
A1: Proposed 2023 Rates
A3: 1 | B3: 2 | C3: 3 | D3: 4 | E3: 5 | F3: 6 | G3: 7 | H3: 8 | I3: 9 | J3: 10 | K3: 11 | L3: 12 | M3: 13
A4: Rate Class | B4: Proposed Fixed Charge ($/month) | C4: Proposed Volumetric Charge ($/kWh or $/kW) | D4: Proposed Group 1 DVA Rider - Volumetric ($/kWh or $/kW) | E4: Porposed Group 1 DVA Rider - Volumetric Applicable to Non-WMP Only ($/kWh or $/kW) | F4: Proposed Rate Rider for Disposition of Global Adjustment (Non WMP, Non-RPP, Non-LDC, and Class B) ($/kWh) | G4: Proposed Rate Rider for CBR (Non-WMP Class B) ($/kWh or $/kW) | H4: Proposed Group 2 Rate Rider - Fixed ($/month) | I4: Proposed Group 2 Rate Rider - Volumetric ($/kWh or $/kW) | J4: Proposed Base Rate Adjustment for Past Tax Amounts - Fixed ($/month) | K4: Proposed Base Rate Adjustment for Past Tax Amounts - Volumetric ($/kWh or $/kW) | L4: Proposed RTSR-NW ($/kWh or $/kW) | M4: Proposed RTSR-CONN ($/kWh or $/kW)
A5: Rate as shown on Bill Impact Sheet | B5: Service Charge | C5: Distribution Volumetric Charge | D5: Group 1 Volumetric DVA Rider (General) | E5: Group 1 Volumetric Deferral/Variance Account Rider (Sub-Account RSVA Wholesale Market Service Charge & RSVA Power) | F5: Group 1 Volumetric Deferral/Variance Account Rider (Sub-Account Global Adjustment) | G5: Group 1 Volumetric Deferral/Variance Account Rider (Sub Account CBR) | H5: Group 2 Fixed DVA Rider | I5: Group 2 Volumetric DVA Rider | J5: Fixed Base Rate Adjustment to Recover Past Tax Amounts | K5: Volumetric Base Rate Adjustment to Recover Past Tax Amounts | L5: Retail Transmission Rate – Network Service Rate | M5: Retail Transmission Rate – Line and Transformation Connection Service Rate
A6: Rounding Factor | B6: 2 | C6: 4 | D6: 4 | E6: 4 | F6: 4 | G6: 4 | H6: 2 | I6: 4 | J6: 2 | K6: 4 | L6: 4 | M6: 4
A7: UR | B7: 35.88 | C7: 0 | D7: -0.0004 | E7: 0 | F7: -0.0007 | H7: -0.08 | J7: 0.8 | K7: 0 | L7: 0.0102 | M7: 0.0074
A8: R1 | B8: 57.22 | C8: 0.0052 | D8: -0.0004 | E8: 0 | F8: -0.0007 | H8: -0.14 | J8: 1.44 | K8: 0 | L8: 0.0095 | M8: 0.0069
A9: R2 | B9: 56.08 | C9: 0.0081 | D9: -0.0004 | E9: 0 | F9: -0.0007 | H9: -0.29 | J9: 4 | K9: 0 | L9: 0.0088 | M9: 0.0065
A10: GSe | B10: 30.95 | C10: 0.0647 | D10: -0.0004 | E10: 0 | F10: -0.0007 | I10: -0.0002 | J10: 1.1 | K10: 0.0023 | L10: 0.0075 | M10: 0.0059
A11: UGe | B11: 24.1 | C11: 0.0311 | D11: -0.0004 | E11: 0 | F11: -0.0007 | I11: -0.0001 | J11: 0.82 | K11: 0.0011 | L11: 0.008 | M11: 0.0062
A12: St Lgt | B12: 2.97 | C12: 0.1064 | D12: -0.0004 | E12: 0 | F12: -0.0007 | I12: -0.0003 | J12: 0.11 | K12: 0.0041 | L12: 0.0055 | M12: 0.0043
A13: Sen Lgt | B13: 2.83 | C13: 0.1545 | D13: -0.0004 | E13: 0 | F13: -0.0007 | I13: -0.0003 | J13: 0.16 | K13: 0.009 | L13: 0.0055 | M13: 0.0043
A14: USL | B14: 34.68 | C14: 0.0216 | D14: -0.0004 | E14: 0 | F14: -0.0007 | I14: -0.0002 | J14: 0.87 | K14: 0.0005 | L14: 0.0064 | M14: 0.0047
A15: GSd | B15: 99.8 | C15: 18.4174 | D15: -0.0509 | E15: -0.071 | F15: -0.0007 | I15: -0.0466 | J15: 4.43 | K15: 0.8111 | L15: 2.442 | M15: 1.8696
A16: UGd | B16: 91.19 | C16: 10.6718 | D16: -0.0629 | E16: -0.0877 | F16: -0.0007 | I16: -0.0276 | J16: 4.01 | K16: 0.4638 | L16: 3.122 | M16: 2.3492
A17: Dgen | B17: 192.51 | C17: 10.0684 | D17: -0.0235 | E17: -0.0336 | F17: -0.0007 | I17: -0.0593 | J17: 1.77 | K17: 0.0913 | L17: 1.3408 | M17: 0.8025
A18: ST | B18: 1162.53 | C18: 1.4638 | D18: -0.0799 | E18: -0.1119 | F18: -0.0007 | I18: -0.0048 | J18: 32.54 | K18: 0.0504 | L18: 4.1165 | M18: 3.2406
A19: AUR | B19: 29.59 | C19: 0 | D19: -0.0004 | E19: 0 | F19: -0.0007 | L19: 0.0106 | M19: 0.0076
A20: AUGe | B20: 25.36 | C20: 0.0147 | D20: -0.0004 | E20: 0 | F20: -0.0007 | L20: 0.0081 | M20: 0.0062
A21: AUGd | B21: 150.84 | C21: 2.4538 | D21: -0.0579 | E21: -0.0803 | F21: -0.0007 | L21: 2.8411 | M21: 2.131
A22: AR | B22: 35.94 | C22: 0 | D22: -0.0004 | E22: 0 | F22: -0.0007 | L22: 0.0101 | M22: 0.0074
A23: AGSe | B23: 37.65 | C23: 0.0171 | D23: -0.0004 | E23: 0 | F23: -0.0007 | L23: 0.008 | M23: 0.0061
A24: AGSd | B24: 171.2 | C24: 4.0886 | D24: -0.0584 | E24: -0.081 | F24: -0.0007 | L24: 2.4941 | M24: 1.9178
A25: AUR-WHSI | B25: 29.59 | C25: 0 | D25: -0.0005 | E25: 0 | F25: -0.0007 | L25: 0.0106 | M25: 0.0076
A26: AUGe-WHSI | B26: 25.36 | C26: 0.0147 | D26: -0.0005 | E26: 0 | F26: -0.0007 | L26: 0.0081 | M26: 0.0062
A27: AUGd-WHSI | B27: 150.84 | C27: 2.4538 | D27: -0.0383 | E27: -0.0803 | F27: -0.0007 | L27: =L21 -> 2.8411 | M27: =M21 -> 2.131
A28: ST-WHSI | B28: 1162.53 | C28: 1.4638 | D28: -0.0633 | E28: 0 | F28: 0 | L28: =L18 -> 4.1165 | M28: =M18 -> 3.2406
A29: St Lgt-WHSI | B29: 2.97 | C29: 0.1064 | D29: -0.0003 | E29: 0 | F29: -0.0007 | L29: 0.0055 | M29: 0.0043
A30: USL-WHSI | B30: 34.68 | C30: 0.0216 | D30: -0.0005 | E30: 0 | F30: -0.0007 | L30: 0.0064 | M30: 0.0047
A31: AR-NPDI | B31: 35.94 | C31: 0 | D31: -0.0005 | E31: 0 | F31: -0.0007 | L31: 0.0101 | M31: 0.0074
A32: AGSe-NPDI | B32: 37.65 | C32: 0.0171 | D32: -0.0005 | E32: 0 | F32: -0.0007 | L32: 0.008 | M32: 0.0061
A33: AGSd-NPDI | B33: 171.2 | C33: 4.0886 | D33: -0.0388 | E33: -0.081 | F33: -0.0007 | L33: =L24 -> 2.4941 | M33: =M24 -> 1.9178
A34: St Lgt-NPDI | B34: 2.97 | C34: 0.1064 | D34: -0.0007 | E34: 0 | F34: -0.0007 | L34: 0.0055 | M34: 0.0043
A35: Sen Lgt-NPDI | B35: 2.83 | C35: 0.1545 | D35: -0.0007 | E35: 0 | F35: -0.0007 | L35: 0.0055 | M35: 0.0043
A36: USL-NPDI | B36: 34.68 | C36: 0.0216 | D36: -0.0009 | E36: 0 | F36: -0.0007 | L36: 0.0064 | M36: 0.0047
A37: AR-HCHI | B37: 35.94 | C37: 0 | D37: -0.0004 | E37: 0 | F37: -0.0007 | L37: 0.0101 | M37: 0.0074
A38: AGSe-HCHI | B38: 37.65 | C38: 0.0171 | D38: -0.0004 | E38: 0 | F38: -0.0007 | L38: 0.008 | M38: 0.0061
A39: AGSd-HCHI | B39: 171.2 | C39: 4.0886 | D39: -0.0584 | E39: -0.081 | F39: -0.0007 | L39: =L24 -> 2.4941 | M39: =M24 -> 1.9178
A40: St Lgt-HCHI | B40: 2.97 | C40: 0.1064 | D40: -0.0004 | E40: 0 | F40: -0.0007 | L40: 0.0055 | M40: 0.0043
A41: Sen Lgt-HCHI | B41: 2.83 | C41: 0.1545 | D41: -0.0004 | E41: 0 | F41: -0.0007 | L41: 0.0055 | M41: 0.0043
A42: USL-HCHI | B42: 34.68 | C42: 0.0216 | D42: -0.0004 | E42: 0 | F42: -0.0007 | L42: 0.0064 | M42: 0.0047

Sheet Data Billing Quantities (hidden)
A1: Rate Class-Specific Billing Quantities (Applied to Current and Proposed Bill)
E3: Consumption (kWh) | I3: Peak (kW) | M3: TOU Split
A4: Rate Class | B4: Loss Factor | C4: Charge Determinant | D4: Commodity Threshold | E4: Low kWh | F4: Typical kWh | G4: Average kWh | H4: High kWh | I4: Low kW | J4: Typical kW | K4: Average kW | L4: High kW | M4: TOU-Off Peak | N4: TOU-Mid Peak | O4: TOU-On Peak | P4: Acquired Street Light Service Charge
A5: UR | B5: 1.057 | C5: kWh | D5: 600 | E5: 340 | F5: 750 | G5: 690 | H5: 1260 | M5: 0.64 | N5: 0.18 | O5: 0.18
A6: R1 | B6: 1.076 | C6: kWh | D6: 600 | E6: 370 | F6: 750 | G6: 784 | H6: 1650 | M6: =M$5 -> 0.64 | N6: =N$5 -> 0.18 | O6: =O$5 -> 0.18
A7: R2 | B7: 1.105 | C7: kWh | D7: 600 | E7: 440 | F7: 750 | G7: 978 | H7: 2110 | M7: =M$5 -> 0.64 | N7: 0.18 | O7: 0.18
A8: Seasonal | B8: 1.104 | C8: kWh | D8: 600 | E8: 40 | G8: 369 | H8: 1040 | M8: 0.64 | N8: 0.18 | O8: 0.18
A9: GSe | B9: 1.096 | C9: kWh | D9: 750 | E9: 60 | F9: 2000 | G9: 1887 | H9: 5570 | M9: 0.64 | N9: 0.18 | O9: 0.18
A10: UGe | B10: 1.067 | C10: kWh | D10: 750 | E10: 180 | F10: 2000 | G10: 2494 | H10: 6930 | M10: 0.64 | N10: 0.18 | O10: 0.18
A11: St Lgt | B11: 1.092 | C11: kWh | D11: 750 | E11: 30 | G11: 1274 | H11: 2310
A12: Sen Lgt | B12: 1.092 | C12: kWh | D12: 750 | E12: 20 | G12: 49 | H12: 80
A13: USL | B13: 1.092 | C13: kWh | D13: 750 | E13: 100 | G13: 477 | H13: 550
A14: GSd | B14: 1.061 | C14: kW | D14: 0 | E14: 9310 | G14: 34334 | H14: 75790 | I14: 55 | K14: 110 | L14: 250
A15: UGd | B15: 1.05 | C15: kW | D15: 0 | E15: 13900 | G15: 42592 | H15: 97610 | I15: 55 | K15: 111 | L15: 280
A16: Dgen | B16: 1.061 | C16: kW | D16: 0 | E16: 10 | G16: 1709 | H16: 8490 | I16: 0.02941666667 | K16: 12 | L16: 45
A17: ST | B17: 1.034 | C17: kW | D17: 0 | E17: 88780 | G17: 1373443 | H17: 2641420 | I17: 500 | K17: 2808 | L17: 13730
A18: WHSI_RES | B18: 1.0431 | C18: kWh | D18: 600 | E18: 310 | F18: 750 | G18: 636 | H18: 1160 | M18: =M$5 -> 0.64 | N18: 0.18 | O18: 0.18
A19: WHSI_GS<50 | B19: 1.0431 | C19: kWh | D19: 750 | E19: 190 | F19: 2000 | G19: 2471 | H19: 7240 | M19: 0.64 | N19: 0.18 | O19: 0.18
A20: WHSI_GS 50>999 | B20: 1.0431 | C20: kW | E20: 9370 | G20: 47636 | H20: 137890 | I20: 50 | K20: 134 | L20: 340
A21: WHSI_GS >1,000kW | B21: 1.0326 | C21: kW | G21: 895853 | K21: 3301
A22: WHSI_St Lgt | B22: 1.0431 | C22: kW | D22: 750 | G22: 37079 | K22: 104 | P22: 786
A23: WHSI_USL | B23: 1.0431 | C23: kWh | D23: 750 | G23: 1349 | M23: =M$5 -> 0.64 | N23: 0.18 | O23: 0.18
A24: NPDI_RES | B24: 1.0564 | C24: kWh | D24: 600 | E24: 290 | F24: 750 | G24: 692 | H24: 1230 | M24: 0.64 | N24: 0.18 | O24: 0.18
A25: NPDI_GS<50 | B25: 1.0564 | C25: kWh | D25: 750 | E25: 110 | F25: 2000 | G25: 2377 | H25: 6410 | M25: 0.64 | N25: 0.18 | O25: 0.18
A26: NPDI_GS >50 | B26: 1.0464 | C26: kW | E26: 13020 | G26: 70294 | H26: 129420 | I26: 55 | K26: 181 | L26: 300
A27: NPDI_St Lgt | B27: 1.0564 | C27: kW | D27: 750 | G27: 11389 | K27: 39 | P27: 328
A28: NPDI_Sen Lgt | B28: 1.0564 | C28: kW | D28: 750 | G28: 108 | K28: 0.3368027211
A29: NPDI_USL | B29: 1.0564 | C29: kWh | D29: 750 | G29: 904 | M29: =M$5 -> 0.64 | N29: 0.18 | O29: 0.18
A30: HCHI_RES | B30: 1.0655 | C30: kWh | D30: 600 | E30: 250 | F30: 750 | G30: 742 | H30: 1410 | M30: 0.64 | N30: 0.18 | O30: 0.18
A31: HCHI_GS<50 | B31: 1.0655 | C31: kWh | D31: 750 | E31: 90 | F31: 2000 | G31: 2261 | H31: 5430 | M31: 0.64 | N31: 0.18 | O31: 0.18
A32: HCHI_GS >50 | B32: 1.0548 | C32: kW | E32: 10880 | G32: 57529 | H32: 135160 | I32: 55 | K32: 175 | L32: 375
A33: HCHI_St Lgt | B33: 1.0655 | C33: kW | D33: 750 | G33: 31001 | K33: 85 | P33: 701
A34: HCHI_Sen Lgt | B34: 1.0655 | C34: kW | D34: 750 | G34: 61 | K34: 0.1956473214
A35: HCHI_USL | B35: 1.0655 | C35: kWh | D35: 750 | G35: 471 | M35: =M$5 -> 0.64 | N35: 0.18 | O35: 0.18
A36: AUR | B36: 1.043 | C36: kWh | D36: 750 | E36: 310 | F36: 750 | G36: 636 | H36: 1160 | M36: 0.64 | N36: 0.18 | O36: 0.18
A37: AUGe | B37: =B36 -> 1.043 | C37: kWh | D37: 750 | E37: 190 | F37: 2000 | G37: 2471 | H37: 7240 | M37: 0.64 | N37: 0.18 | O37: 0.18
A38: AUGd | B38: 1.033 | C38: kW | E38: 9370 | G38: 47636 | H38: 137890 | I38: 50 | K38: 134 | L38: 340
A39: AR | B39: 1.064 | C39: kWh | D39: 750 | F39: 750 | M39: =M$5 -> 0.64 | N39: 0.18 | O39: 0.18
A40: AGSe | B40: =B39 -> 1.064 | C40: kWh | D40: 750 | F40: 2000 | M40: 0.64 | N40: 0.18 | O40: 0.18
A41: AGSd | B41: 1.053 | C41: kW
A42: AUR-WHSI | B42: =B36 -> 1.043 | C42: kWh | D42: =D36 -> 750 | E42: 310 | F42: 750 | G42: 636 | H42: 1160 | M42: =M$5 -> 0.64 | N42: 0.18 | O42: 0.18
A43: AUGe-WHSI | B43: =B37 -> 1.043 | C43: kWh | D43: =D37 -> 750 | E43: 190 | F43: 2000 | G43: 2471 | H43: 7240 | M43: 0.64 | N43: 0.18 | O43: 0.18
A44: AUGd-WHSI | B44: =B38 -> 1.033 | C44: kW | E44: 9370 | G44: 47636 | H44: 137890 | I44: 50 | K44: 134 | L44: 340
A45: ST-WHSI | B45: =B17 -> 1.034 | C45: kW | G45: 895853 | K45: 3301
A46: St Lgt-WHSI | B46: =B11 -> 1.092 | C46: kWh | D46: =D11 -> 750 | G46: =G22 -> 37079 | K46: =K22 -> 104 | P46: =P22 -> 786
A47: USL-WHSI | B47: =B13 -> 1.092 | C47: kWh | D47: =D13 -> 750 | G47: =G23 -> 1349 | M47: =M$5 -> 0.64 | N47: 0.18 | O47: 0.18
A48: AR-NPDI | B48: =B39 -> 1.064 | C48: kWh | D48: =D39 -> 750 | E48: 290 | F48: 750 | G48: 692 | H48: 1230 | M48: 0.64 | N48: 0.18 | O48: 0.18
A49: AGSe-NPDI | B49: =B40 -> 1.064 | C49: kWh | D49: =D40 -> 750 | E49: 110 | F49: 2000 | G49: 2377 | H49: 6410 | M49: 0.64 | N49: 0.18 | O49: 0.18
A50: AGSd-NPDI | B50: =B41 -> 1.053 | C50: kW | D50: =D41 -> 0 | E50: 13020 | G50: 70294 | H50: 129420 | I50: 55 | K50: 181 | L50: 300
A51: St Lgt-NPDI | B51: =B11 -> 1.092 | C51: kWh | D51: =D11 -> 750 | G51: =G27 -> 11389 | K51: =K27 -> 39 | P51: =P27 -> 328
A52: Sen Lgt-NPDI | B52: =B12 -> 1.092 | C52: kWh | D52: =D12 -> 750 | G52: =G28 -> 108 | K52: =K28 -> 0.3368027211
A53: USL-NPDI | B53: =B13 -> 1.092 | C53: kWh | D53: =D13 -> 750 | G53: =G29 -> 904 | M53: =M$5 -> 0.64 | N53: 0.18 | O53: 0.18
A54: AR-HCHI | B54: =B48 -> 1.064 | C54: kWh | D54: 750 | E54: 250 | F54: 750 | G54: 742 | H54: 1410 | M54: 0.64 | N54: 0.18 | O54: 0.18
A55: AGSe-HCHI | B55: 1.064 | C55: kWh | D55: 750 | E55: 90 | F55: 2000 | G55: 2261 | H55: 5430 | M55: 0.64 | N55: 0.18 | O55: 0.18
A56: AGSd-HCHI | B56: 1.053 | C56: kW | D56: 0 | E56: 10880 | G56: 57529 | H56: 135160 | I56: 55 | K56: 175 | L56: 375
A57: St Lgt-HCHI | B57: 1.092 | C57: kWh | D57: 750 | G57: =G33 -> 31001 | K57: =K33 -> 85 | P57: =P33 -> 701
A58: Sen Lgt-HCHI | B58: 1.092 | C58: kWh | D58: 750 | G58: =G34 -> 61 | K58: =K34 -> 0.1956473214
A59: USL-HCHI | B59: 1.092 | C59: kWh | D59: 750 | G59: =G35 -> 471 | M59: =M$5 -> 0.64 | N59: 0.18 | O59: 0.18

Sheet Data Pass Through (hidden)
A1: 3. Pass Through Charges
B2: Current Bill | C2: Proposed Bill
A3: Effective Date | B3: 2022-01-01 | C3: 2023-01-01 | D3: TOU % | E3: Notes
A4: R2 Credit | B4: 60.5 | C4: =B4 -> 60.5
A5: Energy First Tier | B5: 0.098 | C5: =B5 -> 0.098 | E5: Effective May 1 2018
A6: Energy Second Tier | B6: 0.115 | C6: 0.115 | E6: Effective May 1 2018
A7: Weighted Average Hourly Spot Price | B7: 0.119 | C7: =B7 -> 0.119 | E7: Avg for May 2020 to Apr 2021
A8: TOU-Off Peak | B8: 0.082 | C8: 0.082 | D8: 0.64 | E8: Effective May 1 2018
A9: TOU-Mid Peak | B9: 0.113 | C9: 0.113 | D9: 0.18 | E9: Effective May 1 2018
A10: TOU-On Peak | B10: 0.17 | C10: 0.17 | D10: 0.18 | E10: Effective May 1 2018
A11: Wholesale Market Service Rate (WMS) - not including CBR | B11: 0.003 | C11: 0.003 | E11: Effective May 1 2017, 0.0036 WMSC broken up between WMSC and CBR
A12: Capacity Based Recovery (CBR) - Applicable for Class B Customers | B12: 0.0004 | C12: 0.0004 | E12: Effective May 1 2017, 0.0036 WMSC broken up between WMSC and CBR
A13: Rural Rate Protection Charge | B13: 0.0005 | C13: 0.0005 | E13: RRRP charge reduced from $0.0021/kWh to $0.0003/kWh effective July 1, 2017.
A14: Ontario Electricity Support Program Charge | B14: 0 | C14: 0 | E14: OESP charge removed for all rate classes effective May 1, 2017. ROW HIDDEN IN BILL IMPACT FILE
A15: Standard Supply Service – Administration Charge (if applicable) | B15: 0.25 | C15: 0.25
A16: Fair Hydro Plan - Distribution Rate Protection Savings* | B16: =IF('Bill Impact Summary'!L6="TOU",0,IF('Bill Impact Summary'!L6="TOU (DRP applied)",B17,"error")) -> 36.86 | C16: =IF('Bill Impact Summary'!L6="TOU",0,IF('Bill Impact Summary'!L6="TOU (DRP applied)",C17,"error")) -> 36.86 | E16: Highlighted cells are FORMULAS; do not overwrite with hard-entered values. Input DRP limit values in row 17 below
A17: DRP limit (applied when selected from Bill Impact Summary) | B17: 36.86 | C17: 36.86 | E17: Make change to FHP DRP limit here, but to apply DRP, must do in Bill Impact Summary sheet cell L6
A18: Smart Metering Entity Charge | B18: 0.57 | C18: 0.57 | E18: Change from 0.79 to 0.57 effective March 1 2018; only for metered energy-billed (UR, R1, R2, SEA, GSE, UGE)
A19: Debt Retirement Charge (DRC) | B19: 0 | C19: 0 | E19: DRC removed from all rate classes Apr 1 2018 ROW HIDDEN IN BILL IMPACT FILE
A20: Ontario Electricity Rebate (OER) | B20: -0.189 | C20: =B20 -> -0.189
A22: Customer Attributes - Assumptions
A23: ST customers are assumed to be Non-WMP, Class A

Sheet Data BI Summary (hidden)
A2: Summary Column | B2: Current Total Bill | C2: Change in DX Bill ($) | D2: Change in DX Bill (%) | E2: Change in Total Bill ($) | F2: Change in Total Bill (%)
A3: BI Template_Energy | B3: Total Amount on TOU | C3: Sub-Total: Distribution (excluding pass through) | D3: Sub-Total: Distribution (excluding pass through) | E3: Total Amount on TOU | F3: Total Amount on TOU
A4: BI Template_EnergyUNM | B4: Total Amount on Two-Tier RPP | C4: Sub-Total: Distribution (excluding pass through) | D4: Sub-Total: Distribution (excluding pass through) | E4: Total Amount on Two-Tier RPP | F4: Total Amount on Two-Tier RPP
A5: BI Template_Demand | B5: Total Amount on WAHSP | C5: Sub-Total: Distribution | D5: Sub-Total: Distribution | E5: Total Amount on WAHSP | F5: Total Amount on WAHSP
A6: BI Template_EnergyNPDI | B6: Total Amount on TOU | C6: Sub-Total: Distribution (excluding pass through) | D6: Sub-Total: Distribution (excluding pass through) | E6: Total Amount on TOU | F6: Total Amount on TOU
A7: BI Template_UNMNPDI | B7: Total Amount on Two-Tier RPP | C7: Sub-Total: Distribution (excluding pass through) | D7: Sub-Total: Distribution (excluding pass through) | E7: Total Amount on Two-Tier RPP | F7: Total Amount on Two-Tier RPP
A8: BI Template_DemandNPDI | B8: Total Amount on WAHSP | C8: Sub-Total: Distribution | D8: Sub-Total: Distribution | E8: Total Amount on WAHSP | F8: Total Amount on WAHSP
A9: BI Template_EnergyHCHI | B9: Total Amount on TOU | C9: Sub-Total: Distribution (excluding pass through) | D9: Sub-Total: Distribution (excluding pass through) | E9: Total Amount on TOU | F9: Total Amount on TOU
A10: BI Template_UNMHCHI | B10: Total Amount on Two-Tier RPP | C10: Sub-Total: Distribution (excluding pass through) | D10: Sub-Total: Distribution (excluding pass through) | E10: Total Amount on Two-Tier RPP | F10: Total Amount on Two-Tier RPP
A11: BI Template_DemandHCHI | B11: Total Amount on WAHSP | C11: Sub-Total: Distribution | D11: Sub-Total: Distribution | E11: Total Amount on WAHSP | F11: Total Amount on WAHSP
A12: BI Template_EnergyWHSI | B12: Total Amount on TOU | C12: Sub-Total: Distribution (excluding pass through) | D12: Sub-Total: Distribution (excluding pass through) | E12: Total Amount on TOU | F12: Total Amount on TOU
A13: BI Template_UNMWHSI | B13: Total Amount on Two-Tier RPP | C13: Sub-Total: Distribution (excluding pass through) | D13: Sub-Total: Distribution (excluding pass through) | E13: Total Amount on Two-Tier RPP | F13: Total Amount on Two-Tier RPP
A14: BI Template_DemandWHSI | B14: Total Amount on WAHSP | C14: Sub-Total: Distribution | D14: Sub-Total: Distribution | E14: Total Amount on WAHSP | F14: Total Amount on WAHSP
A15: BI Template_Seasonal | B15: Total Amount on TOU | C15: Sub-Total: Distribution (excluding pass through) | D15: Sub-Total: Distribution (excluding pass through) | E15: Total Amount on TOU | F15: Total Amount on TOU

Sheet Data BI List (hidden)
A1: Template Name | B1: Bill Impact Worksheet Name | C1: Bill Impact Header
A2: BI Template_Energy | B2: BI_UR_Low | C2: 2023 Bill Impacts (Low Consumption Level) - UR
A3: BI Template_Energy | B3: BI_UR_Typical | C3: 2023 Bill Impacts (Typical Consumption Level) - UR
A4: BI Template_Energy | B4: BI_UR_Avg | C4: 2023 Bill Impacts (Average Consumption Level) - UR
A5: BI Template_Energy | B5: BI_UR_High | C5: 2023 Bill Impacts (High Consumption Level) - UR
A6: BI Template_Energy | B6: BI_R1_Low (with DRP) | C6: 2023 Bill Impacts (Low Consumption Level) - R1
A7: BI Template_Energy | B7: BI_R1_Typical (with DRP) | C7: 2023 Bill Impacts (Typical Consumption Level) - R1
A8: BI Template_Energy | B8: BI_R1_Avg (with DRP) | C8: 2023 Bill Impacts (Average Consumption Level) - R1
A9: BI Template_Energy | B9: BI_R1_High (with DRP) | C9: 2023 Bill Impacts (High Consumption Level) - R1
A10: BI Template_Energy | B10: BI_R1_Low (without DRP) | C10: 2023 Bill Impacts (Low Consumption Level) - R1
A11: BI Template_Energy | B11: BI_R1_Typical (without DRP) | C11: 2023 Bill Impacts (Typical Consumption Level) - R1
A12: BI Template_Energy | B12: BI_R1_Avg (without DRP) | C12: 2023 Bill Impacts (Average Consumption Level) - R1
A13: BI Template_Energy | B13: BI_R1_High (without DRP) | C13: 2023 Bill Impacts (High Consumption Level) - R1
A14: BI Template_Energy | B14: BI_R2_Low (with DRP) | C14: 2023 Bill Impacts (Low Consumption Level) - R2
A15: BI Template_Energy | B15: BI_R2_Typical (with DRP) | C15: 2023 Bill Impacts (Typical Consumption Level) - R2
A16: BI Template_Energy | B16: BI_R2_Avg (with DRP) | C16: 2023 Bill Impacts (Average Consumption Level) - R2
A17: BI Template_Energy | B17: BI_R2_High (with DRP) | C17: 2023 Bill Impacts (High Consumption Level) - R2
A18: BI Template_Energy | B18: BI_R2_Low (without DRP) | C18: 2023 Bill Impacts (Low Consumption Level) - R2
A19: BI Template_Energy | B19: BI_R2_Typical (without DRP) | C19: 2023 Bill Impacts (Typical Consumption Level) - R2
A20: BI Template_Energy | B20: BI_R2_Avg (without DRP) | C20: 2023 Bill Impacts (Average Consumption Level) - R2
A21: BI Template_Energy | B21: BI_R2_High (without DRP) | C21: 2023 Bill Impacts (High Consumption Level) - R2
A22: BI Template_Energy | B22: BI_GSe_Low | C22: 2023 Bill Impacts (Low Consumption Level) - GSe
A23: BI Template_Energy | B23: BI_GSe_Typical | C23: 2023 Bill Impacts (Typical Consumption Level) - GSe
A24: BI Template_Energy | B24: BI_GSe_Avg | C24: 2023 Bill Impacts (Average Consumption Level) - GSe
A25: BI Template_Energy | B25: BI_GSe_High | C25: 2023 Bill Impacts (High Consumption Level) - GSe
A26: BI Template_Energy | B26: BI_UGe_Low | C26: 2023 Bill Impacts (Low Consumption Level) - UGe
A27: BI Template_Energy | B27: BI_UGe_Typical | C27: 2023 Bill Impacts (Typical Consumption Level) - UGe
A28: BI Template_Energy | B28: BI_UGe_Avg | C28: 2023 Bill Impacts (Average Consumption Level) - UGe
A29: BI Template_Energy | B29: BI_UGe_High | C29: 2023 Bill Impacts (High Consumption Level) - UGe
A30: BI Template_Demand | B30: BI_GSd_Low | C30: 2023 Bill Impacts (Low Consumption Level) - GSd
A31: BI Template_Demand | B31: BI_GSd_Avg | C31: 2023 Bill Impacts (Average Consumption Level) - GSd
A32: BI Template_Demand | B32: BI_GSd_High | C32: 2023 Bill Impacts (High Consumption Level) - GSd
A33: BI Template_Demand | B33: BI_UGd_Low | C33: 2023 Bill Impacts (Low Consumption Level) - UGd
A34: BI Template_Demand | B34: BI_UGd_Avg | C34: 2023 Bill Impacts (Average Consumption Level) - UGd
A35: BI Template_Demand | B35: BI_UGd_High | C35: 2023 Bill Impacts (High Consumption Level) - UGd
A36: BI Template_EnergyUNM | B36: BI_StLgt_Low | C36: 2023 Bill Impacts (Low Consumption Level) - St Lgt
A37: BI Template_EnergyUNM | B37: BI_StLgt_Avg | C37: 2023 Bill Impacts (Average Consumption Level) - St Lgt
A38: BI Template_EnergyUNM | B38: BI_StLgt_High | C38: 2023 Bill Impacts (High Consumption Level) - St Lgt
A39: BI Template_EnergyUNM | B39: BI_SenLgt_Low | C39: 2023 Bill Impacts (Low Consumption Level) - Sen Lgt
A40: BI Template_EnergyUNM | B40: BI_SenLgt_Avg | C40: 2023 Bill Impacts (Average Consumption Level) - Sen Lgt
A41: BI Template_EnergyUNM | B41: BI_SenLgt_High | C41: 2023 Bill Impacts (High Consumption Level) - Sen Lgt
A42: BI Template_EnergyUNM | B42: BI_USL_Low | C42: 2023 Bill Impacts (Low Consumption Level) - USL
A43: BI Template_EnergyUNM | B43: BI_USL_Avg | C43: 2023 Bill Impacts (Average Consumption Level) - USL
A44: BI Template_EnergyUNM | B44: BI_USL_High | C44: 2023 Bill Impacts (High Consumption Level) - USL
A45: BI Template_Demand | B45: BI_Dgen_Low | C45: 2023 Bill Impacts (Low Consumption Level) - Dgen
A46: BI Template_Demand | B46: BI_Dgen_Avg | C46: 2023 Bill Impacts (Average Consumption Level) - Dgen
A47: BI Template_Demand | B47: BI_Dgen_High | C47: 2023 Bill Impacts (High Consumption Level) - Dgen
A48: BI Template_Demand | B48: BI_ST_Low | C48: 2023 Bill Impacts (Low Consumption Level) - ST
A49: BI Template_Demand | B49: BI_ST_Avg | C49: 2023 Bill Impacts (Average Consumption Level) - ST
A50: BI Template_Demand | B50: BI_ST_High | C50: 2023 Bill Impacts (High Consumption Level) - ST
A51: BI Template_EnergyWHSI | B51: BI_WHSI_AUR_Low | C51: 2023 Bill Impacts (Low Consumption Level) - AUR_WHSI
A52: BI Template_EnergyWHSI | B52: BI_WHSI_AUR_Typical | C52: 2023 Bill Impacts (Typical Consumption Level) - AUR_WHSI
A53: BI Template_EnergyWHSI | B53: BI_WHSI_AUR_Avg | C53: 2023 Bill Impacts (Average Consumption Level) - AUR_WHSI
A54: BI Template_EnergyWHSI | B54: BI_WHSI_AUR_High | C54: 2023 Bill Impacts (High Consumption Level) - AUR_WHSI
A55: BI Template_EnergyWHSI | B55: BI_WHSI_AUGe_Low | C55: 2023 Bill Impacts (Low Consumption Level) - AUGe_WHSI
A56: BI Template_EnergyWHSI | B56: BI_WHSI_AUGe_Typical | C56: 2023 Bill Impacts (Typical Consumption Level) - AUGe_WHSI
A57: BI Template_EnergyWHSI | B57: BI_WHSI_AUGe_Avg | C57: 2023 Bill Impacts (Average Consumption Level) - AUGe_WHSI
A58: BI Template_EnergyWHSI | B58: BI_WHSI_AUGe_High | C58: 2023 Bill Impacts (High Consumption Level) - AUGe_WHSI
A59: BI Template_DemandWHSI | B59: BI_WHSI_AUGd_Low | C59: 2023 Bill Impacts (Low Consumption Level) - AUGd_WHSI
A60: BI Template_DemandWHSI | B60: BI_WHSI_AUGd_Avg | C60: 2023 Bill Impacts (Average Consumption Level) - AUGd_WHSI
A61: BI Template_DemandWHSI | B61: BI_WHSI_AUGd_High | C61: 2023 Bill Impacts (High Consumption Level) - AUGd_WHSI
A62: BI Template_DemandWHSI | B62: BI_WHSI_ST_Avg | C62: 2023 Bill Impacts (Average Consumption Level) - ST_WHSI
A63: BI Template_EnergyNPDI | B63: BI_NPDI_AR_Low | C63: 2023 Bill Impacts (Low Consumption Level) - AR_NPDI
A64: BI Template_EnergyNPDI | B64: BI_NPDI_AR_Typical | C64: 2023 Bill Impacts (Typical Consumption Level) - AR_NPDI
A65: BI Template_EnergyNPDI | B65: BI_NPDI_AR_Avg | C65: 2023 Bill Impacts (Average Consumption Level) - AR_NPDI
A66: BI Template_EnergyNPDI | B66: BI_NPDI_AR_High | C66: 2023 Bill Impacts (High Consumption Level) - AR_NPDI
A67: BI Template_EnergyHCHI | B67: BI_HCHI_AR_Low | C67: 2023 Bill Impacts (Low Consumption Level) - AR_HCHI
A68: BI Template_EnergyHCHI | B68: BI_HCHI_AR_Typical | C68: 2023 Bill Impacts (Typical Consumption Level) - AR_HCHI
A69: BI Template_EnergyHCHI | B69: BI_HCHI_AR_Avg | C69: 2023 Bill Impacts (Average Consumption Level) - AR_HCHI
A70: BI Template_EnergyHCHI | B70: BI_HCHI_AR_High | C70: 2023 Bill Impacts (High Consumption Level) - AR_HCHI
A71: BI Template_EnergyNPDI | B71: BI_NPDI_AGSe_Low | C71: 2023 Bill Impacts (Low Consumption Level) - AGSe_NPDI
A72: BI Template_EnergyNPDI | B72: BI_NPDI_AGSe_Typical | C72: 2023 Bill Impacts (Typical Consumption Level) - AGSe_NPDI
A73: BI Template_EnergyNPDI | B73: BI_NPDI_AGSe_Avg | C73: 2023 Bill Impacts (Average Consumption Level) - AGSe_NPDI
A74: BI Template_EnergyNPDI | B74: BI_NPDI_AGSe_High | C74: 2023 Bill Impacts (High Consumption Level) - AGSe_NPDI
A75: BI Template_EnergyHCHI | B75: BI_HCHI_AGSe_Low | C75: 2023 Bill Impacts (Low Consumption Level) - AGSe_HCHI
A76: BI Template_EnergyHCHI | B76: BI_HCHI_AGSe_Typical | C76: 2023 Bill Impacts (Typical Consumption Level) - AGSe_HCHI
A77: BI Template_EnergyHCHI | B77: BI_HCHI_AGSe_Avg | C77: 2023 Bill Impacts (Average Consumption Level) - AGSe_HCHI
A78: BI Template_EnergyHCHI | B78: BI_HCHI_AGSe_High | C78: 2023 Bill Impacts (High Consumption Level) - AGSe_HCHI
A79: BI Template_DemandNPDI | B79: BI_NPDI_AGSd_Low | C79: 2023 Bill Impacts (Low Consumption Level) - AGSd_NPDI
A80: BI Template_DemandNPDI | B80: BI_NPDI_AGSd_Avg | C80: 2023 Bill Impacts (Average Consumption Level) - AGSd_NPDI
A81: BI Template_DemandNPDI | B81: BI_NPDI_AGSd_High | C81: 2023 Bill Impacts (High Consumption Level) - AGSd_NPDI
A82: BI Template_DemandHCHI | B82: BI_HCHI_AGSd_Low | C82: 2023 Bill Impacts (Low Consumption Level) - AGSd_HCHI
A83: BI Template_DemandHCHI | B83: BI_HCHI_AGSd_Avg | C83: 2023 Bill Impacts (Average Consumption Level) - AGSd_HCHI
A84: BI Template_DemandHCHI | B84: BI_HCHI_AGSd_High | C84: 2023 Bill Impacts (High Consumption Level) - AGSd_HCHI
A85: BI Template_unmWHSI | B85: BI_WHSI_USL_Avg | C85: 2023 Bill Impacts (Average Consumption Level) - USL_WHSI
A86: BI Template_unmNPDI | B86: BI_NPDI_USL_Avg | C86: 2023 Bill Impacts (Average Consumption Level) - USL_NPDI
A87: BI Template_unmHCHI | B87: BI_HCHI_USL_Avg | C87: 2023 Bill Impacts (Average Consumption Level) - USL_HCHI
A88: BI Template_unmWHSI | B88: BI_WHSI_StLgt_Avg | C88: 2023 Bill Impacts (Average Consumption Level) - St Lgt_WHSI
A89: BI Template_unmNPDI | B89: BI_NPDI_StLgt_Avg | C89: 2023 Bill Impacts (Average Consumption Level) - St Lgt_NPDI
A90: BI Template_unmHCHI | B90: BI_HCHI_StLgt_Avg | C90: 2023 Bill Impacts (Average Consumption Level) - St Lgt_HCHI
A91: BI Template_unmNPDI | B91: BI_NPDI_SenLgt_Avg | C91: 2023 Bill Impacts (Average Consumption Level) - Sen Lgt_NPDI
A92: BI Template_unmHCHI | B92: BI_HCHI_SenLgt_Avg | C92: 2023 Bill Impacts (Average Consumption Level) - Sen Lgt_HCHI
A93: BI Template_Seasonal | B93: BI_Seas_UR_Low | C93: 2023 Bill Impacts (Low Consumption Level) - Seas-UR
A94: BI Template_Seasonal | B94: BI_Seas_UR_Avg | C94: 2023 Bill Impacts (Average Consumption Level) - Seas-UR
A95: BI Template_Seasonal | B95: BI_Seas_UR_High | C95: 2023 Bill Impacts (High Consumption Level) - Seas-UR
A96: BI Template_Seasonal | B96: BI_Seas_R1_Low | C96: 2023 Bill Impacts (Low Consumption Level) - Seas-R1
A97: BI Template_Seasonal | B97: BI_Seas_R1_Avg | C97: 2023 Bill Impacts (Average Consumption Level) - Seas-R1
A98: BI Template_Seasonal | B98: BI_Seas_R1_High | C98: 2023 Bill Impacts (High Consumption Level) - Seas-R1
A99: BI Template_Seasonal | B99: BI_Seas_R2_Low | C99: 2023 Bill Impacts (Low Consumption Level) - Seas-R2
A100: BI Template_Seasonal | B100: BI_Seas_R2_Avg | C100: 2023 Bill Impacts (Average Consumption Level) - Seas-R2
A101: BI Template_Seasonal | B101: BI_Seas_R2_High | C101: 2023 Bill Impacts (High Consumption Level) - Seas-R2

Sheet Data BI List Acq_Seas (hidden)
A1: Template Name | B1: Bill Impact Worksheet Name | C1: Bill Impact Header | D1: Current Rate Class (Acq) | E1: Proposed Rate Class
A2: BI Template_EnergyWHSI | B2: BI_AUR_Low | C2: 2023 Bill Impacts (Low Consumption Level) - AUR_WHSI | D2: WHSI_RES | E2: AUR-WHSI
A3: BI Template_EnergyWHSI | B3: BI_AUR_Typical | C3: 2023 Bill Impacts (Typical Consumption Level) - AUR_WHSI | D3: WHSI_RES | E3: AUR-WHSI
A4: BI Template_EnergyWHSI | B4: BI_AUR_Avg | C4: 2023 Bill Impacts (Average Consumption Level) - AUR_WHSI | D4: WHSI_RES | E4: AUR-WHSI
A5: BI Template_EnergyWHSI | B5: BI_AUR_High | C5: 2023 Bill Impacts (High Consumption Level) - AUR_WHSI | D5: WHSI_RES | E5: AUR-WHSI
A6: BI Template_EnergyWHSI | B6: BI_AUGe_Low | C6: 2023 Bill Impacts (Low Consumption Level) - AUGe_WHSI | D6: WHSI_GS<50 | E6: AUGe-WHSI
A7: BI Template_EnergyWHSI | B7: BI_AUGe_Typical | C7: 2023 Bill Impacts (Typical Consumption Level) - AUGe_WHSI | D7: WHSI_GS<50 | E7: AUGe-WHSI
A8: BI Template_EnergyWHSI | B8: BI_AUGe_Avg | C8: 2023 Bill Impacts (Average Consumption Level) - AUGe_WHSI | D8: WHSI_GS<50 | E8: AUGe-WHSI
A9: BI Template_EnergyWHSI | B9: BI_AUGe_High | C9: 2023 Bill Impacts (High Consumption Level) - AUGe_WHSI | D9: WHSI_GS<50 | E9: AUGe-WHSI
A10: BI Template_DemandWHSI | B10: BI_AUGd_Low | C10: 2023 Bill Impacts (Low Consumption Level) - AUGd_WHSI | D10: WHSI_GS 50>999 | E10: AUGd-WHSI
A11: BI Template_DemandWHSI | B11: BI_AUGd_Avg | C11: 2023 Bill Impacts (Average Consumption Level) - AUGd_WHSI | D11: WHSI_GS 50>999 | E11: AUGd-WHSI
A12: BI Template_DemandWHSI | B12: BI_AUGd_High | C12: 2023 Bill Impacts (High Consumption Level) - AUGd_WHSI | D12: WHSI_GS 50>999 | E12: AUGd-WHSI
A13: BI Template_DemandWHSI | B13: BI_WHSI_ST_Avg | C13: 2023 Bill Impacts (Average Consumption Level) - ST_WHSI | D13: WHSI_GS >1,000kW | E13: ST-WHSI
A14: BI Template_EnergyNPDI | B14: BI_NPDI_AR_Low | C14: 2023 Bill Impacts (Low Consumption Level) - AR_NPDI | D14: NPDI_RES | E14: AR-NPDI
A15: BI Template_EnergyNPDI | B15: BI_NPDI_AR_Typical | C15: 2023 Bill Impacts (Typical Consumption Level) - AR_NPDI | D15: NPDI_RES | E15: AR-NPDI
A16: BI Template_EnergyNPDI | B16: BI_NPDI_AR_Avg | C16: 2023 Bill Impacts (Average Consumption Level) - AR_NPDI | D16: NPDI_RES | E16: AR-NPDI
A17: BI Template_EnergyNPDI | B17: BI_NPDI_AR_High | C17: 2023 Bill Impacts (High Consumption Level) - AR_NPDI | D17: NPDI_RES | E17: AR-NPDI
A18: BI Template_EnergyHCHI | B18: BI_HCHI_AR_Low | C18: 2023 Bill Impacts (Low Consumption Level) - AR_HCHI | D18: HCHI_RES | E18: AR-HCHI
A19: BI Template_EnergyHCHI | B19: BI_HCHI_AR_Typical | C19: 2023 Bill Impacts (Typical Consumption Level) - AR_HCHI | D19: HCHI_RES | E19: AR-HCHI
A20: BI Template_EnergyHCHI | B20: BI_HCHI_AR_Avg | C20: 2023 Bill Impacts (Average Consumption Level) - AR_HCHI | D20: HCHI_RES | E20: AR-HCHI
A21: BI Template_EnergyHCHI | B21: BI_HCHI_AR_High | C21: 2023 Bill Impacts (High Consumption Level) - AR_HCHI | D21: HCHI_RES | E21: AR-HCHI
A22: BI Template_EnergyNPDI | B22: BI_NPDI_AGSe_Low | C22: 2023 Bill Impacts (Low Consumption Level) - AGSe_NPDI | D22: NPDI_GS<50 | E22: AGSe-NPDI
A23: BI Template_EnergyNPDI | B23: BI_NPDI_AGSe_Typical | C23: 2023 Bill Impacts (Typical Consumption Level) - AGSe_NPDI | D23: NPDI_GS<50 | E23: AGSe-NPDI
A24: BI Template_EnergyNPDI | B24: BI_NPDI_AGSe_Avg | C24: 2023 Bill Impacts (Average Consumption Level) - AGSe_NPDI | D24: NPDI_GS<50 | E24: AGSe-NPDI
A25: BI Template_EnergyNPDI | B25: BI_NPDI_AGSe_High | C25: 2023 Bill Impacts (High Consumption Level) - AGSe_NPDI | D25: NPDI_GS<50 | E25: AGSe-NPDI
A26: BI Template_EnergyHCHI | B26: BI_HCHI_AGSe_Low | C26: 2023 Bill Impacts (Low Consumption Level) - AGSe_HCHI | D26: HCHI_GS<50 | E26: AGSe-HCHI
A27: BI Template_EnergyHCHI | B27: BI_HCHI_AGSe_Typical | C27: 2023 Bill Impacts (Typical Consumption Level) - AGSe_HCHI | D27: HCHI_GS<50 | E27: AGSe-HCHI
A28: BI Template_EnergyHCHI | B28: BI_HCHI_AGSe_Avg | C28: 2023 Bill Impacts (Average Consumption Level) - AGSe_HCHI | D28: HCHI_GS<50 | E28: AGSe-HCHI
A29: BI Template_EnergyHCHI | B29: BI_HCHI_AGSe_High | C29: 2023 Bill Impacts (High Consumption Level) - AGSe_HCHI | D29: HCHI_GS<50 | E29: AGSe-HCHI
A30: BI Template_DemandNPDI | B30: BI_NPDI_AGSd_Low | C30: 2023 Bill Impacts (Low Consumption Level) - AGSd_NPDI | D30: NPDI_GS >50 | E30: AGSd-NPDI
A31: BI Template_DemandNPDI | B31: BI_NPDI_AGSd_Avg | C31: 2023 Bill Impacts (Average Consumption Level) - AGSd_NPDI | D31: NPDI_GS >50 | E31: AGSd-NPDI
A32: BI Template_DemandNPDI | B32: BI_NPDI_AGSd_High | C32: 2023 Bill Impacts (High Consumption Level) - AGSd_NPDI | D32: NPDI_GS >50 | E32: AGSd-NPDI
A33: BI Template_DemandHCHI | B33: BI_HCHI_AGSd_Low | C33: 2023 Bill Impacts (Low Consumption Level) - AGSd_HCHI | D33: HCHI_GS >50 | E33: AGSd-HCHI
A34: BI Template_DemandHCHI | B34: BI_HCHI_AGSd_Avg | C34: 2023 Bill Impacts (Average Consumption Level) - AGSd_HCHI | D34: HCHI_GS >50 | E34: AGSd-HCHI
A35: BI Template_DemandHCHI | B35: BI_HCHI_AGSd_High | C35: 2023 Bill Impacts (High Consumption Level) - AGSd_HCHI | D35: HCHI_GS >50 | E35: AGSd-HCHI
A36: BI Template_EnergyUNM | B36: BI_WHSI_USL_Avg | C36: 2023 Bill Impacts (Average Consumption Level) - USL_WHSI | D36: WHSI_USL | E36: USL-WHSI
A37: BI Template_unmNPDI | B37: BI_NPDI_USL_Avg | C37: 2023 Bill Impacts (Average Consumption Level) - USL_NPDI | D37: NPDI_USL | E37: USL-NPDI
A38: BI Template_unmHCHI | B38: BI_HCHI_USL_Avg | C38: 2023 Bill Impacts (Average Consumption Level) - USL_HCHI | D38: HCHI_USL | E38: USL-HCHI
A39: BI Template_unmWHSI | B39: BI_WHSI_StLgt_Avg | C39: 2023 Bill Impacts (Average Consumption Level) - St Lgt_WHSI | D39: WHSI_St Lgt | E39: St Lgt-WHSI
A40: BI Template_unmNPDI | B40: BI_NPDI_StLgt_Avg | C40: 2023 Bill Impacts (Average Consumption Level) - St Lgt_NPDI | D40: NPDI_St Lgt | E40: St Lgt-NPDI
A41: BI Template_unmHCHI | B41: BI_HCHI_StLgt_Avg | C41: 2023 Bill Impacts (Average Consumption Level) - St Lgt_HCHI | D41: HCHI_St Lgt | E41: St Lgt-HCHI
A42: BI Template_unmNPDI | B42: BI_NPDI_SenLgt_Avg | C42: 2023 Bill Impacts (Average Consumption Level) - Sen Lgt_NPDI | D42: NPDI_Sen Lgt | E42: Sen Lgt-NPDI
A43: BI Template_unmHCHI | B43: BI_HCHI_SenLgt_Avg | C43: 2023 Bill Impacts (Average Consumption Level) - Sen Lgt_HCHI | D43: HCHI_Sen Lgt | E43: Sen Lgt-HCHI
A44: BI Template_Seasonal | B44: BI_Seas_UR_Low | C44: 2023 Bill Impacts (Low Consumption Level) - Seas-UR | D44: Seasonal | E44: UR
A45: BI Template_Seasonal | B45: BI_Seas_UR_Avg | C45: 2023 Bill Impacts (Average Consumption Level) - Seas-UR | D45: Seasonal | E45: UR
A46: BI Template_Seasonal | B46: BI_Seas_UR_High | C46: 2023 Bill Impacts (High Consumption Level) - Seas-UR | D46: Seasonal | E46: UR
A47: BI Template_Seasonal | B47: BI_Seas_R1_Low | C47: 2023 Bill Impacts (Low Consumption Level) - Seas-R1 | D47: Seasonal | E47: R1
A48: BI Template_Seasonal | B48: BI_Seas_R1_Avg | C48: 2023 Bill Impacts (Average Consumption Level) - Seas-R1 | D48: Seasonal | E48: R1
A49: BI Template_Seasonal | B49: BI_Seas_R1_High | C49: 2023 Bill Impacts (High Consumption Level) - Seas-R1 | D49: Seasonal | E49: R1
A50: BI Template_Seasonal | B50: BI_Seas_R2_Low | C50: 2023 Bill Impacts (Low Consumption Level) - Seas-R2 | D50: Seasonal | E50: R2
A51: BI Template_Seasonal | B51: BI_Seas_R2_Avg | C51: 2023 Bill Impacts (Average Consumption Level) - Seas-R2 | D51: Seasonal | E51: R2
A52: BI Template_Seasonal | B52: BI_Seas_R2_High | C52: 2023 Bill Impacts (High Consumption Level) - Seas-R2 | D52: Seasonal | E52: R2

Sheet Bill Impact Summary (hidden)
A1: Rate Class | B1: Consumption Level | C1: Monthly Consumption (kWh) | D1: Monthly Peak (kW) | E1: BI Worksheet | F1: Template | G1: Current Total Bill | H1: Change in DX Bill ($) | I1: Change in DX Bill (%) | J1: Change in Total Bill ($) | K1: Change in Total Bill (%) | L1: Commodity Price Used | O1: List for Data Validation of cell L6; do not remove
A2: UR | B2: Low | C2: =VLOOKUP(A$2,'Data Billing Quantities'!A:P,MATCH(B2&" kWh",'Data Billing Quantities'!$4:$4,0),FALSE) -> 340 | E2: BI_UR_Low | F2: BI Template_Energy | G2: =VLOOKUP(VLOOKUP($F2,'Data BI Summary'!$A:$F,MATCH(G$1,'Data BI Summary'!$2:$2,0),FALSE),INDIRECT("'"&$E2&"'!"&"$A:$K"),4,FALSE) -> 79.47245198 | H2: =VLOOKUP(VLOOKUP($F2,'Data BI Summary'!$A:$F,MATCH(H$1,'Data BI Summary'!$2:$2,0),FALSE),INDIRECT("'"&$E2&"'!"&"$A:$K"),8,FALSE) -> -2.026 | I2: =VLOOKUP(VLOOKUP($F2,'Data BI Summary'!$A:$F,MATCH(I$1,'Data BI Summary'!$2:$2,0),FALSE),INDIRECT("'"&$E2&"'!"&"$A:$K"),9,FALSE) -> -0.05263704858 | J2: =VLOOKUP(VLOOKUP($F2,'Data BI Summary'!$A:$F,MATCH(J$1,'Data BI Summary'!$2:$2,0),FALSE),INDIRECT("'"&$E2&"'!"&"$A:$K"),8,FALSE) -> -2.143189606 | K2: =VLOOKUP(VLOOKUP($F2,'Data BI Summary'!$A:$F,MATCH(K$1,'Data BI Summary'!$2:$2,0),FALSE),INDIRECT("'"&$E2&"'!"&"$A:$K"),9,FALSE) -> -0.02696770456 | L2: TOU
B3: Typical | C3: =VLOOKUP(A$2,'Data Billing Quantities'!A:P,MATCH(B3&" kWh",'Data Billing Quantities'!$4:$4,0),FALSE) -> 750 | E3: BI_UR_Typical | F3: BI Template_Energy | G3: =VLOOKUP(VLOOKUP($F3,'Data BI Summary'!$A:$F,MATCH(G$1,'Data BI Summary'!$2:$2,0),FALSE),INDIRECT("'"&$E3&"'!"&"$A:$K"),4,FALSE) -> 130.700435 | H3: =VLOOKUP(VLOOKUP($F3,'Data BI Summary'!$A:$F,MATCH(H$1,'Data BI Summary'!$2:$2,0),FALSE),INDIRECT("'"&$E3&"'!"&"$A:$K"),8,FALSE) -> -2.19 | I3: =VLOOKUP(VLOOKUP($F3,'Data BI Summary'!$A:$F,MATCH(I$1,'Data BI Summary'!$2:$2,0),FALSE),INDIRECT("'"&$E3&"'!"&"$A:$K"),9,FALSE) -> -0.05689789556 | J3: =VLOOKUP(VLOOKUP($F3,'Data BI Summary'!$A:$F,MATCH(J$1,'Data BI Summary'!$2:$2,0),FALSE),INDIRECT("'"&$E3&"'!"&"$A:$K"),8,FALSE) -> -2.582974425 | K3: =VLOOKUP(VLOOKUP($F3,'Data BI Summary'!$A:$F,MATCH(K$1,'Data BI Summary'!$2:$2,0),FALSE),INDIRECT("'"&$E3&"'!"&"$A:$K"),9,FALSE) -> -0.01976255416
B4: Average | C4: =VLOOKUP(A$2,'Data Billing Quantities'!A:P,MATCH(B4&" kWh",'Data Billing Quantities'!$4:$4,0),FALSE) -> 690 | E4: BI_UR_Avg | F4: BI Template_Energy | G4: =VLOOKUP(VLOOKUP($F4,'Data BI Summary'!$A:$F,MATCH(G$1,'Data BI Summary'!$2:$2,0),FALSE),INDIRECT("'"&$E4&"'!"&"$A:$K"),4,FALSE) -> 123.203657 | H4: =VLOOKUP(VLOOKUP($F4,'Data BI Summary'!$A:$F,MATCH(H$1,'Data BI Summary'!$2:$2,0),FALSE),INDIRECT("'"&$E4&"'!"&"$A:$K"),8,FALSE) -> -2.166 | I4: =VLOOKUP(VLOOKUP($F4,'Data BI Summary'!$A:$F,MATCH(I$1,'Data BI Summary'!$2:$2,0),FALSE),INDIRECT("'"&$E4&"'!"&"$A:$K"),9,FALSE) -> -0.05627435698 | J4: =VLOOKUP(VLOOKUP($F4,'Data BI Summary'!$A:$F,MATCH(J$1,'Data BI Summary'!$2:$2,0),FALSE),INDIRECT("'"&$E4&"'!"&"$A:$K"),8,FALSE) -> -2.518615671 | K4: =VLOOKUP(VLOOKUP($F4,'Data BI Summary'!$A:$F,MATCH(K$1,'Data BI Summary'!$2:$2,0),FALSE),INDIRECT("'"&$E4&"'!"&"$A:$K"),9,FALSE) -> -0.02044270221
B5: High | C5: =VLOOKUP(A$2,'Data Billing Quantities'!A:P,MATCH(B5&" kWh",'Data Billing Quantities'!$4:$4,0),FALSE) -> 1260 | E5: BI_UR_High | F5: BI Template_Energy | G5: =VLOOKUP(VLOOKUP($F5,'Data BI Summary'!$A:$F,MATCH(G$1,'Data BI Summary'!$2:$2,0),FALSE),INDIRECT("'"&$E5&"'!"&"$A:$K"),4,FALSE) -> 194.4230479 | H5: =VLOOKUP(VLOOKUP($F5,'Data BI Summary'!$A:$F,MATCH(H$1,'Data BI Summary'!$2:$2,0),FALSE),INDIRECT("'"&$E5&"'!"&"$A:$K"),8,FALSE) -> -2.394 | I5: =VLOOKUP(VLOOKUP($F5,'Data BI Summary'!$A:$F,MATCH(I$1,'Data BI Summary'!$2:$2,0),FALSE),INDIRECT("'"&$E5&"'!"&"$A:$K"),9,FALSE) -> -0.0621979735 | J5: =VLOOKUP(VLOOKUP($F5,'Data BI Summary'!$A:$F,MATCH(J$1,'Data BI Summary'!$2:$2,0),FALSE),INDIRECT("'"&$E5&"'!"&"$A:$K"),8,FALSE) -> -3.130023834 | K5: =VLOOKUP(VLOOKUP($F5,'Data BI Summary'!$A:$F,MATCH(K$1,'Data BI Summary'!$2:$2,0),FALSE),INDIRECT("'"&$E5&"'!"&"$A:$K"),9,FALSE) -> -0.01609903696
A6: R1 (with DRP) | B6: Low | C6: =VLOOKUP("R1",'Data Billing Quantities'!A:P,MATCH(B6&" kWh",'Data Billing Quantities'!$4:$4,0),FALSE) -> 370 | E6: BI_R1_Low (with DRP) | F6: BI Template_Energy | G6: =VLOOKUP(VLOOKUP($F6,'Data BI Summary'!$A:$F,MATCH(G$1,'Data BI Summary'!$2:$2,0),FALSE),INDIRECT("'"&$E6&"'!"&"$A:$K"),4,FALSE) -> 82.06845907 | H6: =VLOOKUP(VLOOKUP($F6,'Data BI Summary'!$A:$F,MATCH(H$1,'Data BI Summary'!$2:$2,0),FALSE),INDIRECT("'"&$E6&"'!"&"$A:$K"),8,FALSE) -> -0.288 | I6: =VLOOKUP(VLOOKUP($F6,'Data BI Summary'!$A:$F,MATCH(I$1,'Data BI Summary'!$2:$2,0),FALSE),INDIRECT("'"&$E6&"'!"&"$A:$K"),9,FALSE) -> -0.007813347802 | J6: =VLOOKUP(VLOOKUP($F6,'Data BI Summary'!$A:$F,MATCH(J$1,'Data BI Summary'!$2:$2,0),FALSE),INDIRECT("'"&$E6&"'!"&"$A:$K"),8,FALSE) -> -0.533249644 | K6: =VLOOKUP(VLOOKUP($F6,'Data BI Summary'!$A:$F,MATCH(K$1,'Data BI Summary'!$2:$2,0),FALSE),INDIRECT("'"&$E6&"'!"&"$A:$K"),9,FALSE) -> -0.006497619793 | L6: TOU (DRP applied) | O6: TOU
B7: Typical | C7: =VLOOKUP("R1",'Data Billing Quantities'!A:P,MATCH(B7&" kWh",'Data Billing Quantities'!$4:$4,0),FALSE) -> 750 | E7: BI_R1_Typical (with DRP) | F7: BI Template_Energy | G7: =VLOOKUP(VLOOKUP($F7,'Data BI Summary'!$A:$F,MATCH(G$1,'Data BI Summary'!$2:$2,0),FALSE),INDIRECT("'"&$E7&"'!"&"$A:$K"),4,FALSE) -> 129.9398105 | H7: =VLOOKUP(VLOOKUP($F7,'Data BI Summary'!$A:$F,MATCH(H$1,'Data BI Summary'!$2:$2,0),FALSE),INDIRECT("'"&$E7&"'!"&"$A:$K"),8,FALSE) -> -0.44 | I7: =VLOOKUP(VLOOKUP($F7,'Data BI Summary'!$A:$F,MATCH(I$1,'Data BI Summary'!$2:$2,0),FALSE),INDIRECT("'"&$E7&"'!"&"$A:$K"),9,FALSE) -> -0.01193705914 | J7: =VLOOKUP(VLOOKUP($F7,'Data BI Summary'!$A:$F,MATCH(J$1,'Data BI Summary'!$2:$2,0),FALSE),INDIRECT("'"&$E7&"'!"&"$A:$K"),8,FALSE) -> -0.9456109 | K7: =VLOOKUP(VLOOKUP($F7,'Data BI Summary'!$A:$F,MATCH(K$1,'Data BI Summary'!$2:$2,0),FALSE),INDIRECT("'"&$E7&"'!"&"$A:$K"),9,FALSE) -> -0.007277299359 | O7: TOU (DRP applied)
B8: Average | C8: =VLOOKUP("R1",'Data Billing Quantities'!A:P,MATCH(B8&" kWh",'Data Billing Quantities'!$4:$4,0),FALSE) -> 784 | E8: BI_R1_Avg (with DRP) | F8: BI Template_Energy | G8: =VLOOKUP(VLOOKUP($F8,'Data BI Summary'!$A:$F,MATCH(G$1,'Data BI Summary'!$2:$2,0),FALSE),INDIRECT("'"&$E8&"'!"&"$A:$K"),4,FALSE) -> 134.2230367 | H8: =VLOOKUP(VLOOKUP($F8,'Data BI Summary'!$A:$F,MATCH(H$1,'Data BI Summary'!$2:$2,0),FALSE),INDIRECT("'"&$E8&"'!"&"$A:$K"),8,FALSE) -> -0.4536 | I8: =VLOOKUP(VLOOKUP($F8,'Data BI Summary'!$A:$F,MATCH(I$1,'Data BI Summary'!$2:$2,0),FALSE),INDIRECT("'"&$E8&"'!"&"$A:$K"),9,FALSE) -> -0.01230602279 | J8: =VLOOKUP(VLOOKUP($F8,'Data BI Summary'!$A:$F,MATCH(J$1,'Data BI Summary'!$2:$2,0),FALSE),INDIRECT("'"&$E8&"'!"&"$A:$K"),8,FALSE) -> -0.9825063808 | K8: =VLOOKUP(VLOOKUP($F8,'Data BI Summary'!$A:$F,MATCH(K$1,'Data BI Summary'!$2:$2,0),FALSE),INDIRECT("'"&$E8&"'!"&"$A:$K"),9,FALSE) -> -0.00731995345
B9: High | C9: =VLOOKUP("R1",'Data Billing Quantities'!A:P,MATCH(B9&" kWh",'Data Billing Quantities'!$4:$4,0),FALSE) -> 1650 | E9: BI_R1_High (with DRP) | F9: BI Template_Energy | G9: =VLOOKUP(VLOOKUP($F9,'Data BI Summary'!$A:$F,MATCH(G$1,'Data BI Summary'!$2:$2,0),FALSE),INDIRECT("'"&$E9&"'!"&"$A:$K"),4,FALSE) -> 243.3193272 | H9: =VLOOKUP(VLOOKUP($F9,'Data BI Summary'!$A:$F,MATCH(H$1,'Data BI Summary'!$2:$2,0),FALSE),INDIRECT("'"&$E9&"'!"&"$A:$K"),8,FALSE) -> -0.8 | I9: =VLOOKUP(VLOOKUP($F9,'Data BI Summary'!$A:$F,MATCH(I$1,'Data BI Summary'!$2:$2,0),FALSE),INDIRECT("'"&$E9&"'!"&"$A:$K"),9,FALSE) -> -0.0217037439 | J9: =VLOOKUP(VLOOKUP($F9,'Data BI Summary'!$A:$F,MATCH(J$1,'Data BI Summary'!$2:$2,0),FALSE),INDIRECT("'"&$E9&"'!"&"$A:$K"),8,FALSE) -> -1.92225598 | K9: =VLOOKUP(VLOOKUP($F9,'Data BI Summary'!$A:$F,MATCH(K$1,'Data BI Summary'!$2:$2,0),FALSE),INDIRECT("'"&$E9&"'!"&"$A:$K"),9,FALSE) -> -0.007900136838
A10: R1 (without DRP) | B10: Low | C10: =VLOOKUP("R1",'Data Billing Quantities'!A:P,MATCH(B10&" kWh",'Data Billing Quantities'!$4:$4,0),FALSE) -> 370 | E10: BI_R1_Low (without DRP) | F10: BI Template_Energy | G10: =VLOOKUP(VLOOKUP($F10,'Data BI Summary'!$A:$F,MATCH(G$1,'Data BI Summary'!$2:$2,0),FALSE),INDIRECT("'"&$E10&"'!"&"$A:$K"),4,FALSE) -> 104.5423621 | H10: =VLOOKUP(VLOOKUP($F10,'Data BI Summary'!$A:$F,MATCH(H$1,'Data BI Summary'!$2:$2,0),FALSE),INDIRECT("'"&$E10&"'!"&"$A:$K"),8,FALSE) -> -0.447 | I10: =VLOOKUP(VLOOKUP($F10,'Data BI Summary'!$A:$F,MATCH(I$1,'Data BI Summary'!$2:$2,0),FALSE),INDIRECT("'"&$E10&"'!"&"$A:$K"),9,FALSE) -> -0.007358872627 | J10: =VLOOKUP(VLOOKUP($F10,'Data BI Summary'!$A:$F,MATCH(J$1,'Data BI Summary'!$2:$2,0),FALSE),INDIRECT("'"&$E10&"'!"&"$A:$K"),8,FALSE) -> -0.682868644 | K10: =VLOOKUP(VLOOKUP($F10,'Data BI Summary'!$A:$F,MATCH(K$1,'Data BI Summary'!$2:$2,0),FALSE),INDIRECT("'"&$E10&"'!"&"$A:$K"),9,FALSE) -> -0.006531980247 | L10: TOU
B11: Typical | C11: =VLOOKUP("R1",'Data Billing Quantities'!A:P,MATCH(B11&" kWh",'Data Billing Quantities'!$4:$4,0),FALSE) -> 750 | E11: BI_R1_Typical (without DRP) | F11: BI Template_Energy | G11: =VLOOKUP(VLOOKUP($F11,'Data BI Summary'!$A:$F,MATCH(G$1,'Data BI Summary'!$2:$2,0),FALSE),INDIRECT("'"&$E11&"'!"&"$A:$K"),4,FALSE) -> 155.9537555 | H11: =VLOOKUP(VLOOKUP($F11,'Data BI Summary'!$A:$F,MATCH(H$1,'Data BI Summary'!$2:$2,0),FALSE),INDIRECT("'"&$E11&"'!"&"$A:$K"),8,FALSE) -> -2.385 | I11: =VLOOKUP(VLOOKUP($F11,'Data BI Summary'!$A:$F,MATCH(I$1,'Data BI Summary'!$2:$2,0),FALSE),INDIRECT("'"&$E11&"'!"&"$A:$K"),9,FALSE) -> -0.03697387799 | J11: =VLOOKUP(VLOOKUP($F11,'Data BI Summary'!$A:$F,MATCH(J$1,'Data BI Summary'!$2:$2,0),FALSE),INDIRECT("'"&$E11&"'!"&"$A:$K"),8,FALSE) -> -2.7758559 | K11: =VLOOKUP(VLOOKUP($F11,'Data BI Summary'!$A:$F,MATCH(K$1,'Data BI Summary'!$2:$2,0),FALSE),INDIRECT("'"&$E11&"'!"&"$A:$K"),9,FALSE) -> -0.01779922446
B12: Average | C12: =VLOOKUP("R1",'Data Billing Quantities'!A:P,MATCH(B12&" kWh",'Data Billing Quantities'!$4:$4,0),FALSE) -> 784 | E12: BI_R1_Avg (without DRP) | F12: BI Template_Energy | G12: =VLOOKUP(VLOOKUP($F12,'Data BI Summary'!$A:$F,MATCH(G$1,'Data BI Summary'!$2:$2,0),FALSE),INDIRECT("'"&$E12&"'!"&"$A:$K"),4,FALSE) -> 160.5537223 | H12: =VLOOKUP(VLOOKUP($F12,'Data BI Summary'!$A:$F,MATCH(H$1,'Data BI Summary'!$2:$2,0),FALSE),INDIRECT("'"&$E12&"'!"&"$A:$K"),8,FALSE) -> -2.5584 | I12: =VLOOKUP(VLOOKUP($F12,'Data BI Summary'!$A:$F,MATCH(I$1,'Data BI Summary'!$2:$2,0),FALSE),INDIRECT("'"&$E12&"'!"&"$A:$K"),9,FALSE) -> -0.03945615161 | J12: =VLOOKUP(VLOOKUP($F12,'Data BI Summary'!$A:$F,MATCH(J$1,'Data BI Summary'!$2:$2,0),FALSE),INDIRECT("'"&$E12&"'!"&"$A:$K"),8,FALSE) -> -2.963123181 | K12: =VLOOKUP(VLOOKUP($F12,'Data BI Summary'!$A:$F,MATCH(K$1,'Data BI Summary'!$2:$2,0),FALSE),INDIRECT("'"&$E12&"'!"&"$A:$K"),9,FALSE) -> -0.01845564922
B13: High | C13: =VLOOKUP("R1",'Data Billing Quantities'!A:P,MATCH(B13&" kWh",'Data Billing Quantities'!$4:$4,0),FALSE) -> 1650 | E13: BI_R1_High (without DRP) | F13: BI Template_Energy | G13: =VLOOKUP(VLOOKUP($F13,'Data BI Summary'!$A:$F,MATCH(G$1,'Data BI Summary'!$2:$2,0),FALSE),INDIRECT("'"&$E13&"'!"&"$A:$K"),4,FALSE) -> 277.7175822 | H13: =VLOOKUP(VLOOKUP($F13,'Data BI Summary'!$A:$F,MATCH(H$1,'Data BI Summary'!$2:$2,0),FALSE),INDIRECT("'"&$E13&"'!"&"$A:$K"),8,FALSE) -> -6.975 | I13: =VLOOKUP(VLOOKUP($F13,'Data BI Summary'!$A:$F,MATCH(I$1,'Data BI Summary'!$2:$2,0),FALSE),INDIRECT("'"&$E13&"'!"&"$A:$K"),9,FALSE) -> -0.09500783219 | J13: =VLOOKUP(VLOOKUP($F13,'Data BI Summary'!$A:$F,MATCH(J$1,'Data BI Summary'!$2:$2,0),FALSE),INDIRECT("'"&$E13&"'!"&"$A:$K"),8,FALSE) -> -7.73293098 | K13: =VLOOKUP(VLOOKUP($F13,'Data BI Summary'!$A:$F,MATCH(K$1,'Data BI Summary'!$2:$2,0),FALSE),INDIRECT("'"&$E13&"'!"&"$A:$K"),9,FALSE) -> -0.02784458556
A14: R2 (with DRP) | B14: Low | C14: =VLOOKUP("R2",'Data Billing Quantities'!A:P,MATCH(B14&" kWh",'Data Billing Quantities'!$4:$4,0),FALSE) -> 440 | E14: BI_R2_Low (with DRP) | F14: BI Template_Energy | G14: =VLOOKUP(VLOOKUP($F14,'Data BI Summary'!$A:$F,MATCH(G$1,'Data BI Summary'!$2:$2,0),FALSE),INDIRECT("'"&$E14&"'!"&"$A:$K"),4,FALSE) -> 91.87753114 | H14: =VLOOKUP(VLOOKUP($F14,'Data BI Summary'!$A:$F,MATCH(H$1,'Data BI Summary'!$2:$2,0),FALSE),INDIRECT("'"&$E14&"'!"&"$A:$K"),8,FALSE) -> -0.466 | I14: =VLOOKUP(VLOOKUP($F14,'Data BI Summary'!$A:$F,MATCH(I$1,'Data BI Summary'!$2:$2,0),FALSE),INDIRECT("'"&$E14&"'!"&"$A:$K"),9,FALSE) -> -0.01264243082 | J14: =VLOOKUP(VLOOKUP($F14,'Data BI Summary'!$A:$F,MATCH(J$1,'Data BI Summary'!$2:$2,0),FALSE),INDIRECT("'"&$E14&"'!"&"$A:$K"),8,FALSE) -> -0.75876594 | K14: =VLOOKUP(VLOOKUP($F14,'Data BI Summary'!$A:$F,MATCH(K$1,'Data BI Summary'!$2:$2,0),FALSE),INDIRECT("'"&$E14&"'!"&"$A:$K"),9,FALSE) -> -0.008258449379 | L14: =L6 -> TOU (DRP applied)
B15: Typical | C15: =VLOOKUP("R2",'Data Billing Quantities'!A:P,MATCH(B15&" kWh",'Data Billing Quantities'!$4:$4,0),FALSE) -> 750 | E15: BI_R2_Typical (with DRP) | F15: BI Template_Energy | G15: =VLOOKUP(VLOOKUP($F15,'Data BI Summary'!$A:$F,MATCH(G$1,'Data BI Summary'!$2:$2,0),FALSE),INDIRECT("'"&$E15&"'!"&"$A:$K"),4,FALSE) -> 131.6284444 | H15: =VLOOKUP(VLOOKUP($F15,'Data BI Summary'!$A:$F,MATCH(H$1,'Data BI Summary'!$2:$2,0),FALSE),INDIRECT("'"&$E15&"'!"&"$A:$K"),8,FALSE) -> -0.59 | I15: =VLOOKUP(VLOOKUP($F15,'Data BI Summary'!$A:$F,MATCH(I$1,'Data BI Summary'!$2:$2,0),FALSE),INDIRECT("'"&$E15&"'!"&"$A:$K"),9,FALSE) -> -0.01600651112 | J15: =VLOOKUP(VLOOKUP($F15,'Data BI Summary'!$A:$F,MATCH(J$1,'Data BI Summary'!$2:$2,0),FALSE),INDIRECT("'"&$E15&"'!"&"$A:$K"),8,FALSE) -> -1.101087625 | K15: =VLOOKUP(VLOOKUP($F15,'Data BI Summary'!$A:$F,MATCH(K$1,'Data BI Summary'!$2:$2,0),FALSE),INDIRECT("'"&$E15&"'!"&"$A:$K"),9,FALSE) -> -0.008365119178
B16: Average | C16: =VLOOKUP("R2",'Data Billing Quantities'!A:P,MATCH(B16&" kWh",'Data Billing Quantities'!$4:$4,0),FALSE) -> 978 | E16: BI_R2_Avg (with DRP) | F16: BI Template_Energy | G16: =VLOOKUP(VLOOKUP($F16,'Data BI Summary'!$A:$F,MATCH(G$1,'Data BI Summary'!$2:$2,0),FALSE),INDIRECT("'"&$E16&"'!"&"$A:$K"),4,FALSE) -> 160.8646 | H16: =VLOOKUP(VLOOKUP($F16,'Data BI Summary'!$A:$F,MATCH(H$1,'Data BI Summary'!$2:$2,0),FALSE),INDIRECT("'"&$E16&"'!"&"$A:$K"),8,FALSE) -> -0.6812 | I16: =VLOOKUP(VLOOKUP($F16,'Data BI Summary'!$A:$F,MATCH(I$1,'Data BI Summary'!$2:$2,0),FALSE),INDIRECT("'"&$E16&"'!"&"$A:$K"),9,FALSE) -> -0.01848073793 | J16: =VLOOKUP(VLOOKUP($F16,'Data BI Summary'!$A:$F,MATCH(J$1,'Data BI Summary'!$2:$2,0),FALSE),INDIRECT("'"&$E16&"'!"&"$A:$K"),8,FALSE) -> -1.352859703 | K16: =VLOOKUP(VLOOKUP($F16,'Data BI Summary'!$A:$F,MATCH(K$1,'Data BI Summary'!$2:$2,0),FALSE),INDIRECT("'"&$E16&"'!"&"$A:$K"),9,FALSE) -> -0.008409927993
B17: High | C17: =VLOOKUP("R2",'Data Billing Quantities'!A:P,MATCH(B17&" kWh",'Data Billing Quantities'!$4:$4,0),FALSE) -> 2110 | E17: BI_R2_High (with DRP) | F17: BI Template_Energy | G17: =VLOOKUP(VLOOKUP($F17,'Data BI Summary'!$A:$F,MATCH(G$1,'Data BI Summary'!$2:$2,0),FALSE),INDIRECT("'"&$E17&"'!"&"$A:$K"),4,FALSE) -> 306.019548 | H17: =VLOOKUP(VLOOKUP($F17,'Data BI Summary'!$A:$F,MATCH(H$1,'Data BI Summary'!$2:$2,0),FALSE),INDIRECT("'"&$E17&"'!"&"$A:$K"),8,FALSE) -> -1.134 | I17: =VLOOKUP(VLOOKUP($F17,'Data BI Summary'!$A:$F,MATCH(I$1,'Data BI Summary'!$2:$2,0),FALSE),INDIRECT("'"&$E17&"'!"&"$A:$K"),9,FALSE) -> -0.03076505697 | J17: =VLOOKUP(VLOOKUP($F17,'Data BI Summary'!$A:$F,MATCH(J$1,'Data BI Summary'!$2:$2,0),FALSE),INDIRECT("'"&$E17&"'!"&"$A:$K"),8,FALSE) -> -2.602885985 | K17: =VLOOKUP(VLOOKUP($F17,'Data BI Summary'!$A:$F,MATCH(K$1,'Data BI Summary'!$2:$2,0),FALSE),INDIRECT("'"&$E17&"'!"&"$A:$K"),9,FALSE) -> -0.008505619991
A18: R2 (without DRP) | B18: Low | C18: =VLOOKUP("R2",'Data Billing Quantities'!A:P,MATCH(B18&" kWh",'Data Billing Quantities'!$4:$4,0),FALSE) -> 440 | E18: BI_R2_Low (without DRP) | F18: BI Template_Energy | G18: =VLOOKUP(VLOOKUP($F18,'Data BI Summary'!$A:$F,MATCH(G$1,'Data BI Summary'!$2:$2,0),FALSE),INDIRECT("'"&$E18&"'!"&"$A:$K"),4,FALSE) -> 130.7935271 | H18: =VLOOKUP(VLOOKUP($F18,'Data BI Summary'!$A:$F,MATCH(H$1,'Data BI Summary'!$2:$2,0),FALSE),INDIRECT("'"&$E18&"'!"&"$A:$K"),8,FALSE) -> -15.038 | I18: =VLOOKUP(VLOOKUP($F18,'Data BI Summary'!$A:$F,MATCH(I$1,'Data BI Summary'!$2:$2,0),FALSE),INDIRECT("'"&$E18&"'!"&"$A:$K"),9,FALSE) -> -0.1922624527 | J18: =VLOOKUP(VLOOKUP($F18,'Data BI Summary'!$A:$F,MATCH(J$1,'Data BI Summary'!$2:$2,0),FALSE),INDIRECT("'"&$E18&"'!"&"$A:$K"),8,FALSE) -> -14.47101794 | K18: =VLOOKUP(VLOOKUP($F18,'Data BI Summary'!$A:$F,MATCH(K$1,'Data BI Summary'!$2:$2,0),FALSE),INDIRECT("'"&$E18&"'!"&"$A:$K"),9,FALSE) -> -0.1106401689 | L18: =L10 -> TOU
B19: Typical | C19: =VLOOKUP("R2",'Data Billing Quantities'!A:P,MATCH(B19&" kWh",'Data Billing Quantities'!$4:$4,0),FALSE) -> 750 | E19: BI_R2_Typical (without DRP) | F19: BI Template_Energy | G19: =VLOOKUP(VLOOKUP($F19,'Data BI Summary'!$A:$F,MATCH(G$1,'Data BI Summary'!$2:$2,0),FALSE),INDIRECT("'"&$E19&"'!"&"$A:$K"),4,FALSE) -> 175.1826294 | H19: =VLOOKUP(VLOOKUP($F19,'Data BI Summary'!$A:$F,MATCH(H$1,'Data BI Summary'!$2:$2,0),FALSE),INDIRECT("'"&$E19&"'!"&"$A:$K"),8,FALSE) -> -17.58 | I19: =VLOOKUP(VLOOKUP($F19,'Data BI Summary'!$A:$F,MATCH(I$1,'Data BI Summary'!$2:$2,0),FALSE),INDIRECT("'"&$E19&"'!"&"$A:$K"),9,FALSE) -> -0.2114378495 | J19: =VLOOKUP(VLOOKUP($F19,'Data BI Summary'!$A:$F,MATCH(J$1,'Data BI Summary'!$2:$2,0),FALSE),INDIRECT("'"&$E19&"'!"&"$A:$K"),8,FALSE) -> -17.08867762 | K19: =VLOOKUP(VLOOKUP($F19,'Data BI Summary'!$A:$F,MATCH(K$1,'Data BI Summary'!$2:$2,0),FALSE),INDIRECT("'"&$E19&"'!"&"$A:$K"),9,FALSE) -> -0.09754778587
B20: Average | C20: =VLOOKUP("R2",'Data Billing Quantities'!A:P,MATCH(B20&" kWh",'Data Billing Quantities'!$4:$4,0),FALSE) -> 978 | E20: BI_R2_Avg (without DRP) | F20: BI Template_Energy | G20: =VLOOKUP(VLOOKUP($F20,'Data BI Summary'!$A:$F,MATCH(G$1,'Data BI Summary'!$2:$2,0),FALSE),INDIRECT("'"&$E20&"'!"&"$A:$K"),4,FALSE) -> 207.8300982 | H20: =VLOOKUP(VLOOKUP($F20,'Data BI Summary'!$A:$F,MATCH(H$1,'Data BI Summary'!$2:$2,0),FALSE),INDIRECT("'"&$E20&"'!"&"$A:$K"),8,FALSE) -> -19.4496 | I20: =VLOOKUP(VLOOKUP($F20,'Data BI Summary'!$A:$F,MATCH(I$1,'Data BI Summary'!$2:$2,0),FALSE),INDIRECT("'"&$E20&"'!"&"$A:$K"),9,FALSE) -> -0.2241506877 | J20: =VLOOKUP(VLOOKUP($F20,'Data BI Summary'!$A:$F,MATCH(J$1,'Data BI Summary'!$2:$2,0),FALSE),INDIRECT("'"&$E20&"'!"&"$A:$K"),8,FALSE) -> -19.0139241 | K20: =VLOOKUP(VLOOKUP($F20,'Data BI Summary'!$A:$F,MATCH(K$1,'Data BI Summary'!$2:$2,0),FALSE),INDIRECT("'"&$E20&"'!"&"$A:$K"),9,FALSE) -> -0.09148782714
B21: High | C21: =VLOOKUP("R2",'Data Billing Quantities'!A:P,MATCH(B21&" kWh",'Data Billing Quantities'!$4:$4,0),FALSE) -> 2110 | E21: BI_R2_High (without DRP) | F21: BI Template_Energy | G21: =VLOOKUP(VLOOKUP($F21,'Data BI Summary'!$A:$F,MATCH(G$1,'Data BI Summary'!$2:$2,0),FALSE),INDIRECT("'"&$E21&"'!"&"$A:$K"),4,FALSE) -> 369.921917 | H21: =VLOOKUP(VLOOKUP($F21,'Data BI Summary'!$A:$F,MATCH(H$1,'Data BI Summary'!$2:$2,0),FALSE),INDIRECT("'"&$E21&"'!"&"$A:$K"),8,FALSE) -> -28.732 | I21: =VLOOKUP(VLOOKUP($F21,'Data BI Summary'!$A:$F,MATCH(I$1,'Data BI Summary'!$2:$2,0),FALSE),INDIRECT("'"&$E21&"'!"&"$A:$K"),9,FALSE) -> -0.2742414264 | J21: =VLOOKUP(VLOOKUP($F21,'Data BI Summary'!$A:$F,MATCH(J$1,'Data BI Summary'!$2:$2,0),FALSE),INDIRECT("'"&$E21&"'!"&"$A:$K"),8,FALSE) -> -28.57260399 | K21: =VLOOKUP(VLOOKUP($F21,'Data BI Summary'!$A:$F,MATCH(K$1,'Data BI Summary'!$2:$2,0),FALSE),INDIRECT("'"&$E21&"'!"&"$A:$K"),9,FALSE) -> -0.07723955428
A22: Seasonal-UR | B22: Low | C22: =VLOOKUP("Seasonal",'Data Billing Quantities'!A:P,MATCH(B22&" kWh",'Data Billing Quantities'!$4:$4,0),FALSE) -> 40 | E22: BI_Seas_UR_Low | F22: BI Template_Seasonal | G22: =VLOOKUP(VLOOKUP($F22,'Data BI Summary'!$A:$F,MATCH(G$1,'Data BI Summary'!$2:$2,0),FALSE),INDIRECT("'"&$E22&"'!"&"$A:$K"),4,FALSE) -> 63.10408031 | H22: =VLOOKUP(VLOOKUP($F22,'Data BI Summary'!$A:$F,MATCH(H$1,'Data BI Summary'!$2:$2,0),FALSE),INDIRECT("'"&$E22&"'!"&"$A:$K"),8,FALSE) -> -24.308 | I22: =VLOOKUP(VLOOKUP($F22,'Data BI Summary'!$A:$F,MATCH(I$1,'Data BI Summary'!$2:$2,0),FALSE),INDIRECT("'"&$E22&"'!"&"$A:$K"),9,FALSE) -> -0.3991985811 | J22: =VLOOKUP(VLOOKUP($F22,'Data BI Summary'!$A:$F,MATCH(J$1,'Data BI Summary'!$2:$2,0),FALSE),INDIRECT("'"&$E22&"'!"&"$A:$K"),8,FALSE) -> -22.93691415 | K22: =VLOOKUP(VLOOKUP($F22,'Data BI Summary'!$A:$F,MATCH(K$1,'Data BI Summary'!$2:$2,0),FALSE),INDIRECT("'"&$E22&"'!"&"$A:$K"),9,FALSE) -> -0.3634775126 | L22: TOU
B23: Average | C23: =VLOOKUP("Seasonal",'Data Billing Quantities'!A:P,MATCH(B23&" kWh",'Data Billing Quantities'!$4:$4,0),FALSE) -> 369 | E23: BI_Seas_UR_Avg | F23: BI Template_Seasonal | G23: =VLOOKUP(VLOOKUP($F23,'Data BI Summary'!$A:$F,MATCH(G$1,'Data BI Summary'!$2:$2,0),FALSE),INDIRECT("'"&$E23&"'!"&"$A:$K"),4,FALSE) -> 114.0365728 | H23: =VLOOKUP(VLOOKUP($F23,'Data BI Summary'!$A:$F,MATCH(H$1,'Data BI Summary'!$2:$2,0),FALSE),INDIRECT("'"&$E23&"'!"&"$A:$K"),8,FALSE) -> -34.5728 | I23: =VLOOKUP(VLOOKUP($F23,'Data BI Summary'!$A:$F,MATCH(I$1,'Data BI Summary'!$2:$2,0),FALSE),INDIRECT("'"&$E23&"'!"&"$A:$K"),9,FALSE) -> -0.4867680767 | J23: =VLOOKUP(VLOOKUP($F23,'Data BI Summary'!$A:$F,MATCH(J$1,'Data BI Summary'!$2:$2,0),FALSE),INDIRECT("'"&$E23&"'!"&"$A:$K"),8,FALSE) -> -33.11497449 | K23: =VLOOKUP(VLOOKUP($F23,'Data BI Summary'!$A:$F,MATCH(K$1,'Data BI Summary'!$2:$2,0),FALSE),INDIRECT("'"&$E23&"'!"&"$A:$K"),9,FALSE) -> -0.2903890714
B24: High | C24: =VLOOKUP("Seasonal",'Data Billing Quantities'!A:P,MATCH(B24&" kWh",'Data Billing Quantities'!$4:$4,0),FALSE) -> 1040 | E24: BI_Seas_UR_High | F24: BI Template_Seasonal | G24: =VLOOKUP(VLOOKUP($F24,'Data BI Summary'!$A:$F,MATCH(G$1,'Data BI Summary'!$2:$2,0),FALSE),INDIRECT("'"&$E24&"'!"&"$A:$K"),4,FALSE) -> 217.914088 | H24: =VLOOKUP(VLOOKUP($F24,'Data BI Summary'!$A:$F,MATCH(H$1,'Data BI Summary'!$2:$2,0),FALSE),INDIRECT("'"&$E24&"'!"&"$A:$K"),8,FALSE) -> -55.508 | I24: =VLOOKUP(VLOOKUP($F24,'Data BI Summary'!$A:$F,MATCH(I$1,'Data BI Summary'!$2:$2,0),FALSE),INDIRECT("'"&$E24&"'!"&"$A:$K"),9,FALSE) -> -0.6053745147 | J24: =VLOOKUP(VLOOKUP($F24,'Data BI Summary'!$A:$F,MATCH(J$1,'Data BI Summary'!$2:$2,0),FALSE),INDIRECT("'"&$E24&"'!"&"$A:$K"),8,FALSE) -> -53.87326779 | K24: =VLOOKUP(VLOOKUP($F24,'Data BI Summary'!$A:$F,MATCH(K$1,'Data BI Summary'!$2:$2,0),FALSE),INDIRECT("'"&$E24&"'!"&"$A:$K"),9,FALSE) -> -0.2472225099
A25: Seasonal-R1 | B25: Low | C25: =VLOOKUP("Seasonal",'Data Billing Quantities'!A:P,MATCH(B25&" kWh",'Data Billing Quantities'!$4:$4,0),FALSE) -> 40 | E25: BI_Seas_R1_Low | F25: BI Template_Seasonal | G25: =VLOOKUP(VLOOKUP($F25,'Data BI Summary'!$A:$F,MATCH(G$1,'Data BI Summary'!$2:$2,0),FALSE),INDIRECT("'"&$E25&"'!"&"$A:$K"),4,FALSE) -> 63.10408031 | H25: =VLOOKUP(VLOOKUP($F25,'Data BI Summary'!$A:$F,MATCH(H$1,'Data BI Summary'!$2:$2,0),FALSE),INDIRECT("'"&$E25&"'!"&"$A:$K"),8,FALSE) -> -2.18 | I25: =VLOOKUP(VLOOKUP($F25,'Data BI Summary'!$A:$F,MATCH(I$1,'Data BI Summary'!$2:$2,0),FALSE),INDIRECT("'"&$E25&"'!"&"$A:$K"),9,FALSE) -> -0.03580109046 | J25: =VLOOKUP(VLOOKUP($F25,'Data BI Summary'!$A:$F,MATCH(J$1,'Data BI Summary'!$2:$2,0),FALSE),INDIRECT("'"&$E25&"'!"&"$A:$K"),8,FALSE) -> -2.073729126 | K25: =VLOOKUP(VLOOKUP($F25,'Data BI Summary'!$A:$F,MATCH(K$1,'Data BI Summary'!$2:$2,0),FALSE),INDIRECT("'"&$E25&"'!"&"$A:$K"),9,FALSE) -> -0.03286204499 | L25: TOU
B26: Average | C26: =VLOOKUP("Seasonal",'Data Billing Quantities'!A:P,MATCH(B26&" kWh",'Data Billing Quantities'!$4:$4,0),FALSE) -> 369 | E26: BI_Seas_R1_Avg | F26: BI Template_Seasonal | G26: =VLOOKUP(VLOOKUP($F26,'Data BI Summary'!$A:$F,MATCH(G$1,'Data BI Summary'!$2:$2,0),FALSE),INDIRECT("'"&$E26&"'!"&"$A:$K"),4,FALSE) -> 114.0365728 | H26: =VLOOKUP(VLOOKUP($F26,'Data BI Summary'!$A:$F,MATCH(H$1,'Data BI Summary'!$2:$2,0),FALSE),INDIRECT("'"&$E26&"'!"&"$A:$K"),8,FALSE) -> -10.734 | I26: =VLOOKUP(VLOOKUP($F26,'Data BI Summary'!$A:$F,MATCH(I$1,'Data BI Summary'!$2:$2,0),FALSE),INDIRECT("'"&$E26&"'!"&"$A:$K"),9,FALSE) -> -0.1511294583 | J26: =VLOOKUP(VLOOKUP($F26,'Data BI Summary'!$A:$F,MATCH(J$1,'Data BI Summary'!$2:$2,0),FALSE),INDIRECT("'"&$E26&"'!"&"$A:$K"),8,FALSE) -> -10.30686469 | K26: =VLOOKUP(VLOOKUP($F26,'Data BI Summary'!$A:$F,MATCH(K$1,'Data BI Summary'!$2:$2,0),FALSE),INDIRECT("'"&$E26&"'!"&"$A:$K"),9,FALSE) -> -0.09038209791
B27: High | C27: =VLOOKUP("Seasonal",'Data Billing Quantities'!A:P,MATCH(B27&" kWh",'Data Billing Quantities'!$4:$4,0),FALSE) -> 1040 | E27: BI_Seas_R1_High | F27: BI Template_Seasonal | G27: =VLOOKUP(VLOOKUP($F27,'Data BI Summary'!$A:$F,MATCH(G$1,'Data BI Summary'!$2:$2,0),FALSE),INDIRECT("'"&$E27&"'!"&"$A:$K"),4,FALSE) -> 217.914088 | H27: =VLOOKUP(VLOOKUP($F27,'Data BI Summary'!$A:$F,MATCH(H$1,'Data BI Summary'!$2:$2,0),FALSE),INDIRECT("'"&$E27&"'!"&"$A:$K"),8,FALSE) -> -28.18 | I27: =VLOOKUP(VLOOKUP($F27,'Data BI Summary'!$A:$F,MATCH(I$1,'Data BI Summary'!$2:$2,0),FALSE),INDIRECT("'"&$E27&"'!"&"$A:$K"),9,FALSE) -> -0.3073332461 | J27: =VLOOKUP(VLOOKUP($F27,'Data BI Summary'!$A:$F,MATCH(J$1,'Data BI Summary'!$2:$2,0),FALSE),INDIRECT("'"&$E27&"'!"&"$A:$K"),8,FALSE) -> -27.09845729 | K27: =VLOOKUP(VLOOKUP($F27,'Data BI Summary'!$A:$F,MATCH(K$1,'Data BI Summary'!$2:$2,0),FALSE),INDIRECT("'"&$E27&"'!"&"$A:$K"),9,FALSE) -> -0.1243538568
A28: Seasonal-R2 | B28: Low | C28: =VLOOKUP("Seasonal",'Data Billing Quantities'!A:P,MATCH(B28&" kWh",'Data Billing Quantities'!$4:$4,0),FALSE) -> 40 | E28: BI_Seas_R2_Low | F28: BI Template_Seasonal | G28: =VLOOKUP(VLOOKUP($F28,'Data BI Summary'!$A:$F,MATCH(G$1,'Data BI Summary'!$2:$2,0),FALSE),INDIRECT("'"&$E28&"'!"&"$A:$K"),4,FALSE) -> 63.10408031 | H28: =VLOOKUP(VLOOKUP($F28,'Data BI Summary'!$A:$F,MATCH(H$1,'Data BI Summary'!$2:$2,0),FALSE),INDIRECT("'"&$E28&"'!"&"$A:$K"),8,FALSE) -> 59.706 | I28: =VLOOKUP(VLOOKUP($F28,'Data BI Summary'!$A:$F,MATCH(I$1,'Data BI Summary'!$2:$2,0),FALSE),INDIRECT("'"&$E28&"'!"&"$A:$K"),9,FALSE) -> 0.980522893 | J28: =VLOOKUP(VLOOKUP($F28,'Data BI Summary'!$A:$F,MATCH(J$1,'Data BI Summary'!$2:$2,0),FALSE),INDIRECT("'"&$E28&"'!"&"$A:$K"),8,FALSE) -> 56.25029326 | K28: =VLOOKUP(VLOOKUP($F28,'Data BI Summary'!$A:$F,MATCH(K$1,'Data BI Summary'!$2:$2,0),FALSE),INDIRECT("'"&$E28&"'!"&"$A:$K"),9,FALSE) -> 0.8913891619 | L28: TOU
B29: Average | C29: =VLOOKUP("Seasonal",'Data Billing Quantities'!A:P,MATCH(B29&" kWh",'Data Billing Quantities'!$4:$4,0),FALSE) -> 369 | E29: BI_Seas_R2_Avg | F29: BI Template_Seasonal | G29: =VLOOKUP(VLOOKUP($F29,'Data BI Summary'!$A:$F,MATCH(G$1,'Data BI Summary'!$2:$2,0),FALSE),INDIRECT("'"&$E29&"'!"&"$A:$K"),4,FALSE) -> 114.0365728 | H29: =VLOOKUP(VLOOKUP($F29,'Data BI Summary'!$A:$F,MATCH(H$1,'Data BI Summary'!$2:$2,0),FALSE),INDIRECT("'"&$E29&"'!"&"$A:$K"),8,FALSE) -> 52.1061 | I29: =VLOOKUP(VLOOKUP($F29,'Data BI Summary'!$A:$F,MATCH(I$1,'Data BI Summary'!$2:$2,0),FALSE),INDIRECT("'"&$E29&"'!"&"$A:$K"),9,FALSE) -> 0.733628346 | J29: =VLOOKUP(VLOOKUP($F29,'Data BI Summary'!$A:$F,MATCH(J$1,'Data BI Summary'!$2:$2,0),FALSE),INDIRECT("'"&$E29&"'!"&"$A:$K"),8,FALSE) -> 49.64942854 | K29: =VLOOKUP(VLOOKUP($F29,'Data BI Summary'!$A:$F,MATCH(K$1,'Data BI Summary'!$2:$2,0),FALSE),INDIRECT("'"&$E29&"'!"&"$A:$K"),9,FALSE) -> 0.4353816264
B30: High | C30: =VLOOKUP("Seasonal",'Data Billing Quantities'!A:P,MATCH(B30&" kWh",'Data Billing Quantities'!$4:$4,0),FALSE) -> 1040 | E30: BI_Seas_R2_High | F30: BI Template_Seasonal | G30: =VLOOKUP(VLOOKUP($F30,'Data BI Summary'!$A:$F,MATCH(G$1,'Data BI Summary'!$2:$2,0),FALSE),INDIRECT("'"&$E30&"'!"&"$A:$K"),4,FALSE) -> 217.914088 | H30: =VLOOKUP(VLOOKUP($F30,'Data BI Summary'!$A:$F,MATCH(H$1,'Data BI Summary'!$2:$2,0),FALSE),INDIRECT("'"&$E30&"'!"&"$A:$K"),8,FALSE) -> 36.606 | I30: =VLOOKUP(VLOOKUP($F30,'Data BI Summary'!$A:$F,MATCH(I$1,'Data BI Summary'!$2:$2,0),FALSE),INDIRECT("'"&$E30&"'!"&"$A:$K"),9,FALSE) -> 0.3992278498 | J30: =VLOOKUP(VLOOKUP($F30,'Data BI Summary'!$A:$F,MATCH(J$1,'Data BI Summary'!$2:$2,0),FALSE),INDIRECT("'"&$E30&"'!"&"$A:$K"),8,FALSE) -> 36.18687468 | K30: =VLOOKUP(VLOOKUP($F30,'Data BI Summary'!$A:$F,MATCH(K$1,'Data BI Summary'!$2:$2,0),FALSE),INDIRECT("'"&$E30&"'!"&"$A:$K"),9,FALSE) -> 0.166060281
A31: GSe | B31: Low | C31: =VLOOKUP(A$31,'Data Billing Quantities'!A:P,MATCH(B31&" kWh",'Data Billing Quantities'!$4:$4,0),FALSE) -> 60 | E31: BI_GSe_Low | F31: BI Template_Energy | G31: =VLOOKUP(VLOOKUP($F31,'Data BI Summary'!$A:$F,MATCH(G$1,'Data BI Summary'!$2:$2,0),FALSE),INDIRECT("'"&$E31&"'!"&"$A:$K"),4,FALSE) -> 45.0098849 | H31: =VLOOKUP(VLOOKUP($F31,'Data BI Summary'!$A:$F,MATCH(H$1,'Data BI Summary'!$2:$2,0),FALSE),INDIRECT("'"&$E31&"'!"&"$A:$K"),8,FALSE) -> -3.046 | I31: =VLOOKUP(VLOOKUP($F31,'Data BI Summary'!$A:$F,MATCH(I$1,'Data BI Summary'!$2:$2,0),FALSE),INDIRECT("'"&$E31&"'!"&"$A:$K"),9,FALSE) -> -0.07794268168 | J31: =VLOOKUP(VLOOKUP($F31,'Data BI Summary'!$A:$F,MATCH(J$1,'Data BI Summary'!$2:$2,0),FALSE),INDIRECT("'"&$E31&"'!"&"$A:$K"),8,FALSE) -> -2.860097984 | K31: =VLOOKUP(VLOOKUP($F31,'Data BI Summary'!$A:$F,MATCH(K$1,'Data BI Summary'!$2:$2,0),FALSE),INDIRECT("'"&$E31&"'!"&"$A:$K"),9,FALSE) -> -0.06354377467 | L31: TOU
B32: Typical | C32: =VLOOKUP(A$31,'Data Billing Quantities'!A:P,MATCH(B32&" kWh",'Data Billing Quantities'!$4:$4,0),FALSE) -> 2000 | E32: BI_GSe_Typical | F32: BI Template_Energy | G32: =VLOOKUP(VLOOKUP($F32,'Data BI Summary'!$A:$F,MATCH(G$1,'Data BI Summary'!$2:$2,0),FALSE),INDIRECT("'"&$E32&"'!"&"$A:$K"),4,FALSE) -> 413.2204266 | H32: =VLOOKUP(VLOOKUP($F32,'Data BI Summary'!$A:$F,MATCH(H$1,'Data BI Summary'!$2:$2,0),FALSE),INDIRECT("'"&$E32&"'!"&"$A:$K"),8,FALSE) -> -9.06 | I32: =VLOOKUP(VLOOKUP($F32,'Data BI Summary'!$A:$F,MATCH(I$1,'Data BI Summary'!$2:$2,0),FALSE),INDIRECT("'"&$E32&"'!"&"$A:$K"),9,FALSE) -> -0.05209591168 | J32: =VLOOKUP(VLOOKUP($F32,'Data BI Summary'!$A:$F,MATCH(J$1,'Data BI Summary'!$2:$2,0),FALSE),INDIRECT("'"&$E32&"'!"&"$A:$K"),8,FALSE) -> -8.3191928 | K32: =VLOOKUP(VLOOKUP($F32,'Data BI Summary'!$A:$F,MATCH(K$1,'Data BI Summary'!$2:$2,0),FALSE),INDIRECT("'"&$E32&"'!"&"$A:$K"),9,FALSE) -> -0.0201325788
B33: Average | C33: =VLOOKUP(A$31,'Data Billing Quantities'!A:P,MATCH(B33&" kWh",'Data Billing Quantities'!$4:$4,0),FALSE) -> 1887 | E33: BI_GSe_Avg | F33: BI Template_Energy | G33: =VLOOKUP(VLOOKUP($F33,'Data BI Summary'!$A:$F,MATCH(G$1,'Data BI Summary'!$2:$2,0),FALSE),INDIRECT("'"&$E33&"'!"&"$A:$K"),4,FALSE) -> 391.7731116 | H33: =VLOOKUP(VLOOKUP($F33,'Data BI Summary'!$A:$F,MATCH(H$1,'Data BI Summary'!$2:$2,0),FALSE),INDIRECT("'"&$E33&"'!"&"$A:$K"),8,FALSE) -> -8.7097 | I33: =VLOOKUP(VLOOKUP($F33,'Data BI Summary'!$A:$F,MATCH(I$1,'Data BI Summary'!$2:$2,0),FALSE),INDIRECT("'"&$E33&"'!"&"$A:$K"),9,FALSE) -> -0.05245022026 | J33: =VLOOKUP(VLOOKUP($F33,'Data BI Summary'!$A:$F,MATCH(J$1,'Data BI Summary'!$2:$2,0),FALSE),INDIRECT("'"&$E33&"'!"&"$A:$K"),8,FALSE) -> -8.001214597 | K33: =VLOOKUP(VLOOKUP($F33,'Data BI Summary'!$A:$F,MATCH(K$1,'Data BI Summary'!$2:$2,0),FALSE),INDIRECT("'"&$E33&"'!"&"$A:$K"),9,FALSE) -> -0.02042308255
B34: High | C34: =VLOOKUP(A$31,'Data Billing Quantities'!A:P,MATCH(B34&" kWh",'Data Billing Quantities'!$4:$4,0),FALSE) -> 5570 | E34: BI_GSe_High | F34: BI Template_Energy | G34: =VLOOKUP(VLOOKUP($F34,'Data BI Summary'!$A:$F,MATCH(G$1,'Data BI Summary'!$2:$2,0),FALSE),INDIRECT("'"&$E34&"'!"&"$A:$K"),4,FALSE) -> 1090.803743 | H34: =VLOOKUP(VLOOKUP($F34,'Data BI Summary'!$A:$F,MATCH(H$1,'Data BI Summary'!$2:$2,0),FALSE),INDIRECT("'"&$E34&"'!"&"$A:$K"),8,FALSE) -> -20.127 | I34: =VLOOKUP(VLOOKUP($F34,'Data BI Summary'!$A:$F,MATCH(I$1,'Data BI Summary'!$2:$2,0),FALSE),INDIRECT("'"&$E34&"'!"&"$A:$K"),9,FALSE) -> -0.04769148747 | J34: =VLOOKUP(VLOOKUP($F34,'Data BI Summary'!$A:$F,MATCH(J$1,'Data BI Summary'!$2:$2,0),FALSE),INDIRECT("'"&$E34&"'!"&"$A:$K"),8,FALSE) -> -18.36505285 | K34: =VLOOKUP(VLOOKUP($F34,'Data BI Summary'!$A:$F,MATCH(K$1,'Data BI Summary'!$2:$2,0),FALSE),INDIRECT("'"&$E34&"'!"&"$A:$K"),9,FALSE) -> -0.01683625763
A35: UGe | B35: Low | C35: =VLOOKUP(A$35,'Data Billing Quantities'!A:P,MATCH(B35&" kWh",'Data Billing Quantities'!$4:$4,0),FALSE) -> 180 | E35: BI_UGe_Low | F35: BI Template_Energy | G35: =VLOOKUP(VLOOKUP($F35,'Data BI Summary'!$A:$F,MATCH(G$1,'Data BI Summary'!$2:$2,0),FALSE),INDIRECT("'"&$E35&"'!"&"$A:$K"),4,FALSE) -> 54.18157477 | H35: =VLOOKUP(VLOOKUP($F35,'Data BI Summary'!$A:$F,MATCH(H$1,'Data BI Summary'!$2:$2,0),FALSE),INDIRECT("'"&$E35&"'!"&"$A:$K"),8,FALSE) -> -2.832 | I35: =VLOOKUP(VLOOKUP($F35,'Data BI Summary'!$A:$F,MATCH(I$1,'Data BI Summary'!$2:$2,0),FALSE),INDIRECT("'"&$E35&"'!"&"$A:$K"),9,FALSE) -> -0.08464343356 | J35: =VLOOKUP(VLOOKUP($F35,'Data BI Summary'!$A:$F,MATCH(J$1,'Data BI Summary'!$2:$2,0),FALSE),INDIRECT("'"&$E35&"'!"&"$A:$K"),8,FALSE) -> -2.628766308 | K35: =VLOOKUP(VLOOKUP($F35,'Data BI Summary'!$A:$F,MATCH(K$1,'Data BI Summary'!$2:$2,0),FALSE),INDIRECT("'"&$E35&"'!"&"$A:$K"),9,FALSE) -> -0.04851771694 | L35: TOU
B36: Typical | C36: =VLOOKUP(A$35,'Data Billing Quantities'!A:P,MATCH(B36&" kWh",'Data Billing Quantities'!$4:$4,0),FALSE) -> 2000 | E36: BI_UGe_Typical | F36: BI Template_Energy | G36: =VLOOKUP(VLOOKUP($F36,'Data BI Summary'!$A:$F,MATCH(G$1,'Data BI Summary'!$2:$2,0),FALSE),INDIRECT("'"&$E36&"'!"&"$A:$K"),4,FALSE) -> 332.5652841 | H36: =VLOOKUP(VLOOKUP($F36,'Data BI Summary'!$A:$F,MATCH(H$1,'Data BI Summary'!$2:$2,0),FALSE),INDIRECT("'"&$E36&"'!"&"$A:$K"),8,FALSE) -> -5.38 | I36: =VLOOKUP(VLOOKUP($F36,'Data BI Summary'!$A:$F,MATCH(I$1,'Data BI Summary'!$2:$2,0),FALSE),INDIRECT("'"&$E36&"'!"&"$A:$K"),9,FALSE) -> -0.05741728922 | J36: =VLOOKUP(VLOOKUP($F36,'Data BI Summary'!$A:$F,MATCH(J$1,'Data BI Summary'!$2:$2,0),FALSE),INDIRECT("'"&$E36&"'!"&"$A:$K"),8,FALSE) -> -4.6609612 | K36: =VLOOKUP(VLOOKUP($F36,'Data BI Summary'!$A:$F,MATCH(K$1,'Data BI Summary'!$2:$2,0),FALSE),INDIRECT("'"&$E36&"'!"&"$A:$K"),9,FALSE) -> -0.01401517664
B37: Average | C37: =VLOOKUP(A$35,'Data Billing Quantities'!A:P,MATCH(B37&" kWh",'Data Billing Quantities'!$4:$4,0),FALSE) -> 2494 | E37: BI_UGe_Avg | F37: BI Template_Energy | G37: =VLOOKUP(VLOOKUP($F37,'Data BI Summary'!$A:$F,MATCH(G$1,'Data BI Summary'!$2:$2,0),FALSE),INDIRECT("'"&$E37&"'!"&"$A:$K"),4,FALSE) -> 408.1265766 | H37: =VLOOKUP(VLOOKUP($F37,'Data BI Summary'!$A:$F,MATCH(H$1,'Data BI Summary'!$2:$2,0),FALSE),INDIRECT("'"&$E37&"'!"&"$A:$K"),8,FALSE) -> -6.0716 | I37: =VLOOKUP(VLOOKUP($F37,'Data BI Summary'!$A:$F,MATCH(I$1,'Data BI Summary'!$2:$2,0),FALSE),INDIRECT("'"&$E37&"'!"&"$A:$K"),9,FALSE) -> -0.05517058393 | J37: =VLOOKUP(VLOOKUP($F37,'Data BI Summary'!$A:$F,MATCH(J$1,'Data BI Summary'!$2:$2,0),FALSE),INDIRECT("'"&$E37&"'!"&"$A:$K"),8,FALSE) -> -5.212556956 | K37: =VLOOKUP(VLOOKUP($F37,'Data BI Summary'!$A:$F,MATCH(K$1,'Data BI Summary'!$2:$2,0),FALSE),INDIRECT("'"&$E37&"'!"&"$A:$K"),9,FALSE) -> -0.01277191258
B38: High | C38: =VLOOKUP(A$35,'Data Billing Quantities'!A:P,MATCH(B38&" kWh",'Data Billing Quantities'!$4:$4,0),FALSE) -> 6930 | E38: BI_UGe_High | F38: BI Template_Energy | G38: =VLOOKUP(VLOOKUP($F38,'Data BI Summary'!$A:$F,MATCH(G$1,'Data BI Summary'!$2:$2,0),FALSE),INDIRECT("'"&$E38&"'!"&"$A:$K"),4,FALSE) -> 1086.648629 | H38: =VLOOKUP(VLOOKUP($F38,'Data BI Summary'!$A:$F,MATCH(H$1,'Data BI Summary'!$2:$2,0),FALSE),INDIRECT("'"&$E38&"'!"&"$A:$K"),8,FALSE) -> -12.282 | I38: =VLOOKUP(VLOOKUP($F38,'Data BI Summary'!$A:$F,MATCH(I$1,'Data BI Summary'!$2:$2,0),FALSE),INDIRECT("'"&$E38&"'!"&"$A:$K"),9,FALSE) -> -0.04781164966 | J38: =VLOOKUP(VLOOKUP($F38,'Data BI Summary'!$A:$F,MATCH(J$1,'Data BI Summary'!$2:$2,0),FALSE),INDIRECT("'"&$E38&"'!"&"$A:$K"),8,FALSE) -> -10.16575286 | K38: =VLOOKUP(VLOOKUP($F38,'Data BI Summary'!$A:$F,MATCH(K$1,'Data BI Summary'!$2:$2,0),FALSE),INDIRECT("'"&$E38&"'!"&"$A:$K"),9,FALSE) -> -0.009355142583
A39: GSd | B39: Low | C39: =VLOOKUP(A$39,'Data Billing Quantities'!A:P,MATCH(B39&" kWh",'Data Billing Quantities'!$4:$4,0),FALSE) -> 9310 | D39: =VLOOKUP(A$39,'Data Billing Quantities'!A:P,MATCH(B39&" kW",'Data Billing Quantities'!$4:$4,0),FALSE) -> 55 | E39: BI_GSd_Low | F39: BI Template_Demand | G39: =VLOOKUP(VLOOKUP($F39,'Data BI Summary'!$A:$F,MATCH(G$1,'Data BI Summary'!$2:$2,0),FALSE),INDIRECT("'"&$E39&"'!"&"$A:$K"),4,FALSE) -> 3000.434352 | H39: =VLOOKUP(VLOOKUP($F39,'Data BI Summary'!$A:$F,MATCH(H$1,'Data BI Summary'!$2:$2,0),FALSE),INDIRECT("'"&$E39&"'!"&"$A:$K"),8,FALSE) -> -67.2055 | I39: =VLOOKUP(VLOOKUP($F39,'Data BI Summary'!$A:$F,MATCH(I$1,'Data BI Summary'!$2:$2,0),FALSE),INDIRECT("'"&$E39&"'!"&"$A:$K"),9,FALSE) -> -0.05539439104 | J39: =VLOOKUP(VLOOKUP($F39,'Data BI Summary'!$A:$F,MATCH(J$1,'Data BI Summary'!$2:$2,0),FALSE),INDIRECT("'"&$E39&"'!"&"$A:$K"),8,FALSE) -> -65.376715 | K39: =VLOOKUP(VLOOKUP($F39,'Data BI Summary'!$A:$F,MATCH(K$1,'Data BI Summary'!$2:$2,0),FALSE),INDIRECT("'"&$E39&"'!"&"$A:$K"),9,FALSE) -> -0.02178908362 | L39: WAHSP
B40: Average | C40: =VLOOKUP(A$39,'Data Billing Quantities'!A:P,MATCH(B40&" kWh",'Data Billing Quantities'!$4:$4,0),FALSE) -> 34334 | D40: =VLOOKUP(A$39,'Data Billing Quantities'!A:P,MATCH(B40&" kW",'Data Billing Quantities'!$4:$4,0),FALSE) -> 110 | E40: BI_GSd_Avg | F40: BI Template_Demand | G40: =VLOOKUP(VLOOKUP($F40,'Data BI Summary'!$A:$F,MATCH(G$1,'Data BI Summary'!$2:$2,0),FALSE),INDIRECT("'"&$E40&"'!"&"$A:$K"),4,FALSE) -> 8183.900886 | H40: =VLOOKUP(VLOOKUP($F40,'Data BI Summary'!$A:$F,MATCH(H$1,'Data BI Summary'!$2:$2,0),FALSE),INDIRECT("'"&$E40&"'!"&"$A:$K"),8,FALSE) -> -132.7208 | I40: =VLOOKUP(VLOOKUP($F40,'Data BI Summary'!$A:$F,MATCH(I$1,'Data BI Summary'!$2:$2,0),FALSE),INDIRECT("'"&$E40&"'!"&"$A:$K"),9,FALSE) -> -0.05746690758 | J40: =VLOOKUP(VLOOKUP($F40,'Data BI Summary'!$A:$F,MATCH(J$1,'Data BI Summary'!$2:$2,0),FALSE),INDIRECT("'"&$E40&"'!"&"$A:$K"),8,FALSE) -> -128.843504 | K40: =VLOOKUP(VLOOKUP($F40,'Data BI Summary'!$A:$F,MATCH(K$1,'Data BI Summary'!$2:$2,0),FALSE),INDIRECT("'"&$E40&"'!"&"$A:$K"),9,FALSE) -> -0.01574353182
B41: High | C41: =VLOOKUP(A$39,'Data Billing Quantities'!A:P,MATCH(B41&" kWh",'Data Billing Quantities'!$4:$4,0),FALSE) -> 75790 | D41: =VLOOKUP(A$39,'Data Billing Quantities'!A:P,MATCH(B41&" kW",'Data Billing Quantities'!$4:$4,0),FALSE) -> 250 | E41: BI_GSd_High | F41: BI Template_Demand | G41: =VLOOKUP(VLOOKUP($F41,'Data BI Summary'!$A:$F,MATCH(G$1,'Data BI Summary'!$2:$2,0),FALSE),INDIRECT("'"&$E41&"'!"&"$A:$K"),4,FALSE) -> 18100.93444 | H41: =VLOOKUP(VLOOKUP($F41,'Data BI Summary'!$A:$F,MATCH(H$1,'Data BI Summary'!$2:$2,0),FALSE),INDIRECT("'"&$E41&"'!"&"$A:$K"),8,FALSE) -> -283.918 | I41: =VLOOKUP(VLOOKUP($F41,'Data BI Summary'!$A:$F,MATCH(I$1,'Data BI Summary'!$2:$2,0),FALSE),INDIRECT("'"&$E41&"'!"&"$A:$K"),9,FALSE) -> -0.0556691591 | J41: =VLOOKUP(VLOOKUP($F41,'Data BI Summary'!$A:$F,MATCH(J$1,'Data BI Summary'!$2:$2,0),FALSE),INDIRECT("'"&$E41&"'!"&"$A:$K"),8,FALSE) -> -272.80234 | K41: =VLOOKUP(VLOOKUP($F41,'Data BI Summary'!$A:$F,MATCH(K$1,'Data BI Summary'!$2:$2,0),FALSE),INDIRECT("'"&$E41&"'!"&"$A:$K"),9,FALSE) -> -0.01507117442
A42: UGd | B42: Low | C42: =VLOOKUP(A$42,'Data Billing Quantities'!A:P,MATCH(B42&" kWh",'Data Billing Quantities'!$4:$4,0),FALSE) -> 13900 | D42: =VLOOKUP(A$42,'Data Billing Quantities'!A:P,MATCH(B42&" kW",'Data Billing Quantities'!$4:$4,0),FALSE) -> 55 | E42: BI_UGd_Low | F42: BI Template_Demand | G42: =VLOOKUP(VLOOKUP($F42,'Data BI Summary'!$A:$F,MATCH(G$1,'Data BI Summary'!$2:$2,0),FALSE),INDIRECT("'"&$E42&"'!"&"$A:$K"),4,FALSE) -> 3191.074235 | H42: =VLOOKUP(VLOOKUP($F42,'Data BI Summary'!$A:$F,MATCH(H$1,'Data BI Summary'!$2:$2,0),FALSE),INDIRECT("'"&$E42&"'!"&"$A:$K"),8,FALSE) -> -50.9345 | I42: =VLOOKUP(VLOOKUP($F42,'Data BI Summary'!$A:$F,MATCH(I$1,'Data BI Summary'!$2:$2,0),FALSE),INDIRECT("'"&$E42&"'!"&"$A:$K"),9,FALSE) -> -0.06891780995 | J42: =VLOOKUP(VLOOKUP($F42,'Data BI Summary'!$A:$F,MATCH(J$1,'Data BI Summary'!$2:$2,0),FALSE),INDIRECT("'"&$E42&"'!"&"$A:$K"),8,FALSE) -> -46.26333 | K42: =VLOOKUP(VLOOKUP($F42,'Data BI Summary'!$A:$F,MATCH(K$1,'Data BI Summary'!$2:$2,0),FALSE),INDIRECT("'"&$E42&"'!"&"$A:$K"),9,FALSE) -> -0.01449772916 | L42: WAHSP
B43: Average | C43: =VLOOKUP(A$42,'Data Billing Quantities'!A:P,MATCH(B43&" kWh",'Data Billing Quantities'!$4:$4,0),FALSE) -> 42592 | D43: =VLOOKUP(A$42,'Data Billing Quantities'!A:P,MATCH(B43&" kW",'Data Billing Quantities'!$4:$4,0),FALSE) -> 111 | E43: BI_UGd_Avg | F43: BI Template_Demand | G43: =VLOOKUP(VLOOKUP($F43,'Data BI Summary'!$A:$F,MATCH(G$1,'Data BI Summary'!$2:$2,0),FALSE),INDIRECT("'"&$E43&"'!"&"$A:$K"),4,FALSE) -> 8436.095727 | H43: =VLOOKUP(VLOOKUP($F43,'Data BI Summary'!$A:$F,MATCH(H$1,'Data BI Summary'!$2:$2,0),FALSE),INDIRECT("'"&$E43&"'!"&"$A:$K"),8,FALSE) -> -100.2453 | I43: =VLOOKUP(VLOOKUP($F43,'Data BI Summary'!$A:$F,MATCH(I$1,'Data BI Summary'!$2:$2,0),FALSE),INDIRECT("'"&$E43&"'!"&"$A:$K"),9,FALSE) -> -0.07254152482 | J43: =VLOOKUP(VLOOKUP($F43,'Data BI Summary'!$A:$F,MATCH(J$1,'Data BI Summary'!$2:$2,0),FALSE),INDIRECT("'"&$E43&"'!"&"$A:$K"),8,FALSE) -> -90.486558 | K43: =VLOOKUP(VLOOKUP($F43,'Data BI Summary'!$A:$F,MATCH(K$1,'Data BI Summary'!$2:$2,0),FALSE),INDIRECT("'"&$E43&"'!"&"$A:$K"),9,FALSE) -> -0.01072611797
B44: High | C44: =VLOOKUP(A$42,'Data Billing Quantities'!A:P,MATCH(B44&" kWh",'Data Billing Quantities'!$4:$4,0),FALSE) -> 97610 | D44: =VLOOKUP(A$42,'Data Billing Quantities'!A:P,MATCH(B44&" kW",'Data Billing Quantities'!$4:$4,0),FALSE) -> 280 | E44: BI_UGd_High | F44: BI Template_Demand | G44: =VLOOKUP(VLOOKUP($F44,'Data BI Summary'!$A:$F,MATCH(G$1,'Data BI Summary'!$2:$2,0),FALSE),INDIRECT("'"&$E44&"'!"&"$A:$K"),4,FALSE) -> 19661.20499 | H44: =VLOOKUP(VLOOKUP($F44,'Data BI Summary'!$A:$F,MATCH(H$1,'Data BI Summary'!$2:$2,0),FALSE),INDIRECT("'"&$E44&"'!"&"$A:$K"),8,FALSE) -> -226.959 | I44: =VLOOKUP(VLOOKUP($F44,'Data BI Summary'!$A:$F,MATCH(I$1,'Data BI Summary'!$2:$2,0),FALSE),INDIRECT("'"&$E44&"'!"&"$A:$K"),9,FALSE) -> -0.06832196234 | J44: =VLOOKUP(VLOOKUP($F44,'Data BI Summary'!$A:$F,MATCH(J$1,'Data BI Summary'!$2:$2,0),FALSE),INDIRECT("'"&$E44&"'!"&"$A:$K"),8,FALSE) -> -198.97379 | K44: =VLOOKUP(VLOOKUP($F44,'Data BI Summary'!$A:$F,MATCH(K$1,'Data BI Summary'!$2:$2,0),FALSE),INDIRECT("'"&$E44&"'!"&"$A:$K"),9,FALSE) -> -0.01012012184
A45: St Lgt | B45: Low | C45: =VLOOKUP(A$45,'Data Billing Quantities'!A:P,MATCH(B45&" kWh",'Data Billing Quantities'!$4:$4,0),FALSE) -> 30 | E45: BI_StLgt_Low | F45: BI Template_EnergyUNM | G45: =VLOOKUP(VLOOKUP($F45,'Data BI Summary'!$A:$F,MATCH(G$1,'Data BI Summary'!$2:$2,0),FALSE),INDIRECT("'"&$E45&"'!"&"$A:$K"),4,FALSE) -> 10.5080002 | H45: =VLOOKUP(VLOOKUP($F45,'Data BI Summary'!$A:$F,MATCH(H$1,'Data BI Summary'!$2:$2,0),FALSE),INDIRECT("'"&$E45&"'!"&"$A:$K"),8,FALSE) -> -0.877 | I45: =VLOOKUP(VLOOKUP($F45,'Data BI Summary'!$A:$F,MATCH(I$1,'Data BI Summary'!$2:$2,0),FALSE),INDIRECT("'"&$E45&"'!"&"$A:$K"),9,FALSE) -> -0.1209488346 | J45: =VLOOKUP(VLOOKUP($F45,'Data BI Summary'!$A:$F,MATCH(J$1,'Data BI Summary'!$2:$2,0),FALSE),INDIRECT("'"&$E45&"'!"&"$A:$K"),8,FALSE) -> -0.831422432 | K45: =VLOOKUP(VLOOKUP($F45,'Data BI Summary'!$A:$F,MATCH(K$1,'Data BI Summary'!$2:$2,0),FALSE),INDIRECT("'"&$E45&"'!"&"$A:$K"),9,FALSE) -> -0.07912280318 | L45: Two-tier RPP
B46: Average | C46: =VLOOKUP(A$45,'Data Billing Quantities'!A:P,MATCH(B46&" kWh",'Data Billing Quantities'!$4:$4,0),FALSE) -> 1274 | E46: BI_StLgt_Avg | F46: BI Template_EnergyUNM | G46: =VLOOKUP(VLOOKUP($F46,'Data BI Summary'!$A:$F,MATCH(G$1,'Data BI Summary'!$2:$2,0),FALSE),INDIRECT("'"&$E46&"'!"&"$A:$K"),4,FALSE) -> 299.246009 | H46: =VLOOKUP(VLOOKUP($F46,'Data BI Summary'!$A:$F,MATCH(H$1,'Data BI Summary'!$2:$2,0),FALSE),INDIRECT("'"&$E46&"'!"&"$A:$K"),8,FALSE) -> -8.2166 | I46: =VLOOKUP(VLOOKUP($F46,'Data BI Summary'!$A:$F,MATCH(I$1,'Data BI Summary'!$2:$2,0),FALSE),INDIRECT("'"&$E46&"'!"&"$A:$K"),9,FALSE) -> -0.05434913462 | J46: =VLOOKUP(VLOOKUP($F46,'Data BI Summary'!$A:$F,MATCH(J$1,'Data BI Summary'!$2:$2,0),FALSE),INDIRECT("'"&$E46&"'!"&"$A:$K"),8,FALSE) -> -7.993645946 | K46: =VLOOKUP(VLOOKUP($F46,'Data BI Summary'!$A:$F,MATCH(K$1,'Data BI Summary'!$2:$2,0),FALSE),INDIRECT("'"&$E46&"'!"&"$A:$K"),9,FALSE) -> -0.02671262341
B47: High | C47: =VLOOKUP(A$45,'Data Billing Quantities'!A:P,MATCH(B47&" kWh",'Data Billing Quantities'!$4:$4,0),FALSE) -> 2310 | E47: BI_StLgt_High | F47: BI Template_EnergyUNM | G47: =VLOOKUP(VLOOKUP($F47,'Data BI Summary'!$A:$F,MATCH(G$1,'Data BI Summary'!$2:$2,0),FALSE),INDIRECT("'"&$E47&"'!"&"$A:$K"),4,FALSE) -> 549.2615381 | H47: =VLOOKUP(VLOOKUP($F47,'Data BI Summary'!$A:$F,MATCH(H$1,'Data BI Summary'!$2:$2,0),FALSE),INDIRECT("'"&$E47&"'!"&"$A:$K"),8,FALSE) -> -14.329 | I47: =VLOOKUP(VLOOKUP($F47,'Data BI Summary'!$A:$F,MATCH(I$1,'Data BI Summary'!$2:$2,0),FALSE),INDIRECT("'"&$E47&"'!"&"$A:$K"),9,FALSE) -> -0.05286537021 | J47: =VLOOKUP(VLOOKUP($F47,'Data BI Summary'!$A:$F,MATCH(J$1,'Data BI Summary'!$2:$2,0),FALSE),INDIRECT("'"&$E47&"'!"&"$A:$K"),8,FALSE) -> -13.95832726 | K47: =VLOOKUP(VLOOKUP($F47,'Data BI Summary'!$A:$F,MATCH(K$1,'Data BI Summary'!$2:$2,0),FALSE),INDIRECT("'"&$E47&"'!"&"$A:$K"),9,FALSE) -> -0.02541289767
A48: Sen Lgt | B48: Low | C48: =VLOOKUP(A$48,'Data Billing Quantities'!A:P,MATCH(B48&" kWh",'Data Billing Quantities'!$4:$4,0),FALSE) -> 20 | E48: BI_SenLgt_Low | F48: BI Template_EnergyUNM | G48: =VLOOKUP(VLOOKUP($F48,'Data BI Summary'!$A:$F,MATCH(G$1,'Data BI Summary'!$2:$2,0),FALSE),INDIRECT("'"&$E48&"'!"&"$A:$K"),4,FALSE) -> 8.97909728 | H48: =VLOOKUP(VLOOKUP($F48,'Data BI Summary'!$A:$F,MATCH(H$1,'Data BI Summary'!$2:$2,0),FALSE),INDIRECT("'"&$E48&"'!"&"$A:$K"),8,FALSE) -> -0.6 | I48: =VLOOKUP(VLOOKUP($F48,'Data BI Summary'!$A:$F,MATCH(I$1,'Data BI Summary'!$2:$2,0),FALSE),INDIRECT("'"&$E48&"'!"&"$A:$K"),9,FALSE) -> -0.08764241893 | J48: =VLOOKUP(VLOOKUP($F48,'Data BI Summary'!$A:$F,MATCH(J$1,'Data BI Summary'!$2:$2,0),FALSE),INDIRECT("'"&$E48&"'!"&"$A:$K"),8,FALSE) -> -0.570765432 | K48: =VLOOKUP(VLOOKUP($F48,'Data BI Summary'!$A:$F,MATCH(K$1,'Data BI Summary'!$2:$2,0),FALSE),INDIRECT("'"&$E48&"'!"&"$A:$K"),9,FALSE) -> -0.06356601496 | L48: Two-tier RPP
B49: Average | C49: =VLOOKUP(A$48,'Data Billing Quantities'!A:P,MATCH(B49&" kWh",'Data Billing Quantities'!$4:$4,0),FALSE) -> 49 | E49: BI_SenLgt_Avg | F49: BI Template_EnergyUNM | G49: =VLOOKUP(VLOOKUP($F49,'Data BI Summary'!$A:$F,MATCH(G$1,'Data BI Summary'!$2:$2,0),FALSE),INDIRECT("'"&$E49&"'!"&"$A:$K"),4,FALSE) -> 17.18227984 | H49: =VLOOKUP(VLOOKUP($F49,'Data BI Summary'!$A:$F,MATCH(H$1,'Data BI Summary'!$2:$2,0),FALSE),INDIRECT("'"&$E49&"'!"&"$A:$K"),8,FALSE) -> -1.0495 | I49: =VLOOKUP(VLOOKUP($F49,'Data BI Summary'!$A:$F,MATCH(I$1,'Data BI Summary'!$2:$2,0),FALSE),INDIRECT("'"&$E49&"'!"&"$A:$K"),9,FALSE) -> -0.08733678963 | J49: =VLOOKUP(VLOOKUP($F49,'Data BI Summary'!$A:$F,MATCH(J$1,'Data BI Summary'!$2:$2,0),FALSE),INDIRECT("'"&$E49&"'!"&"$A:$K"),8,FALSE) -> -1.002684808 | K49: =VLOOKUP(VLOOKUP($F49,'Data BI Summary'!$A:$F,MATCH(K$1,'Data BI Summary'!$2:$2,0),FALSE),INDIRECT("'"&$E49&"'!"&"$A:$K"),9,FALSE) -> -0.05835574894
B50: High | C50: =VLOOKUP(A$48,'Data Billing Quantities'!A:P,MATCH(B50&" kWh",'Data Billing Quantities'!$4:$4,0),FALSE) -> 80 | E50: BI_SenLgt_High | F50: BI Template_EnergyUNM | G50: =VLOOKUP(VLOOKUP($F50,'Data BI Summary'!$A:$F,MATCH(G$1,'Data BI Summary'!$2:$2,0),FALSE),INDIRECT("'"&$E50&"'!"&"$A:$K"),4,FALSE) -> 25.95119912 | H50: =VLOOKUP(VLOOKUP($F50,'Data BI Summary'!$A:$F,MATCH(H$1,'Data BI Summary'!$2:$2,0),FALSE),INDIRECT("'"&$E50&"'!"&"$A:$K"),8,FALSE) -> -1.53 | I50: =VLOOKUP(VLOOKUP($F50,'Data BI Summary'!$A:$F,MATCH(I$1,'Data BI Summary'!$2:$2,0),FALSE),INDIRECT("'"&$E50&"'!"&"$A:$K"),9,FALSE) -> -0.08720930233 | J50: =VLOOKUP(VLOOKUP($F50,'Data BI Summary'!$A:$F,MATCH(J$1,'Data BI Summary'!$2:$2,0),FALSE),INDIRECT("'"&$E50&"'!"&"$A:$K"),8,FALSE) -> -1.464391728 | K50: =VLOOKUP(VLOOKUP($F50,'Data BI Summary'!$A:$F,MATCH(K$1,'Data BI Summary'!$2:$2,0),FALSE),INDIRECT("'"&$E50&"'!"&"$A:$K"),9,FALSE) -> -0.05642867296
A51: USL | B51: Low | C51: =VLOOKUP(A$51,'Data Billing Quantities'!A:P,MATCH(B51&" kWh",'Data Billing Quantities'!$4:$4,0),FALSE) -> 100 | E51: BI_USL_Low | F51: BI Template_EnergyUNM | G51: =VLOOKUP(VLOOKUP($F51,'Data BI Summary'!$A:$F,MATCH(G$1,'Data BI Summary'!$2:$2,0),FALSE),INDIRECT("'"&$E51&"'!"&"$A:$K"),4,FALSE) -> 52.3098136 | H51: =VLOOKUP(VLOOKUP($F51,'Data BI Summary'!$A:$F,MATCH(H$1,'Data BI Summary'!$2:$2,0),FALSE),INDIRECT("'"&$E51&"'!"&"$A:$K"),8,FALSE) -> -5.3 | I51: =VLOOKUP(VLOOKUP($F51,'Data BI Summary'!$A:$F,MATCH(I$1,'Data BI Summary'!$2:$2,0),FALSE),INDIRECT("'"&$E51&"'!"&"$A:$K"),9,FALSE) -> -0.123255814 | J51: =VLOOKUP(VLOOKUP($F51,'Data BI Summary'!$A:$F,MATCH(J$1,'Data BI Summary'!$2:$2,0),FALSE),INDIRECT("'"&$E51&"'!"&"$A:$K"),8,FALSE) -> -4.9873 | K51: =VLOOKUP(VLOOKUP($F51,'Data BI Summary'!$A:$F,MATCH(K$1,'Data BI Summary'!$2:$2,0),FALSE),INDIRECT("'"&$E51&"'!"&"$A:$K"),9,FALSE) -> -0.09534157468 | L51: Two-tier RPP
B52: Average | C52: =VLOOKUP(A$51,'Data Billing Quantities'!A:P,MATCH(B52&" kWh",'Data Billing Quantities'!$4:$4,0),FALSE) -> 477 | E52: BI_USL_Avg | F52: BI Template_EnergyUNM | G52: =VLOOKUP(VLOOKUP($F52,'Data BI Summary'!$A:$F,MATCH(G$1,'Data BI Summary'!$2:$2,0),FALSE),INDIRECT("'"&$E52&"'!"&"$A:$K"),4,FALSE) -> 105.6283717 | H52: =VLOOKUP(VLOOKUP($F52,'Data BI Summary'!$A:$F,MATCH(H$1,'Data BI Summary'!$2:$2,0),FALSE),INDIRECT("'"&$E52&"'!"&"$A:$K"),8,FALSE) -> -7.3358 | I52: =VLOOKUP(VLOOKUP($F52,'Data BI Summary'!$A:$F,MATCH(I$1,'Data BI Summary'!$2:$2,0),FALSE),INDIRECT("'"&$E52&"'!"&"$A:$K"),9,FALSE) -> -0.1380432921 | J52: =VLOOKUP(VLOOKUP($F52,'Data BI Summary'!$A:$F,MATCH(J$1,'Data BI Summary'!$2:$2,0),FALSE),INDIRECT("'"&$E52&"'!"&"$A:$K"),8,FALSE) -> -6.9029878 | K52: =VLOOKUP(VLOOKUP($F52,'Data BI Summary'!$A:$F,MATCH(K$1,'Data BI Summary'!$2:$2,0),FALSE),INDIRECT("'"&$E52&"'!"&"$A:$K"),9,FALSE) -> -0.06535164455
B53: High | C53: =VLOOKUP(A$51,'Data Billing Quantities'!A:P,MATCH(B53&" kWh",'Data Billing Quantities'!$4:$4,0),FALSE) -> 550 | E53: BI_USL_High | F53: BI Template_EnergyUNM | G53: =VLOOKUP(VLOOKUP($F53,'Data BI Summary'!$A:$F,MATCH(G$1,'Data BI Summary'!$2:$2,0),FALSE),INDIRECT("'"&$E53&"'!"&"$A:$K"),4,FALSE) -> 115.9526548 | H53: =VLOOKUP(VLOOKUP($F53,'Data BI Summary'!$A:$F,MATCH(H$1,'Data BI Summary'!$2:$2,0),FALSE),INDIRECT("'"&$E53&"'!"&"$A:$K"),8,FALSE) -> -7.73 | I53: =VLOOKUP(VLOOKUP($F53,'Data BI Summary'!$A:$F,MATCH(I$1,'Data BI Summary'!$2:$2,0),FALSE),INDIRECT("'"&$E53&"'!"&"$A:$K"),9,FALSE) -> -0.1402776518 | J53: =VLOOKUP(VLOOKUP($F53,'Data BI Summary'!$A:$F,MATCH(J$1,'Data BI Summary'!$2:$2,0),FALSE),INDIRECT("'"&$E53&"'!"&"$A:$K"),8,FALSE) -> -7.27393 | K53: =VLOOKUP(VLOOKUP($F53,'Data BI Summary'!$A:$F,MATCH(K$1,'Data BI Summary'!$2:$2,0),FALSE),INDIRECT("'"&$E53&"'!"&"$A:$K"),9,FALSE) -> -0.06273189702
A54: DGen | B54: Low | C54: =VLOOKUP(A$54,'Data Billing Quantities'!A:P,MATCH($B54&" kWh",'Data Billing Quantities'!$4:$4,0),FALSE) -> 10 | D54: =VLOOKUP(A$54,'Data Billing Quantities'!A:P,MATCH($B54&" kW",'Data Billing Quantities'!$4:$4,0),FALSE) -> 0.02941666667 | E54: BI_Dgen_Low | F54: BI Template_Demand | G54: =VLOOKUP(VLOOKUP($F54,'Data BI Summary'!$A:$F,MATCH(G$1,'Data BI Summary'!$2:$2,0),FALSE),INDIRECT("'"&$E54&"'!"&"$A:$K"),4,FALSE) -> 232.6835992 | H54: =VLOOKUP(VLOOKUP($F54,'Data BI Summary'!$A:$F,MATCH(H$1,'Data BI Summary'!$2:$2,0),FALSE),INDIRECT("'"&$E54&"'!"&"$A:$K"),8,FALSE) -> -9.733002667 | I54: =VLOOKUP(VLOOKUP($F54,'Data BI Summary'!$A:$F,MATCH(I$1,'Data BI Summary'!$2:$2,0),FALSE),INDIRECT("'"&$E54&"'!"&"$A:$K"),9,FALSE) -> -0.04764040097 | J54: =VLOOKUP(VLOOKUP($F54,'Data BI Summary'!$A:$F,MATCH(J$1,'Data BI Summary'!$2:$2,0),FALSE),INDIRECT("'"&$E54&"'!"&"$A:$K"),8,FALSE) -> -10.99403154 | K54: =VLOOKUP(VLOOKUP($F54,'Data BI Summary'!$A:$F,MATCH(K$1,'Data BI Summary'!$2:$2,0),FALSE),INDIRECT("'"&$E54&"'!"&"$A:$K"),9,FALSE) -> -0.04724884596 | L54: WAHSP
B55: Average | C55: =VLOOKUP(A$54,'Data Billing Quantities'!A:P,MATCH($B55&" kWh",'Data Billing Quantities'!$4:$4,0),FALSE) -> 1709 | D55: =VLOOKUP(A$54,'Data Billing Quantities'!A:P,MATCH($B55&" kW",'Data Billing Quantities'!$4:$4,0),FALSE) -> 12 | E55: BI_Dgen_Avg | F55: BI Template_Demand | G55: =VLOOKUP(VLOOKUP($F55,'Data BI Summary'!$A:$F,MATCH(G$1,'Data BI Summary'!$2:$2,0),FALSE),INDIRECT("'"&$E55&"'!"&"$A:$K"),4,FALSE) -> 653.4983254 | H55: =VLOOKUP(VLOOKUP($F55,'Data BI Summary'!$A:$F,MATCH(H$1,'Data BI Summary'!$2:$2,0),FALSE),INDIRECT("'"&$E55&"'!"&"$A:$K"),8,FALSE) -> -17.4343 | I55: =VLOOKUP(VLOOKUP($F55,'Data BI Summary'!$A:$F,MATCH(I$1,'Data BI Summary'!$2:$2,0),FALSE),INDIRECT("'"&$E55&"'!"&"$A:$K"),9,FALSE) -> -0.05266561865 | J55: =VLOOKUP(VLOOKUP($F55,'Data BI Summary'!$A:$F,MATCH(J$1,'Data BI Summary'!$2:$2,0),FALSE),INDIRECT("'"&$E55&"'!"&"$A:$K"),8,FALSE) -> -17.962367 | K55: =VLOOKUP(VLOOKUP($F55,'Data BI Summary'!$A:$F,MATCH(K$1,'Data BI Summary'!$2:$2,0),FALSE),INDIRECT("'"&$E55&"'!"&"$A:$K"),9,FALSE) -> -0.02748647747
B56: High | C56: =VLOOKUP(A$54,'Data Billing Quantities'!A:P,MATCH($B56&" kWh",'Data Billing Quantities'!$4:$4,0),FALSE) -> 8490 | D56: =VLOOKUP(A$54,'Data Billing Quantities'!A:P,MATCH($B56&" kW",'Data Billing Quantities'!$4:$4,0),FALSE) -> 45 | E56: BI_Dgen_High | F56: BI Template_Demand | G56: =VLOOKUP(VLOOKUP($F56,'Data BI Summary'!$A:$F,MATCH(G$1,'Data BI Summary'!$2:$2,0),FALSE),INDIRECT("'"&$E56&"'!"&"$A:$K"),4,FALSE) -> 2122.61198 | H56: =VLOOKUP(VLOOKUP($F56,'Data BI Summary'!$A:$F,MATCH(H$1,'Data BI Summary'!$2:$2,0),FALSE),INDIRECT("'"&$E56&"'!"&"$A:$K"),8,FALSE) -> -40.133 | I56: =VLOOKUP(VLOOKUP($F56,'Data BI Summary'!$A:$F,MATCH(I$1,'Data BI Summary'!$2:$2,0),FALSE),INDIRECT("'"&$E56&"'!"&"$A:$K"),9,FALSE) -> -0.05898281719 | J56: =VLOOKUP(VLOOKUP($F56,'Data BI Summary'!$A:$F,MATCH(J$1,'Data BI Summary'!$2:$2,0),FALSE),INDIRECT("'"&$E56&"'!"&"$A:$K"),8,FALSE) -> -38.83132 | K56: =VLOOKUP(VLOOKUP($F56,'Data BI Summary'!$A:$F,MATCH(K$1,'Data BI Summary'!$2:$2,0),FALSE),INDIRECT("'"&$E56&"'!"&"$A:$K"),9,FALSE) -> -0.01829412082
A57: ST | B57: Low | C57: =VLOOKUP(A$57,'Data Billing Quantities'!A:P,MATCH($B57&" kWh",'Data Billing Quantities'!$4:$4,0),FALSE) -> 88780 | D57: =VLOOKUP(A$57,'Data Billing Quantities'!A:P,MATCH($B57&" kW",'Data Billing Quantities'!$4:$4,0),FALSE) -> 500 | E57: BI_ST_Low | F57: BI Template_Demand | G57: =VLOOKUP(VLOOKUP($F57,'Data BI Summary'!$A:$F,MATCH(G$1,'Data BI Summary'!$2:$2,0),FALSE),INDIRECT("'"&$E57&"'!"&"$A:$K"),4,FALSE) -> 19371.84432 | H57: =VLOOKUP(VLOOKUP($F57,'Data BI Summary'!$A:$F,MATCH(H$1,'Data BI Summary'!$2:$2,0),FALSE),INDIRECT("'"&$E57&"'!"&"$A:$K"),8,FALSE) -> -445.1129573 | I57: =VLOOKUP(VLOOKUP($F57,'Data BI Summary'!$A:$F,MATCH(I$1,'Data BI Summary'!$2:$2,0),FALSE),INDIRECT("'"&$E57&"'!"&"$A:$K"),9,FALSE) -> -0.198992133 | J57: =VLOOKUP(VLOOKUP($F57,'Data BI Summary'!$A:$F,MATCH(J$1,'Data BI Summary'!$2:$2,0),FALSE),INDIRECT("'"&$E57&"'!"&"$A:$K"),8,FALSE) -> -441.4491418 | K57: =VLOOKUP(VLOOKUP($F57,'Data BI Summary'!$A:$F,MATCH(K$1,'Data BI Summary'!$2:$2,0),FALSE),INDIRECT("'"&$E57&"'!"&"$A:$K"),9,FALSE) -> -0.02278818343 | L57: WAHSP
B58: Average | C58: =VLOOKUP(A$57,'Data Billing Quantities'!A:P,MATCH($B58&" kWh",'Data Billing Quantities'!$4:$4,0),FALSE) -> 1373443 | D58: =VLOOKUP(A$57,'Data Billing Quantities'!A:P,MATCH($B58&" kW",'Data Billing Quantities'!$4:$4,0),FALSE) -> 2808 | E58: BI_ST_Avg | F58: BI Template_Demand | G58: =VLOOKUP(VLOOKUP($F58,'Data BI Summary'!$A:$F,MATCH(G$1,'Data BI Summary'!$2:$2,0),FALSE),INDIRECT("'"&$E58&"'!"&"$A:$K"),4,FALSE) -> 227085.3082 | H58: =VLOOKUP(VLOOKUP($F58,'Data BI Summary'!$A:$F,MATCH(H$1,'Data BI Summary'!$2:$2,0),FALSE),INDIRECT("'"&$E58&"'!"&"$A:$K"),8,FALSE) -> -2138.559857 | I58: =VLOOKUP(VLOOKUP($F58,'Data BI Summary'!$A:$F,MATCH(I$1,'Data BI Summary'!$2:$2,0),FALSE),INDIRECT("'"&$E58&"'!"&"$A:$K"),9,FALSE) -> -0.3521978875 | J58: =VLOOKUP(VLOOKUP($F58,'Data BI Summary'!$A:$F,MATCH(J$1,'Data BI Summary'!$2:$2,0),FALSE),INDIRECT("'"&$E58&"'!"&"$A:$K"),8,FALSE) -> -2071.028583 | K58: =VLOOKUP(VLOOKUP($F58,'Data BI Summary'!$A:$F,MATCH(K$1,'Data BI Summary'!$2:$2,0),FALSE),INDIRECT("'"&$E58&"'!"&"$A:$K"),9,FALSE) -> -0.009120046553
B59: High | C59: =VLOOKUP(A$57,'Data Billing Quantities'!A:P,MATCH($B59&" kWh",'Data Billing Quantities'!$4:$4,0),FALSE) -> 2641420 | D59: =VLOOKUP(A$57,'Data Billing Quantities'!A:P,MATCH($B59&" kW",'Data Billing Quantities'!$4:$4,0),FALSE) -> 13730 | E59: BI_ST_High | F59: BI Template_Demand | G59: =VLOOKUP(VLOOKUP($F59,'Data BI Summary'!$A:$F,MATCH(G$1,'Data BI Summary'!$2:$2,0),FALSE),INDIRECT("'"&$E59&"'!"&"$A:$K"),4,FALSE) -> 519130.0451 | H59: =VLOOKUP(VLOOKUP($F59,'Data BI Summary'!$A:$F,MATCH(H$1,'Data BI Summary'!$2:$2,0),FALSE),INDIRECT("'"&$E59&"'!"&"$A:$K"),8,FALSE) -> -6784.403957 | I59: =VLOOKUP(VLOOKUP($F59,'Data BI Summary'!$A:$F,MATCH(I$1,'Data BI Summary'!$2:$2,0),FALSE),INDIRECT("'"&$E59&"'!"&"$A:$K"),9,FALSE) -> -0.2801027256 | J59: =VLOOKUP(VLOOKUP($F59,'Data BI Summary'!$A:$F,MATCH(J$1,'Data BI Summary'!$2:$2,0),FALSE),INDIRECT("'"&$E59&"'!"&"$A:$K"),8,FALSE) -> -5976.803862 | K59: =VLOOKUP(VLOOKUP($F59,'Data BI Summary'!$A:$F,MATCH(K$1,'Data BI Summary'!$2:$2,0),FALSE),INDIRECT("'"&$E59&"'!"&"$A:$K"),9,FALSE) -> -0.01151311491

Sheet Bill Impact Summary_Acq (hidden)
A1: Rate Class | B1: Consumption Level | C1: Monthly Consumption (kWh) | D1: Monthly Peak (kW) | E1: BI Worksheet | F1: Template | G1: Current Total Bill | H1: Change in DX Bill ($) | I1: Change in DX Bill (%) | J1: Change in Total Bill ($) | K1: Change in Total Bill (%) | L1: Commodity Price Used
A2: WHSI to HONI
A3: AUR-WHSI | B3: Low | C3: =VLOOKUP(A$3,'Data Billing Quantities'!A:P,MATCH($B3&" kWh",'Data Billing Quantities'!$4:$4,0),FALSE) -> 310 | E3: BI_WHSI_AUR_Low | F3: BI Template_EnergyWHSI | G3: =VLOOKUP(VLOOKUP($F3,'Data BI Summary'!$A:$F,MATCH(G$1,'Data BI Summary'!$2:$2,0),FALSE),INDIRECT("'"&$E3&"'!"&"$A:$K"),4,FALSE) -> 68.25593761 | H3: =VLOOKUP(VLOOKUP($F3,'Data BI Summary'!$A:$F,MATCH(H$1,'Data BI Summary'!$2:$2,0),FALSE),INDIRECT("'"&$E3&"'!"&"$A:$K"),8,FALSE) -> -2.533 | I3: =VLOOKUP(VLOOKUP($F3,'Data BI Summary'!$A:$F,MATCH(I$1,'Data BI Summary'!$2:$2,0),FALSE),INDIRECT("'"&$E3&"'!"&"$A:$K"),9,FALSE) -> -0.07923548549 | J3: =VLOOKUP(VLOOKUP($F3,'Data BI Summary'!$A:$F,MATCH(J$1,'Data BI Summary'!$2:$2,0),FALSE),INDIRECT("'"&$E3&"'!"&"$A:$K"),8,FALSE) -> -1.596079521 | K3: =VLOOKUP(VLOOKUP($F3,'Data BI Summary'!$A:$F,MATCH(K$1,'Data BI Summary'!$2:$2,0),FALSE),INDIRECT("'"&$E3&"'!"&"$A:$K"),9,FALSE) -> -0.0233837462 | L3: TOU
B4: Typical | C4: =VLOOKUP(A$3,'Data Billing Quantities'!A:P,MATCH($B4&" kWh",'Data Billing Quantities'!$4:$4,0),FALSE) -> 750 | E4: BI_WHSI_AUR_Typical | F4: BI Template_EnergyWHSI | G4: =VLOOKUP(VLOOKUP($F4,'Data BI Summary'!$A:$F,MATCH(G$1,'Data BI Summary'!$2:$2,0),FALSE),INDIRECT("'"&$E4&"'!"&"$A:$K"),4,FALSE) -> 121.674489 | H4: =VLOOKUP(VLOOKUP($F4,'Data BI Summary'!$A:$F,MATCH(H$1,'Data BI Summary'!$2:$2,0),FALSE),INDIRECT("'"&$E4&"'!"&"$A:$K"),8,FALSE) -> -3.105 | I4: =VLOOKUP(VLOOKUP($F4,'Data BI Summary'!$A:$F,MATCH(I$1,'Data BI Summary'!$2:$2,0),FALSE),INDIRECT("'"&$E4&"'!"&"$A:$K"),9,FALSE) -> -0.09607054455 | J4: =VLOOKUP(VLOOKUP($F4,'Data BI Summary'!$A:$F,MATCH(J$1,'Data BI Summary'!$2:$2,0),FALSE),INDIRECT("'"&$E4&"'!"&"$A:$K"),8,FALSE) -> -1.016627229 | K4: =VLOOKUP(VLOOKUP($F4,'Data BI Summary'!$A:$F,MATCH(K$1,'Data BI Summary'!$2:$2,0),FALSE),INDIRECT("'"&$E4&"'!"&"$A:$K"),9,FALSE) -> -0.008355303046
B5: Average | C5: =VLOOKUP(A$3,'Data Billing Quantities'!A:P,MATCH($B5&" kWh",'Data Billing Quantities'!$4:$4,0),FALSE) -> 636 | E5: BI_WHSI_AUR_Avg | F5: BI Template_EnergyWHSI | G5: =VLOOKUP(VLOOKUP($F5,'Data BI Summary'!$A:$F,MATCH(G$1,'Data BI Summary'!$2:$2,0),FALSE),INDIRECT("'"&$E5&"'!"&"$A:$K"),4,FALSE) -> 107.834228 | H5: =VLOOKUP(VLOOKUP($F5,'Data BI Summary'!$A:$F,MATCH(H$1,'Data BI Summary'!$2:$2,0),FALSE),INDIRECT("'"&$E5&"'!"&"$A:$K"),8,FALSE) -> -2.9568 | I5: =VLOOKUP(VLOOKUP($F5,'Data BI Summary'!$A:$F,MATCH(I$1,'Data BI Summary'!$2:$2,0),FALSE),INDIRECT("'"&$E5&"'!"&"$A:$K"),9,FALSE) -> -0.09174403018 | J5: =VLOOKUP(VLOOKUP($F5,'Data BI Summary'!$A:$F,MATCH(J$1,'Data BI Summary'!$2:$2,0),FALSE),INDIRECT("'"&$E5&"'!"&"$A:$K"),8,FALSE) -> -1.16675805 | K5: =VLOOKUP(VLOOKUP($F5,'Data BI Summary'!$A:$F,MATCH(K$1,'Data BI Summary'!$2:$2,0),FALSE),INDIRECT("'"&$E5&"'!"&"$A:$K"),9,FALSE) -> -0.01081992306
B6: High | C6: =VLOOKUP(A$3,'Data Billing Quantities'!A:P,MATCH($B6&" kWh",'Data Billing Quantities'!$4:$4,0),FALSE) -> 1160 | E6: BI_WHSI_AUR_High | F6: BI Template_EnergyWHSI | G6: =VLOOKUP(VLOOKUP($F6,'Data BI Summary'!$A:$F,MATCH(G$1,'Data BI Summary'!$2:$2,0),FALSE),INDIRECT("'"&$E6&"'!"&"$A:$K"),4,FALSE) -> 171.4508665 | H6: =VLOOKUP(VLOOKUP($F6,'Data BI Summary'!$A:$F,MATCH(H$1,'Data BI Summary'!$2:$2,0),FALSE),INDIRECT("'"&$E6&"'!"&"$A:$K"),8,FALSE) -> -3.638 | I6: =VLOOKUP(VLOOKUP($F6,'Data BI Summary'!$A:$F,MATCH(I$1,'Data BI Summary'!$2:$2,0),FALSE),INDIRECT("'"&$E6&"'!"&"$A:$K"),9,FALSE) -> -0.1114310218 | J6: =VLOOKUP(VLOOKUP($F6,'Data BI Summary'!$A:$F,MATCH(J$1,'Data BI Summary'!$2:$2,0),FALSE),INDIRECT("'"&$E6&"'!"&"$A:$K"),8,FALSE) -> -0.4766830475 | K6: =VLOOKUP(VLOOKUP($F6,'Data BI Summary'!$A:$F,MATCH(K$1,'Data BI Summary'!$2:$2,0),FALSE),INDIRECT("'"&$E6&"'!"&"$A:$K"),9,FALSE) -> -0.002780289521
A7: AUGe-WHSI | B7: Low | C7: =VLOOKUP(A$7,'Data Billing Quantities'!A:P,MATCH($B7&" kWh",'Data Billing Quantities'!$4:$4,0),FALSE) -> 190 | E7: BI_WHSI_AUGe_Low | F7: BI Template_EnergyWHSI | G7: =VLOOKUP(VLOOKUP($F7,'Data BI Summary'!$A:$F,MATCH(G$1,'Data BI Summary'!$2:$2,0),FALSE),INDIRECT("'"&$E7&"'!"&"$A:$K"),4,FALSE) -> 54.80924716 | H7: =VLOOKUP(VLOOKUP($F7,'Data BI Summary'!$A:$F,MATCH(H$1,'Data BI Summary'!$2:$2,0),FALSE),INDIRECT("'"&$E7&"'!"&"$A:$K"),8,FALSE) -> -5.264 | I7: =VLOOKUP(VLOOKUP($F7,'Data BI Summary'!$A:$F,MATCH(I$1,'Data BI Summary'!$2:$2,0),FALSE),INDIRECT("'"&$E7&"'!"&"$A:$K"),9,FALSE) -> -0.1579737111 | J7: =VLOOKUP(VLOOKUP($F7,'Data BI Summary'!$A:$F,MATCH(J$1,'Data BI Summary'!$2:$2,0),FALSE),INDIRECT("'"&$E7&"'!"&"$A:$K"),8,FALSE) -> -4.955598444 | K7: =VLOOKUP(VLOOKUP($F7,'Data BI Summary'!$A:$F,MATCH(K$1,'Data BI Summary'!$2:$2,0),FALSE),INDIRECT("'"&$E7&"'!"&"$A:$K"),9,FALSE) -> -0.09041537151 | L7: TOU
B8: Typical | C8: =VLOOKUP(A$7,'Data Billing Quantities'!A:P,MATCH($B8&" kWh",'Data Billing Quantities'!$4:$4,0),FALSE) -> 2000 | E8: BI_WHSI_AUGe_Typical | F8: BI Template_EnergyWHSI | G8: =VLOOKUP(VLOOKUP($F8,'Data BI Summary'!$A:$F,MATCH(G$1,'Data BI Summary'!$2:$2,0),FALSE),INDIRECT("'"&$E8&"'!"&"$A:$K"),4,FALSE) -> 297.792289 | H8: =VLOOKUP(VLOOKUP($F8,'Data BI Summary'!$A:$F,MATCH(H$1,'Data BI Summary'!$2:$2,0),FALSE),INDIRECT("'"&$E8&"'!"&"$A:$K"),8,FALSE) -> -8.16 | I8: =VLOOKUP(VLOOKUP($F8,'Data BI Summary'!$A:$F,MATCH(I$1,'Data BI Summary'!$2:$2,0),FALSE),INDIRECT("'"&$E8&"'!"&"$A:$K"),9,FALSE) -> -0.1317829457 | J8: =VLOOKUP(VLOOKUP($F8,'Data BI Summary'!$A:$F,MATCH(J$1,'Data BI Summary'!$2:$2,0),FALSE),INDIRECT("'"&$E8&"'!"&"$A:$K"),8,FALSE) -> -7.701448884 | K8: =VLOOKUP(VLOOKUP($F8,'Data BI Summary'!$A:$F,MATCH(K$1,'Data BI Summary'!$2:$2,0),FALSE),INDIRECT("'"&$E8&"'!"&"$A:$K"),9,FALSE) -> -0.02586181432
B9: Average | C9: =VLOOKUP(A$7,'Data Billing Quantities'!A:P,MATCH($B9&" kWh",'Data Billing Quantities'!$4:$4,0),FALSE) -> 2471 | E9: BI_WHSI_AUGe_Avg | F9: BI Template_EnergyWHSI | G9: =VLOOKUP(VLOOKUP($F9,'Data BI Summary'!$A:$F,MATCH(G$1,'Data BI Summary'!$2:$2,0),FALSE),INDIRECT("'"&$E9&"'!"&"$A:$K"),4,FALSE) -> 361.0215778 | H9: =VLOOKUP(VLOOKUP($F9,'Data BI Summary'!$A:$F,MATCH(H$1,'Data BI Summary'!$2:$2,0),FALSE),INDIRECT("'"&$E9&"'!"&"$A:$K"),8,FALSE) -> -8.9136 | I9: =VLOOKUP(VLOOKUP($F9,'Data BI Summary'!$A:$F,MATCH(I$1,'Data BI Summary'!$2:$2,0),FALSE),INDIRECT("'"&$E9&"'!"&"$A:$K"),9,FALSE) -> -0.1285087757 | J9: =VLOOKUP(VLOOKUP($F9,'Data BI Summary'!$A:$F,MATCH(J$1,'Data BI Summary'!$2:$2,0),FALSE),INDIRECT("'"&$E9&"'!"&"$A:$K"),8,FALSE) -> -8.415976816 | K9: =VLOOKUP(VLOOKUP($F9,'Data BI Summary'!$A:$F,MATCH(K$1,'Data BI Summary'!$2:$2,0),FALSE),INDIRECT("'"&$E9&"'!"&"$A:$K"),9,FALSE) -> -0.02331156178
B10: High | C10: =VLOOKUP(A$7,'Data Billing Quantities'!A:P,MATCH($B10&" kWh",'Data Billing Quantities'!$4:$4,0),FALSE) -> 7240 | E10: BI_WHSI_AUGe_High | F10: BI Template_EnergyWHSI | G10: =VLOOKUP(VLOOKUP($F10,'Data BI Summary'!$A:$F,MATCH(G$1,'Data BI Summary'!$2:$2,0),FALSE),INDIRECT("'"&$E10&"'!"&"$A:$K"),4,FALSE) -> 1001.234907 | H10: =VLOOKUP(VLOOKUP($F10,'Data BI Summary'!$A:$F,MATCH(H$1,'Data BI Summary'!$2:$2,0),FALSE),INDIRECT("'"&$E10&"'!"&"$A:$K"),8,FALSE) -> -16.544 | I10: =VLOOKUP(VLOOKUP($F10,'Data BI Summary'!$A:$F,MATCH(I$1,'Data BI Summary'!$2:$2,0),FALSE),INDIRECT("'"&$E10&"'!"&"$A:$K"),9,FALSE) -> -0.1143236221 | J10: =VLOOKUP(VLOOKUP($F10,'Data BI Summary'!$A:$F,MATCH(J$1,'Data BI Summary'!$2:$2,0),FALSE),INDIRECT("'"&$E10&"'!"&"$A:$K"),8,FALSE) -> -15.65076176 | K10: =VLOOKUP(VLOOKUP($F10,'Data BI Summary'!$A:$F,MATCH(K$1,'Data BI Summary'!$2:$2,0),FALSE),INDIRECT("'"&$E10&"'!"&"$A:$K"),9,FALSE) -> -0.01563145836
A11: AUGd-WHSI | B11: Low | C11: =VLOOKUP(A$11,'Data Billing Quantities'!A:P,MATCH($B11&" kWh",'Data Billing Quantities'!$4:$4,0),FALSE) -> 9370 | D11: =VLOOKUP(A$11,'Data Billing Quantities'!A:P,MATCH(B11&" kW",'Data Billing Quantities'!$4:$4,0),FALSE) -> 50 | E11: BI_WHSI_AUGd_Low | F11: BI Template_DemandWHSI | G11: =VLOOKUP(VLOOKUP($F11,'Data BI Summary'!$A:$F,MATCH(G$1,'Data BI Summary'!$2:$2,0),FALSE),INDIRECT("'"&$E11&"'!"&"$A:$K"),4,FALSE) -> 2036.5773 | H11: =VLOOKUP(VLOOKUP($F11,'Data BI Summary'!$A:$F,MATCH(H$1,'Data BI Summary'!$2:$2,0),FALSE),INDIRECT("'"&$E11&"'!"&"$A:$K"),8,FALSE) -> -33.549 | I11: =VLOOKUP(VLOOKUP($F11,'Data BI Summary'!$A:$F,MATCH(I$1,'Data BI Summary'!$2:$2,0),FALSE),INDIRECT("'"&$E11&"'!"&"$A:$K"),9,FALSE) -> -0.1138837028 | J11: =VLOOKUP(VLOOKUP($F11,'Data BI Summary'!$A:$F,MATCH(J$1,'Data BI Summary'!$2:$2,0),FALSE),INDIRECT("'"&$E11&"'!"&"$A:$K"),8,FALSE) -> -116.1751726 | K11: =VLOOKUP(VLOOKUP($F11,'Data BI Summary'!$A:$F,MATCH(K$1,'Data BI Summary'!$2:$2,0),FALSE),INDIRECT("'"&$E11&"'!"&"$A:$K"),9,FALSE) -> -0.05704432268 | L11: WAHSP
B12: Average | C12: =VLOOKUP(A$11,'Data Billing Quantities'!A:P,MATCH($B12&" kWh",'Data Billing Quantities'!$4:$4,0),FALSE) -> 47636 | D12: =VLOOKUP(A$11,'Data Billing Quantities'!A:P,MATCH(B12&" kW",'Data Billing Quantities'!$4:$4,0),FALSE) -> 134 | E12: BI_WHSI_AUGd_Avg | F12: BI Template_DemandWHSI | G12: =VLOOKUP(VLOOKUP($F12,'Data BI Summary'!$A:$F,MATCH(G$1,'Data BI Summary'!$2:$2,0),FALSE),INDIRECT("'"&$E12&"'!"&"$A:$K"),4,FALSE) -> 8445.417522 | H12: =VLOOKUP(VLOOKUP($F12,'Data BI Summary'!$A:$F,MATCH(H$1,'Data BI Summary'!$2:$2,0),FALSE),INDIRECT("'"&$E12&"'!"&"$A:$K"),8,FALSE) -> -115.6576 | I12: =VLOOKUP(VLOOKUP($F12,'Data BI Summary'!$A:$F,MATCH(I$1,'Data BI Summary'!$2:$2,0),FALSE),INDIRECT("'"&$E12&"'!"&"$A:$K"),9,FALSE) -> -0.2118002627 | J12: =VLOOKUP(VLOOKUP($F12,'Data BI Summary'!$A:$F,MATCH(J$1,'Data BI Summary'!$2:$2,0),FALSE),INDIRECT("'"&$E12&"'!"&"$A:$K"),8,FALSE) -> -372.0367822 | K12: =VLOOKUP(VLOOKUP($F12,'Data BI Summary'!$A:$F,MATCH(K$1,'Data BI Summary'!$2:$2,0),FALSE),INDIRECT("'"&$E12&"'!"&"$A:$K"),9,FALSE) -> -0.04405191114
B13: High | C13: =VLOOKUP(A$11,'Data Billing Quantities'!A:P,MATCH($B13&" kWh",'Data Billing Quantities'!$4:$4,0),FALSE) -> 137890 | D13: =VLOOKUP(A$11,'Data Billing Quantities'!A:P,MATCH(B13&" kW",'Data Billing Quantities'!$4:$4,0),FALSE) -> 340 | E13: BI_WHSI_AUGd_High | F13: BI Template_DemandWHSI | G13: =VLOOKUP(VLOOKUP($F13,'Data BI Summary'!$A:$F,MATCH(G$1,'Data BI Summary'!$2:$2,0),FALSE),INDIRECT("'"&$E13&"'!"&"$A:$K"),4,FALSE) -> 23642.45093 | H13: =VLOOKUP(VLOOKUP($F13,'Data BI Summary'!$A:$F,MATCH(H$1,'Data BI Summary'!$2:$2,0),FALSE),INDIRECT("'"&$E13&"'!"&"$A:$K"),8,FALSE) -> -314.507 | I13: =VLOOKUP(VLOOKUP($F13,'Data BI Summary'!$A:$F,MATCH(I$1,'Data BI Summary'!$2:$2,0),FALSE),INDIRECT("'"&$E13&"'!"&"$A:$K"),9,FALSE) -> -0.2704757171 | J13: =VLOOKUP(VLOOKUP($F13,'Data BI Summary'!$A:$F,MATCH(J$1,'Data BI Summary'!$2:$2,0),FALSE),INDIRECT("'"&$E13&"'!"&"$A:$K"),8,FALSE) -> -991.6343003 | K13: =VLOOKUP(VLOOKUP($F13,'Data BI Summary'!$A:$F,MATCH(K$1,'Data BI Summary'!$2:$2,0),FALSE),INDIRECT("'"&$E13&"'!"&"$A:$K"),9,FALSE) -> -0.04194295689
A14: St Lgt-WHSI | B14: Average | C14: =VLOOKUP(A14,'Data Billing Quantities'!A:P,MATCH($B14&" kWh",'Data Billing Quantities'!$4:$4,0),FALSE) -> 37079 | D14: =VLOOKUP(A$14,'Data Billing Quantities'!A:P,MATCH(B14&" kW",'Data Billing Quantities'!$4:$4,0),FALSE) -> 104 | E14: BI_WHSI_StLgt_Avg | F14: BI Template_unmWHSI | G14: =VLOOKUP(VLOOKUP($F14,'Data BI Summary'!$A:$F,MATCH(G$1,'Data BI Summary'!$2:$2,0),FALSE),INDIRECT("'"&$E14&"'!"&"$A:$K"),4,FALSE) -> 10088.06842 | H14: =VLOOKUP(VLOOKUP($F14,'Data BI Summary'!$A:$F,MATCH(H$1,'Data BI Summary'!$2:$2,0),FALSE),INDIRECT("'"&$E14&"'!"&"$A:$K"),8,FALSE) -> 65.8871 | I14: =VLOOKUP(VLOOKUP($F14,'Data BI Summary'!$A:$F,MATCH(I$1,'Data BI Summary'!$2:$2,0),FALSE),INDIRECT("'"&$E14&"'!"&"$A:$K"),9,FALSE) -> 0.01701996774 | J14: =VLOOKUP(VLOOKUP($F14,'Data BI Summary'!$A:$F,MATCH(J$1,'Data BI Summary'!$2:$2,0),FALSE),INDIRECT("'"&$E14&"'!"&"$A:$K"),8,FALSE) -> 235.2153975 | K14: =VLOOKUP(VLOOKUP($F14,'Data BI Summary'!$A:$F,MATCH(K$1,'Data BI Summary'!$2:$2,0),FALSE),INDIRECT("'"&$E14&"'!"&"$A:$K"),9,FALSE) -> 0.02331619769 | L14: Two-tier RPP
A15: USL-WHSI | B15: Average | C15: =VLOOKUP(A15,'Data Billing Quantities'!A:P,MATCH($B15&" kWh",'Data Billing Quantities'!$4:$4,0),FALSE) -> 1349 | E15: BI_WHSI_USL_Avg | F15: BI Template_unmWHSI | G15: =VLOOKUP(VLOOKUP($F15,'Data BI Summary'!$A:$F,MATCH(G$1,'Data BI Summary'!$2:$2,0),FALSE),INDIRECT("'"&$E15&"'!"&"$A:$K"),4,FALSE) -> 191.8773349 | H15: =VLOOKUP(VLOOKUP($F15,'Data BI Summary'!$A:$F,MATCH(H$1,'Data BI Summary'!$2:$2,0),FALSE),INDIRECT("'"&$E15&"'!"&"$A:$K"),8,FALSE) -> 34.1673 | I15: =VLOOKUP(VLOOKUP($F15,'Data BI Summary'!$A:$F,MATCH(I$1,'Data BI Summary'!$2:$2,0),FALSE),INDIRECT("'"&$E15&"'!"&"$A:$K"),9,FALSE) -> 1.179134198 | J15: =VLOOKUP(VLOOKUP($F15,'Data BI Summary'!$A:$F,MATCH(J$1,'Data BI Summary'!$2:$2,0),FALSE),INDIRECT("'"&$E15&"'!"&"$A:$K"),8,FALSE) -> 35.98387662 | K15: =VLOOKUP(VLOOKUP($F15,'Data BI Summary'!$A:$F,MATCH(K$1,'Data BI Summary'!$2:$2,0),FALSE),INDIRECT("'"&$E15&"'!"&"$A:$K"),9,FALSE) -> 0.1875358371 | L15: Two-tier RPP
A16: ST-WHSI | B16: Average | C16: =VLOOKUP(A16,'Data Billing Quantities'!A:P,MATCH($B16&" kWh",'Data Billing Quantities'!$4:$4,0),FALSE) -> 895853 | D16: =VLOOKUP(A$16,'Data Billing Quantities'!A:P,MATCH(B16&" kW",'Data Billing Quantities'!$4:$4,0),FALSE) -> 3301 | E16: BI_WHSI_ST_Avg | F16: BI Template_DemandWHSI | G16: =VLOOKUP(VLOOKUP($F16,'Data BI Summary'!$A:$F,MATCH(G$1,'Data BI Summary'!$2:$2,0),FALSE),INDIRECT("'"&$E16&"'!"&"$A:$K"),4,FALSE) -> 164291.5761 | H16: =VLOOKUP(VLOOKUP($F16,'Data BI Summary'!$A:$F,MATCH(H$1,'Data BI Summary'!$2:$2,0),FALSE),INDIRECT("'"&$E16&"'!"&"$A:$K"),8,FALSE) -> -5697.7055 | I16: =VLOOKUP(VLOOKUP($F16,'Data BI Summary'!$A:$F,MATCH(I$1,'Data BI Summary'!$2:$2,0),FALSE),INDIRECT("'"&$E16&"'!"&"$A:$K"),9,FALSE) -> -0.4961737868 | J16: =VLOOKUP(VLOOKUP($F16,'Data BI Summary'!$A:$F,MATCH(J$1,'Data BI Summary'!$2:$2,0),FALSE),INDIRECT("'"&$E16&"'!"&"$A:$K"),8,FALSE) -> -1667.216275 | K16: =VLOOKUP(VLOOKUP($F16,'Data BI Summary'!$A:$F,MATCH(K$1,'Data BI Summary'!$2:$2,0),FALSE),INDIRECT("'"&$E16&"'!"&"$A:$K"),9,FALSE) -> -0.0101479109 | L16: WAHSP
A17: NPDI to HONI
A18: AR-NPDI | B18: Low | C18: =VLOOKUP(A$18,'Data Billing Quantities'!A:P,MATCH($B18&" kWh",'Data Billing Quantities'!$4:$4,0),FALSE) -> 290 | E18: BI_NPDI_AR_Low | F18: BI Template_EnergyNPDI | G18: =VLOOKUP(VLOOKUP($F18,'Data BI Summary'!$A:$F,MATCH(G$1,'Data BI Summary'!$2:$2,0),FALSE),INDIRECT("'"&$E18&"'!"&"$A:$K"),4,FALSE) -> 71.93443364 | H18: =VLOOKUP(VLOOKUP($F18,'Data BI Summary'!$A:$F,MATCH(H$1,'Data BI Summary'!$2:$2,0),FALSE),INDIRECT("'"&$E18&"'!"&"$A:$K"),8,FALSE) -> -3.214 | I18: =VLOOKUP(VLOOKUP($F18,'Data BI Summary'!$A:$F,MATCH(I$1,'Data BI Summary'!$2:$2,0),FALSE),INDIRECT("'"&$E18&"'!"&"$A:$K"),9,FALSE) -> -0.08239124305 | J18: =VLOOKUP(VLOOKUP($F18,'Data BI Summary'!$A:$F,MATCH(J$1,'Data BI Summary'!$2:$2,0),FALSE),INDIRECT("'"&$E18&"'!"&"$A:$K"),8,FALSE) -> -1.237612535 | K18: =VLOOKUP(VLOOKUP($F18,'Data BI Summary'!$A:$F,MATCH(K$1,'Data BI Summary'!$2:$2,0),FALSE),INDIRECT("'"&$E18&"'!"&"$A:$K"),9,FALSE) -> -0.01720473036 | L18: TOU
B19: Typical | C19: =VLOOKUP(A$18,'Data Billing Quantities'!A:P,MATCH($B19&" kWh",'Data Billing Quantities'!$4:$4,0),FALSE) -> 750 | E19: BI_NPDI_AR_Typical | F19: BI Template_EnergyNPDI | G19: =VLOOKUP(VLOOKUP($F19,'Data BI Summary'!$A:$F,MATCH(G$1,'Data BI Summary'!$2:$2,0),FALSE),INDIRECT("'"&$E19&"'!"&"$A:$K"),4,FALSE) -> 127.0638849 | H19: =VLOOKUP(VLOOKUP($F19,'Data BI Summary'!$A:$F,MATCH(H$1,'Data BI Summary'!$2:$2,0),FALSE),INDIRECT("'"&$E19&"'!"&"$A:$K"),8,FALSE) -> -3.95 | I19: =VLOOKUP(VLOOKUP($F19,'Data BI Summary'!$A:$F,MATCH(I$1,'Data BI Summary'!$2:$2,0),FALSE),INDIRECT("'"&$E19&"'!"&"$A:$K"),9,FALSE) -> -0.09996203973 | J19: =VLOOKUP(VLOOKUP($F19,'Data BI Summary'!$A:$F,MATCH(J$1,'Data BI Summary'!$2:$2,0),FALSE),INDIRECT("'"&$E19&"'!"&"$A:$K"),8,FALSE) -> 0.903984824 | K19: =VLOOKUP(VLOOKUP($F19,'Data BI Summary'!$A:$F,MATCH(K$1,'Data BI Summary'!$2:$2,0),FALSE),INDIRECT("'"&$E19&"'!"&"$A:$K"),9,FALSE) -> 0.00711441197
B20: Average | C20: =VLOOKUP(A$18,'Data Billing Quantities'!A:P,MATCH($B20&" kWh",'Data Billing Quantities'!$4:$4,0),FALSE) -> 692 | E20: BI_NPDI_AR_Avg | F20: BI Template_EnergyNPDI | G20: =VLOOKUP(VLOOKUP($F20,'Data BI Summary'!$A:$F,MATCH(G$1,'Data BI Summary'!$2:$2,0),FALSE),INDIRECT("'"&$E20&"'!"&"$A:$K"),4,FALSE) -> 120.1127802 | H20: =VLOOKUP(VLOOKUP($F20,'Data BI Summary'!$A:$F,MATCH(H$1,'Data BI Summary'!$2:$2,0),FALSE),INDIRECT("'"&$E20&"'!"&"$A:$K"),8,FALSE) -> -3.8572 | I20: =VLOOKUP(VLOOKUP($F20,'Data BI Summary'!$A:$F,MATCH(I$1,'Data BI Summary'!$2:$2,0),FALSE),INDIRECT("'"&$E20&"'!"&"$A:$K"),9,FALSE) -> -0.09777142394 | J20: =VLOOKUP(VLOOKUP($F20,'Data BI Summary'!$A:$F,MATCH(J$1,'Data BI Summary'!$2:$2,0),FALSE),INDIRECT("'"&$E20&"'!"&"$A:$K"),8,FALSE) -> 0.6339573309 | K20: =VLOOKUP(VLOOKUP($F20,'Data BI Summary'!$A:$F,MATCH(K$1,'Data BI Summary'!$2:$2,0),FALSE),INDIRECT("'"&$E20&"'!"&"$A:$K"),9,FALSE) -> 0.005278017292
B21: High | C21: =VLOOKUP(A$18,'Data Billing Quantities'!A:P,MATCH($B21&" kWh",'Data Billing Quantities'!$4:$4,0),FALSE) -> 1230 | E21: BI_NPDI_AR_High | F21: BI Template_EnergyNPDI | G21: =VLOOKUP(VLOOKUP($F21,'Data BI Summary'!$A:$F,MATCH(G$1,'Data BI Summary'!$2:$2,0),FALSE),INDIRECT("'"&$E21&"'!"&"$A:$K"),4,FALSE) -> 184.5902689 | H21: =VLOOKUP(VLOOKUP($F21,'Data BI Summary'!$A:$F,MATCH(H$1,'Data BI Summary'!$2:$2,0),FALSE),INDIRECT("'"&$E21&"'!"&"$A:$K"),8,FALSE) -> -4.718 | I21: =VLOOKUP(VLOOKUP($F21,'Data BI Summary'!$A:$F,MATCH(I$1,'Data BI Summary'!$2:$2,0),FALSE),INDIRECT("'"&$E21&"'!"&"$A:$K"),9,FALSE) -> -0.1178233399 | J21: =VLOOKUP(VLOOKUP($F21,'Data BI Summary'!$A:$F,MATCH(J$1,'Data BI Summary'!$2:$2,0),FALSE),INDIRECT("'"&$E21&"'!"&"$A:$K"),8,FALSE) -> 3.138695111 | K21: =VLOOKUP(VLOOKUP($F21,'Data BI Summary'!$A:$F,MATCH(K$1,'Data BI Summary'!$2:$2,0),FALSE),INDIRECT("'"&$E21&"'!"&"$A:$K"),9,FALSE) -> 0.01700357841
A22: AGSe-NPDI | B22: Low | C22: =VLOOKUP(A$22,'Data Billing Quantities'!A:P,MATCH($B22&" kWh",'Data Billing Quantities'!$4:$4,0),FALSE) -> 110 | E22: BI_NPDI_AGSe_Low | F22: BI Template_EnergyNPDI | G22: =VLOOKUP(VLOOKUP($F22,'Data BI Summary'!$A:$F,MATCH(G$1,'Data BI Summary'!$2:$2,0),FALSE),INDIRECT("'"&$E22&"'!"&"$A:$K"),4,FALSE) -> 64.9405341 | H22: =VLOOKUP(VLOOKUP($F22,'Data BI Summary'!$A:$F,MATCH(H$1,'Data BI Summary'!$2:$2,0),FALSE),INDIRECT("'"&$E22&"'!"&"$A:$K"),8,FALSE) -> -14.967 | I22: =VLOOKUP(VLOOKUP($F22,'Data BI Summary'!$A:$F,MATCH(I$1,'Data BI Summary'!$2:$2,0),FALSE),INDIRECT("'"&$E22&"'!"&"$A:$K"),9,FALSE) -> -0.2749113752 | J22: =VLOOKUP(VLOOKUP($F22,'Data BI Summary'!$A:$F,MATCH(J$1,'Data BI Summary'!$2:$2,0),FALSE),INDIRECT("'"&$E22&"'!"&"$A:$K"),8,FALSE) -> -13.64945011 | K22: =VLOOKUP(VLOOKUP($F22,'Data BI Summary'!$A:$F,MATCH(K$1,'Data BI Summary'!$2:$2,0),FALSE),INDIRECT("'"&$E22&"'!"&"$A:$K"),9,FALSE) -> -0.210183829 | L22: TOU
B23: Typical | C23: =VLOOKUP(A$22,'Data Billing Quantities'!A:P,MATCH($B23&" kWh",'Data Billing Quantities'!$4:$4,0),FALSE) -> 2000 | E23: BI_NPDI_AGSe_Typical | F23: BI Template_EnergyNPDI | G23: =VLOOKUP(VLOOKUP($F23,'Data BI Summary'!$A:$F,MATCH(G$1,'Data BI Summary'!$2:$2,0),FALSE),INDIRECT("'"&$E23&"'!"&"$A:$K"),4,FALSE) -> 318.0076527 | H23: =VLOOKUP(VLOOKUP($F23,'Data BI Summary'!$A:$F,MATCH(H$1,'Data BI Summary'!$2:$2,0),FALSE),INDIRECT("'"&$E23&"'!"&"$A:$K"),8,FALSE) -> -16.29 | I23: =VLOOKUP(VLOOKUP($F23,'Data BI Summary'!$A:$F,MATCH(I$1,'Data BI Summary'!$2:$2,0),FALSE),INDIRECT("'"&$E23&"'!"&"$A:$K"),9,FALSE) -> -0.1869405554 | J23: =VLOOKUP(VLOOKUP($F23,'Data BI Summary'!$A:$F,MATCH(J$1,'Data BI Summary'!$2:$2,0),FALSE),INDIRECT("'"&$E23&"'!"&"$A:$K"),8,FALSE) -> -7.428946576 | K23: =VLOOKUP(VLOOKUP($F23,'Data BI Summary'!$A:$F,MATCH(K$1,'Data BI Summary'!$2:$2,0),FALSE),INDIRECT("'"&$E23&"'!"&"$A:$K"),9,FALSE) -> -0.02336090504
B24: Average | C24: =VLOOKUP(A$22,'Data Billing Quantities'!A:P,MATCH($B24&" kWh",'Data Billing Quantities'!$4:$4,0),FALSE) -> 2377 | E24: BI_NPDI_AGSe_Avg | F24: BI Template_EnergyNPDI | G24: =VLOOKUP(VLOOKUP($F24,'Data BI Summary'!$A:$F,MATCH(G$1,'Data BI Summary'!$2:$2,0),FALSE),INDIRECT("'"&$E24&"'!"&"$A:$K"),4,FALSE) -> 368.4871785 | H24: =VLOOKUP(VLOOKUP($F24,'Data BI Summary'!$A:$F,MATCH(H$1,'Data BI Summary'!$2:$2,0),FALSE),INDIRECT("'"&$E24&"'!"&"$A:$K"),8,FALSE) -> -16.5539 | I24: =VLOOKUP(VLOOKUP($F24,'Data BI Summary'!$A:$F,MATCH(I$1,'Data BI Summary'!$2:$2,0),FALSE),INDIRECT("'"&$E24&"'!"&"$A:$K"),9,FALSE) -> -0.1767406454 | J24: =VLOOKUP(VLOOKUP($F24,'Data BI Summary'!$A:$F,MATCH(J$1,'Data BI Summary'!$2:$2,0),FALSE),INDIRECT("'"&$E24&"'!"&"$A:$K"),8,FALSE) -> -6.188137141 | K24: =VLOOKUP(VLOOKUP($F24,'Data BI Summary'!$A:$F,MATCH(K$1,'Data BI Summary'!$2:$2,0),FALSE),INDIRECT("'"&$E24&"'!"&"$A:$K"),9,FALSE) -> -0.01679335809
B25: High | C25: =VLOOKUP(A$22,'Data Billing Quantities'!A:P,MATCH($B25&" kWh",'Data Billing Quantities'!$4:$4,0),FALSE) -> 6410 | E25: BI_NPDI_AGSe_High | F25: BI Template_EnergyNPDI | G25: =VLOOKUP(VLOOKUP($F25,'Data BI Summary'!$A:$F,MATCH(G$1,'Data BI Summary'!$2:$2,0),FALSE),INDIRECT("'"&$E25&"'!"&"$A:$K"),4,FALSE) -> 908.4975962 | H25: =VLOOKUP(VLOOKUP($F25,'Data BI Summary'!$A:$F,MATCH(H$1,'Data BI Summary'!$2:$2,0),FALSE),INDIRECT("'"&$E25&"'!"&"$A:$K"),8,FALSE) -> -19.377 | I25: =VLOOKUP(VLOOKUP($F25,'Data BI Summary'!$A:$F,MATCH(I$1,'Data BI Summary'!$2:$2,0),FALSE),INDIRECT("'"&$E25&"'!"&"$A:$K"),9,FALSE) -> -0.1185623466 | J25: =VLOOKUP(VLOOKUP($F25,'Data BI Summary'!$A:$F,MATCH(J$1,'Data BI Summary'!$2:$2,0),FALSE),INDIRECT("'"&$E25&"'!"&"$A:$K"),8,FALSE) -> 7.085561674 | K25: =VLOOKUP(VLOOKUP($F25,'Data BI Summary'!$A:$F,MATCH(K$1,'Data BI Summary'!$2:$2,0),FALSE),INDIRECT("'"&$E25&"'!"&"$A:$K"),9,FALSE) -> 0.007799207949
A26: AGSd-NPDI | B26: Low | C26: =VLOOKUP(A$26,'Data Billing Quantities'!A:P,MATCH($B26&" kWh",'Data Billing Quantities'!$4:$4,0),FALSE) -> 13020 | D26: =VLOOKUP(A$26,'Data Billing Quantities'!A:P,MATCH(B26&" kW",'Data Billing Quantities'!$4:$4,0),FALSE) -> 55 | E26: BI_NPDI_AGSd_Low | F26: BI Template_DemandNPDI | G26: =VLOOKUP(VLOOKUP($F26,'Data BI Summary'!$A:$F,MATCH(G$1,'Data BI Summary'!$2:$2,0),FALSE),INDIRECT("'"&$E26&"'!"&"$A:$K"),4,FALSE) -> 2737.769459 | H26: =VLOOKUP(VLOOKUP($F26,'Data BI Summary'!$A:$F,MATCH(H$1,'Data BI Summary'!$2:$2,0),FALSE),INDIRECT("'"&$E26&"'!"&"$A:$K"),8,FALSE) -> -124.7235 | I26: =VLOOKUP(VLOOKUP($F26,'Data BI Summary'!$A:$F,MATCH(I$1,'Data BI Summary'!$2:$2,0),FALSE),INDIRECT("'"&$E26&"'!"&"$A:$K"),9,FALSE) -> -0.2469315087 | J26: =VLOOKUP(VLOOKUP($F26,'Data BI Summary'!$A:$F,MATCH(J$1,'Data BI Summary'!$2:$2,0),FALSE),INDIRECT("'"&$E26&"'!"&"$A:$K"),8,FALSE) -> -129.4572716 | K26: =VLOOKUP(VLOOKUP($F26,'Data BI Summary'!$A:$F,MATCH(K$1,'Data BI Summary'!$2:$2,0),FALSE),INDIRECT("'"&$E26&"'!"&"$A:$K"),9,FALSE) -> -0.04728567309 | L26: WAHSP
B27: Average | C27: =VLOOKUP(A$26,'Data Billing Quantities'!A:P,MATCH($B27&" kWh",'Data Billing Quantities'!$4:$4,0),FALSE) -> 70294 | D27: =VLOOKUP(A$26,'Data Billing Quantities'!A:P,MATCH(B27&" kW",'Data Billing Quantities'!$4:$4,0),FALSE) -> 181 | E27: BI_NPDI_AGSd_Avg | F27: BI Template_DemandNPDI | G27: =VLOOKUP(VLOOKUP($F27,'Data BI Summary'!$A:$F,MATCH(G$1,'Data BI Summary'!$2:$2,0),FALSE),INDIRECT("'"&$E27&"'!"&"$A:$K"),4,FALSE) -> 12329.32746 | H27: =VLOOKUP(VLOOKUP($F27,'Data BI Summary'!$A:$F,MATCH(H$1,'Data BI Summary'!$2:$2,0),FALSE),INDIRECT("'"&$E27&"'!"&"$A:$K"),8,FALSE) -> -230.4487 | I27: =VLOOKUP(VLOOKUP($F27,'Data BI Summary'!$A:$F,MATCH(I$1,'Data BI Summary'!$2:$2,0),FALSE),INDIRECT("'"&$E27&"'!"&"$A:$K"),9,FALSE) -> -0.2152125751 | J27: =VLOOKUP(VLOOKUP($F27,'Data BI Summary'!$A:$F,MATCH(J$1,'Data BI Summary'!$2:$2,0),FALSE),INDIRECT("'"&$E27&"'!"&"$A:$K"),8,FALSE) -> -197.4694491 | K27: =VLOOKUP(VLOOKUP($F27,'Data BI Summary'!$A:$F,MATCH(K$1,'Data BI Summary'!$2:$2,0),FALSE),INDIRECT("'"&$E27&"'!"&"$A:$K"),9,FALSE) -> -0.0160162385
B28: High | C28: =VLOOKUP(A$26,'Data Billing Quantities'!A:P,MATCH($B28&" kWh",'Data Billing Quantities'!$4:$4,0),FALSE) -> 129420 | D28: =VLOOKUP(A$26,'Data Billing Quantities'!A:P,MATCH(B28&" kW",'Data Billing Quantities'!$4:$4,0),FALSE) -> 300 | E28: BI_NPDI_AGSd_High | F28: BI Template_DemandNPDI | G28: =VLOOKUP(VLOOKUP($F28,'Data BI Summary'!$A:$F,MATCH(G$1,'Data BI Summary'!$2:$2,0),FALSE),INDIRECT("'"&$E28&"'!"&"$A:$K"),4,FALSE) -> 22119.55035 | H28: =VLOOKUP(VLOOKUP($F28,'Data BI Summary'!$A:$F,MATCH(H$1,'Data BI Summary'!$2:$2,0),FALSE),INDIRECT("'"&$E28&"'!"&"$A:$K"),8,FALSE) -> -333.824 | I28: =VLOOKUP(VLOOKUP($F28,'Data BI Summary'!$A:$F,MATCH(I$1,'Data BI Summary'!$2:$2,0),FALSE),INDIRECT("'"&$E28&"'!"&"$A:$K"),9,FALSE) -> -0.2079809603 | J28: =VLOOKUP(VLOOKUP($F28,'Data BI Summary'!$A:$F,MATCH(J$1,'Data BI Summary'!$2:$2,0),FALSE),INDIRECT("'"&$E28&"'!"&"$A:$K"),8,FALSE) -> -261.0709752 | K28: =VLOOKUP(VLOOKUP($F28,'Data BI Summary'!$A:$F,MATCH(K$1,'Data BI Summary'!$2:$2,0),FALSE),INDIRECT("'"&$E28&"'!"&"$A:$K"),9,FALSE) -> -0.01180272524
A29: St Lgt-NPDI | B29: Average | C29: =VLOOKUP(A$29,'Data Billing Quantities'!A:P,MATCH($B29&" kWh",'Data Billing Quantities'!$4:$4,0),FALSE) -> 11389 | D29: =VLOOKUP(A$29,'Data Billing Quantities'!A:P,MATCH(B29&" kW",'Data Billing Quantities'!$4:$4,0),FALSE) -> 39 | E29: BI_NPDI_StLgt_Avg | F29: BI Template_unmNPDI | G29: =VLOOKUP(VLOOKUP($F29,'Data BI Summary'!$A:$F,MATCH(G$1,'Data BI Summary'!$2:$2,0),FALSE),INDIRECT("'"&$E29&"'!"&"$A:$K"),4,FALSE) -> 2402.594773 | H29: =VLOOKUP(VLOOKUP($F29,'Data BI Summary'!$A:$F,MATCH(H$1,'Data BI Summary'!$2:$2,0),FALSE),INDIRECT("'"&$E29&"'!"&"$A:$K"),8,FALSE) -> 202.5282 | I29: =VLOOKUP(VLOOKUP($F29,'Data BI Summary'!$A:$F,MATCH(I$1,'Data BI Summary'!$2:$2,0),FALSE),INDIRECT("'"&$E29&"'!"&"$A:$K"),9,FALSE) -> 0.2016692704 | J29: =VLOOKUP(VLOOKUP($F29,'Data BI Summary'!$A:$F,MATCH(J$1,'Data BI Summary'!$2:$2,0),FALSE),INDIRECT("'"&$E29&"'!"&"$A:$K"),8,FALSE) -> 227.4079292 | K29: =VLOOKUP(VLOOKUP($F29,'Data BI Summary'!$A:$F,MATCH(K$1,'Data BI Summary'!$2:$2,0),FALSE),INDIRECT("'"&$E29&"'!"&"$A:$K"),9,FALSE) -> 0.09465097139 | L29: Two-tier RPP
A30: Sen Lgt-NPDI | B30: Average | C30: =VLOOKUP(A$30,'Data Billing Quantities'!A:P,MATCH($B30&" kWh",'Data Billing Quantities'!$4:$4,0),FALSE) -> 108 | D30: =VLOOKUP(A$30,'Data Billing Quantities'!A:P,MATCH(B30&" kW",'Data Billing Quantities'!$4:$4,0),FALSE) -> 0.3368027211 | E30: BI_NPDI_SenLgt_Avg | F30: BI Template_unmNPDI | G30: =VLOOKUP(VLOOKUP($F30,'Data BI Summary'!$A:$F,MATCH(G$1,'Data BI Summary'!$2:$2,0),FALSE),INDIRECT("'"&$E30&"'!"&"$A:$K"),4,FALSE) -> 25.28518909 | H30: =VLOOKUP(VLOOKUP($F30,'Data BI Summary'!$A:$F,MATCH(H$1,'Data BI Summary'!$2:$2,0),FALSE),INDIRECT("'"&$E30&"'!"&"$A:$K"),8,FALSE) -> 5.587738626 | I30: =VLOOKUP(VLOOKUP($F30,'Data BI Summary'!$A:$F,MATCH(I$1,'Data BI Summary'!$2:$2,0),FALSE),INDIRECT("'"&$E30&"'!"&"$A:$K"),9,FALSE) -> 0.403369322 | J30: =VLOOKUP(VLOOKUP($F30,'Data BI Summary'!$A:$F,MATCH(J$1,'Data BI Summary'!$2:$2,0),FALSE),INDIRECT("'"&$E30&"'!"&"$A:$K"),8,FALSE) -> 5.639694885 | K30: =VLOOKUP(VLOOKUP($F30,'Data BI Summary'!$A:$F,MATCH(K$1,'Data BI Summary'!$2:$2,0),FALSE),INDIRECT("'"&$E30&"'!"&"$A:$K"),9,FALSE) -> 0.2230434135 | L30: Two-tier RPP
A31: USL-NPDI | B31: Average | C31: =VLOOKUP(A$31,'Data Billing Quantities'!A:P,MATCH($B31&" kWh",'Data Billing Quantities'!$4:$4,0),FALSE) -> 904 | E31: BI_NPDI_USL_Avg | F31: BI Template_unmNPDI | G31: =VLOOKUP(VLOOKUP($F31,'Data BI Summary'!$A:$F,MATCH(G$1,'Data BI Summary'!$2:$2,0),FALSE),INDIRECT("'"&$E31&"'!"&"$A:$K"),4,FALSE) -> 128.9766871 | H31: =VLOOKUP(VLOOKUP($F31,'Data BI Summary'!$A:$F,MATCH(H$1,'Data BI Summary'!$2:$2,0),FALSE),INDIRECT("'"&$E31&"'!"&"$A:$K"),8,FALSE) -> 27.882 | I31: =VLOOKUP(VLOOKUP($F31,'Data BI Summary'!$A:$F,MATCH(I$1,'Data BI Summary'!$2:$2,0),FALSE),INDIRECT("'"&$E31&"'!"&"$A:$K"),9,FALSE) -> 1.092948869 | J31: =VLOOKUP(VLOOKUP($F31,'Data BI Summary'!$A:$F,MATCH(J$1,'Data BI Summary'!$2:$2,0),FALSE),INDIRECT("'"&$E31&"'!"&"$A:$K"),8,FALSE) -> 30.26369914 | K31: =VLOOKUP(VLOOKUP($F31,'Data BI Summary'!$A:$F,MATCH(K$1,'Data BI Summary'!$2:$2,0),FALSE),INDIRECT("'"&$E31&"'!"&"$A:$K"),9,FALSE) -> 0.2346447239 | L31: Two-tier RPP
A32: HCHI to HONI
A33: AR-HCHI | B33: Low | C33: =VLOOKUP(A$33,'Data Billing Quantities'!A:P,MATCH($B33&" kWh",'Data Billing Quantities'!$4:$4,0),FALSE) -> 250 | E33: BI_HCHI_AR_Low | F33: BI Template_EnergyHCHI | G33: =VLOOKUP(VLOOKUP($F33,'Data BI Summary'!$A:$F,MATCH(G$1,'Data BI Summary'!$2:$2,0),FALSE),INDIRECT("'"&$E33&"'!"&"$A:$K"),4,FALSE) -> 66.05501471 | H33: =VLOOKUP(VLOOKUP($F33,'Data BI Summary'!$A:$F,MATCH(H$1,'Data BI Summary'!$2:$2,0),FALSE),INDIRECT("'"&$E33&"'!"&"$A:$K"),8,FALSE) -> -1.22 | I33: =VLOOKUP(VLOOKUP($F33,'Data BI Summary'!$A:$F,MATCH(I$1,'Data BI Summary'!$2:$2,0),FALSE),INDIRECT("'"&$E33&"'!"&"$A:$K"),9,FALSE) -> -0.03291958985 | J33: =VLOOKUP(VLOOKUP($F33,'Data BI Summary'!$A:$F,MATCH(J$1,'Data BI Summary'!$2:$2,0),FALSE),INDIRECT("'"&$E33&"'!"&"$A:$K"),8,FALSE) -> -0.314759795 | K33: =VLOOKUP(VLOOKUP($F33,'Data BI Summary'!$A:$F,MATCH(K$1,'Data BI Summary'!$2:$2,0),FALSE),INDIRECT("'"&$E33&"'!"&"$A:$K"),9,FALSE) -> -0.004765115811 | L33: TOU
B34: Typical | C34: =VLOOKUP(A$33,'Data Billing Quantities'!A:P,MATCH($B34&" kWh",'Data Billing Quantities'!$4:$4,0),FALSE) -> 750 | E34: BI_HCHI_AR_Typical | F34: BI Template_EnergyHCHI | G34: =VLOOKUP(VLOOKUP($F34,'Data BI Summary'!$A:$F,MATCH(G$1,'Data BI Summary'!$2:$2,0),FALSE),INDIRECT("'"&$E34&"'!"&"$A:$K"),4,FALSE) -> 127.1571841 | H34: =VLOOKUP(VLOOKUP($F34,'Data BI Summary'!$A:$F,MATCH(H$1,'Data BI Summary'!$2:$2,0),FALSE),INDIRECT("'"&$E34&"'!"&"$A:$K"),8,FALSE) -> -1.72 | I34: =VLOOKUP(VLOOKUP($F34,'Data BI Summary'!$A:$F,MATCH(I$1,'Data BI Summary'!$2:$2,0),FALSE),INDIRECT("'"&$E34&"'!"&"$A:$K"),9,FALSE) -> -0.0460385439 | J34: =VLOOKUP(VLOOKUP($F34,'Data BI Summary'!$A:$F,MATCH(J$1,'Data BI Summary'!$2:$2,0),FALSE),INDIRECT("'"&$E34&"'!"&"$A:$K"),8,FALSE) -> 0.881260615 | K34: =VLOOKUP(VLOOKUP($F34,'Data BI Summary'!$A:$F,MATCH(K$1,'Data BI Summary'!$2:$2,0),FALSE),INDIRECT("'"&$E34&"'!"&"$A:$K"),9,FALSE) -> 0.006930482308
B35: Average | C35: =VLOOKUP(A$33,'Data Billing Quantities'!A:P,MATCH($B35&" kWh",'Data Billing Quantities'!$4:$4,0),FALSE) -> 742 | E35: BI_HCHI_AR_Avg | F35: BI Template_EnergyHCHI | G35: =VLOOKUP(VLOOKUP($F35,'Data BI Summary'!$A:$F,MATCH(G$1,'Data BI Summary'!$2:$2,0),FALSE),INDIRECT("'"&$E35&"'!"&"$A:$K"),4,FALSE) -> 126.1795494 | H35: =VLOOKUP(VLOOKUP($F35,'Data BI Summary'!$A:$F,MATCH(H$1,'Data BI Summary'!$2:$2,0),FALSE),INDIRECT("'"&$E35&"'!"&"$A:$K"),8,FALSE) -> -1.712 | I35: =VLOOKUP(VLOOKUP($F35,'Data BI Summary'!$A:$F,MATCH(I$1,'Data BI Summary'!$2:$2,0),FALSE),INDIRECT("'"&$E35&"'!"&"$A:$K"),9,FALSE) -> -0.0458302994 | J35: =VLOOKUP(VLOOKUP($F35,'Data BI Summary'!$A:$F,MATCH(J$1,'Data BI Summary'!$2:$2,0),FALSE),INDIRECT("'"&$E35&"'!"&"$A:$K"),8,FALSE) -> 0.8621242884 | K35: =VLOOKUP(VLOOKUP($F35,'Data BI Summary'!$A:$F,MATCH(K$1,'Data BI Summary'!$2:$2,0),FALSE),INDIRECT("'"&$E35&"'!"&"$A:$K"),9,FALSE) -> 0.006832519947
B36: High | C36: =VLOOKUP(A$33,'Data Billing Quantities'!A:P,MATCH($B36&" kWh",'Data Billing Quantities'!$4:$4,0),FALSE) -> 1410 | E36: BI_HCHI_AR_High | F36: BI Template_EnergyHCHI | G36: =VLOOKUP(VLOOKUP($F36,'Data BI Summary'!$A:$F,MATCH(G$1,'Data BI Summary'!$2:$2,0),FALSE),INDIRECT("'"&$E36&"'!"&"$A:$K"),4,FALSE) -> 207.8120478 | H36: =VLOOKUP(VLOOKUP($F36,'Data BI Summary'!$A:$F,MATCH(H$1,'Data BI Summary'!$2:$2,0),FALSE),INDIRECT("'"&$E36&"'!"&"$A:$K"),8,FALSE) -> -2.38 | I36: =VLOOKUP(VLOOKUP($F36,'Data BI Summary'!$A:$F,MATCH(I$1,'Data BI Summary'!$2:$2,0),FALSE),INDIRECT("'"&$E36&"'!"&"$A:$K"),9,FALSE) -> -0.0630363386 | J36: =VLOOKUP(VLOOKUP($F36,'Data BI Summary'!$A:$F,MATCH(J$1,'Data BI Summary'!$2:$2,0),FALSE),INDIRECT("'"&$E36&"'!"&"$A:$K"),8,FALSE) -> 2.460007556 | K36: =VLOOKUP(VLOOKUP($F36,'Data BI Summary'!$A:$F,MATCH(K$1,'Data BI Summary'!$2:$2,0),FALSE),INDIRECT("'"&$E36&"'!"&"$A:$K"),9,FALSE) -> 0.0118376561
A37: AGSe-HCHI | B37: Low | C37: =VLOOKUP(A$37,'Data Billing Quantities'!A:P,MATCH($B37&" kWh",'Data Billing Quantities'!$4:$4,0),FALSE) -> 90 | E37: BI_HCHI_AGSe_Low | F37: BI Template_EnergyHCHI | G37: =VLOOKUP(VLOOKUP($F37,'Data BI Summary'!$A:$F,MATCH(G$1,'Data BI Summary'!$2:$2,0),FALSE),INDIRECT("'"&$E37&"'!"&"$A:$K"),4,FALSE) -> 39.57516358 | H37: =VLOOKUP(VLOOKUP($F37,'Data BI Summary'!$A:$F,MATCH(H$1,'Data BI Summary'!$2:$2,0),FALSE),INDIRECT("'"&$E37&"'!"&"$A:$K"),8,FALSE) -> 9.445 | I37: =VLOOKUP(VLOOKUP($F37,'Data BI Summary'!$A:$F,MATCH(I$1,'Data BI Summary'!$2:$2,0),FALSE),INDIRECT("'"&$E37&"'!"&"$A:$K"),9,FALSE) -> 0.3179278309 | J37: =VLOOKUP(VLOOKUP($F37,'Data BI Summary'!$A:$F,MATCH(J$1,'Data BI Summary'!$2:$2,0),FALSE),INDIRECT("'"&$E37&"'!"&"$A:$K"),8,FALSE) -> 8.980605044 | K37: =VLOOKUP(VLOOKUP($F37,'Data BI Summary'!$A:$F,MATCH(K$1,'Data BI Summary'!$2:$2,0),FALSE),INDIRECT("'"&$E37&"'!"&"$A:$K"),9,FALSE) -> 0.2269252792 | L37: TOU
B38: Typical | C38: =VLOOKUP(A$37,'Data Billing Quantities'!A:P,MATCH($B38&" kWh",'Data Billing Quantities'!$4:$4,0),FALSE) -> 2000 | E38: BI_HCHI_AGSe_Typical | F38: BI Template_EnergyHCHI | G38: =VLOOKUP(VLOOKUP($F38,'Data BI Summary'!$A:$F,MATCH(G$1,'Data BI Summary'!$2:$2,0),FALSE),INDIRECT("'"&$E38&"'!"&"$A:$K"),4,FALSE) -> 306.1061896 | H38: =VLOOKUP(VLOOKUP($F38,'Data BI Summary'!$A:$F,MATCH(H$1,'Data BI Summary'!$2:$2,0),FALSE),INDIRECT("'"&$E38&"'!"&"$A:$K"),8,FALSE) -> 2.76 | I38: =VLOOKUP(VLOOKUP($F38,'Data BI Summary'!$A:$F,MATCH(I$1,'Data BI Summary'!$2:$2,0),FALSE),INDIRECT("'"&$E38&"'!"&"$A:$K"),9,FALSE) -> 0.04041587348 | J38: =VLOOKUP(VLOOKUP($F38,'Data BI Summary'!$A:$F,MATCH(J$1,'Data BI Summary'!$2:$2,0),FALSE),INDIRECT("'"&$E38&"'!"&"$A:$K"),8,FALSE) -> 4.66071654 | K38: =VLOOKUP(VLOOKUP($F38,'Data BI Summary'!$A:$F,MATCH(K$1,'Data BI Summary'!$2:$2,0),FALSE),INDIRECT("'"&$E38&"'!"&"$A:$K"),9,FALSE) -> 0.01522581607
B39: Average | C39: =VLOOKUP(A$37,'Data Billing Quantities'!A:P,MATCH($B39&" kWh",'Data Billing Quantities'!$4:$4,0),FALSE) -> 2261 | E39: BI_HCHI_AGSe_Avg | F39: BI Template_EnergyHCHI | G39: =VLOOKUP(VLOOKUP($F39,'Data BI Summary'!$A:$F,MATCH(G$1,'Data BI Summary'!$2:$2,0),FALSE),INDIRECT("'"&$E39&"'!"&"$A:$K"),4,FALSE) -> 342.527445 | H39: =VLOOKUP(VLOOKUP($F39,'Data BI Summary'!$A:$F,MATCH(H$1,'Data BI Summary'!$2:$2,0),FALSE),INDIRECT("'"&$E39&"'!"&"$A:$K"),8,FALSE) -> 1.8465 | I39: =VLOOKUP(VLOOKUP($F39,'Data BI Summary'!$A:$F,MATCH(I$1,'Data BI Summary'!$2:$2,0),FALSE),INDIRECT("'"&$E39&"'!"&"$A:$K"),9,FALSE) -> 0.02510120687 | J39: =VLOOKUP(VLOOKUP($F39,'Data BI Summary'!$A:$F,MATCH(J$1,'Data BI Summary'!$2:$2,0),FALSE),INDIRECT("'"&$E39&"'!"&"$A:$K"),8,FALSE) -> 4.070407168 | K39: =VLOOKUP(VLOOKUP($F39,'Data BI Summary'!$A:$F,MATCH(K$1,'Data BI Summary'!$2:$2,0),FALSE),INDIRECT("'"&$E39&"'!"&"$A:$K"),9,FALSE) -> 0.01188344825
B40: High | C40: =VLOOKUP(A$37,'Data Billing Quantities'!A:P,MATCH($B40&" kWh",'Data Billing Quantities'!$4:$4,0),FALSE) -> 5430 | E40: BI_HCHI_AGSe_High | F40: BI Template_EnergyHCHI | G40: =VLOOKUP(VLOOKUP($F40,'Data BI Summary'!$A:$F,MATCH(G$1,'Data BI Summary'!$2:$2,0),FALSE),INDIRECT("'"&$E40&"'!"&"$A:$K"),4,FALSE) -> 784.7456762 | H40: =VLOOKUP(VLOOKUP($F40,'Data BI Summary'!$A:$F,MATCH(H$1,'Data BI Summary'!$2:$2,0),FALSE),INDIRECT("'"&$E40&"'!"&"$A:$K"),8,FALSE) -> -9.245 | I40: =VLOOKUP(VLOOKUP($F40,'Data BI Summary'!$A:$F,MATCH(I$1,'Data BI Summary'!$2:$2,0),FALSE),INDIRECT("'"&$E40&"'!"&"$A:$K"),9,FALSE) -> -0.06719922079 | J40: =VLOOKUP(VLOOKUP($F40,'Data BI Summary'!$A:$F,MATCH(J$1,'Data BI Summary'!$2:$2,0),FALSE),INDIRECT("'"&$E40&"'!"&"$A:$K"),8,FALSE) -> -3.096988994 | K40: =VLOOKUP(VLOOKUP($F40,'Data BI Summary'!$A:$F,MATCH(K$1,'Data BI Summary'!$2:$2,0),FALSE),INDIRECT("'"&$E40&"'!"&"$A:$K"),9,FALSE) -> -0.00394648749
A41: AGSd-HCHI | B41: Low | C41: =VLOOKUP(A$41,'Data Billing Quantities'!A:P,MATCH($B41&" kWh",'Data Billing Quantities'!$4:$4,0),FALSE) -> 10880 | D41: =VLOOKUP(A$41,'Data Billing Quantities'!A:P,MATCH(B41&" kW",'Data Billing Quantities'!$4:$4,0),FALSE) -> 55 | E41: BI_HCHI_AGSd_Low | F41: BI Template_DemandHCHI | G41: =VLOOKUP(VLOOKUP($F41,'Data BI Summary'!$A:$F,MATCH(G$1,'Data BI Summary'!$2:$2,0),FALSE),INDIRECT("'"&$E41&"'!"&"$A:$K"),4,FALSE) -> 2295.088115 | H41: =VLOOKUP(VLOOKUP($F41,'Data BI Summary'!$A:$F,MATCH(H$1,'Data BI Summary'!$2:$2,0),FALSE),INDIRECT("'"&$E41&"'!"&"$A:$K"),8,FALSE) -> 60.634 | I41: =VLOOKUP(VLOOKUP($F41,'Data BI Summary'!$A:$F,MATCH(I$1,'Data BI Summary'!$2:$2,0),FALSE),INDIRECT("'"&$E41&"'!"&"$A:$K"),9,FALSE) -> 0.1893889229 | J41: =VLOOKUP(VLOOKUP($F41,'Data BI Summary'!$A:$F,MATCH(J$1,'Data BI Summary'!$2:$2,0),FALSE),INDIRECT("'"&$E41&"'!"&"$A:$K"),8,FALSE) -> 0.750462832 | K41: =VLOOKUP(VLOOKUP($F41,'Data BI Summary'!$A:$F,MATCH(K$1,'Data BI Summary'!$2:$2,0),FALSE),INDIRECT("'"&$E41&"'!"&"$A:$K"),9,FALSE) -> 0.0003269865008 | L41: WAHSP
B42: Average | C42: =VLOOKUP(A$41,'Data Billing Quantities'!A:P,MATCH($B42&" kWh",'Data Billing Quantities'!$4:$4,0),FALSE) -> 57529 | D42: =VLOOKUP(A$41,'Data Billing Quantities'!A:P,MATCH(B42&" kW",'Data Billing Quantities'!$4:$4,0),FALSE) -> 175 | E42: BI_HCHI_AGSd_Avg | F42: BI Template_DemandHCHI | G42: =VLOOKUP(VLOOKUP($F42,'Data BI Summary'!$A:$F,MATCH(G$1,'Data BI Summary'!$2:$2,0),FALSE),INDIRECT("'"&$E42&"'!"&"$A:$K"),4,FALSE) -> 10444.67454 | H42: =VLOOKUP(VLOOKUP($F42,'Data BI Summary'!$A:$F,MATCH(H$1,'Data BI Summary'!$2:$2,0),FALSE),INDIRECT("'"&$E42&"'!"&"$A:$K"),8,FALSE) -> -7.7803 | I42: =VLOOKUP(VLOOKUP($F42,'Data BI Summary'!$A:$F,MATCH(I$1,'Data BI Summary'!$2:$2,0),FALSE),INDIRECT("'"&$E42&"'!"&"$A:$K"),9,FALSE) -> -0.009375888747 | J42: =VLOOKUP(VLOOKUP($F42,'Data BI Summary'!$A:$F,MATCH(J$1,'Data BI Summary'!$2:$2,0),FALSE),INDIRECT("'"&$E42&"'!"&"$A:$K"),8,FALSE) -> -230.1379079 | K42: =VLOOKUP(VLOOKUP($F42,'Data BI Summary'!$A:$F,MATCH(K$1,'Data BI Summary'!$2:$2,0),FALSE),INDIRECT("'"&$E42&"'!"&"$A:$K"),9,FALSE) -> -0.02203399513
B43: High | C43: =VLOOKUP(A$41,'Data Billing Quantities'!A:P,MATCH($B43&" kWh",'Data Billing Quantities'!$4:$4,0),FALSE) -> 135160 | D43: =VLOOKUP(A$41,'Data Billing Quantities'!A:P,MATCH(B43&" kW",'Data Billing Quantities'!$4:$4,0),FALSE) -> 375 | E43: BI_HCHI_AGSd_High | F43: BI Template_DemandHCHI | G43: =VLOOKUP(VLOOKUP($F43,'Data BI Summary'!$A:$F,MATCH(G$1,'Data BI Summary'!$2:$2,0),FALSE),INDIRECT("'"&$E43&"'!"&"$A:$K"),4,FALSE) -> 24010.13071 | H43: =VLOOKUP(VLOOKUP($F43,'Data BI Summary'!$A:$F,MATCH(H$1,'Data BI Summary'!$2:$2,0),FALSE),INDIRECT("'"&$E43&"'!"&"$A:$K"),8,FALSE) -> -121.722 | I43: =VLOOKUP(VLOOKUP($F43,'Data BI Summary'!$A:$F,MATCH(I$1,'Data BI Summary'!$2:$2,0),FALSE),INDIRECT("'"&$E43&"'!"&"$A:$K"),9,FALSE) -> -0.07248549957 | J43: =VLOOKUP(VLOOKUP($F43,'Data BI Summary'!$A:$F,MATCH(J$1,'Data BI Summary'!$2:$2,0),FALSE),INDIRECT("'"&$E43&"'!"&"$A:$K"),8,FALSE) -> -614.8297176 | K43: =VLOOKUP(VLOOKUP($F43,'Data BI Summary'!$A:$F,MATCH(K$1,'Data BI Summary'!$2:$2,0),FALSE),INDIRECT("'"&$E43&"'!"&"$A:$K"),9,FALSE) -> -0.02560709581
A44: St Lgt-HCHI | B44: Average | C44: =VLOOKUP(A$44,'Data Billing Quantities'!A:P,MATCH($B44&" kWh",'Data Billing Quantities'!$4:$4,0),FALSE) -> 31001 | D44: =VLOOKUP(A$44,'Data Billing Quantities'!A:P,MATCH(B44&" kW",'Data Billing Quantities'!$4:$4,0),FALSE) -> 85 | E44: BI_HCHI_StLgt_Avg | F44: BI Template_unmHCHI | G44: =VLOOKUP(VLOOKUP($F44,'Data BI Summary'!$A:$F,MATCH(G$1,'Data BI Summary'!$2:$2,0),FALSE),INDIRECT("'"&$E44&"'!"&"$A:$K"),4,FALSE) -> 10957.44348 | H44: =VLOOKUP(VLOOKUP($F44,'Data BI Summary'!$A:$F,MATCH(H$1,'Data BI Summary'!$2:$2,0),FALSE),INDIRECT("'"&$E44&"'!"&"$A:$K"),8,FALSE) -> -2158.5015 | I44: =VLOOKUP(VLOOKUP($F44,'Data BI Summary'!$A:$F,MATCH(I$1,'Data BI Summary'!$2:$2,0),FALSE),INDIRECT("'"&$E44&"'!"&"$A:$K"),9,FALSE) -> -0.3962314442 | J44: =VLOOKUP(VLOOKUP($F44,'Data BI Summary'!$A:$F,MATCH(J$1,'Data BI Summary'!$2:$2,0),FALSE),INDIRECT("'"&$E44&"'!"&"$A:$K"),8,FALSE) -> -2331.623578 | K44: =VLOOKUP(VLOOKUP($F44,'Data BI Summary'!$A:$F,MATCH(K$1,'Data BI Summary'!$2:$2,0),FALSE),INDIRECT("'"&$E44&"'!"&"$A:$K"),9,FALSE) -> -0.2127890125 | L44: Two-tier RPP
A45: Sen Lgt-HCHI | B45: Average | C45: =VLOOKUP(A$45,'Data Billing Quantities'!A:P,MATCH($B45&" kWh",'Data Billing Quantities'!$4:$4,0),FALSE) -> 61 | D45: =VLOOKUP(A$45,'Data Billing Quantities'!A:P,MATCH(B45&" kW",'Data Billing Quantities'!$4:$4,0),FALSE) -> 0.1956473214 | E45: BI_HCHI_SenLgt_Avg | F45: BI Template_unmHCHI | G45: =VLOOKUP(VLOOKUP($F45,'Data BI Summary'!$A:$F,MATCH(G$1,'Data BI Summary'!$2:$2,0),FALSE),INDIRECT("'"&$E45&"'!"&"$A:$K"),4,FALSE) -> 28.19626244 | H45: =VLOOKUP(VLOOKUP($F45,'Data BI Summary'!$A:$F,MATCH(H$1,'Data BI Summary'!$2:$2,0),FALSE),INDIRECT("'"&$E45&"'!"&"$A:$K"),8,FALSE) -> -10.08223151 | I45: =VLOOKUP(VLOOKUP($F45,'Data BI Summary'!$A:$F,MATCH(I$1,'Data BI Summary'!$2:$2,0),FALSE),INDIRECT("'"&$E45&"'!"&"$A:$K"),9,FALSE) -> -0.4518681297 | J45: =VLOOKUP(VLOOKUP($F45,'Data BI Summary'!$A:$F,MATCH(J$1,'Data BI Summary'!$2:$2,0),FALSE),INDIRECT("'"&$E45&"'!"&"$A:$K"),8,FALSE) -> -9.450921003 | K45: =VLOOKUP(VLOOKUP($F45,'Data BI Summary'!$A:$F,MATCH(K$1,'Data BI Summary'!$2:$2,0),FALSE),INDIRECT("'"&$E45&"'!"&"$A:$K"),9,FALSE) -> -0.3351834671 | L45: Two-tier RPP
A46: USL-HCHI | B46: Average | C46: =VLOOKUP(A$46,'Data Billing Quantities'!A:P,MATCH($B46&" kWh",'Data Billing Quantities'!$4:$4,0),FALSE) -> 471 | E46: BI_HCHI_USL_Avg | F46: BI Template_unmHCHI | G46: =VLOOKUP(VLOOKUP($F46,'Data BI Summary'!$A:$F,MATCH(G$1,'Data BI Summary'!$2:$2,0),FALSE),INDIRECT("'"&$E46&"'!"&"$A:$K"),4,FALSE) -> 74.83070769 | H46: =VLOOKUP(VLOOKUP($F46,'Data BI Summary'!$A:$F,MATCH(H$1,'Data BI Summary'!$2:$2,0),FALSE),INDIRECT("'"&$E46&"'!"&"$A:$K"),8,FALSE) -> 23.0051 | I46: =VLOOKUP(VLOOKUP($F46,'Data BI Summary'!$A:$F,MATCH(I$1,'Data BI Summary'!$2:$2,0),FALSE),INDIRECT("'"&$E46&"'!"&"$A:$K"),9,FALSE) -> 1.062095743 | J46: =VLOOKUP(VLOOKUP($F46,'Data BI Summary'!$A:$F,MATCH(J$1,'Data BI Summary'!$2:$2,0),FALSE),INDIRECT("'"&$E46&"'!"&"$A:$K"),8,FALSE) -> 22.12496006 | K46: =VLOOKUP(VLOOKUP($F46,'Data BI Summary'!$A:$F,MATCH(K$1,'Data BI Summary'!$2:$2,0),FALSE),INDIRECT("'"&$E46&"'!"&"$A:$K"),9,FALSE) -> 0.2956668558 | L46: Two-tier RPP

Sheet BI Template_Energy (hidden)
A1: 2023 Bill Impacts (Low Consumption Level) - R1
A3: Rate Class | B3: =RIGHT(A1,LEN(A1)-FIND("- ",A1,1)-1) -> R1
A4: Monthly Consumption (kWh) | B4: =IF(COUNTIF(A1,"*Low*")>0,VLOOKUP(B3,'Data Billing Quantities'!$A:$Z,MATCH("Low kWh",'Data Billing Quantities'!4:4,0),FALSE),IF(COUNTIF(A1,"*Typical*")>0,VLOOKUP(B3,'Data Billing Quantities'!$A:$Z,MATCH("Typical kWh",'Data Billing Quantities'!4:4,0),FALSE),IF(COUNTIF(A1,"*Average*")>0,VLOOKUP(B3,'Data Billing Quantities'!$A:$Z,MATCH("Average kWh",'Data Billing Quantities'!4:4,0),FALSE),IF(COUNTIF(A1,"*High*")>0,VLOOKUP(B3,'Data Billing Quantities'!$A:$Z,MATCH("High kWh",'Data Billing Quantities'!4:4,0),FALSE),"error")))) -> 370
A5: Peak (kW) | B5: =IF(COUNTIF(A1,"*Low*")>0,VLOOKUP(B3,'Data Billing Quantities'!$A:$Z,MATCH("Low kW",'Data Billing Quantities'!4:4,0),FALSE),IF(COUNTIF(A1,"*Typical*")>0,VLOOKUP(B3,'Data Billing Quantities'!$A:$Z,MATCH("Typical kW",'Data Billing Quantities'!4:4,0),FALSE),IF(COUNTIF(A1,"*Average*")>0,VLOOKUP(B3,'Data Billing Quantities'!$A:$Z,MATCH("Average kW",'Data Billing Quantities'!4:4,0),FALSE),IF(COUNTIF(A1,"*High*")>0,VLOOKUP(B3,'Data Billing Quantities'!$A:$Z,MATCH("High kW",'Data Billing Quantities'!4:4,0),FALSE),"error")))) -> 0
A6: Loss factor | B6: =VLOOKUP(B3,'Data Billing Quantities'!A:D,MATCH(A6,'Data Billing Quantities'!4:4,0),FALSE) -> 1.076
A7: Commodity Threshold | B7: =VLOOKUP(B3,'Data Billing Quantities'!A:D,MATCH(A7,'Data Billing Quantities'!4:4,0),FALSE) -> 600
A8: Monthly Consumption (kWh) - Uplifted | B8: =B4*B6 -> 398.12
A9: Charge determinant | B9: =VLOOKUP(B3,'Data Billing Quantities'!A:D,MATCH(A9,'Data Billing Quantities'!4:4,0),FALSE) -> kWh
B11: Volume | C11: Current Rate ($) | D11: Current Charge ($) | E11: Volume | F11: Proposed Rate ($) | G11: Proposed Charge ($) | H11: Change ($) | I11: Change (%) | J11: % of Total Bill on RPP | K11: % of Total Bill
A12: Energy First Tier | B12: =IF(B4>B7,B7,B4) -> 370 | C12: =VLOOKUP($A12,'Data Pass Through'!$A:$D,2,FALSE) -> 0.098 | D12: =B12*C12 -> 36.26 | E12: =B12 -> 370 | F12: =VLOOKUP($A12,'Data Pass Through'!$A:$D,3,FALSE) -> 0.098 | G12: =E12*F12 -> 36.26 | H12: =G12-D12 -> 0 | I12: =IF(ISERROR(H12/ABS(D12)),"N/A",(H12/ABS(D12))) -> 0 | J12: =G12/$G$47 -> 0.4560736097
A13: Energy Second Tier | B13: =IF(B4>B7,(B4)-B7,0) -> 0 | C13: =VLOOKUP($A13,'Data Pass Through'!$A:$D,2,FALSE) -> 0.115 | D13: =B13*C13 -> 0 | E13: =B13 -> 0 | F13: =VLOOKUP($A13,'Data Pass Through'!$A:$D,3,FALSE) -> 0.115 | G13: =E13*F13 -> 0 | H13: 0 | I13: N/A | J13: =G13/$G$47 -> 0
A14: Sub-Total: Energy (RPP Tiered) | D14: =SUM(D12:D13) -> 36.26 | G14: =SUM(G12:G13) -> 36.26 | H14: 0 | I14: 0 | J14: =G14/$G$47 -> 0.4560736097
A15: TOU-Off Peak | B15: =B$4*VLOOKUP($B$3,'Data Billing Quantities'!$A:$O,MATCH('BI Template_Energy'!$A15,'Data Billing Quantities'!$4:$4,0),FALSE) -> 236.8 | C15: =VLOOKUP($A15,'Data Pass Through'!$A:$D,2,FALSE) -> 0.082 | D15: =B15*C15 -> 19.4176 | E15: 236.8 | F15: =VLOOKUP($A15,'Data Pass Through'!$A:$D,3,FALSE) -> 0.082 | G15: =E15*F15 -> 19.4176 | H15: 0 | I15: 0 | K15: =G15/$G$52 -> 0.2381498758
A16: TOU-Mid Peak | B16: =B$4*VLOOKUP($B$3,'Data Billing Quantities'!$A:$O,MATCH('BI Template_Energy'!$A16,'Data Billing Quantities'!$4:$4,0),FALSE) -> 66.6 | C16: =VLOOKUP($A16,'Data Pass Through'!$A:$D,2,FALSE) -> 0.113 | D16: =B16*C16 -> 7.5258 | E16: 66.6 | F16: =VLOOKUP($A16,'Data Pass Through'!$A:$D,3,FALSE) -> 0.113 | G16: =E16*F16 -> 7.5258 | H16: 0 | I16: 0 | K16: 0.09230122855
A17: TOU-On Peak | B17: =B$4*VLOOKUP($B$3,'Data Billing Quantities'!$A:$O,MATCH('BI Template_Energy'!$A17,'Data Billing Quantities'!$4:$4,0),FALSE) -> 66.6 | C17: =VLOOKUP($A17,'Data Pass Through'!$A:$D,2,FALSE) -> 0.17 | D17: =B17*C17 -> 11.322 | E17: 66.6 | F17: =VLOOKUP($A17,'Data Pass Through'!$A:$D,3,FALSE) -> 0.17 | G17: =E17*F17 -> 11.322 | H17: 0 | I17: 0 | K17: 0.1388602553
A18: Sub-Total: Energy (RPP TOU) | D18: =SUM(D15:D17) -> 38.2654 | G18: =SUM(G15:G17) -> 38.2654 | H18: 0 | I18: 0 | J18: =G18/$G$47 -> 0.4812972726 | K18: 0.4693113597
A19: Service Charge | B19: 1 | C19: =VLOOKUP($B$3,'Data Current Rates'!$A:$AP,MATCH('BI Template_Energy'!$A19,CurrentHeader,0),FALSE) -> 55.52 | D19: =B19*C19 -> 55.52 | E19: 1 | F19: =VLOOKUP($B$3,'Data Proposed Rates'!$A:$AZ,MATCH('BI Template_Energy'!$A19,ProposedHeader,0),FALSE) -> 57.22 | G19: =E19*F19 -> 57.22 | H19: 1.7 | I19: 0.03061959654 | J19: 0.71970579 | K19: 0.7017827072
A20: Fixed Base Rate Adjustment to Recover Past Tax Amounts | B20: 1 | C20: =VLOOKUP($B$3,'Data Current Rates'!$A:$AP,MATCH('BI Template_Energy'!$A20,CurrentHeader,0),FALSE) -> 1.56 | D20: =B20*C20 -> 1.56 | E20: 1 | F20: =VLOOKUP($B$3,'Data Proposed Rates'!$A:$AZ,MATCH('BI Template_Energy'!$A20,ProposedHeader,0),FALSE) -> 1.44 | G20: 1.44 | H20: -0.12 | I20: -0.07692307692 | J20: 0.01811213453 | K20: 0.01766108176
A21: Group 2 Fixed DVA Rider | E21: 1 | F21: =VLOOKUP($B$3,'Data Proposed Rates'!$A:$AZ,MATCH('BI Template_Energy'!$A21,ProposedHeader,0),FALSE) -> -0.14 | G21: -0.14 | H21: -0.14 | I21: N/A | J21: -0.001760901968 | K21: -0.001717049616
A22: Distribution Volumetric Charge | B22: =IF($B$9="kWh",$B$4,$B$5) -> 370 | C22: =VLOOKUP($B$3,'Data Current Rates'!$A:$AP,MATCH('BI Template_Energy'!$A22,CurrentHeader,0),FALSE) -> 0.0099 | D22: 3.663 | E22: 370 | F22: =VLOOKUP($B$3,'Data Proposed Rates'!$A:$AZ,MATCH('BI Template_Energy'!$A22,ProposedHeader,0),FALSE) -> 0.0052 | G22: 1.924 | H22: -1.739 | I22: -0.4747474747 | J22: 0.02419982419 | K22: 0.02359716757
A23: Volumetric Base Rate Adjustment to Recover Past Tax Amounts | B23: =IF($B$9="kWh",$B$4,$B$5) -> 370 | C23: =VLOOKUP($B$3,'Data Current Rates'!$A:$AP,MATCH('BI Template_Energy'!$A23,CurrentHeader,0),FALSE) -> 0 | D23: 0 | E23: 370 | F23: =VLOOKUP($B$3,'Data Proposed Rates'!$A:$AZ,MATCH('BI Template_Energy'!$A23,ProposedHeader,0),FALSE) -> 0 | G23: 0 | H23: 0 | I23: N/A | J23: 0 | K23: 0
A24: Group 1 Volumetric DVA Rider (General) | E24: =B4 -> 370 | F24: =VLOOKUP($B$3,'Data Proposed Rates'!$A:$AZ,MATCH('BI Template_Energy'!$A24,ProposedHeader,0),FALSE) -> -0.0004 | G24: =E24*F24 -> -0.148 | H24: =G24-D24 -> -0.148 | I24: =IF(ISERROR(H24/ABS(D24)),"N/A",(H24/ABS(D24))) -> N/A | J24: -0.001861524937 | K24: -0.001815166737
A25: Group 2 Volumetric DVA Rider | E25: =B4 -> 370 | F25: =VLOOKUP($B$3,'Data Proposed Rates'!$A:$AZ,MATCH('BI Template_Energy'!$A25,ProposedHeader,0),FALSE) -> 0 | G25: 0 | H25: 0 | I25: N/A | J25: 0 | K25: 0
A26: Fair Hydro Plan - Distribution Rate Protection Savings* | D26: =IF(AND(B3<>"R1",B3<>"R2"),0,IF(VLOOKUP($A26,'Data Pass Through'!$A:$D,2,FALSE)=0,0,IF(SUM(D19:D20,D22:D23)<VLOOKUP($A26,'Data Pass Through'!$A:$D,2,FALSE),0,VLOOKUP($A26,'Data Pass Through'!$A:$D,2,FALSE)-SUM(D19:D20,D22:D23)))) -> -23.883 | G26: =IF(AND(B3<>"R1",B3<>"R2"),0,IF(VLOOKUP($A26,'Data Pass Through'!$A:$D,2,FALSE)=0,0,IF(SUM(G19:G20,G22:G23)<VLOOKUP($A26,'Data Pass Through'!$A:$D,2,FALSE),0,VLOOKUP($A26,'Data Pass Through'!$A:$D,2,FALSE)-SUM(G19:G20,G22:G23)))) -> -23.724 | H26: 0.159 | I26: 0.006657455094 | J26: -0.2983974163 | K26: -0.290966322
A27: Sub-Total: Distribution (excluding pass through) | D27: =SUM(INDIRECT("D19:D"&ROW()-1)) -> 36.86 | G27: =SUM(INDIRECT("g19:g"&ROW()-1)) -> 36.572 | H27: =G27-D27 -> -0.288 | I27: =IF(ISERROR(H27/ABS(D27)),"N/A",(H27/ABS(D27))) -> -0.007813347802 | J27: 0.4599979055 | K27: 0.4485424182
A28: Smart Metering Entity Charge | B28: 1 | C28: =VLOOKUP($A28,'Data Pass Through'!$A:$D,2,FALSE) -> 0.57 | D28: =B28*C28 -> 0.57 | E28: 1 | F28: =VLOOKUP($A28,'Data Pass Through'!$A:$D,3,FALSE) -> 0.57 | G28: =E28*F28 -> 0.57 | H28: 0 | I28: 0 | J28: 0.007169386583 | K28: 0.006990844864
A29: Line Losses on Cost of Power (based on two-tier RPP prices) | B29: =B8-B4 -> 28.12 | C29: =IF(B4>B7,C13,C12) -> 0.098 | D29: =B29*C29 -> 2.75576 | E29: 28.12 | F29: =IF(B4>B7,F13,F12) -> 0.098 | G29: =E29*F29 -> 2.75576 | H29: 0 | I29: 0 | J29: 0.03466159433 | K29: 0.03379840463
A30: Line Losses on Cost of Power (based on TOU prices) | B30: =B8-B4 -> 28.12 | C30: =VLOOKUP($B$3,'Data Billing Quantities'!$A:$O,MATCH('BI Template_Energy'!$A15,'Data Billing Quantities'!$4:$4,0),FALSE)*C15+VLOOKUP($B$3,'Data Billing Quantities'!$A:$O,MATCH('BI Template_Energy'!$A16,'Data Billing Quantities'!$4:$4,0),FALSE)*C16+VLOOKUP($B$3,'Data Billing Quantities'!$A:$O,MATCH('BI Template_Energy'!$A17,'Data Billing Quantities'!$4:$4,0),FALSE)*C17 -> 0.10342 | D30: =B30*C30 -> 2.9081704 | E30: 28.12 | F30: =VLOOKUP($B$3,'Data Billing Quantities'!$A:$O,MATCH('BI Template_Energy'!$A15,'Data Billing Quantities'!$4:$4,0),FALSE)*F15+VLOOKUP($B$3,'Data Billing Quantities'!$A:$O,MATCH('BI Template_Energy'!$A16,'Data Billing Quantities'!$4:$4,0),FALSE)*F16+VLOOKUP($B$3,'Data Billing Quantities'!$A:$O,MATCH('BI Template_Energy'!$A17,'Data Billing Quantities'!$4:$4,0),FALSE)*F17 -> 0.10342 | G30: =E30*F30 -> 2.9081704 | H30: 0 | I30: 0 | J30: 0.03657859271 | K30: 0.03566766334
A31: Sub-Total: Distribution (based on two-tier RPP prices) | D31: =SUM(D27,D28:D29) -> 40.18576 | G31: =SUM(G27,G28:G29) -> 39.89776 | H31: -0.288 | I31: -0.007166717763 | J31: 0.5018288864 | K31: 0.4893316677
A32: Sub-Total: Distribution (based on TOU prices) | D32: =SUM(D27,D28,D30) -> 40.3381704 | G32: =SUM(G27,G28,G30) -> 40.0501704 | H32: -0.288 | I32: -0.00713963963 | J32: 0.5037458848 | K32: 0.4912009264
A33: Retail Transmission Rate – Network Service Rate | B33: =B8 -> 398.12 | C33: =VLOOKUP($B$3,'Data Current Rates'!$A:$AP,MATCH('BI Template_Energy'!$A33,CurrentHeader,0),FALSE) -> 0.0098 | D33: =B33*C33 -> 3.901576 | E33: 398.12 | F33: =VLOOKUP($B$3,'Data Proposed Rates'!$A:$AZ,MATCH('BI Template_Energy'!$A33,ProposedHeader,0),FALSE) -> 0.0095 | G33: =E33*F33 -> 3.78214 | H33: =G33-D33 -> -0.119436 | I33: -0.0306122449 | J33: 0.04757126978 | K33: 0.04638658595
A34: Retail Transmission Rate – Line and Transformation Connection Service Rate | B34: =B8 -> 398.12 | C34: =VLOOKUP($B$3,'Data Current Rates'!$A:$AP,MATCH('BI Template_Energy'!$A34,CurrentHeader,0),FALSE) -> 0.0073 | D34: =B34*C34 -> 2.906276 | E34: 398.12 | F34: =VLOOKUP($B$3,'Data Proposed Rates'!$A:$AZ,MATCH('BI Template_Energy'!$A34,ProposedHeader,0),FALSE) -> 0.0069 | G34: =E34*F34 -> 2.747028 | H34: =G34-D34 -> -0.159248 | I34: -0.05479452055 | J34: 0.03455176436 | K34: 0.0336913098
A35: Sub-Total: Retail Transmission | D35: =SUM(D33:D34) -> 6.807852 | G35: =SUM(G33:G34) -> 6.529168 | H35: =G35-D35 -> -0.278684 | I35: -0.04093567251 | J35: 0.08212303414 | K35: 0.08007789575
A36: Sub-Total: Delivery (based on two-tier RPP prices) | D36: =D31+D35 -> 46.993612 | G36: =G31+G35 -> 46.426928 | H36: =G36-D36 -> -0.566684 | I36: -0.01205874535 | J36: 0.5839519205 | K36: 0.5694095634
A37: Sub-Total: Delivery (based on TOU prices) | D37: =D32+D35 -> 47.1460224 | G37: =G32+G35 -> 46.5793384 | H37: =G37-D37 -> -0.566684 | I37: -0.01201976267 | J37: 0.5858689189 | K37: 0.5712788221
A38: Wholesale Market Service Rate (WMS) - not including CBR | B38: =B8 -> 398.12 | C38: =VLOOKUP($A38,'Data Pass Through'!$A:$D,2,FALSE) -> 0.003 | D38: =B38*C38 -> 1.19436 | E38: =$B$8 -> 398.12 | F38: =VLOOKUP($A38,'Data Pass Through'!$A:$D,3,FALSE) -> 0.003 | G38: =E38*F38 -> 1.19436 | H38: 0 | I38: 0 | J38: 0.01502250624 | K38: 0.01464839556
A39: Capacity Based Recovery (CBR) - Applicable for Class B Customers | B39: =B8 -> 398.12 | C39: =VLOOKUP($A39,'Data Pass Through'!$A:$D,2,FALSE) -> 0.0004 | D39: =B39*C39 -> 0.159248 | E39: =$B$8 -> 398.12 | F39: =VLOOKUP($A39,'Data Pass Through'!$A:$D,3,FALSE) -> 0.0004 | G39: =E39*F39 -> 0.159248 | H39: =G39-D39 -> 0 | I39: =IF(ISERROR(H39/ABS(D39)),"N/A",(H39/ABS(D39))) -> 0 | J39: 0.002003000833 | K39: 0.001953119409
A40: Rural Rate Protection Charge | B40: =B8 -> 398.12 | C40: =VLOOKUP($A40,'Data Pass Through'!$A:$D,2,FALSE) -> 0.0005 | D40: 0.19906 | E40: 398.12 | F40: =VLOOKUP($A40,'Data Pass Through'!$A:$D,3,FALSE) -> 0.0005 | G40: 0.19906 | H40: 0 | I40: 0 | J40: 0.002503751041 | K40: 0.002441399261
A41: Standard Supply Service – Administration Charge (if applicable) | B41: 1 | C41: =VLOOKUP($A41,'Data Pass Through'!$A:$D,2,FALSE) -> 0.25 | D41: =B41*C41 -> 0.25 | E41: 1 | F41: =VLOOKUP($A41,'Data Pass Through'!$A:$D,3,FALSE) -> 0.25 | G41: 0.25 | H41: 0 | I41: 0 | J41: 0.0031444678 | K41: 0.003066160028
A42: Sub-Total: Regulatory | D42: =SUM(D38:D41) -> 1.802668 | G42: =SUM(G38:G41) -> 1.802668 | H42: 0 | I42: 0 | J42: 0.02267372592 | K42: 0.02210907426
A43: Total Electricty Charge on Two-Tier RPP | D43: =SUM(D14,D27,D28,D29,D35,D42) -> 85.05628 | G43: =SUM(G14,G27,G28,G29,G35,G42) -> 84.489596 | H43: -0.566684 | I43: -0.006662459256 | J43: 1.062699256
A44: HST | C44: 0.13 | D44: =D43*C44 -> 11.0573164 | F44: =C44 -> 0.13 | G44: =G43*F44 -> 10.98364748 | H44: -0.07366892 | I44: -0.006662459256 | J44: 0.1381509033
A45: Total Electricity Charge on Two-Tier RPP (including HST) | D45: =SUM(D43:D44) -> 96.1135964 | G45: =SUM(G43:G44) -> 95.47324348 | H45: -0.64035292 | I45: -0.006662459256 | J45: 1.200850159
A46: Ontario Electricity Rebate (OER) | C46: =IF(($B$4*12)<250000,VLOOKUP(A46,'Data Pass Through'!$A$4:$C$20,2,0),0) -> -0.189 | D46: =D43*C46 -> -16.07563692 | F46: =C46 -> -0.189 | G46: =G43*F46 -> -15.96853364 | H46: 0.107103276 | I46: 0.006662459256 | J46: -0.2008501594
A47: Total Amount on Two-Tier RPP | D47: =SUM(D45:D46) -> 80.03795948 | G47: =SUM(G45:G46) -> 79.50470984 | H47: -0.533249644 | I47: -0.006662459256 | J47: 1
A48: Total Electricty Charge on TOU (before HST) | D48: =SUM(D18,D27,D28,D30,D35,D42) -> 87.2140904 | G48: =SUM(G18,G27,G28,G30,G35,G42) -> 86.6474064 | H48: -0.566684 | I48: -0.006497619793 | K48: =G48/$G$52 -> 1.062699256
A49: HST | C49: 0.13 | D49: =D48*C49 -> 11.33783175 | F49: =C49 -> 0.13 | G49: =G48*F49 -> 11.26416283 | H49: -0.07366892 | I49: -0.006497619793 | K49: =G49/$G$52 -> 0.1381509033
A50: Total Electricity Charge on TOU (including HST) | D50: =SUM(D48:D49) -> 98.55192215 | G50: =SUM(G48:G49) -> 97.91156923 | H50: -0.64035292 | I50: -0.006497619793 | K50: =G50/$G$52 -> 1.200850159
A51: Ontario Electricity Rebate (OER) | C51: =IF(($B$4*12)<250000,VLOOKUP(A51,'Data Pass Through'!$A$4:$C$20,2,0),0) -> -0.189 | D51: =D48*C51 -> -16.48346309 | F51: =C51 -> -0.189 | G51: =G48*F51 -> -16.37635981 | H51: 0.107103276 | I51: 0.006497619793 | K51: =G51/$G$52 -> -0.2008501594
A52: Total Amount on TOU | D52: =SUM(D50:D51) -> 82.06845907 | G52: =SUM(G50:G51) -> 81.53520942 | H52: -0.533249644 | I52: -0.006497619793 | K52: =G52/$G$52 -> 1
A53: * Distribution rate protection applies to R1 and R2 customers

Sheet BI Template_Seasonal (hidden)
A1: 2023 Bill Impacts (Low Consumption Level) - Seas-UR
A3: Rate Class | B3: =VLOOKUP(A1,'Data BI List Acq_Seas'!C:E,2,FALSE) -> Seasonal | C3: =VLOOKUP(A1,'Data BI List Acq_Seas'!C:E,3,FALSE) -> UR
A4: Monthly Consumption (kWh) | B4: =IF(COUNTIF(A1,"*Low*")>0,VLOOKUP(B3,'Data Billing Quantities'!$A:$Z,MATCH("Low kWh",'Data Billing Quantities'!4:4,0),FALSE),IF(COUNTIF(A1,"*Typical*")>0,VLOOKUP(B3,'Data Billing Quantities'!$A:$Z,MATCH("Typical kWh",'Data Billing Quantities'!4:4,0),FALSE),IF(COUNTIF(A1,"*Average*")>0,VLOOKUP(B3,'Data Billing Quantities'!$A:$Z,MATCH("Average kWh",'Data Billing Quantities'!4:4,0),FALSE),IF(COUNTIF(A1,"*High*")>0,VLOOKUP(B3,'Data Billing Quantities'!$A:$Z,MATCH("High kWh",'Data Billing Quantities'!4:4,0),FALSE),"error")))) -> 40 | C4: =B4 -> 40
A5: Peak (kW) | B5: =IF(COUNTIF(A1,"*Low*")>0,VLOOKUP(B3,'Data Billing Quantities'!$A:$Z,MATCH("Low kW",'Data Billing Quantities'!4:4,0),FALSE),IF(COUNTIF(A1,"*Typical*")>0,VLOOKUP(B3,'Data Billing Quantities'!$A:$Z,MATCH("Typical kW",'Data Billing Quantities'!4:4,0),FALSE),IF(COUNTIF(A1,"*Average*")>0,VLOOKUP(B3,'Data Billing Quantities'!$A:$Z,MATCH("Average kW",'Data Billing Quantities'!4:4,0),FALSE),IF(COUNTIF(A1,"*High*")>0,VLOOKUP(B3,'Data Billing Quantities'!$A:$Z,MATCH("High kW",'Data Billing Quantities'!4:4,0),FALSE),"error")))) -> 0 | C5: =B5 -> 0
A6: Loss factor | B6: =VLOOKUP(B3,'Data Billing Quantities'!A:D,MATCH(A6,'Data Billing Quantities'!4:4,0),FALSE) -> 1.104 | C6: =VLOOKUP(C3,'Data Billing Quantities'!A:D,MATCH(A6,'Data Billing Quantities'!4:4,0),FALSE) -> 1.057
A7: Commodity Threshold | B7: =VLOOKUP(B3,'Data Billing Quantities'!A:D,MATCH(A7,'Data Billing Quantities'!4:4,0),FALSE) -> 600 | C7: =B7 -> 600
A8: Monthly Consumption (kWh) - Uplifted | B8: =B4*B6 -> 44.16 | C8: =C4*C6 -> 42.28
A9: Charge determinant | B9: =VLOOKUP(B3,'Data Billing Quantities'!A:D,MATCH(A9,'Data Billing Quantities'!4:4,0),FALSE) -> kWh | C9: =VLOOKUP(C3,'Data Billing Quantities'!A:D,MATCH(A9,'Data Billing Quantities'!4:4,0),FALSE) -> kWh
B11: Volume | C11: Current Rate ($) | D11: Current Charge ($) | E11: Volume | F11: Proposed Rate ($) | G11: Proposed Charge ($) | H11: Change ($) | I11: Change (%) | J11: % of Total Bill on RPP | K11: % of Total Bill
A12: Energy First Tier | B12: =IF(B4>B7,B7,B4) -> 40 | C12: =VLOOKUP($A12,'Data Pass Through'!$A:$D,2,FALSE) -> 0.098 | D12: =B12*C12 -> 3.92 | E12: =B12 -> 40 | F12: =VLOOKUP($A12,'Data Pass Through'!$A:$D,3,FALSE) -> 0.098 | G12: =E12*F12 -> 3.92 | H12: =G12-D12 -> 0 | I12: =IF(ISERROR(H12/ABS(D12)),"N/A",(H12/ABS(D12))) -> 0 | J12: =G12/$G$46 -> 0.09811889837
A13: Energy Second Tier | B13: =IF(B4>B7,(B4)-B7,0) -> 0 | C13: =VLOOKUP($A13,'Data Pass Through'!$A:$D,2,FALSE) -> 0.115 | D13: =B13*C13 -> 0 | E13: =B13 -> 0 | F13: =VLOOKUP($A13,'Data Pass Through'!$A:$D,3,FALSE) -> 0.115 | G13: =E13*F13 -> 0 | H13: 0 | I13: N/A | J13: =G13/$G$46 -> 0
A14: Sub-Total: Energy (RPP Tiered) | D14: =SUM(D12:D13) -> 3.92 | G14: =SUM(G12:G13) -> 3.92 | H14: 0 | I14: 0 | J14: =G14/$G$46 -> 0.09811889837
A15: TOU-Off Peak | B15: =B$4*VLOOKUP($B$3,'Data Billing Quantities'!$A:$O,MATCH('BI Template_Seasonal'!$A15,'Data Billing Quantities'!$4:$4,0),FALSE) -> 25.6 | C15: =VLOOKUP($A15,'Data Pass Through'!$A:$D,2,FALSE) -> 0.082 | D15: =B15*C15 -> 2.0992 | E15: 25.6 | F15: =VLOOKUP($A15,'Data Pass Through'!$A:$D,3,FALSE) -> 0.082 | G15: =E15*F15 -> 2.0992 | H15: 0 | I15: 0 | K15: =G15/$G$51 -> 0.05226159076
A16: TOU-Mid Peak | B16: =B$4*VLOOKUP($B$3,'Data Billing Quantities'!$A:$O,MATCH('BI Template_Seasonal'!$A16,'Data Billing Quantities'!$4:$4,0),FALSE) -> 7.2 | C16: =VLOOKUP($A16,'Data Pass Through'!$A:$D,2,FALSE) -> 0.113 | D16: =B16*C16 -> 0.8136 | E16: 7.2 | F16: =VLOOKUP($A16,'Data Pass Through'!$A:$D,3,FALSE) -> 0.113 | G16: =E16*F16 -> 0.8136 | H16: 0 | I16: 0 | K16: 0.02025534977
A17: TOU-On Peak | B17: =B$4*VLOOKUP($B$3,'Data Billing Quantities'!$A:$O,MATCH('BI Template_Seasonal'!$A17,'Data Billing Quantities'!$4:$4,0),FALSE) -> 7.2 | C17: =VLOOKUP($A17,'Data Pass Through'!$A:$D,2,FALSE) -> 0.17 | D17: =B17*C17 -> 1.224 | E17: 7.2 | F17: =VLOOKUP($A17,'Data Pass Through'!$A:$D,3,FALSE) -> 0.17 | G17: =E17*F17 -> 1.224 | H17: 0 | I17: 0 | K17: 0.0304726501
A18: Sub-Total: Energy (RPP TOU) | D18: =SUM(D15:D17) -> 4.1368 | G18: =SUM(G15:G17) -> 4.1368 | H18: 0 | I18: 0 | J18: =G18/$G$46 -> 0.1035454742 | K18: 0.1029895906
A19: Service Charge | B19: 1 | C19: =VLOOKUP($B$3,'Data Current Rates'!$A:$AP,MATCH('BI Template_Seasonal'!$A19,CurrentHeader,0),FALSE) -> 57.87 | D19: =B19*C19 -> 57.87 | E19: 1 | F19: =IF(C3="R2",(VLOOKUP($C$3,'Data Proposed Rates'!$A:$AZ,MATCH('BI Template_Seasonal'!$A19,ProposedHeader,0),FALSE)+'Data Pass Through'!B4),VLOOKUP($C$3,'Data Proposed Rates'!$A:$AZ,MATCH('BI Template_Seasonal'!$A19,ProposedHeader,0),FALSE)) -> 35.88 | G19: =E19*F19 -> 35.88 | H19: -21.99 | I19: -0.3799896319 | J19: 0.8980882841 | K19: 0.8932669
A20: Fixed Base Rate Adjustment to Recover Past Tax Amounts | B20: 1 | C20: =VLOOKUP($B$3,'Data Current Rates'!$A:$AP,MATCH('BI Template_Seasonal'!$A20,CurrentHeader,0),FALSE) -> 1.79 | D20: =B20*C20 -> 1.79 | E20: 1 | F20: =IF(C4="R2",(VLOOKUP($C$3,'Data Proposed Rates'!$A:$AZ,MATCH('BI Template_Seasonal'!$A20,ProposedHeader,0),FALSE)+'Data Pass Through'!B5),VLOOKUP($C$3,'Data Proposed Rates'!$A:$AZ,MATCH('BI Template_Seasonal'!$A20,ProposedHeader,0),FALSE)) -> 0.8 | G20: =E20*F20 -> 0.8 | H20: -0.99 | I20: -0.5530726257 | J20: 0.02002426497 | K20: 0.01991676477
A21: Group 2 Fixed DVA Rider | E21: 1 | F21: =VLOOKUP($C$3,'Data Proposed Rates'!$A:$AZ,MATCH('BI Template_Seasonal'!$A21,ProposedHeader,0),FALSE) -> -0.08 | G21: -0.08 | H21: -0.08 | I21: N/A | J21: -0.002002426497 | K21: -0.001991676477
A22: Distribution Volumetric Charge | B22: =IF($B$9="kWh",$B$4,$B$5) -> 40 | C22: =VLOOKUP($B$3,'Data Current Rates'!$A:$AP,MATCH('BI Template_Seasonal'!$A22,CurrentHeader,0),FALSE) -> 0.0308 | D22: 1.232 | E22: =IF($C$9="kWh",$C$4,$C$5) -> 40 | F22: =VLOOKUP($C$3,'Data Proposed Rates'!$A:$AZ,MATCH('BI Template_Seasonal'!$A22,ProposedHeader,0),FALSE) -> 0 | G22: 0 | H22: -1.232 | I22: -1 | J22: 0 | K22: 0
A23: Volumetric Base Rate Adjustment to Recover Past Tax Amounts | B23: =IF($B$9="kWh",$B$4,$B$5) -> 40 | C23: =VLOOKUP($B$3,'Data Current Rates'!$A:$AP,MATCH('BI Template_Seasonal'!$A23,CurrentHeader,0),FALSE) -> 0 | D23: 0 | E23: =IF($C$9="kWh",$C$4,$C$5) -> 40 | F23: =VLOOKUP($C$3,'Data Proposed Rates'!$A:$AZ,MATCH('BI Template_Seasonal'!$A23,ProposedHeader,0),FALSE) -> 0 | G23: =E23*F23 -> 0 | H23: 0 | I23: N/A | J23: 0 | K23: 0
A24: Group 1 Volumetric DVA Rider (General) | E24: =IF($C$9="kWh",$C$4,$C$5) -> 40 | F24: =VLOOKUP($C$3,'Data Proposed Rates'!$A:$AZ,MATCH('BI Template_Seasonal'!$A24,ProposedHeader,0),FALSE) -> -0.0004 | G24: -0.016 | H24: -0.016 | I24: N/A | J24: -0.0004004852995 | K24: -0.0003983352954
A25: Group 2 Volumetric DVA Rider | E25: 40 | F25: =VLOOKUP($C$3,'Data Proposed Rates'!$A:$AZ,MATCH('BI Template_Seasonal'!$A25,ProposedHeader,0),FALSE) -> 0 | G25: 0 | H25: 0 | I25: N/A | J25: 0 | K25: 0
A26: Sub-Total: Distribution (excluding pass through) | D26: =SUM(INDIRECT("D19:D"&ROW()-1)) -> 60.892 | G26: =SUM(INDIRECT("g19:g"&ROW()-1)) -> 36.584 | H26: =G26-D26 -> -24.308 | I26: -0.3991985811 | J26: 0.9157096373 | K26: 0.910793653
A27: Smart Metering Entity Charge | B27: =B19 -> 1 | C27: =VLOOKUP($A27,'Data Pass Through'!$A:$D,2,FALSE) -> 0.57 | D27: =B27*C27 -> 0.57 | E27: =E19 -> 1 | F27: =VLOOKUP($A27,'Data Pass Through'!$A:$D,3,FALSE) -> 0.57 | G27: =E27*F27 -> 0.57 | H27: 0 | I27: 0 | J27: 0.01426728879 | K27: 0.0141906949
A28: Line Losses on Cost of Power (based on two-tier RPP prices) | B28: =B8-B4 -> 4.16 | C28: =IF(B4>B7,C13,C12) -> 0.098 | D28: =B28*C28 -> 0.40768 | E28: =C8-C4 -> 2.28 | F28: =IF(C4>C7,F13,F12) -> 0.098 | G28: =E28*F28 -> 0.22344 | H28: -0.18424 | I28: -0.4519230769 | J28: 0.005592777207 | K28: 0.005562752401
A29: Line Losses on Cost of Power (based on TOU prices) | B29: =B8-B4 -> 4.16 | C29: =VLOOKUP($B$3,'Data Billing Quantities'!$A:$O,MATCH('BI Template_Seasonal'!$A15,'Data Billing Quantities'!$4:$4,0),FALSE)*C15+VLOOKUP($B$3,'Data Billing Quantities'!$A:$O,MATCH('BI Template_Seasonal'!$A16,'Data Billing Quantities'!$4:$4,0),FALSE)*C16+VLOOKUP($B$3,'Data Billing Quantities'!$A:$O,MATCH('BI Template_Seasonal'!$A17,'Data Billing Quantities'!$4:$4,0),FALSE)*C17 -> 0.10342 | D29: =B29*C29 -> 0.4302272 | E29: =C8-C4 -> 2.28 | F29: =VLOOKUP($C$3,'Data Billing Quantities'!$A:$O,MATCH('BI Template_Seasonal'!$A15,'Data Billing Quantities'!$4:$4,0),FALSE)*F15+VLOOKUP($C$3,'Data Billing Quantities'!$A:$O,MATCH('BI Template_Seasonal'!$A16,'Data Billing Quantities'!$4:$4,0),FALSE)*F16+VLOOKUP($C$3,'Data Billing Quantities'!$A:$O,MATCH('BI Template_Seasonal'!$A17,'Data Billing Quantities'!$4:$4,0),FALSE)*F17 -> 0.10342 | G29: =E29*F29 -> 0.2357976 | H29: -0.1944296 | I29: -0.4519230769 | J29: 0.005902092028 | K29: 0.005870406666
A30: Sub-Total: Distribution (based on two-tier RPP prices) | D30: =SUM(D26,D27:D28) -> 61.86968 | G30: =SUM(G26,G27:G28) -> 37.37744 | H30: -24.49224 | I30: -0.3958682185 | J30: 0.9355697033 | K30: 0.9305471003
A31: Sub-Total: Distribution (based on TOU prices) | D31: =SUM(D26,D27,D29) -> 61.8922272 | G31: =SUM(G26,G27,G29) -> 37.3897976 | H31: -24.5024296 | I31: -0.3958886391 | J31: 0.9358790181 | K31: 0.9308547546
A32: Retail Transmission Rate – Network Service Rate | B32: =IF($B$9="kWh",$B$8,$B$5) -> 44.16 | C32: =VLOOKUP($B$3,'Data Current Rates'!$A:$AP,MATCH('BI Template_Seasonal'!$A32,CurrentHeader,0),FALSE) -> 0.0077 | D32: =B32*C32 -> 0.340032 | E32: =IF($C$9="kWh",$C$8,$C$5) -> 42.28 | F32: =VLOOKUP($C$3,'Data Proposed Rates'!$A:$AZ,MATCH('BI Template_Seasonal'!$A32,ProposedHeader,0),FALSE) -> 0.0102 | G32: =E32*F32 -> 0.431256 | H32: =G32-D32 -> 0.091224 | I32: 0.2682806324 | J32: 0.01079448052 | K32: 0.01073653039
A33: Retail Transmission Rate – Line and Transformation Connection Service Rate | B33: =IF($B$9="kWh",$B$8,$B$5) -> 44.16 | C33: =VLOOKUP($B$3,'Data Current Rates'!$A:$AP,MATCH('BI Template_Seasonal'!$A33,CurrentHeader,0),FALSE) -> 0.0061 | D33: =B33*C33 -> 0.269376 | E33: =IF($C$9="kWh",$C$8,$C$5) -> 42.28 | F33: =VLOOKUP($C$3,'Data Proposed Rates'!$A:$AZ,MATCH('BI Template_Seasonal'!$A33,ProposedHeader,0),FALSE) -> 0.0074 | G33: =E33*F33 -> 0.312872 | H33: =G33-D33 -> 0.043496 | I33: 0.1614694702 | J33: 0.007831289789 | K33: 0.007789247535
A34: Sub-Total: Retail Transmission | D34: =SUM(D32:D33) -> 0.609408 | G34: =SUM(G32:G33) -> 0.744128 | H34: =G34-D34 -> 0.13472 | I34: 0.2210670027 | J34: 0.01862577031 | K34: 0.01852577792
A35: Sub-Total: Delivery (based on two-tier RPP prices) | D35: =D30+D34 -> 62.479088 | G35: =G30+G34 -> 38.121568 | H35: =G35-D35 -> -24.35752 | I35: -0.3898507609 | J35: 0.9541954736 | K35: 0.9490728782
A36: Sub-Total: Delivery (based on TOU prices) | D36: =D31+D34 -> 62.5016352 | G36: =G31+G34 -> 38.1339256 | H36: =G36-D36 -> -24.3677096 | I36: -0.3898731533 | J36: 0.9545047884 | K36: 0.9493805325
A37: Wholesale Market Service Rate (WMS) - not including CBR | B37: =B8 -> 44.16 | C37: =VLOOKUP($A37,'Data Pass Through'!$A:$D,2,FALSE) -> 0.003 | D37: =B37*C37 -> 0.13248 | E37: =$C$8 -> 42.28 | F37: =VLOOKUP($A37,'Data Pass Through'!$A:$D,3,FALSE) -> 0.003 | G37: =E37*F37 -> 0.12684 | H37: -0.00564 | I37: -0.04257246377 | J37: 0.003174847212 | K37: 0.003157803055
A38: Capacity Based Recovery (CBR) - Applicable for Class B Customers | B38: =B8 -> 44.16 | C38: =VLOOKUP($A38,'Data Pass Through'!$A:$D,2,FALSE) -> 0.0004 | D38: =B38*C38 -> 0.017664 | E38: =$C$8 -> 42.28 | F38: =VLOOKUP($A38,'Data Pass Through'!$A:$D,3,FALSE) -> 0.0004 | G38: =E38*F38 -> 0.016912 | H38: -0.000752 | I38: -0.04257246377 | J38: 0.0004233129615 | K38: 0.0004210404073
A39: Rural Rate Protection Charge | B39: =B8 -> 44.16 | C39: =VLOOKUP($A39,'Data Pass Through'!$A:$D,2,FALSE) -> 0.0005 | D39: 0.02208 | E39: 42.28 | F39: =VLOOKUP($A39,'Data Pass Through'!$A:$D,3,FALSE) -> 0.0005 | G39: 0.02114 | H39: -0.00094 | I39: -0.04257246377 | J39: 0.0005291412019 | K39: 0.0005263005091
A40: Standard Supply Service – Administration Charge (if applicable) | B40: 1 | C40: =VLOOKUP($A40,'Data Pass Through'!$A:$D,2,FALSE) -> 0.25 | D40: =B40*C40 -> 0.25 | E40: 1 | F40: =VLOOKUP($A40,'Data Pass Through'!$A:$D,3,FALSE) -> 0.25 | G40: 0.25 | H40: 0 | I40: 0 | J40: 0.006257582804 | K40: 0.006223988991
A41: Sub-Total: Regulatory | D41: =SUM(D37:D40) -> 0.422224 | G41: =SUM(G37:G40) -> 0.414892 | H41: -0.007332 | I41: -0.01736519004 | J41: 0.01038488418 | K41: 0.01032913296
A42: Total Electricty Charge on Two-Tier RPP | D42: =SUM(D14,D26,D27,D28,D34,D41) -> 66.821312 | G42: =SUM(G14,G26,G27,G28,G34,G41) -> 42.45646 | H42: -24.364852 | I42: -0.3646269621 | J42: 1.062699256
A43: HST | C43: 0.13 | D43: =D42*C43 -> 8.68677056 | F43: =C43 -> 0.13 | G43: =G42*F43 -> 5.5193398 | H43: -3.16743076 | I43: -0.3646269621 | J43: 0.1381509033
A44: Total Electricity Charge on Two-Tier RPP (including HST) | D44: =SUM(D42:D43) -> 75.50808256 | G44: =SUM(G42:G43) -> 47.9757998 | H44: -27.53228276 | I44: -0.3646269621 | J44: 1.200850159
A45: Ontario Electricity Rebate (OER) | C45: =IF(($B$4*12)<250000,VLOOKUP(A45,'Data Pass Through'!$A$4:$C$20,2,0),0) -> -0.189 | D45: =D42*C45 -> -12.62922797 | F45: =C45 -> -0.189 | G45: =G42*F45 -> -8.02427094 | H45: 4.604957028 | I45: 0.3646269621 | J45: -0.2008501594
A46: Total Amount on Two-Tier RPP | D46: =SUM(D44:D45) -> 62.87885459 | G46: =SUM(G44:G45) -> 39.95152886 | H46: -22.92732573 | I46: -0.3646269621 | J46: 1
A47: Total Electricty Charge on TOU (before HST) | D47: =SUM(D18,D26,D27,D29,D34,D41) -> 67.0606592 | G47: =SUM(G18,G26,G27,G29,G34,G41) -> 42.6856176 | H47: -24.3750416 | I47: -0.3634775126 | K47: =G47/$G$51 -> 1.062699256
A48: HST | C48: 0.13 | D48: =D47*C48 -> 8.717885696 | F48: =C48 -> 0.13 | G48: =G47*F48 -> 5.549130288 | H48: -3.168755408 | I48: -0.3634775126 | K48: =G48/$G$51 -> 0.1381509033
A49: Total Electricity Charge on TOU (including HST) | D49: =SUM(D47:D48) -> 75.7785449 | G49: =SUM(G47:G48) -> 48.23474789 | H49: -27.54379701 | I49: -0.3634775126 | K49: =G49/$G$51 -> 1.200850159
A50: Ontario Electricity Rebate (OER) | C50: =IF(($B$4*12)<250000,VLOOKUP(A50,'Data Pass Through'!$A$4:$C$20,2,0),0) -> -0.189 | D50: =D47*C50 -> -12.67446459 | F50: =C50 -> -0.189 | G50: =G47*F50 -> -8.067581726 | H50: 4.606882862 | I50: 0.3634775126 | K50: =G50/$G$51 -> -0.2008501594
A51: Total Amount on TOU | D51: =SUM(D49:D50) -> 63.10408031 | G51: =SUM(G49:G50) -> 40.16716616 | H51: -22.93691415 | I51: -0.3634775126 | K51: =G51/$G$51 -> 1
A52: * Distribution rate protection applies to R1 and R2 customers

Sheet BI Template_EnergyNPDI (hidden)
A1: 2023 Bill Impacts (Low Consumption Level) - AR_NPDI
A3: Rate Class | B3: =VLOOKUP(A1,'Data BI List Acq_Seas'!C:E,2,FALSE) -> NPDI_RES | C3: =VLOOKUP(A1,'Data BI List Acq_Seas'!C:E,3,FALSE) -> AR-NPDI
A4: Monthly Consumption (kWh) | B4: =IF(COUNTIF(A1,"*Low*")>0,VLOOKUP(B3,'Data Billing Quantities'!$A:$Z,MATCH("Low kWh",'Data Billing Quantities'!4:4,0),FALSE),IF(COUNTIF(A1,"*Typical*")>0,VLOOKUP(B3,'Data Billing Quantities'!$A:$Z,MATCH("Typical kWh",'Data Billing Quantities'!4:4,0),FALSE),IF(COUNTIF(A1,"*Average*")>0,VLOOKUP(B3,'Data Billing Quantities'!$A:$Z,MATCH("Average kWh",'Data Billing Quantities'!4:4,0),FALSE),IF(COUNTIF(A1,"*High*")>0,VLOOKUP(B3,'Data Billing Quantities'!$A:$Z,MATCH("High kWh",'Data Billing Quantities'!4:4,0),FALSE),"error")))) -> 290 | C4: =B4 -> 290
A5: Peak (kW) | B5: =IF(COUNTIF(A1,"*Low*")>0,VLOOKUP(B3,'Data Billing Quantities'!$A:$Z,MATCH("Low kW",'Data Billing Quantities'!4:4,0),FALSE),IF(COUNTIF(A1,"*Typical*")>0,VLOOKUP(B3,'Data Billing Quantities'!$A:$Z,MATCH("Typical kW",'Data Billing Quantities'!4:4,0),FALSE),IF(COUNTIF(A1,"*Average*")>0,VLOOKUP(B3,'Data Billing Quantities'!$A:$Z,MATCH("Average kW",'Data Billing Quantities'!4:4,0),FALSE),IF(COUNTIF(A1,"*High*")>0,VLOOKUP(B3,'Data Billing Quantities'!$A:$Z,MATCH("High kW",'Data Billing Quantities'!4:4,0),FALSE),"error")))) -> 0 | C5: =B5 -> 0
A6: Loss factor | B6: =VLOOKUP(B3,'Data Billing Quantities'!A:D,MATCH(A6,'Data Billing Quantities'!4:4,0),FALSE) -> 1.0564 | C6: =VLOOKUP(C3,'Data Billing Quantities'!A:D,MATCH(A6,'Data Billing Quantities'!4:4,0),FALSE) -> 1.064
A7: Commodity Threshold | B7: =VLOOKUP(B3,'Data Billing Quantities'!A:D,MATCH(A7,'Data Billing Quantities'!4:4,0),FALSE) -> 600 | C7: =B7 -> 600
A8: Monthly Consumption (kWh) - Uplifted | B8: =B4*B6 -> 306.356 | C8: =C4*C6 -> 308.56
A9: Charge determinant | B9: =VLOOKUP(B3,'Data Billing Quantities'!A:D,MATCH(A9,'Data Billing Quantities'!4:4,0),FALSE) -> kWh | C9: =VLOOKUP(C3,'Data Billing Quantities'!A:D,MATCH(A9,'Data Billing Quantities'!4:4,0),FALSE) -> kWh
B11: Volume | C11: Current Rate ($) | D11: Current Charge ($) | E11: Volume | F11: Proposed Rate ($) | G11: Proposed Charge ($) | H11: Change ($) | I11: Change (%) | J11: % of Total Bill on RPP | K11: % of Total Bill
A12: Energy First Tier | B12: =IF(B4>B7,B7,B4) -> 290 | C12: =VLOOKUP($A12,'Data Pass Through'!$A:$D,2,FALSE) -> 0.098 | D12: =B12*C12 -> 28.42 | E12: =B12 -> 290 | F12: =VLOOKUP($A12,'Data Pass Through'!$A:$D,3,FALSE) -> 0.098 | G12: =E12*F12 -> 28.42 | H12: =G12-D12 -> 0 | I12: =IF(ISERROR(H12/ABS(D12)),"N/A",(H12/ABS(D12))) -> 0 | J12: =G12/$G$44 -> 0.4111505581
A13: Energy Second Tier | B13: =IF(B4>B7,(B4)-B7,0) -> 0 | C13: =VLOOKUP($A13,'Data Pass Through'!$A:$D,2,FALSE) -> 0.115 | D13: =B13*C13 -> 0 | E13: =B13 -> 0 | F13: =VLOOKUP($A13,'Data Pass Through'!$A:$D,3,FALSE) -> 0.115 | G13: =E13*F13 -> 0 | H13: 0 | I13: N/A | J13: =G13/$G$44 -> 0
A14: Sub-Total: Energy (RPP Tiered) | D14: =SUM(D12:D13) -> 28.42 | G14: =SUM(G12:G13) -> 28.42 | H14: 0 | I14: 0 | J14: =G14/$G$44 -> 0.4111505581
A15: TOU-Off Peak | B15: =B$4*VLOOKUP($B$3,'Data Billing Quantities'!$A:$O,MATCH('BI Template_EnergyNPDI'!$A15,'Data Billing Quantities'!$4:$4,0),FALSE) -> 185.6 | C15: =VLOOKUP($A15,'Data Pass Through'!$A:$D,2,FALSE) -> 0.082 | D15: =B15*C15 -> 15.2192 | E15: 185.6 | F15: =VLOOKUP($A15,'Data Pass Through'!$A:$D,3,FALSE) -> 0.082 | G15: =E15*F15 -> 15.2192 | H15: 0 | I15: 0 | K15: =G15/$G$49 -> 0.2152741773
A16: TOU-Mid Peak | B16: =B$4*VLOOKUP($B$3,'Data Billing Quantities'!$A:$O,MATCH('BI Template_EnergyNPDI'!$A16,'Data Billing Quantities'!$4:$4,0),FALSE) -> 52.2 | C16: =VLOOKUP($A16,'Data Pass Through'!$A:$D,2,FALSE) -> 0.113 | D16: =B16*C16 -> 5.8986 | E16: 52.2 | F16: =VLOOKUP($A16,'Data Pass Through'!$A:$D,3,FALSE) -> 0.113 | G16: =E16*F16 -> 5.8986 | H16: 0 | I16: 0 | K16: 0.08343515179
A17: TOU-On Peak | B17: =B$4*VLOOKUP($B$3,'Data Billing Quantities'!$A:$O,MATCH('BI Template_EnergyNPDI'!$A17,'Data Billing Quantities'!$4:$4,0),FALSE) -> 52.2 | C17: =VLOOKUP($A17,'Data Pass Through'!$A:$D,2,FALSE) -> 0.17 | D17: =B17*C17 -> 8.874 | E17: 52.2 | F17: =VLOOKUP($A17,'Data Pass Through'!$A:$D,3,FALSE) -> 0.17 | G17: =E17*F17 -> 8.874 | H17: 0 | I17: 0 | K17: 0.1255219098
A18: Sub-Total: Energy (RPP TOU) | D18: =SUM(D15:D17) -> 29.9918 | G18: =SUM(G15:G17) -> 29.9918 | H18: 0 | I18: 0 | J18: =G18/$G$44 -> 0.4338897012 | K18: 0.4242312388
A19: Service Charge | B19: 1 | C19: =VLOOKUP($B$3,'Data Current Rates'!$A:$AP,MATCH('BI Template_EnergyNPDI'!$A19,CurrentHeader,0),FALSE) -> 38.69 | D19: =B19*C19 -> 38.69 | E19: 1 | F19: =VLOOKUP($C$3,'Data Proposed Rates'!$A:$AZ,MATCH('BI Template_EnergyNPDI'!$A19,ProposedHeader,0),FALSE) -> 35.94 | G19: =E19*F19 -> 35.94 | H19: -2.75 | I19: -0.07107779788 | J19: 0.5199419795 | K19: 0.508367978
A20: Distribution Volumetric Charge | B20: =IF($B$9="kWh",$B$4,$B$5) -> 290 | C20: =VLOOKUP($B$3,'Data Current Rates'!$A:$AP,MATCH('BI Template_EnergyNPDI'!$A20,CurrentHeader,0),FALSE) -> 0 | D20: =B20*C20 -> 0 | E20: =IF($C$9="kWh",$C$4,$C$5) -> 290 | F20: =VLOOKUP($C$3,'Data Proposed Rates'!$A:$AZ,MATCH('BI Template_EnergyNPDI'!$A20,ProposedHeader,0),FALSE) -> 0 | G20: 0 | H20: 0 | I20: N/A | J20: 0 | K20: 0
A21: Low Voltage Service Rate | B21: =IF($B$9="kWh",$B$4,$B$5) -> 290 | C21: =VLOOKUP($B$3,'Data Current Rates'!$A:$AP,MATCH('BI Template_EnergyNPDI'!$A21,CurrentHeader,0),FALSE) -> 0.0009 | D21: 0.261 | H21: =G21-D21 -> -0.261 | I21: =IF(ISERROR(H21/ABS(D21)),"N/A",(H21/ABS(D21))) -> -1 | J21: 0 | K21: 0
A22: Rate Rider for Application of Tax Change | B22: 290 | C22: =VLOOKUP($B$3,'Data Current Rates'!$A:$AP,MATCH('BI Template_EnergyNPDI'!$A22,CurrentHeader,0),FALSE) -> 0.0002 | D22: 0.058 | H22: -0.058 | I22: -1 | J22: 0 | K22: 0
A23: Group 1 Volumetric DVA Rider (General) | E23: =IF($C$9="kWh",$C$4,$C$5) -> 290 | F23: =VLOOKUP($C$3,'Data Proposed Rates'!$A:$AZ,MATCH('BI Template_EnergyNPDI'!$A23,ProposedHeader,0),FALSE) -> -0.0005 | G23: -0.145 | H23: -0.145 | I23: N/A | J23: -0.002097706929 | K23: -0.002051011598
A24: Sub-Total: Distribution (excluding pass through) | D24: =SUM(INDIRECT("D19:D"&ROW()-1)) -> 39.009 | G24: =SUM(INDIRECT("g19:g"&ROW()-1)) -> 35.795 | H24: =G24-D24 -> -3.214 | I24: -0.08239124305 | J24: =G24/$G$44 -> 0.5178442726 | K24: =G24/$G$49 -> 0.5063169664
A25: Smart Metering Entity Charge | B25: =B19 -> 1 | C25: =VLOOKUP($A25,'Data Pass Through'!$A:$D,2,FALSE) -> 0.57 | D25: =B25*C25 -> 0.57 | E25: =E19 -> 1 | F25: =VLOOKUP($A25,'Data Pass Through'!$A:$D,3,FALSE) -> 0.57 | G25: =E25*F25 -> 0.57 | H25: 0 | I25: 0 | J25: 0.008246158273 | K25: 0.008062597314
A26: Line Losses on Cost of Power (based on two-tier RPP prices) | B26: =B8-B4 -> 16.356 | C26: =IF(B4>B7,C13,C12) -> 0.098 | D26: =B26*C26 -> 1.602888 | E26: =C8-C4 -> 18.56 | F26: =IF(C4>C7,F13,F12) -> 0.098 | G26: =E26*F26 -> 1.81888 | H26: 0.215992 | I26: 0.134751773 | J26: 0.02631363572 | K26: 0.02572788948
A27: Line Losses on Cost of Power (based on TOU prices) | B27: =B8-B4 -> 16.356 | C27: =VLOOKUP($B$3,'Data Billing Quantities'!$A:$O,MATCH('BI Template_EnergyNPDI'!$A15,'Data Billing Quantities'!$4:$4,0),FALSE)*C15+VLOOKUP($B$3,'Data Billing Quantities'!$A:$O,MATCH('BI Template_EnergyNPDI'!$A16,'Data Billing Quantities'!$4:$4,0),FALSE)*C16+VLOOKUP($B$3,'Data Billing Quantities'!$A:$O,MATCH('BI Template_EnergyNPDI'!$A17,'Data Billing Quantities'!$4:$4,0),FALSE)*C17 -> 0.10342 | D27: =B27*C27 -> 1.69153752 | E27: =C8-C4 -> 18.56 | F27: =VLOOKUP($C$3,'Data Billing Quantities'!$A:$O,MATCH('BI Template_EnergyNPDI'!$A15,'Data Billing Quantities'!$4:$4,0),FALSE)*F15+VLOOKUP($C$3,'Data Billing Quantities'!$A:$O,MATCH('BI Template_EnergyNPDI'!$A16,'Data Billing Quantities'!$4:$4,0),FALSE)*F16+VLOOKUP($C$3,'Data Billing Quantities'!$A:$O,MATCH('BI Template_EnergyNPDI'!$A17,'Data Billing Quantities'!$4:$4,0),FALSE)*F17 -> 0.10342 | G27: =E27*F27 -> 1.9194752 | H27: 0.22793768 | I27: 0.134751773 | J27: 0.02776894088 | K27: 0.02715079929
A28: Sub-Total: Distribution (based on two-tier RPP prices) | D28: =SUM(D24,D25:D26) -> 41.181888 | G28: =SUM(G24,G25:G26) -> 38.18388 | H28: -2.998008 | I28: -0.07279918784 | J28: 0.5524040666 | K28: 0.5401074532
A29: Sub-Total: Distribution (based on TOU prices) | D29: =SUM(D24,D25,D27) -> 41.27053752 | G29: =SUM(G24,G25,G27) -> 38.2844752 | H29: -2.98606232 | I29: -0.07235336633 | J29: 0.5538593717 | K29: 0.541530363
A30: Retail Transmission Rate – Network Service Rate | B30: =IF($B$9="kWh",$B$8,$B$5) -> 306.356 | C30: =VLOOKUP($B$3,'Data Current Rates'!$A:$AP,MATCH('BI Template_EnergyNPDI'!$A30,CurrentHeader,0),FALSE) -> 0.0083 | D30: =B30*C30 -> 2.5427548 | E30: =IF($C$9="kWh",$C$8,$C$5) -> 308.56 | F30: =VLOOKUP($C$3,'Data Proposed Rates'!$A:$AZ,MATCH('BI Template_EnergyNPDI'!$A30,ProposedHeader,0),FALSE) -> 0.0101 | G30: =E30*F30 -> 3.116456 | H30: =G30-D30 -> 0.5737012 | I30: 0.2256219121 | J30: 0.04508559548 | K30: 0.04408198206
A31: Retail Transmission Rate – Line and Transformation Connection Service Rate | B31: =IF($B$9="kWh",$B$8,$B$5) -> 306.356 | C31: =VLOOKUP($B$3,'Data Current Rates'!$A:$AP,MATCH('BI Template_EnergyNPDI'!$A31,CurrentHeader,0),FALSE) -> 0.0039 | D31: =B31*C31 -> 1.1947884 | E31: =IF($C$9="kWh",$C$8,$C$5) -> 308.56 | F31: =VLOOKUP($C$3,'Data Proposed Rates'!$A:$AZ,MATCH('BI Template_EnergyNPDI'!$A31,ProposedHeader,0),FALSE) -> 0.0074 | G31: =E31*F31 -> 2.283344 | H31: =G31-D31 -> 1.0885556 | I31: 0.9110865154 | J31: 0.03303301055 | K31: 0.03229768983
A32: Sub-Total: Retail Transmission | D32: =SUM(D30:D31) -> 3.7375432 | G32: =SUM(G30:G31) -> 5.3998 | H32: =G32-D32 -> 1.6622568 | I32: 0.4447458427 | J32: 0.07811860604 | K32: 0.07637967189
A33: Sub-Total: Delivery (based on two-tier RPP prices) | D33: =D28+D32 -> 44.9194312 | G33: =G28+G32 -> 43.58368 | H33: =G33-D33 -> -1.3357512 | I33: -0.02973660094 | J33: 0.6305226726 | K33: 0.6164871251
A34: Sub-Total: Delivery (based on TOU prices) | D34: =D29+D32 -> 45.00808072 | G34: =G29+G32 -> 43.6842752 | H34: =G34-D34 -> -1.32380552 | I34: -0.02941261877 | J34: 0.6319779778 | K34: 0.6179100349
A35: Wholesale Market Service Rate (WMS) - not including CBR | B35: =B8 -> 306.356 | C35: =VLOOKUP($A35,'Data Pass Through'!$A:$D,2,FALSE) -> 0.003 | D35: =B35*C35 -> 0.919068 | E35: =$C$8 -> 308.56 | F35: =VLOOKUP($A35,'Data Pass Through'!$A:$D,3,FALSE) -> 0.003 | G35: =E35*F35 -> 0.92568 | H35: 0.006612 | I35: 0.007194244604 | J35: 0.01339176103 | K35: 0.01309365804
A36: Capacity Based Recovery (CBR) - Applicable for Class B Customers | B36: =B8 -> 306.356 | C36: =VLOOKUP($A36,'Data Pass Through'!$A:$D,2,FALSE) -> 0.0004 | D36: =B36*C36 -> 0.1225424 | E36: =$C$8 -> 308.56 | F36: =VLOOKUP($A36,'Data Pass Through'!$A:$D,3,FALSE) -> 0.0004 | G36: =E36*F36 -> 0.123424 | H36: 0.0008816 | I36: 0.007194244604 | J36: 0.001785568138 | K36: 0.001745821072
A37: Rural Rate Protection Charge | B37: =B8 -> 306.356 | C37: =VLOOKUP($A37,'Data Pass Through'!$A:$D,2,FALSE) -> 0.0005 | D37: 0.153178 | E37: 308.56 | F37: =VLOOKUP($A37,'Data Pass Through'!$A:$D,3,FALSE) -> 0.0005 | G37: 0.15428 | H37: 0.001102 | I37: 0.007194244604 | J37: 0.002231960172 | K37: 0.00218227634
A38: Standard Supply Service – Administration Charge (if applicable) | B38: 1 | C38: =VLOOKUP($A38,'Data Pass Through'!$A:$D,2,FALSE) -> 0.25 | D38: =B38*C38 -> 0.25 | E38: 1 | F38: =VLOOKUP($A38,'Data Pass Through'!$A:$D,3,FALSE) -> 0.25 | G38: 0.25 | H38: 0 | I38: 0 | J38: 0.003616736084 | K38: 0.003536226892
A39: Sub-Total: Regulatory | D39: =SUM(D35:D38) -> 1.4447884 | G39: =SUM(G35:G38) -> 1.453384 | H39: 0.0085956 | I39: 0.005949383315 | J39: 0.02102602543 | K39: 0.02055798234
A40: Total Electricty Charge on Two-Tier RPP | D40: =SUM(D14,D24,D25,D26,D32,D39) -> 74.7842196 | G40: =SUM(G14,G24,G25,G26,G32,G39) -> 73.457064 | H40: -1.3271556 | I40: -0.01774646586 | J40: 1.062699256
A41: HST | C41: 0.13 | D41: =D40*C41 -> 9.721948548 | F41: =C41 -> 0.13 | G41: =G40*F41 -> 9.54941832 | H41: -0.172530228 | I41: -0.01774646586 | J41: 0.1381509033
A42: Total Electricity Charge on Two-Tier RPP (including HST) | D42: =SUM(D40:D41) -> 84.50616815 | G42: =SUM(G40:G41) -> 83.00648232 | H42: -1.499685828 | I42: -0.01774646586 | J42: 1.200850159
A43: Ontario Electricity Rebate (OER) | C43: =IF(($B$4*12)<250000,VLOOKUP(A43,'Data Pass Through'!$A$4:$C$20,2,0),0) -> -0.189 | D43: =D40*C43 -> -14.1342175 | F43: =C43 -> -0.189 | G43: =G40*F43 -> -13.8833851 | H43: 0.2508324084 | I43: 0.01774646586 | J43: -0.2008501594
A44: Total Amount on Two-Tier RPP | D44: =SUM(D42:D43) -> 70.37195064 | G44: =SUM(G42:G43) -> 69.12309722 | H44: -1.24885342 | I44: -0.01774646586 | J44: 1
A45: Total Electricty Charge on TOU (before HST) | D45: =SUM(D18,D24,D25,D27,D32,D39) -> 76.44466912 | G45: =SUM(G18,G24,G25,G27,G32,G39) -> 75.1294592 | H45: -1.31520992 | I45: -0.01720473036 | K45: =G45/$G$49 -> 1.062699256
A46: HST | C46: 0.13 | D46: =D45*C46 -> 9.937806986 | F46: =C46 -> 0.13 | G46: =G45*F46 -> 9.766829696 | H46: -0.1709772896 | I46: -0.01720473036 | K46: =G46/$G$49 -> 0.1381509033
A47: Total Electricity Charge on TOU (including HST) | D47: =SUM(D45:D46) -> 86.38247611 | G47: =SUM(G45:G46) -> 84.8962889 | H47: -1.48618721 | I47: -0.01720473036 | K47: =G47/$G$49 -> 1.200850159
A48: Ontario Electricity Rebate (OER) | C48: =IF(($B$4*12)<250000,VLOOKUP(A48,'Data Pass Through'!$A$4:$C$20,2,0),0) -> -0.189 | D48: =D45*C48 -> -14.44804246 | F48: =C48 -> -0.189 | G48: =G45*F48 -> -14.19946779 | H48: 0.2485746749 | I48: 0.01720473036 | K48: =G48/$G$49 -> -0.2008501594
A49: Total Amount on TOU | D49: =SUM(D47:D48) -> 71.93443364 | G49: =SUM(G47:G48) -> 70.69682111 | H49: -1.237612535 | I49: -0.01720473036 | K49: =G49/$G$49 -> 1

Sheet BI Template_DemandNPDI (hidden)
A1: 2023 Bill Impacts (Low Consumption Level) - AGSd_NPDI
A3: Rate Class | B3: =VLOOKUP(A1,'Data BI List Acq_Seas'!C:E,2,FALSE) -> NPDI_GS >50 | C3: =VLOOKUP(A1,'Data BI List Acq_Seas'!C:E,3,FALSE) -> AGSd-NPDI
A4: Monthly Consumption (kWh) | B4: =IF(COUNTIF(A1,"*Low*")>0,VLOOKUP(B3,'Data Billing Quantities'!$A:$Z,MATCH("Low kWh",'Data Billing Quantities'!4:4,0),FALSE),IF(COUNTIF(A1,"*Typical*")>0,VLOOKUP(B3,'Data Billing Quantities'!$A:$Z,MATCH("Typical kWh",'Data Billing Quantities'!4:4,0),FALSE),IF(COUNTIF(A1,"*Average*")>0,VLOOKUP(B3,'Data Billing Quantities'!$A:$Z,MATCH("Average kWh",'Data Billing Quantities'!4:4,0),FALSE),IF(COUNTIF(A1,"*High*")>0,VLOOKUP(B3,'Data Billing Quantities'!$A:$Z,MATCH("High kWh",'Data Billing Quantities'!4:4,0),FALSE),"error")))) -> 13020 | C4: =B4 -> 13020
A5: Peak (kW) | B5: =IF(COUNTIF(A1,"*Low*")>0,VLOOKUP(B3,'Data Billing Quantities'!$A:$Z,MATCH("Low kW",'Data Billing Quantities'!4:4,0),FALSE),IF(COUNTIF(A1,"*Typical*")>0,VLOOKUP(B3,'Data Billing Quantities'!$A:$Z,MATCH("Typical kW",'Data Billing Quantities'!4:4,0),FALSE),IF(COUNTIF(A1,"*Average*")>0,VLOOKUP(B3,'Data Billing Quantities'!$A:$Z,MATCH("Average kW",'Data Billing Quantities'!4:4,0),FALSE),IF(COUNTIF(A1,"*High*")>0,VLOOKUP(B3,'Data Billing Quantities'!$A:$Z,MATCH("High kW",'Data Billing Quantities'!4:4,0),FALSE),"error")))) -> 55 | C5: =B5 -> 55
A6: Loss factor | B6: =VLOOKUP(B3,'Data Billing Quantities'!A:D,MATCH(A6,'Data Billing Quantities'!4:4,0),FALSE) -> 1.0464 | C6: =VLOOKUP(C3,'Data Billing Quantities'!A:D,MATCH(A6,'Data Billing Quantities'!4:4,0),FALSE) -> 1.053
A7: Commodity Threshold | B7: =VLOOKUP(B3,'Data Billing Quantities'!A:D,MATCH(A7,'Data Billing Quantities'!4:4,0),FALSE) -> 0 | C7: =B7 -> 0
A8: Monthly Consumption (kWh) - Uplifted | B8: =B4*B6 -> 13624.128 | C8: =C4*C6 -> 13710.06
A9: Charge determinant | B9: =VLOOKUP(B3,'Data Billing Quantities'!A:D,MATCH(A9,'Data Billing Quantities'!4:4,0),FALSE) -> kW | C9: =VLOOKUP(C3,'Data Billing Quantities'!A:D,MATCH(A9,'Data Billing Quantities'!4:4,0),FALSE) -> kW
B11: Volume | C11: Current Rate ($) | D11: Current Charge ($) | E11: Volume | F11: Proposed Rate ($) | G11: Proposed Charge ($) | H11: Change ($) | I11: Change (%) | J11: % of Total Bill
A12: Weighted Average Hourly Spot Price | B12: =B8 -> 13624.128 | C12: =VLOOKUP($A12,'Data Pass Through'!$A:$D,2,FALSE) -> 0.119 | D12: =B12*C12 -> 1621.271232 | E12: =C8 -> 13710.06 | F12: =VLOOKUP($A12,'Data Pass Through'!$A:$D,3,FALSE) -> 0.119 | G12: =E12*F12 -> 1631.49714 | H12: =G12-D12 -> 10.225908 | I12: =IF(ISERROR(H12/ABS(D12)),"N/A",(H12/ABS(D12))) -> 0.00630733945 | J12: =G12/G$33 -> 0.6254991821
A13: Sub-Total: Energy (WASHP) | D13: =SUM(D12:D12) -> 1621.271232 | G13: =SUM(G12:G12) -> 1631.49714 | H13: 10.225908 | I13: 0.00630733945 | J13: 0.6254991821
A14: Service Charge | B14: 1 | C14: =VLOOKUP($B$3,'Data Current Rates'!$A:$AP,MATCH('BI Template_DemandNPDI'!$A14,CurrentHeader,0),FALSE) -> 258.16 | D14: =B14*C14 -> 258.16 | E14: 1 | F14: =VLOOKUP($C$3,'Data Proposed Rates'!$A:$AZ,MATCH('BI Template_DemandNPDI'!$A14,ProposedHeader,0),FALSE) -> 171.2 | G14: =E14*F14 -> 171.2 | H14: -86.96 | I14: -0.3368453672 | J14: 0.06563631486
A15: Distribution Volumetric Charge | B15: =IF($B$9="kWh",$B$4,$B$5) -> 55 | C15: =VLOOKUP($B$3,'Data Current Rates'!$A:$AP,MATCH('BI Template_DemandNPDI'!$A15,CurrentHeader,0),FALSE) -> 4.1636 | D15: =B15*C15 -> 228.998 | E15: =IF($C$9="kWh",$C$4,$C$5) -> 55 | F15: =VLOOKUP($C$3,'Data Proposed Rates'!$A:$AZ,MATCH('BI Template_DemandNPDI'!$A15,ProposedHeader,0),FALSE) -> 4.0886 | G15: 224.873 | H15: -4.125 | I15: -0.01801325776 | J15: 0.08621398967
A16: Low Voltage Service Rate | B16: =IF($B$9="kWh",$B$4,$B$5) -> 55 | C16: =VLOOKUP($B$3,'Data Current Rates'!$A:$AP,MATCH('BI Template_DemandNPDI'!$A16,CurrentHeader,0),FALSE) -> 0.305 | D16: 16.775 | H16: -16.775 | I16: -1 | J16: 0
A17: Rate Rider for Application of Tax Change | B17: 55 | C17: =VLOOKUP($B$3,'Data Current Rates'!$A:$AP,MATCH('BI Template_DemandNPDI'!$A17,CurrentHeader,0),FALSE) -> 0.0211 | D17: 1.1605 | H17: -1.1605 | I17: -1 | J17: 0
A18: Group 1 Volumetric DVA Rider (General) | E18: =IF($C$9="kWh",$C$4,$C$5) -> 55 | F18: =VLOOKUP($C$3,'Data Proposed Rates'!$A:$AZ,MATCH('BI Template_DemandNPDI'!$A18,ProposedHeader,0),FALSE) -> -0.0388 | G18: -2.134 | H18: -2.134 | I18: N/A | J18: -0.0008181535976
A19: Group 1 Volumetric Deferral/Variance Account Rider (Sub-Account RSVA Wholesale Market Service Charge & RSVA Power) | E19: 55 | F19: =VLOOKUP($C$3,'Data Proposed Rates'!$A:$AZ,MATCH('BI Template_DemandNPDI'!$A19,ProposedHeader,0),FALSE) -> -0.081 | G19: -4.455 | H19: -4.455 | I19: N/A | J19: -0.001708001067
A20: Group 1 Volumetric Deferral/Variance Account Rider (Sub-Account Global Adjustment) | E20: =C4 -> 13020 | F20: =VLOOKUP($C$3,'Data Proposed Rates'!$A:$AZ,MATCH('BI Template_DemandNPDI'!$A20,ProposedHeader,0),FALSE) -> -0.0007 | G20: -9.114 | H20: -9.114 | I20: N/A | J20: -0.003494213631
A21: Sub-Total: Distribution | D21: =SUM(INDIRECT("D14:D"&ROW()-1)) -> 505.0935 | G21: =SUM(INDIRECT("g14:g"&ROW()-1)) -> 380.37 | H21: =G21-D21 -> -124.7235 | I21: -0.2469315087 | J21: 0.1458299362
A22: Retail Transmission Rate – Network Service Rate | B22: =IF($B$9="kWh",$B$4,$B$5) -> 55 | C22: =VLOOKUP($B$3,'Data Current Rates'!$A:$AP,MATCH('BI Template_DemandNPDI'!$A22,CurrentHeader,0),FALSE) -> 3.1089 | D22: =B22*C22 -> 170.9895 | E22: =IF($C$9="kWh",$C$4,$C$5) -> 55 | F22: =VLOOKUP($C$3,'Data Proposed Rates'!$A:$AZ,MATCH('BI Template_DemandNPDI'!$A22,ProposedHeader,0),FALSE) -> 2.4941 | G22: =E22*F22 -> 137.1755 | H22: =G22-D22 -> -33.814 | I22: -0.1977548329 | J22: 0.05259167237
A23: Retail Transmission Rate – Line and Transformation Connection Service Rate | B23: =IF($B$9="kWh",$B$4,$B$5) -> 55 | C23: =VLOOKUP($B$3,'Data Current Rates'!$A:$AP,MATCH('BI Template_DemandNPDI'!$A23,CurrentHeader,0),FALSE) -> 1.3103 | D23: =B23*C23 -> 72.0665 | E23: =IF($C$9="kWh",$C$4,$C$5) -> 55 | F23: =VLOOKUP($C$3,'Data Proposed Rates'!$A:$AZ,MATCH('BI Template_DemandNPDI'!$A23,ProposedHeader,0),FALSE) -> 1.9178 | G23: =E23*F23 -> 105.479 | H23: =G23-D23 -> 33.4125 | I23: 0.4636342822 | J23: 0.04043956107
A24: Sub-Total: Retail Transmission | D24: =SUM(D22:D23) -> 243.056 | G24: =SUM(G22:G23) -> 242.6545 | H24: =G24-D24 -> -0.4015 | I24: -0.001651882694 | J24: 0.09303123344
A25: Sub-Total: Delivery (based on two-tier RPP prices) | D25: =SUM(D21,D24) -> 748.1495 | G25: =SUM(G21,G24) -> 623.0245 | H25: =G25-D25 -> -125.125 | I25: -0.1672459849 | J25: 0.2388611697
A26: Wholesale Market Service Rate (WMS) - not including CBR | B26: =B8 -> 13624.128 | C26: =VLOOKUP($A26,'Data Pass Through'!$A:$D,2,FALSE) -> 0.003 | D26: =B26*C26 -> 40.872384 | E26: =$C$8 -> 13710.06 | F26: =VLOOKUP($A26,'Data Pass Through'!$A:$D,3,FALSE) -> 0.003 | G26: =E26*F26 -> 41.13018 | H26: =G26-D26 -> 0.257796 | I26: 0.00630733945 | J26: 0.01576888694
A27: Capacity Based Recovery (CBR) - Applicable for Class B Customers | B27: =B8 -> 13624.128 | C27: =VLOOKUP($A27,'Data Pass Through'!$A:$D,2,FALSE) -> 0.0004 | D27: =B27*C27 -> 5.4496512 | E27: =$C$8 -> 13710.06 | F27: =VLOOKUP($A27,'Data Pass Through'!$A:$D,3,FALSE) -> 0.0004 | G27: =E27*F27 -> 5.484024 | H27: 0.0343728 | I27: 0.00630733945 | J27: 0.002102518259
A28: Rural Rate Protection Charge | B28: =B8 -> 13624.128 | C28: =VLOOKUP($A28,'Data Pass Through'!$A:$D,2,FALSE) -> 0.0005 | D28: 6.812064 | E28: 13710.06 | F28: =VLOOKUP($A28,'Data Pass Through'!$A:$D,3,FALSE) -> 0.0005 | G28: 6.85503 | H28: 0.042966 | I28: 0.00630733945 | J28: 0.002628147824
A29: Standard Supply Service – Administration Charge (if applicable) | B29: 1 | C29: =VLOOKUP($A29,'Data Pass Through'!$A:$D,2,FALSE) -> 0.25 | D29: =B29*C29 -> 0.25 | E29: =B29 -> 1 | F29: =VLOOKUP($A29,'Data Pass Through'!$A:$D,3,FALSE) -> 0.25 | G29: 0.25 | H29: 0 | I29: 0 | J29: 9.58474224e-05
A30: Sub-Total: Regulatory | D30: =SUM(D26:D29) -> 53.3840992 | G30: =SUM(G26:G29) -> 53.719234 | H30: 0.3351348 | I30: 0.006277801911 | J30: 0.02059540045
A31: Total Electricity Charge on WAHSP | D31: =SUM(D13,D25,D30) -> 2422.804831 | G31: =SUM(G13,G25,G30) -> 2308.240874 | H31: -114.5639572 | I31: -0.04728567309 | J31: 0.8849557522
A32: HST | C32: 0.13 | D32: =D31*C32 -> 314.9646281 | F32: =C32 -> 0.13 | G32: =G31*F32 -> 300.0713136 | H32: -14.89331444 | I32: -0.04728567309 | J32: 0.1150442478
A33: Total Amount on WAHSP | D33: =SUM(D31:D32) -> 2737.769459 | G33: =SUM(G31:G32) -> 2608.312188 | H33: -129.4572716 | I33: -0.04728567309 | J33: 1

Sheet BI Template_unmNPDI (hidden)
A1: 2023 Bill Impacts (Average Consumption Level) - St Lgt_NPDI
A3: Rate Class | B3: =VLOOKUP(A1,'Data BI List Acq_Seas'!C:E,2,FALSE) -> NPDI_St Lgt | C3: =VLOOKUP(A1,'Data BI List Acq_Seas'!C:E,3,FALSE) -> St Lgt-NPDI
A4: Monthly Consumption (kWh) | B4: =IF(COUNTIF(A1,"*Low*")>0,VLOOKUP(B3,'Data Billing Quantities'!$A:$Z,MATCH("Low kWh",'Data Billing Quantities'!4:4,0),FALSE),IF(COUNTIF(A1,"*Typical*")>0,VLOOKUP(B3,'Data Billing Quantities'!$A:$Z,MATCH("Typical kWh",'Data Billing Quantities'!4:4,0),FALSE),IF(COUNTIF(A1,"*Average*")>0,VLOOKUP(B3,'Data Billing Quantities'!$A:$Z,MATCH("Average kWh",'Data Billing Quantities'!4:4,0),FALSE),IF(COUNTIF(A1,"*High*")>0,VLOOKUP(B3,'Data Billing Quantities'!$A:$Z,MATCH("High kWh",'Data Billing Quantities'!4:4,0),FALSE),"error")))) -> 11389 | C4: =B4 -> 11389
A5: Peak (kW) | B5: =IF(COUNTIF(A1,"*Low*")>0,VLOOKUP(B3,'Data Billing Quantities'!$A:$Z,MATCH("Low kW",'Data Billing Quantities'!4:4,0),FALSE),IF(COUNTIF(A1,"*Typical*")>0,VLOOKUP(B3,'Data Billing Quantities'!$A:$Z,MATCH("Typical kW",'Data Billing Quantities'!4:4,0),FALSE),IF(COUNTIF(A1,"*Average*")>0,VLOOKUP(B3,'Data Billing Quantities'!$A:$Z,MATCH("Average kW",'Data Billing Quantities'!4:4,0),FALSE),IF(COUNTIF(A1,"*High*")>0,VLOOKUP(B3,'Data Billing Quantities'!$A:$Z,MATCH("High kW",'Data Billing Quantities'!4:4,0),FALSE),"error")))) -> 39 | C5: =B5 -> 39
A6: Loss factor | B6: =VLOOKUP(B3,'Data Billing Quantities'!A:D,MATCH(A6,'Data Billing Quantities'!4:4,0),FALSE) -> 1.0564 | C6: =VLOOKUP(C3,'Data Billing Quantities'!A:D,MATCH(A6,'Data Billing Quantities'!4:4,0),FALSE) -> 1.092
A7: Commodity Threshold | B7: =VLOOKUP(B3,'Data Billing Quantities'!A:D,MATCH(A7,'Data Billing Quantities'!4:4,0),FALSE) -> 750 | C7: =B7 -> 750
A8: Monthly Consumption (kWh) - Uplifted | B8: =B4*B6 -> 12031.3396 | C8: =C4*C6 -> 12436.788
A9: Charge determinant | B9: =VLOOKUP(B3,'Data Billing Quantities'!A:D,MATCH(A9,'Data Billing Quantities'!4:4,0),FALSE) -> kW | C9: =VLOOKUP(C3,'Data Billing Quantities'!A:D,MATCH(A9,'Data Billing Quantities'!4:4,0),FALSE) -> kWh
B11: Volume | C11: Current Rate ($) | D11: Current Charge ($) | E11: Volume | F11: Proposed Rate ($) | G11: Proposed Charge ($) | H11: Change ($) | I11: Change (%) | J11: % of Total Bill
A12: Energy First Tier | B12: =IF(B4>B7,B7,B4) -> 750 | C12: =VLOOKUP($A12,'Data Pass Through'!$A:$D,2,FALSE) -> 0.098 | D12: =B12*C12 -> 73.5 | E12: =B12 -> 750 | F12: =VLOOKUP($A12,'Data Pass Through'!$A:$D,3,FALSE) -> 0.098 | G12: =E12*F12 -> 73.5 | H12: =G12-D12 -> 0 | I12: =IF(ISERROR(H12/ABS(D12)),"N/A",(H12/ABS(D12))) -> 0 | J12: =G12/$G$36 -> 0.02794673934
A13: Energy Second Tier | B13: =IF(B4>B7,(B4)-B7,0) -> 10639 | C13: =VLOOKUP($A13,'Data Pass Through'!$A:$D,2,FALSE) -> 0.115 | D13: =B13*C13 -> 1223.485 | E13: =B13 -> 10639 | F13: =VLOOKUP($A13,'Data Pass Through'!$A:$D,3,FALSE) -> 0.115 | G13: =E13*F13 -> 1223.485 | H13: 0 | I13: 0 | J13: 0.465202944
A14: Sub-Total: Energy (RPP Tiered) | D14: =SUM(D12:D13) -> 1296.985 | G14: =SUM(G12:G13) -> 1296.985 | H14: 0 | I14: 0 | J14: 0.4931496834
A15: Service Charge | B15: =IF(VLOOKUP(B$3,'Data Billing Quantities'!A:P,MATCH("Acquired Street Light Service Charge",'Data Billing Quantities'!$4:$4,0),FALSE)>0,VLOOKUP(B$3,'Data Billing Quantities'!A:P,MATCH("Acquired Street Light Service Charge",'Data Billing Quantities'!$4:$4,0),FALSE),1) -> 328 | C15: =VLOOKUP($B$3,'Data Current Rates'!$A:$AP,MATCH('BI Template_unmNPDI'!$A15,CurrentHeader,0),FALSE) -> 2.08 | D15: =B15*C15 -> 682.24 | E15: 1 | F15: =VLOOKUP($C$3,'Data Proposed Rates'!$A:$AZ,MATCH('BI Template_unmNPDI'!$A15,ProposedHeader,0),FALSE) -> 2.97 | G15: =E15*F15 -> 2.97 | H15: -679.27 | I15: -0.9956466932 | J15: 0.001129276406
A16: Distribution Volumetric Charge | B16: =IF($B$9="kWh",$B$4,$B$5) -> 39 | C16: =VLOOKUP($B$3,'Data Current Rates'!$A:$AP,MATCH('BI Template_unmNPDI'!$A16,CurrentHeader,0),FALSE) -> 7.8083 | D16: =B16*C16 -> 304.5237 | E16: =IF($C$9="kWh",$C$4,$C$5) -> 11389 | F16: =VLOOKUP($C$3,'Data Proposed Rates'!$A:$AZ,MATCH('BI Template_unmNPDI'!$A16,ProposedHeader,0),FALSE) -> 0.1064 | G16: 1211.7896 | H16: 907.2659 | I16: 2.979294879 | J16: 0.4607560284
A17: Low Voltage Service Rate | B17: =IF($B$9="kWh",$B$4,$B$5) -> 39 | C17: =VLOOKUP($B$3,'Data Current Rates'!$A:$AP,MATCH('BI Template_unmNPDI'!$A17,CurrentHeader,0),FALSE) -> 0.2407 | D17: 9.3873 | H17: -9.3873 | I17: -1 | J17: 0
A18: Rate Rider for Application of Tax Change | B18: 39 | C18: =VLOOKUP($B$3,'Data Current Rates'!$A:$AP,MATCH('BI Template_unmNPDI'!$A18,CurrentHeader,0),FALSE) -> 0.2079 | D18: 8.1081 | H18: -8.1081 | I18: -1 | J18: 0
A19: Group 1 Volumetric DVA Rider (General) | E19: =IF($C$9="kWh",$C$4,$C$5) -> 11389 | F19: =VLOOKUP($C$3,'Data Proposed Rates'!$A:$AZ,MATCH('BI Template_unmNPDI'!$A19,ProposedHeader,0),FALSE) -> -0.0007 | G19: -7.9723 | H19: -7.9723 | I19: N/A | J19: -0.003031289661
A20: Sub-Total: Distribution (excluding pass through) | D20: =SUM(INDIRECT("D15:D"&ROW()-1)) -> 1004.2591 | G20: =SUM(INDIRECT("g15:g"&ROW()-1)) -> 1206.7873 | H20: =G20-D20 -> 202.5282 | I20: 0.2016692704 | J20: 0.4588540152
A21: Line Losses on Cost of Power (based on two-tier RPP prices) | B21: =B8-B4 -> 642.3396 | C21: =IF(B4>B7,C13,C12) -> 0.115 | D21: =B21*C21 -> 73.869054 | E21: =C8-C4 -> 1047.788 | F21: =IF(C4>C7,F13,F12) -> 0.115 | G21: =E21*F21 -> 120.49562 | H21: 46.626566 | I21: 0.6312056738 | J21: 0.04581577801
A22: Sub-Total: Distribution (based on two-tier RPP prices) | D22: =SUM(D20,D21:D21) -> 1078.128154 | G22: =SUM(G20,G21:G21) -> 1327.28292 | H22: 249.154766 | I22: 0.2310993967 | J22: 0.5046697932
A23: Retail Transmission Rate – Network Service Rate | B23: =IF($B$9="kWh",$B$8,$B$5) -> 39 | C23: =VLOOKUP($B$3,'Data Current Rates'!$A:$AP,MATCH('BI Template_unmNPDI'!$A23,CurrentHeader,0),FALSE) -> 2.3447 | D23: =B23*C23 -> 91.4433 | E23: =IF($C$9="kWh",$C$8,$C$5) -> 12436.788 | F23: =VLOOKUP($C$3,'Data Proposed Rates'!$A:$AZ,MATCH('BI Template_unmNPDI'!$A23,ProposedHeader,0),FALSE) -> 0.0055 | G23: =E23*F23 -> 68.402334 | H23: =G23-D23 -> -23.040966 | I23: -0.2519699748 | J23: 0.02600846529
A24: Retail Transmission Rate – Line and Transformation Connection Service Rate | B24: =IF($B$9="kWh",$B$8,$B$5) -> 39 | C24: =VLOOKUP($B$3,'Data Current Rates'!$A:$AP,MATCH('BI Template_unmNPDI'!$A24,CurrentHeader,0),FALSE) -> 1.013 | D24: =B24*C24 -> 39.507 | E24: =IF($C$9="kWh",$C$8,$C$5) -> 12436.788 | F24: =VLOOKUP($C$3,'Data Proposed Rates'!$A:$AZ,MATCH('BI Template_unmNPDI'!$A24,ProposedHeader,0),FALSE) -> 0.0043 | G24: =E24*F24 -> 53.4781884 | H24: =G24-D24 -> 13.9711884 | I24: 0.3536383021 | J24: 0.02033389104
A25: Sub-Total: Retail Transmission | D25: =SUM(D23:D24) -> 130.9503 | G25: =SUM(G23:G24) -> 121.8805224 | H25: =G25-D25 -> -9.0697776 | I25: -0.06926122048 | J25: 0.04634235633
A26: Sub-Total: Delivery (based on two-tier RPP prices) | D26: =D22+D25 -> 1209.078454 | G26: =G22+G25 -> 1449.163442 | H26: =G26-D26 -> 240.0849884 | I26: 0.1985685773 | J26: 0.5510121495
A27: Wholesale Market Service Rate (WMS) - not including CBR | B27: =B8 -> 12031.3396 | C27: =VLOOKUP($A27,'Data Pass Through'!$A:$D,2,FALSE) -> 0.003 | D27: =B27*C27 -> 36.0940188 | E27: =$C$8 -> 12436.788 | F27: =VLOOKUP($A27,'Data Pass Through'!$A:$D,3,FALSE) -> 0.003 | G27: =E27*F27 -> 37.310364 | H27: =G27-D27 -> 1.2163452 | I27: 0.0336993563 | J27: 0.01418643561
A28: Capacity Based Recovery (CBR) - Applicable for Class B Customers | B28: =B8 -> 12031.3396 | C28: =VLOOKUP($A28,'Data Pass Through'!$A:$D,2,FALSE) -> 0.0004 | D28: =B28*C28 -> 4.81253584 | E28: =$C$8 -> 12436.788 | F28: =VLOOKUP($A28,'Data Pass Through'!$A:$D,3,FALSE) -> 0.0004 | G28: =E28*F28 -> 4.9747152 | H28: 0.16217936 | I28: 0.0336993563 | J28: 0.001891524748
A29: Rural Rate Protection Charge | B29: =B8 -> 12031.3396 | C29: =VLOOKUP($A29,'Data Pass Through'!$A:$D,2,FALSE) -> 0.0005 | D29: 6.0156698 | E29: 12436.788 | F29: =VLOOKUP($A29,'Data Pass Through'!$A:$D,3,FALSE) -> 0.0005 | G29: 6.218394 | H29: 0.2027242 | I29: 0.0336993563 | J29: 0.002364405935
A30: Standard Supply Service – Administration Charge (if applicable) | B30: 1 | C30: =VLOOKUP($A30,'Data Pass Through'!$A:$D,2,FALSE) -> 0.25 | D30: =B30*C30 -> 0.25 | E30: 1 | F30: =VLOOKUP($A30,'Data Pass Through'!$A:$D,3,FALSE) -> 0.25 | G30: 0.25 | H30: 0 | I30: 0 | J30: 9.505693654e-05
A31: Sub-Total: Regulatory | D31: =SUM(D27:D30) -> 47.17222444 | G31: =SUM(G27:G30) -> 48.7534732 | H31: 1.58124876 | I31: 0.03352075885 | J31: 0.01853742323
A32: Total Electricty Charge on Two-Tier RPP | D32: =SUM(D26,D31,D14) -> 2553.235678 | G32: =SUM(G26,G31,G14) -> 2794.901916 | H32: 241.6662372 | I32: 0.09465097139 | J32: 1.062699256
A33: HST | C33: 0.13 | D33: =D32*C33 -> 331.9206382 | F33: =C33 -> 0.13 | G33: =G32*F33 -> 363.337249 | H33: 31.41661083 | I33: 0.09465097139 | J33: 0.1381509033
A34: Total Electricity Charge on Two-Tier RPP (including HST) | D34: =SUM(D32:D33) -> 2885.156317 | G34: =SUM(G32:G33) -> 3158.239165 | H34: 273.082848 | I34: 0.09465097139 | J34: 1.200850159
A35: Ontario Electricity Rebate (OER) | C35: =IF(($B$4*12)<250000,VLOOKUP(A35,'Data Pass Through'!$A$4:$C$20,2,0),0) -> -0.189 | D35: =D32*C35 -> -482.5615432 | F35: =C35 -> -0.189 | G35: =G32*F35 -> -528.236462 | H35: -45.67491882 | I35: -0.09465097139 | J35: -0.2008501594
A36: Total Amount on Two-Tier RPP | D36: =SUM(D34:D35) -> 2402.594773 | G36: =SUM(G34:G35) -> 2630.002703 | H36: 227.4079292 | I36: 0.09465097139 | J36: 1

Sheet BI Template_EnergyHCHI (hidden)
A1: 2023 Bill Impacts (Low Consumption Level) - AR_HCHI
A3: Rate Class | B3: =VLOOKUP(A1,'Data BI List Acq_Seas'!C:E,2,FALSE) -> HCHI_RES | C3: =VLOOKUP(A1,'Data BI List Acq_Seas'!C:E,3,FALSE) -> AR-HCHI
A4: Monthly Consumption (kWh) | B4: =IF(COUNTIF(A1,"*Low*")>0,VLOOKUP(B3,'Data Billing Quantities'!$A:$Z,MATCH("Low kWh",'Data Billing Quantities'!4:4,0),FALSE),IF(COUNTIF(A1,"*Typical*")>0,VLOOKUP(B3,'Data Billing Quantities'!$A:$Z,MATCH("Typical kWh",'Data Billing Quantities'!4:4,0),FALSE),IF(COUNTIF(A1,"*Average*")>0,VLOOKUP(B3,'Data Billing Quantities'!$A:$Z,MATCH("Average kWh",'Data Billing Quantities'!4:4,0),FALSE),IF(COUNTIF(A1,"*High*")>0,VLOOKUP(B3,'Data Billing Quantities'!$A:$Z,MATCH("High kWh",'Data Billing Quantities'!4:4,0),FALSE),"error")))) -> 250 | C4: =B4 -> 250
A5: Peak (kW) | B5: =IF(COUNTIF(A1,"*Low*")>0,VLOOKUP(B3,'Data Billing Quantities'!$A:$Z,MATCH("Low kW",'Data Billing Quantities'!4:4,0),FALSE),IF(COUNTIF(A1,"*Typical*")>0,VLOOKUP(B3,'Data Billing Quantities'!$A:$Z,MATCH("Typical kW",'Data Billing Quantities'!4:4,0),FALSE),IF(COUNTIF(A1,"*Average*")>0,VLOOKUP(B3,'Data Billing Quantities'!$A:$Z,MATCH("Average kW",'Data Billing Quantities'!4:4,0),FALSE),IF(COUNTIF(A1,"*High*")>0,VLOOKUP(B3,'Data Billing Quantities'!$A:$Z,MATCH("High kW",'Data Billing Quantities'!4:4,0),FALSE),"error")))) -> 0 | C5: =B5 -> 0
A6: Loss factor | B6: =VLOOKUP(B3,'Data Billing Quantities'!A:D,MATCH(A6,'Data Billing Quantities'!4:4,0),FALSE) -> 1.0655 | C6: =VLOOKUP(C3,'Data Billing Quantities'!A:D,MATCH(A6,'Data Billing Quantities'!4:4,0),FALSE) -> 1.064
A7: Commodity Threshold | B7: =VLOOKUP(B3,'Data Billing Quantities'!A:D,MATCH(A7,'Data Billing Quantities'!4:4,0),FALSE) -> 600 | C7: =B7 -> 600
A8: Monthly Consumption (kWh) - Uplifted | B8: =B4*B6 -> 266.375 | C8: =C4*C6 -> 266
A9: Charge determinant | B9: =VLOOKUP(B3,'Data Billing Quantities'!A:D,MATCH(A9,'Data Billing Quantities'!4:4,0),FALSE) -> kWh | C9: =VLOOKUP(C3,'Data Billing Quantities'!A:D,MATCH(A9,'Data Billing Quantities'!4:4,0),FALSE) -> kWh
B11: Volume | C11: Current Rate ($) | D11: Current Charge ($) | E11: Volume | F11: Proposed Rate ($) | G11: Proposed Charge ($) | H11: Change ($) | I11: Change (%) | J11: % of Total Bill on RPP | K11: % of Total Bill
A12: Energy First Tier | B12: =IF(B4>B7,B7,B4) -> 250 | C12: =VLOOKUP($A12,'Data Pass Through'!$A:$D,2,FALSE) -> 0.098 | D12: =B12*C12 -> 24.5 | E12: =B12 -> 250 | F12: =VLOOKUP($A12,'Data Pass Through'!$A:$D,3,FALSE) -> 0.098 | G12: =E12*F12 -> 24.5 | H12: =G12-D12 -> 0 | I12: =IF(ISERROR(H12/ABS(D12)),"N/A",(H12/ABS(D12))) -> 0 | J12: =G12/$G$44 -> 0.3805317095
A13: Energy Second Tier | B13: =IF(B4>B7,(B4)-B7,0) -> 0 | C13: =VLOOKUP($A13,'Data Pass Through'!$A:$D,2,FALSE) -> 0.115 | D13: =B13*C13 -> 0 | E13: =B13 -> 0 | F13: =VLOOKUP($A13,'Data Pass Through'!$A:$D,3,FALSE) -> 0.115 | G13: =E13*F13 -> 0 | H13: 0 | I13: N/A | J13: =G13/$G$44 -> 0
A14: Sub-Total: Energy (RPP Tiered) | D14: =SUM(D12:D13) -> 24.5 | G14: =SUM(G12:G13) -> 24.5 | H14: 0 | I14: 0 | J14: =G14/$G$44 -> 0.3805317095
A15: TOU-Off Peak | B15: =B$4*VLOOKUP($B$3,'Data Billing Quantities'!$A:$O,MATCH('BI Template_EnergyHCHI'!$A15,'Data Billing Quantities'!$4:$4,0),FALSE) -> 160 | C15: =VLOOKUP($A15,'Data Pass Through'!$A:$D,2,FALSE) -> 0.082 | D15: =B15*C15 -> 13.12 | E15: 160 | F15: =VLOOKUP($A15,'Data Pass Through'!$A:$D,3,FALSE) -> 0.082 | G15: =E15*F15 -> 13.12 | H15: 0 | I15: 0 | K15: =G15/$G$49 -> 0.1995733058
A16: TOU-Mid Peak | B16: =B$4*VLOOKUP($B$3,'Data Billing Quantities'!$A:$O,MATCH('BI Template_EnergyHCHI'!$A16,'Data Billing Quantities'!$4:$4,0),FALSE) -> 45 | C16: =VLOOKUP($A16,'Data Pass Through'!$A:$D,2,FALSE) -> 0.113 | D16: =B16*C16 -> 5.085 | E16: 45 | F16: =VLOOKUP($A16,'Data Pass Through'!$A:$D,3,FALSE) -> 0.113 | G16: =E16*F16 -> 5.085 | H16: 0 | I16: 0 | K16: 0.07734986739
A17: TOU-On Peak | B17: =B$4*VLOOKUP($B$3,'Data Billing Quantities'!$A:$O,MATCH('BI Template_EnergyHCHI'!$A17,'Data Billing Quantities'!$4:$4,0),FALSE) -> 45 | C17: =VLOOKUP($A17,'Data Pass Through'!$A:$D,2,FALSE) -> 0.17 | D17: =B17*C17 -> 7.65 | E17: 45 | F17: =VLOOKUP($A17,'Data Pass Through'!$A:$D,3,FALSE) -> 0.17 | G17: =E17*F17 -> 7.65 | H17: 0 | I17: 0 | K17: 0.1163670571
A18: Sub-Total: Energy (RPP TOU) | D18: =SUM(D15:D17) -> 25.855 | G18: =SUM(G15:G17) -> 25.855 | H18: 0 | I18: 0 | J18: =G18/$G$44 -> 0.4015774428 | K18: 0.3932902303
A19: Service Charge | B19: 1 | C19: =VLOOKUP($B$3,'Data Current Rates'!$A:$AP,MATCH('BI Template_EnergyHCHI'!$A19,CurrentHeader,0),FALSE) -> 36.91 | D19: =B19*C19 -> 36.91 | E19: 1 | F19: =VLOOKUP($C$3,'Data Proposed Rates'!$A:$AZ,MATCH('BI Template_EnergyHCHI'!$A19,ProposedHeader,0),FALSE) -> 35.94 | G19: =E19*F19 -> 35.94 | H19: -0.97 | I19: -0.02628014088 | J19: 0.5582167199 | K19: 0.5466969978
A20: Distribution Volumetric Charge | B20: =IF($B$9="kWh",$B$4,$B$5) -> 250 | C20: =VLOOKUP($B$3,'Data Current Rates'!$A:$AP,MATCH('BI Template_EnergyHCHI'!$A20,CurrentHeader,0),FALSE) -> 0 | D20: =B20*C20 -> 0 | E20: =IF($C$9="kWh",$C$4,$C$5) -> 250 | F20: =VLOOKUP($C$3,'Data Proposed Rates'!$A:$AZ,MATCH('BI Template_EnergyHCHI'!$A20,ProposedHeader,0),FALSE) -> 0 | G20: 0 | H20: 0 | I20: N/A | J20: 0 | K20: 0
A21: Low Voltage Service Rate | B21: =IF($B$9="kWh",$B$4,$B$5) -> 250 | C21: =VLOOKUP($B$3,'Data Current Rates'!$A:$AP,MATCH('BI Template_EnergyHCHI'!$A21,CurrentHeader,0),FALSE) -> 0.0004 | D21: 0.1 | H21: -0.1 | I21: -1 | J21: 0 | K21: 0
A22: Funding Adder for Renewable Energy Generation | B22: 250 | C22: =VLOOKUP($B$3,'Data Current Rates'!$A:$AP,MATCH('BI Template_EnergyHCHI'!$A22,CurrentHeader,0),FALSE) -> 0.0002 | D22: 0.05 | H22: -0.05 | I22: -1 | J22: 0 | K22: 0
A23: Group 1 Volumetric DVA Rider (General) | E23: =IF($C$9="kWh",$C$4,$C$5) -> 250 | F23: =VLOOKUP($C$3,'Data Proposed Rates'!$A:$AZ,MATCH('BI Template_EnergyHCHI'!$A23,ProposedHeader,0),FALSE) -> -0.0004 | G23: -0.1 | H23: -0.1 | I23: N/A | J23: -0.001553190651 | K23: -0.001521138002
A24: Sub-Total: Distribution (excluding pass through) | D24: =SUM(INDIRECT("D19:D"&ROW()-1)) -> 37.06 | G24: =SUM(INDIRECT("g19:g"&ROW()-1)) -> 35.84 | H24: =G24-D24 -> -1.22 | I24: -0.03291958985 | J24: 0.5566635293 | K24: 0.5451758598
A25: Smart Metering Entity Charge | B25: =B19 -> 1 | C25: =VLOOKUP($A25,'Data Pass Through'!$A:$D,2,FALSE) -> 0.57 | D25: =B25*C25 -> 0.57 | E25: =E19 -> 1 | F25: =VLOOKUP($A25,'Data Pass Through'!$A:$D,3,FALSE) -> 0.57 | G25: =E25*F25 -> 0.57 | H25: 0 | I25: 0 | J25: 0.00885318671 | K25: 0.00867048661
A26: Line Losses on Cost of Power (based on two-tier RPP prices) | B26: =B8-B4 -> 16.375 | C26: =IF(B4>B7,C13,C12) -> 0.098 | D26: =B26*C26 -> 1.60475 | E26: =C8-C4 -> 16 | F26: =IF(C4>C7,F13,F12) -> 0.098 | G26: =E26*F26 -> 1.568 | H26: -0.03675 | I26: -0.02290076336 | J26: 0.02435402941 | K26: 0.02385144387
A27: Line Losses on Cost of Power (based on TOU prices) | B27: =B8-B4 -> 16.375 | C27: =VLOOKUP($B$3,'Data Billing Quantities'!$A:$O,MATCH('BI Template_EnergyHCHI'!$A15,'Data Billing Quantities'!$4:$4,0),FALSE)*C15+VLOOKUP($B$3,'Data Billing Quantities'!$A:$O,MATCH('BI Template_EnergyHCHI'!$A16,'Data Billing Quantities'!$4:$4,0),FALSE)*C16+VLOOKUP($B$3,'Data Billing Quantities'!$A:$O,MATCH('BI Template_EnergyHCHI'!$A17,'Data Billing Quantities'!$4:$4,0),FALSE)*C17 -> 0.10342 | D27: =B27*C27 -> 1.6935025 | E27: =C8-C4 -> 16 | F27: =VLOOKUP($C$3,'Data Billing Quantities'!$A:$O,MATCH('BI Template_EnergyHCHI'!$A15,'Data Billing Quantities'!$4:$4,0),FALSE)*F15+VLOOKUP($C$3,'Data Billing Quantities'!$A:$O,MATCH('BI Template_EnergyHCHI'!$A16,'Data Billing Quantities'!$4:$4,0),FALSE)*F16+VLOOKUP($C$3,'Data Billing Quantities'!$A:$O,MATCH('BI Template_EnergyHCHI'!$A17,'Data Billing Quantities'!$4:$4,0),FALSE)*F17 -> 0.10342 | G27: =E27*F27 -> 1.65472 | H27: -0.0387825 | I27: -0.02290076336 | J27: 0.02570095634 | K27: 0.02517057474
A28: Sub-Total: Distribution (based on two-tier RPP prices) | D28: =SUM(D24,D25:D26) -> 39.23475 | G28: =SUM(G24,G25:G26) -> 37.978 | H28: -1.25675 | I28: -0.03203155366 | J28: 0.5898707454 | K28: 0.5776977903
A29: Sub-Total: Distribution (based on TOU prices) | D29: =SUM(D24,D25,D27) -> 39.3235025 | G29: =SUM(G24,G25,G27) -> 38.06472 | H29: -1.2587825 | I29: -0.03201094562 | J29: 0.5912176723 | K29: 0.5790169212
A30: Retail Transmission Rate – Network Service Rate | B30: =IF($B$9="kWh",$B$8,$B$5) -> 266.375 | C30: =VLOOKUP($B$3,'Data Current Rates'!$A:$AP,MATCH('BI Template_EnergyHCHI'!$A30,CurrentHeader,0),FALSE) -> 0.0079 | D30: =B30*C30 -> 2.1043625 | E30: =IF($C$9="kWh",$C$8,$C$5) -> 266 | F30: =VLOOKUP($C$3,'Data Proposed Rates'!$A:$AZ,MATCH('BI Template_EnergyHCHI'!$A30,ProposedHeader,0),FALSE) -> 0.0101 | G30: =E30*F30 -> 2.6866 | H30: =G30-D30 -> 0.5822375 | I30: 0.2766811802 | J30: 0.04172802003 | K30: 0.04086689355
A31: Retail Transmission Rate – Line and Transformation Connection Service Rate | B31: =IF($B$9="kWh",$B$8,$B$5) -> 266.375 | C31: =VLOOKUP($B$3,'Data Current Rates'!$A:$AP,MATCH('BI Template_EnergyHCHI'!$A31,CurrentHeader,0),FALSE) -> 0.0061 | D31: =B31*C31 -> 1.6248875 | E31: =IF($C$9="kWh",$C$8,$C$5) -> 266 | F31: =VLOOKUP($C$3,'Data Proposed Rates'!$A:$AZ,MATCH('BI Template_EnergyHCHI'!$A31,ProposedHeader,0),FALSE) -> 0.0074 | G31: =E31*F31 -> 1.9684 | H31: =G31-D31 -> 0.3435125 | I31: 0.2114069436 | J31: 0.03057300477 | K31: 0.02994208043
A32: Sub-Total: Retail Transmission | D32: =SUM(D30:D31) -> 3.72925 | G32: =SUM(G30:G31) -> 4.655 | H32: =G32-D32 -> 0.92575 | I32: 0.2482402628 | J32: 0.0723010248 | K32: 0.07080897398
A33: Sub-Total: Delivery (based on two-tier RPP prices) | D33: =D28+D32 -> 42.964 | G33: =G28+G32 -> 42.633 | H33: =G33-D33 -> -0.331 | I33: -0.007704124383 | J33: 0.6621717702 | K33: 0.6485067643
A34: Sub-Total: Delivery (based on TOU prices) | D34: =D29+D32 -> 43.0527525 | G34: =G29+G32 -> 42.71972 | H34: =G34-D34 -> -0.3330325 | I34: -0.00773545199 | J34: 0.6635186971 | K34: 0.6498258951
A35: Wholesale Market Service Rate (WMS) - not including CBR | B35: =B8 -> 266.375 | C35: =VLOOKUP($A35,'Data Pass Through'!$A:$D,2,FALSE) -> 0.003 | D35: =B35*C35 -> 0.799125 | E35: =$C$8 -> 266 | F35: =VLOOKUP($A35,'Data Pass Through'!$A:$D,3,FALSE) -> 0.003 | G35: =E35*F35 -> 0.798 | H35: -0.001125 | I35: -0.00140778977 | J35: 0.01239446139 | K35: 0.01213868125
A36: Capacity Based Recovery (CBR) - Applicable for Class B Customers | B36: =B8 -> 266.375 | C36: =VLOOKUP($A36,'Data Pass Through'!$A:$D,2,FALSE) -> 0.0004 | D36: =B36*C36 -> 0.10655 | E36: =$C$8 -> 266 | F36: =VLOOKUP($A36,'Data Pass Through'!$A:$D,3,FALSE) -> 0.0004 | G36: =E36*F36 -> 0.1064 | H36: -0.00015 | I36: -0.00140778977 | J36: 0.001652594853 | K36: 0.001618490834
A37: Rural Rate Protection Charge | B37: =B8 -> 266.375 | C37: =VLOOKUP($A37,'Data Pass Through'!$A:$D,2,FALSE) -> 0.0005 | D37: 0.1331875 | E37: 266 | F37: =VLOOKUP($A37,'Data Pass Through'!$A:$D,3,FALSE) -> 0.0005 | G37: 0.133 | H37: -0.0001875 | I37: -0.00140778977 | J37: 0.002065743566 | K37: 0.002023113542
A38: Standard Supply Service – Administration Charge (if applicable) | B38: 1 | C38: =VLOOKUP($A38,'Data Pass Through'!$A:$D,2,FALSE) -> 0.25 | D38: =B38*C38 -> 0.25 | E38: 1 | F38: =VLOOKUP($A38,'Data Pass Through'!$A:$D,3,FALSE) -> 0.25 | G38: 0.25 | H38: 0 | I38: 0 | J38: 0.003882976627 | K38: 0.003802845004
A39: Sub-Total: Regulatory | D39: =SUM(D35:D38) -> 1.2888625 | G39: =SUM(G35:G38) -> 1.2874 | H39: -0.0014625 | I39: -0.001134721508 | J39: 0.01999577644 | K39: 0.01958313063
A40: Total Electricty Charge on Two-Tier RPP | D40: =SUM(D14,D24,D25,D26,D32,D39) -> 68.7528625 | G40: =SUM(G14,G24,G25,G26,G32,G39) -> 68.4204 | H40: -0.3324625 | I40: -0.004835616844 | J40: 1.062699256
A41: HST | C41: 0.13 | D41: =D40*C41 -> 8.937872125 | F41: =C41 -> 0.13 | G41: =G40*F41 -> 8.894652 | H41: -0.043220125 | I41: -0.004835616844 | J41: 0.1381509033
A42: Total Electricity Charge on Two-Tier RPP (including HST) | D42: =SUM(D40:D41) -> 77.69073462 | G42: =SUM(G40:G41) -> 77.315052 | H42: -0.375682625 | I42: -0.004835616844 | J42: 1.200850159
A43: Ontario Electricity Rebate (OER) | C43: =IF(($B$4*12)<250000,VLOOKUP(A43,'Data Pass Through'!$A$4:$C$20,2,0),0) -> -0.189 | D43: =D40*C43 -> -12.99429101 | F43: =C43 -> -0.189 | G43: =G40*F43 -> -12.9314556 | H43: 0.0628354125 | I43: 0.004835616844 | J43: -0.2008501594
A44: Total Amount on Two-Tier RPP | D44: =SUM(D42:D43) -> 64.69644361 | G44: =SUM(G42:G43) -> 64.3835964 | H44: -0.3128472125 | I44: -0.004835616844 | J44: 1
A45: Total Electricty Charge on TOU (before HST) | D45: =SUM(D18,D24,D25,D27,D32,D39) -> 70.196615 | G45: =SUM(G18,G24,G25,G27,G32,G39) -> 69.86212 | H45: -0.334495 | I45: -0.004765115811 | K45: =G45/$G$49 -> 1.062699256
A46: HST | C46: 0.13 | D46: =D45*C46 -> 9.12555995 | F46: =C46 -> 0.13 | G46: =G45*F46 -> 9.0820756 | H46: -0.04348435 | I46: -0.004765115811 | K46: =G46/$G$49 -> 0.1381509033
A47: Total Electricity Charge on TOU (including HST) | D47: =SUM(D45:D46) -> 79.32217495 | G47: =SUM(G45:G46) -> 78.9441956 | H47: -0.37797935 | I47: -0.004765115811 | K47: =G47/$G$49 -> 1.200850159
A48: Ontario Electricity Rebate (OER) | C48: =IF(($B$4*12)<250000,VLOOKUP(A48,'Data Pass Through'!$A$4:$C$20,2,0),0) -> -0.189 | D48: =D45*C48 -> -13.26716023 | F48: =C48 -> -0.189 | G48: =G45*F48 -> -13.20394068 | H48: 0.063219555 | I48: 0.004765115811 | K48: =G48/$G$49 -> -0.2008501594
A49: Total Amount on TOU | D49: =SUM(D47:D48) -> 66.05501471 | G49: =SUM(G47:G48) -> 65.74025492 | H49: -0.314759795 | I49: -0.004765115811 | K49: =G49/$G$49 -> 1

Sheet BI Template_DemandHCHI (hidden)
A1: 2023 Bill Impacts (Low Consumption Level) - AGSd_HCHI
A3: Rate Class | B3: =VLOOKUP(A1,'Data BI List Acq_Seas'!C:E,2,FALSE) -> HCHI_GS >50 | C3: =VLOOKUP(A1,'Data BI List Acq_Seas'!C:E,3,FALSE) -> AGSd-HCHI
A4: Monthly Consumption (kWh) | B4: =IF(COUNTIF(A1,"*Low*")>0,VLOOKUP(B3,'Data Billing Quantities'!$A:$Z,MATCH("Low kWh",'Data Billing Quantities'!4:4,0),FALSE),IF(COUNTIF(A1,"*Typical*")>0,VLOOKUP(B3,'Data Billing Quantities'!$A:$Z,MATCH("Typical kWh",'Data Billing Quantities'!4:4,0),FALSE),IF(COUNTIF(A1,"*Average*")>0,VLOOKUP(B3,'Data Billing Quantities'!$A:$Z,MATCH("Average kWh",'Data Billing Quantities'!4:4,0),FALSE),IF(COUNTIF(A1,"*High*")>0,VLOOKUP(B3,'Data Billing Quantities'!$A:$Z,MATCH("High kWh",'Data Billing Quantities'!4:4,0),FALSE),"error")))) -> 10880 | C4: =B4 -> 10880
A5: Peak (kW) | B5: =IF(COUNTIF(A1,"*Low*")>0,VLOOKUP(B3,'Data Billing Quantities'!$A:$Z,MATCH("Low kW",'Data Billing Quantities'!4:4,0),FALSE),IF(COUNTIF(A1,"*Typical*")>0,VLOOKUP(B3,'Data Billing Quantities'!$A:$Z,MATCH("Typical kW",'Data Billing Quantities'!4:4,0),FALSE),IF(COUNTIF(A1,"*Average*")>0,VLOOKUP(B3,'Data Billing Quantities'!$A:$Z,MATCH("Average kW",'Data Billing Quantities'!4:4,0),FALSE),IF(COUNTIF(A1,"*High*")>0,VLOOKUP(B3,'Data Billing Quantities'!$A:$Z,MATCH("High kW",'Data Billing Quantities'!4:4,0),FALSE),"error")))) -> 55 | C5: =B5 -> 55
A6: Loss factor | B6: =VLOOKUP(B3,'Data Billing Quantities'!A:D,MATCH(A6,'Data Billing Quantities'!4:4,0),FALSE) -> 1.0548 | C6: =VLOOKUP(C3,'Data Billing Quantities'!A:D,MATCH(A6,'Data Billing Quantities'!4:4,0),FALSE) -> 1.053
A7: Commodity Threshold | B7: =VLOOKUP(B3,'Data Billing Quantities'!A:D,MATCH(A7,'Data Billing Quantities'!4:4,0),FALSE) -> 0 | C7: =B7 -> 0
A8: Monthly Consumption (kWh) - Uplifted | B8: =B4*B6 -> 11476.224 | C8: =C4*C6 -> 11456.64
A9: Charge determinant | B9: =VLOOKUP(B3,'Data Billing Quantities'!A:D,MATCH(A9,'Data Billing Quantities'!4:4,0),FALSE) -> kW | C9: =VLOOKUP(C3,'Data Billing Quantities'!A:D,MATCH(A9,'Data Billing Quantities'!4:4,0),FALSE) -> kW
B11: Volume | C11: Current Rate ($) | D11: Current Charge ($) | E11: Volume | F11: Proposed Rate ($) | G11: Proposed Charge ($) | H11: Change ($) | I11: Change (%) | J11: % of Total Bill
A12: Weighted Average Hourly Spot Price | B12: =B8 -> 11476.224 | C12: =VLOOKUP($A12,'Data Pass Through'!$A:$D,2,FALSE) -> 0.119 | D12: =B12*C12 -> 1365.670656 | E12: =C8 -> 11456.64 | F12: =VLOOKUP($A12,'Data Pass Through'!$A:$D,3,FALSE) -> 0.119 | G12: =E12*F12 -> 1363.34016 | H12: =G12-D12 -> -2.330496 | I12: =IF(ISERROR(H12/ABS(D12)),"N/A",(H12/ABS(D12))) -> -0.001706484642 | J12: =G12/G$33 -> 0.593831018
A13: Sub-Total: Energy (WAHSP) | D13: =SUM(D12:D12) -> 1365.670656 | G13: =SUM(G12:G12) -> 1363.34016 | H13: -2.330496 | I13: -0.001706484642 | J13: 0.593831018
A14: Service Charge | B14: 1 | C14: =VLOOKUP($B$3,'Data Current Rates'!$A:$AP,MATCH('BI Template_DemandHCHI'!$A14,CurrentHeader,0),FALSE) -> 86.56 | D14: =B14*C14 -> 86.56 | E14: 1 | F14: =VLOOKUP($C$3,'Data Proposed Rates'!$A:$AZ,MATCH('BI Template_DemandHCHI'!$A14,ProposedHeader,0),FALSE) -> 171.2 | G14: =E14*F14 -> 171.2 | H14: 84.64 | I14: 0.977818854 | J14: 0.0745697026
A15: Distribution Volumetric Charge | B15: =IF($B$9="kWh",$B$4,$B$5) -> 55 | C15: =VLOOKUP($B$3,'Data Current Rates'!$A:$AP,MATCH('BI Template_DemandHCHI'!$A15,CurrentHeader,0),FALSE) -> 4.0727 | D15: =B15*C15 -> 223.9985 | E15: =IF($C$9="kWh",$C$4,$C$5) -> 55 | F15: =VLOOKUP($C$3,'Data Proposed Rates'!$A:$AZ,MATCH('BI Template_DemandHCHI'!$A15,ProposedHeader,0),FALSE) -> 4.0886 | G15: 224.873 | H15: 0.8745 | I15: 0.003904044 | J15: 0.09794808839
A16: Low Voltage Service Rate | B16: =IF($B$9="kWh",$B$4,$B$5) -> 55 | C16: =VLOOKUP($B$3,'Data Current Rates'!$A:$AP,MATCH('BI Template_DemandHCHI'!$A16,CurrentHeader,0),FALSE) -> 0.155 | D16: 8.525 | H16: -8.525 | I16: -1 | J16: 0
A17: Funding Adder for Renewable Energy Generation | B17: 55 | C17: =VLOOKUP($B$3,'Data Current Rates'!$A:$AP,MATCH('BI Template_DemandHCHI'!$A17,CurrentHeader,0),FALSE) -> 0.0195 | D17: 1.0725 | H17: -1.0725 | I17: -1 | J17: 0
A18: Group 1 Volumetric DVA Rider (General) | E18: =IF($C$9="kWh",$C$4,$C$5) -> 55 | F18: =VLOOKUP($C$3,'Data Proposed Rates'!$A:$AZ,MATCH('BI Template_DemandHCHI'!$A18,ProposedHeader,0),FALSE) -> -0.0584 | G18: -3.212 | H18: -3.212 | I18: N/A | J18: -0.001399053065
A19: Group 1 Volumetric Deferral/Variance Account Rider (Sub-Account RSVA Wholesale Market Service Charge & RSVA Power) | E19: 55 | F19: =VLOOKUP($C$3,'Data Proposed Rates'!$A:$AZ,MATCH('BI Template_DemandHCHI'!$A19,ProposedHeader,0),FALSE) -> -0.081 | G19: -4.455 | H19: -4.455 | I19: N/A | J19: -0.001940467436
A20: Group 1 Volumetric Deferral/Variance Account Rider (Sub-Account Global Adjustment) | E20: =C4 -> 10880 | F20: =VLOOKUP($C$3,'Data Proposed Rates'!$A:$AZ,MATCH('BI Template_DemandHCHI'!$A20,ProposedHeader,0),FALSE) -> -0.0007 | G20: -7.616 | H20: -7.616 | I20: N/A | J20: -0.003317306396
A21: Sub-Total: Distribution | D21: =SUM(INDIRECT("D14:D"&ROW()-1)) -> 320.156 | G21: =SUM(INDIRECT("g14:g"&ROW()-1)) -> 380.79 | H21: =G21-D21 -> 60.634 | I21: 0.1893889229 | J21: 0.1658609641
A22: Retail Transmission Rate – Network Service Rate | B22: =IF($B$9="kWh",$B$4,$B$5) -> 55 | C22: =VLOOKUP($B$3,'Data Current Rates'!$A:$AP,MATCH('BI Template_DemandHCHI'!$A22,CurrentHeader,0),FALSE) -> 3.0442 | D22: =B22*C22 -> 167.431 | E22: =IF($C$9="kWh",$C$4,$C$5) -> 55 | F22: =VLOOKUP($C$3,'Data Proposed Rates'!$A:$AZ,MATCH('BI Template_DemandHCHI'!$A22,ProposedHeader,0),FALSE) -> 2.4941 | G22: =E22*F22 -> 137.1755 | H22: =G22-D22 -> -30.2555 | I22: -0.1807042901 | J22: 0.05974962756
A23: Retail Transmission Rate – Line and Transformation Connection Service Rate | B23: =IF($B$9="kWh",$B$4,$B$5) -> 55 | C23: =VLOOKUP($B$3,'Data Current Rates'!$A:$AP,MATCH('BI Template_DemandHCHI'!$A23,CurrentHeader,0),FALSE) -> 2.4143 | D23: =B23*C23 -> 132.7865 | E23: =IF($C$9="kWh",$C$4,$C$5) -> 55 | F23: =VLOOKUP($C$3,'Data Proposed Rates'!$A:$AZ,MATCH('BI Template_DemandHCHI'!$A23,ProposedHeader,0),FALSE) -> 1.9178 | G23: =E23*F23 -> 105.479 | H23: =G23-D23 -> -27.3075 | I23: -0.2056496707 | J23: 0.0459435611
A24: Sub-Total: Retail Transmission | D24: =SUM(D22:D23) -> 300.2175 | G24: =SUM(G22:G23) -> 242.6545 | H24: =G24-D24 -> -57.563 | I24: -0.1917376569 | J24: 0.1056931887
A25: Sub-Total: Delivery (based on two-tier RPP prices) | D25: =SUM(D21,D24) -> 620.3735 | G25: =SUM(G21,G24) -> 623.4445 | H25: =G25-D25 -> 3.071 | I25: 0.004950243684 | J25: 0.2715541528
A26: Wholesale Market Service Rate (WMS) - not including CBR | B26: =B8 -> 11476.224 | C26: =VLOOKUP($A26,'Data Pass Through'!$A:$D,2,FALSE) -> 0.003 | D26: =B26*C26 -> 34.428672 | E26: =$C$8 -> 11456.64 | F26: =VLOOKUP($A26,'Data Pass Through'!$A:$D,3,FALSE) -> 0.003 | G26: =E26*F26 -> 34.36992 | H26: =G26-D26 -> -0.058752 | I26: -0.001706484642 | J26: 0.01497052986
A27: Capacity Based Recovery (CBR) - Applicable for Class B Customers | B27: =B8 -> 11476.224 | C27: =VLOOKUP($A27,'Data Pass Through'!$A:$D,2,FALSE) -> 0.0004 | D27: =B27*C27 -> 4.5904896 | E27: =$C$8 -> 11456.64 | F27: =VLOOKUP($A27,'Data Pass Through'!$A:$D,3,FALSE) -> 0.0004 | G27: =E27*F27 -> 4.582656 | H27: -0.0078336 | I27: -0.001706484642 | J27: 0.001996070649
A28: Rural Rate Protection Charge | B28: =B8 -> 11476.224 | C28: =VLOOKUP($A28,'Data Pass Through'!$A:$D,2,FALSE) -> 0.0005 | D28: 5.738112 | E28: 11456.64 | F28: =VLOOKUP($A28,'Data Pass Through'!$A:$D,3,FALSE) -> 0.0005 | G28: 5.72832 | H28: -0.009792 | I28: -0.001706484642 | J28: 0.002495088311
A29: Standard Supply Service – Administration Charge (if applicable) | B29: 1 | C29: =VLOOKUP($A29,'Data Pass Through'!$A:$D,2,FALSE) -> 0.25 | D29: =B29*C29 -> 0.25 | E29: =B29 -> 1 | F29: =VLOOKUP($A29,'Data Pass Through'!$A:$D,3,FALSE) -> 0.25 | G29: 0.25 | H29: 0 | I29: 0 | J29: 0.0001088926732
A30: Sub-Total: Regulatory | D30: =SUM(D26:D29) -> 45.0072736 | G30: =SUM(G26:G29) -> 44.930896 | H30: -0.0763776 | I30: -0.001697005704 | J30: 0.0195705815
A31: Total Electricty Charge on WAHSP | D31: =SUM(D13,D25,D30) -> 2031.05143 | G31: =SUM(G13,G25,G30) -> 2031.715556 | H31: 0.6641264 | I31: 0.0003269865008 | J31: 0.8849557522
A32: HST | C32: 0.13 | D32: =D31*C32 -> 264.0366858 | F32: =C32 -> 0.13 | G32: =G31*F32 -> 264.1230223 | H32: 0.086336432 | I32: 0.0003269865008 | J32: 0.1150442478
A33: Total Amount on WAHSP | D33: =SUM(D31:D32) -> 2295.088115 | G33: =SUM(G31:G32) -> 2295.838578 | H33: 0.750462832 | I33: 0.0003269865008 | J33: 1

Sheet BI Template_unmHCHI (hidden)
A1: 2023 Bill Impacts (Average Consumption Level) - St Lgt_HCHI
A3: Rate Class | B3: =VLOOKUP(A1,'Data BI List Acq_Seas'!C:E,2,FALSE) -> HCHI_St Lgt | C3: =VLOOKUP(A1,'Data BI List Acq_Seas'!C:E,3,FALSE) -> St Lgt-HCHI
A4: Monthly Consumption (kWh) | B4: =IF(COUNTIF(A1,"*Low*")>0,VLOOKUP(B3,'Data Billing Quantities'!$A:$Z,MATCH("Low kWh",'Data Billing Quantities'!4:4,0),FALSE),IF(COUNTIF(A1,"*Typical*")>0,VLOOKUP(B3,'Data Billing Quantities'!$A:$Z,MATCH("Typical kWh",'Data Billing Quantities'!4:4,0),FALSE),IF(COUNTIF(A1,"*Average*")>0,VLOOKUP(B3,'Data Billing Quantities'!$A:$Z,MATCH("Average kWh",'Data Billing Quantities'!4:4,0),FALSE),IF(COUNTIF(A1,"*High*")>0,VLOOKUP(B3,'Data Billing Quantities'!$A:$Z,MATCH("High kWh",'Data Billing Quantities'!4:4,0),FALSE),"error")))) -> 31001 | C4: =B4 -> 31001
A5: Peak (kW) | B5: =IF(COUNTIF(A1,"*Low*")>0,VLOOKUP(B3,'Data Billing Quantities'!$A:$Z,MATCH("Low kW",'Data Billing Quantities'!4:4,0),FALSE),IF(COUNTIF(A1,"*Typical*")>0,VLOOKUP(B3,'Data Billing Quantities'!$A:$Z,MATCH("Typical kW",'Data Billing Quantities'!4:4,0),FALSE),IF(COUNTIF(A1,"*Average*")>0,VLOOKUP(B3,'Data Billing Quantities'!$A:$Z,MATCH("Average kW",'Data Billing Quantities'!4:4,0),FALSE),IF(COUNTIF(A1,"*High*")>0,VLOOKUP(B3,'Data Billing Quantities'!$A:$Z,MATCH("High kW",'Data Billing Quantities'!4:4,0),FALSE),"error")))) -> 85 | C5: =B5 -> 85
A6: Loss factor | B6: =VLOOKUP(B3,'Data Billing Quantities'!A:D,MATCH(A6,'Data Billing Quantities'!4:4,0),FALSE) -> 1.0655 | C6: =VLOOKUP(C3,'Data Billing Quantities'!A:D,MATCH(A6,'Data Billing Quantities'!4:4,0),FALSE) -> 1.092
A7: Commodity Threshold | B7: =VLOOKUP(B3,'Data Billing Quantities'!A:D,MATCH(A7,'Data Billing Quantities'!4:4,0),FALSE) -> 750 | C7: =B7 -> 750
A8: Monthly Consumption (kWh) - Uplifted | B8: =B4*B6 -> 33031.5655 | C8: =C4*C6 -> 33853.092
A9: Charge determinant | B9: =VLOOKUP(B3,'Data Billing Quantities'!A:D,MATCH(A9,'Data Billing Quantities'!4:4,0),FALSE) -> kW | C9: =VLOOKUP(C3,'Data Billing Quantities'!A:D,MATCH(A9,'Data Billing Quantities'!4:4,0),FALSE) -> kWh
B11: Volume | C11: Current Rate ($) | D11: Current Charge ($) | E11: Volume | F11: Proposed Rate ($) | G11: Proposed Charge ($) | H11: Change ($) | I11: Change (%) | J11: % of Total Bill
A12: Energy First Tier | B12: =IF(B4>B7,B7,B4) -> 750 | C12: =VLOOKUP($A12,'Data Pass Through'!$A:$D,2,FALSE) -> 0.098 | D12: =B12*C12 -> 73.5 | E12: =B12 -> 750 | F12: =VLOOKUP($A12,'Data Pass Through'!$A:$D,3,FALSE) -> 0.098 | G12: =E12*F12 -> 73.5 | H12: =G12-D12 -> 0 | I12: =IF(ISERROR(H12/ABS(D12)),"N/A",(H12/ABS(D12))) -> 0 | J12: =G12/$G$36 -> 0.008520929121
A13: Energy Second Tier | B13: =IF(B4>B7,(B4)-B7,0) -> 30251 | C13: =VLOOKUP($A13,'Data Pass Through'!$A:$D,2,FALSE) -> 0.115 | D13: =B13*C13 -> 3478.865 | E13: =B13 -> 30251 | F13: =VLOOKUP($A13,'Data Pass Through'!$A:$D,3,FALSE) -> 0.115 | G13: =E13*F13 -> 3478.865 | H13: 0 | I13: 0 | J13: 0.4033083277
A14: Sub-Total: Energy (RPP Tiered) | D14: =SUM(D12:D13) -> 3552.365 | G14: =SUM(G12:G13) -> 3552.365 | H14: 0 | I14: 0 | J14: 0.4118292568
A15: Service Charge | B15: =IF(VLOOKUP(B$3,'Data Billing Quantities'!A:P,MATCH("Acquired Street Light Service Charge",'Data Billing Quantities'!$4:$4,0),FALSE)>0,VLOOKUP(B$3,'Data Billing Quantities'!A:P,MATCH("Acquired Street Light Service Charge",'Data Billing Quantities'!$4:$4,0),FALSE),1) -> 701 | C15: =VLOOKUP($B$3,'Data Current Rates'!$A:$AP,MATCH('BI Template_unmHCHI'!$A15,CurrentHeader,0),FALSE) -> 5.9 | D15: =B15*C15 -> 4135.9 | E15: 1 | F15: =VLOOKUP($C$3,'Data Proposed Rates'!$A:$AZ,MATCH('BI Template_unmHCHI'!$A15,ProposedHeader,0),FALSE) -> 2.97 | G15: =E15*F15 -> 2.97 | H15: -4132.93 | I15: -0.9992818975 | J15: 0.0003443150951
A16: Distribution Volumetric Charge | B16: =IF($B$9="kWh",$B$4,$B$5) -> 85 | C16: =VLOOKUP($B$3,'Data Current Rates'!$A:$AP,MATCH('BI Template_unmHCHI'!$A16,CurrentHeader,0),FALSE) -> 15.1033 | D16: =B16*C16 -> 1283.7805 | E16: =IF($C$9="kWh",$C$4,$C$5) -> 31001 | F16: =VLOOKUP($C$3,'Data Proposed Rates'!$A:$AZ,MATCH('BI Template_unmHCHI'!$A16,ProposedHeader,0),FALSE) -> 0.1064 | G16: 3298.5064 | H16: 2014.7259 | I16: 1.569369452 | J16: 0.3823991733
A17: Low Voltage Service Rate | B17: =IF($B$9="kWh",$B$4,$B$5) -> 85 | C17: =VLOOKUP($B$3,'Data Current Rates'!$A:$AP,MATCH('BI Template_unmHCHI'!$A17,CurrentHeader,0),FALSE) -> 0.113 | D17: 9.605 | H17: -9.605 | I17: -1 | J17: 0
A18: Funding Adder for Renewable Energy Generation | B18: 85 | C18: =VLOOKUP($B$3,'Data Current Rates'!$A:$AP,MATCH('BI Template_unmHCHI'!$A18,CurrentHeader,0),FALSE) -> 0.2152 | D18: 18.292 | H18: -18.292 | I18: -1 | J18: 0
A19: Group 1 Volumetric DVA Rider (General) | E19: =IF($C$9="kWh",$C$4,$C$5) -> 31001 | F19: =VLOOKUP($C$3,'Data Proposed Rates'!$A:$AZ,MATCH('BI Template_unmHCHI'!$A19,ProposedHeader,0),FALSE) -> -0.0004 | G19: -12.4004 | H19: -12.4004 | I19: N/A | J19: -0.001437590877
A20: Sub-Total: Distribution (excluding pass through) | D20: =SUM(INDIRECT("D15:D"&ROW()-1)) -> 5447.5775 | G20: =SUM(INDIRECT("g15:g"&ROW()-1)) -> 3289.076 | H20: =G20-D20 -> -2158.5015 | I20: -0.3962314442 | J20: 0.3813058975
A21: Line Losses on Cost of Power (based on two-tier RPP prices) | B21: =B8-B4 -> 2030.5655 | C21: =IF(B4>B7,C13,C12) -> 0.115 | D21: =B21*C21 -> 233.5150325 | E21: =C8-C4 -> 2852.092 | F21: =IF(C4>C7,F13,F12) -> 0.115 | G21: =E21*F21 -> 327.99058 | H21: 94.4755475 | I21: 0.4045801527 | J21: 0.0380242787
A22: Sub-Total: Distribution (based on two-tier RPP prices) | D22: =SUM(D20,D21:D21) -> 5681.092532 | G22: =SUM(G20,G21:G21) -> 3617.06658 | H22: -2064.025952 | I22: -0.3633149681 | J22: 0.4193301762
A23: Retail Transmission Rate – Network Service Rate | B23: =IF($B$9="kWh",$B$8,$B$5) -> 85 | C23: =VLOOKUP($B$3,'Data Current Rates'!$A:$AP,MATCH('BI Template_unmHCHI'!$A23,CurrentHeader,0),FALSE) -> 2.1988 | D23: =B23*C23 -> 186.898 | E23: =IF($C$9="kWh",$C$8,$C$5) -> 33853.092 | F23: =VLOOKUP($C$3,'Data Proposed Rates'!$A:$AZ,MATCH('BI Template_unmHCHI'!$A23,ProposedHeader,0),FALSE) -> 0.0055 | G23: =E23*F23 -> 186.192006 | H23: =G23-D23 -> -0.705994 | I23: -0.0037774294 | J23: 0.02158542702
A24: Retail Transmission Rate – Line and Transformation Connection Service Rate | B24: =IF($B$9="kWh",$B$8,$B$5) -> 85 | C24: =VLOOKUP($B$3,'Data Current Rates'!$A:$AP,MATCH('BI Template_unmHCHI'!$A24,CurrentHeader,0),FALSE) -> 1.7344 | D24: =B24*C24 -> 147.424 | E24: =IF($C$9="kWh",$C$8,$C$5) -> 33853.092 | F24: =VLOOKUP($C$3,'Data Proposed Rates'!$A:$AZ,MATCH('BI Template_unmHCHI'!$A24,ProposedHeader,0),FALSE) -> 0.0043 | G24: =E24*F24 -> 145.5682956 | H24: =G24-D24 -> -1.8557044 | I24: -0.01258753256 | J24: 0.01687587931
A25: Sub-Total: Retail Transmission | D25: =SUM(D23:D24) -> 334.322 | G25: =SUM(G23:G24) -> 331.7603016 | H25: =G25-D25 -> -2.5616984 | I25: -0.007662368615 | J25: 0.03846130633
A26: Sub-Total: Delivery (based on two-tier RPP prices) | D26: =D22+D25 -> 6015.414532 | G26: =G22+G25 -> 3948.826882 | H26: =G26-D26 -> -2066.587651 | I26: -0.3435486681 | J26: 0.4577914826
A27: Wholesale Market Service Rate (WMS) - not including CBR | B27: =B8 -> 33031.5655 | C27: =VLOOKUP($A27,'Data Pass Through'!$A:$D,2,FALSE) -> 0.003 | D27: =B27*C27 -> 99.0946965 | E27: =$C$8 -> 33853.092 | F27: =VLOOKUP($A27,'Data Pass Through'!$A:$D,3,FALSE) -> 0.003 | G27: =E27*F27 -> 101.559276 | H27: =G27-D27 -> 2.4645795 | I27: 0.0248709526 | J27: 0.01177386928
A28: Capacity Based Recovery (CBR) - Applicable for Class B Customers | B28: =B8 -> 33031.5655 | C28: =VLOOKUP($A28,'Data Pass Through'!$A:$D,2,FALSE) -> 0.0004 | D28: =B28*C28 -> 13.2126262 | E28: =$C$8 -> 33853.092 | F28: =VLOOKUP($A28,'Data Pass Through'!$A:$D,3,FALSE) -> 0.0004 | G28: =E28*F28 -> 13.5412368 | H28: 0.3286106 | I28: 0.0248709526 | J28: 0.001569849238
A29: Rural Rate Protection Charge | B29: =B8 -> 33031.5655 | C29: =VLOOKUP($A29,'Data Pass Through'!$A:$D,2,FALSE) -> 0.0005 | D29: 16.51578275 | E29: 33853.092 | F29: =VLOOKUP($A29,'Data Pass Through'!$A:$D,3,FALSE) -> 0.0005 | G29: 16.926546 | H29: 0.41076325 | I29: 0.0248709526 | J29: 0.001962311547
A30: Standard Supply Service – Administration Charge (if applicable) | B30: 1 | C30: =VLOOKUP($A30,'Data Pass Through'!$A:$D,2,FALSE) -> 0.25 | D30: =B30*C30 -> 0.25 | E30: 1 | F30: =VLOOKUP($A30,'Data Pass Through'!$A:$D,3,FALSE) -> 0.25 | G30: 0.25 | H30: 0 | I30: 0 | J30: 2.898275211e-05
A31: Sub-Total: Regulatory | D31: =SUM(D27:D30) -> 129.0731055 | G31: =SUM(G27:G30) -> 132.2770588 | H31: 3.20395335 | I31: 0.02482278038 | J31: 0.01533501282
A32: Total Electricty Charge on Two-Tier RPP | D32: =SUM(D26,D31,D14) -> 9696.852638 | G32: =SUM(G26,G31,G14) -> 7633.46894 | H32: -2063.383698 | I32: -0.2127890125 | J32: 0.8849557522
A33: HST | C33: 0.13 | D33: =D32*C33 -> 1260.590843 | F33: =C33 -> 0.13 | G33: =G32*F33 -> 992.3509623 | H33: -268.2398807 | I33: -0.2127890125 | J33: 0.1150442478
A34: Total Electricity Charge on Two-Tier RPP (including HST) | D34: =SUM(D32:D33) -> 10957.44348 | G34: =SUM(G32:G33) -> 8625.819903 | H34: -2331.623578 | I34: -0.2127890125 | J34: 1
A35: Ontario Electricity Rebate (OER) | C35: =IF(($B$4*12)<250000,VLOOKUP(A35,'Data Pass Through'!$A$4:$C$20,2,0),0) -> 0 | D35: =D32*C35 -> 0 | F35: =C35 -> 0 | G35: =G32*F35 -> 0 | H35: 0 | I35: N/A | J35: 0
A36: Total Amount on Two-Tier RPP | D36: =SUM(D34:D35) -> 10957.44348 | G36: =SUM(G34:G35) -> 8625.819903 | H36: -2331.623578 | I36: -0.2127890125 | J36: 1

Sheet BI Template_EnergyWHSI (hidden)
A1: 2023 Bill Impacts (Low Consumption Level) - AUR_WHSI
A3: Rate Class | B3: =VLOOKUP(A1,'Data BI List Acq_Seas'!C:E,2,FALSE) -> WHSI_RES | C3: =VLOOKUP(A1,'Data BI List Acq_Seas'!C:E,3,FALSE) -> AUR-WHSI
A4: Monthly Consumption (kWh) | B4: =IF(COUNTIF(A1,"*Low*")>0,VLOOKUP(B3,'Data Billing Quantities'!$A:$Z,MATCH("Low kWh",'Data Billing Quantities'!4:4,0),FALSE),IF(COUNTIF(A1,"*Typical*")>0,VLOOKUP(B3,'Data Billing Quantities'!$A:$Z,MATCH("Typical kWh",'Data Billing Quantities'!4:4,0),FALSE),IF(COUNTIF(A1,"*Average*")>0,VLOOKUP(B3,'Data Billing Quantities'!$A:$Z,MATCH("Average kWh",'Data Billing Quantities'!4:4,0),FALSE),IF(COUNTIF(A1,"*High*")>0,VLOOKUP(B3,'Data Billing Quantities'!$A:$Z,MATCH("High kWh",'Data Billing Quantities'!4:4,0),FALSE),"error")))) -> 310 | C4: =B4 -> 310
A5: Peak (kW) | B5: =IF(COUNTIF(A1,"*Low*")>0,VLOOKUP(B3,'Data Billing Quantities'!$A:$Z,MATCH("Low kW",'Data Billing Quantities'!4:4,0),FALSE),IF(COUNTIF(A1,"*Typical*")>0,VLOOKUP(B3,'Data Billing Quantities'!$A:$Z,MATCH("Typical kW",'Data Billing Quantities'!4:4,0),FALSE),IF(COUNTIF(A1,"*Average*")>0,VLOOKUP(B3,'Data Billing Quantities'!$A:$Z,MATCH("Average kW",'Data Billing Quantities'!4:4,0),FALSE),IF(COUNTIF(A1,"*High*")>0,VLOOKUP(B3,'Data Billing Quantities'!$A:$Z,MATCH("High kW",'Data Billing Quantities'!4:4,0),FALSE),"error")))) -> 0 | C5: =B5 -> 0
A6: Loss factor | B6: =VLOOKUP(B3,'Data Billing Quantities'!A:D,MATCH(A6,'Data Billing Quantities'!4:4,0),FALSE) -> 1.0431 | C6: =VLOOKUP(C3,'Data Billing Quantities'!A:D,MATCH(A6,'Data Billing Quantities'!4:4,0),FALSE) -> 1.043
A7: Commodity Threshold | B7: =VLOOKUP(B3,'Data Billing Quantities'!A:D,MATCH(A7,'Data Billing Quantities'!4:4,0),FALSE) -> 600 | C7: =B7 -> 600
A8: Monthly Consumption (kWh) - Uplifted | B8: =B4*B6 -> 323.361 | C8: =C4*C6 -> 323.33
A9: Charge determinant | B9: =VLOOKUP(B3,'Data Billing Quantities'!A:D,MATCH(A9,'Data Billing Quantities'!4:4,0),FALSE) -> kWh | C9: =VLOOKUP(C3,'Data Billing Quantities'!A:D,MATCH(A9,'Data Billing Quantities'!4:4,0),FALSE) -> kWh
B11: Volume | C11: Current Rate ($) | D11: Current Charge ($) | E11: Volume | F11: Proposed Rate ($) | G11: Proposed Charge ($) | H11: Change ($) | I11: Change (%) | J11: % of Total Bill on RPP | K11: % of Total Bill
A12: Energy First Tier | B12: =IF(B4>B7,B7,B4) -> 310 | C12: =VLOOKUP($A12,'Data Pass Through'!$A:$D,2,FALSE) -> 0.098 | D12: =B12*C12 -> 30.38 | E12: =B12 -> 310 | F12: =VLOOKUP($A12,'Data Pass Through'!$A:$D,3,FALSE) -> 0.098 | G12: =E12*F12 -> 30.38 | H12: =G12-D12 -> 0 | I12: =IF(ISERROR(H12/ABS(D12)),"N/A",(H12/ABS(D12))) -> 0 | J12: =G12/$G$44 -> 0.4673069421
A13: Energy Second Tier | B13: =IF(B4>B7,(B4)-B7,0) -> 0 | C13: =VLOOKUP($A13,'Data Pass Through'!$A:$D,2,FALSE) -> 0.115 | D13: =B13*C13 -> 0 | E13: =B13 -> 0 | F13: =VLOOKUP($A13,'Data Pass Through'!$A:$D,3,FALSE) -> 0.115 | G13: =E13*F13 -> 0 | H13: 0 | I13: N/A | J13: =G13/$G$44 -> 0
A14: Sub-Total: Energy (RPP Tiered) | D14: =SUM(D12:D13) -> 30.38 | G14: =SUM(G12:G13) -> 30.38 | H14: 0 | I14: 0 | J14: =G14/$G$44 -> 0.4673069421
A15: TOU-Off Peak | B15: =B$4*VLOOKUP($B$3,'Data Billing Quantities'!$A:$O,MATCH('BI Template_EnergyWHSI'!$A15,'Data Billing Quantities'!$4:$4,0),FALSE) -> 198.4 | C15: =VLOOKUP($A15,'Data Pass Through'!$A:$D,2,FALSE) -> 0.082 | D15: =B15*C15 -> 16.2688 | E15: 198.4 | F15: =VLOOKUP($A15,'Data Pass Through'!$A:$D,3,FALSE) -> 0.082 | G15: =E15*F15 -> 16.2688 | H15: 0 | I15: 0 | K15: =G15/$G$49 -> 0.2440569252
A16: TOU-Mid Peak | B16: =B$4*VLOOKUP($B$3,'Data Billing Quantities'!$A:$O,MATCH('BI Template_EnergyWHSI'!$A16,'Data Billing Quantities'!$4:$4,0),FALSE) -> 55.8 | C16: =VLOOKUP($A16,'Data Pass Through'!$A:$D,2,FALSE) -> 0.113 | D16: =B16*C16 -> 6.3054 | E16: 55.8 | F16: =VLOOKUP($A16,'Data Pass Through'!$A:$D,3,FALSE) -> 0.113 | G16: =E16*F16 -> 6.3054 | H16: 0 | I16: 0 | K16: 0.09459066042
A17: TOU-On Peak | B17: =B$4*VLOOKUP($B$3,'Data Billing Quantities'!$A:$O,MATCH('BI Template_EnergyWHSI'!$A17,'Data Billing Quantities'!$4:$4,0),FALSE) -> 55.8 | C17: =VLOOKUP($A17,'Data Pass Through'!$A:$D,2,FALSE) -> 0.17 | D17: =B17*C17 -> 9.486 | E17: 55.8 | F17: =VLOOKUP($A17,'Data Pass Through'!$A:$D,3,FALSE) -> 0.17 | G17: =E17*F17 -> 9.486 | H17: 0 | I17: 0 | K17: 0.1423045334
A18: Sub-Total: Energy (RPP TOU) | D18: =SUM(D15:D17) -> 32.0602 | G18: =SUM(G15:G17) -> 32.0602 | H18: 0 | I18: 0 | J18: =G18/$G$44 -> 0.4931518771 | K18: 0.480952119
A19: Service Charge | B19: 1 | C19: =VLOOKUP($B$3,'Data Current Rates'!$A:$AP,MATCH('BI Template_EnergyWHSI'!$A19,CurrentHeader,0),FALSE) -> 31.08 | D19: =B19*C19 -> 31.08 | E19: 1 | F19: =VLOOKUP($C$3,'Data Proposed Rates'!$A:$AZ,MATCH('BI Template_EnergyWHSI'!$A19,ProposedHeader,0),FALSE) -> 29.59 | G19: =E19*F19 -> 29.59 | H19: -1.49 | I19: -0.04794079794 | J19: 0.4551551158 | K19: 0.4438953345
A20: Rate Rider for Recovery of Smart Meter Incremental Revenue Requirement | B20: 1 | C20: =VLOOKUP($B$3,'Data Current Rates'!$A:$AP,MATCH('BI Template_EnergyWHSI'!$A20,CurrentHeader,0),FALSE) -> 0.64 | D20: =B20*C20 -> 0.64 | H20: =G20-D20 -> -0.64 | I20: =IF(ISERROR(H20/ABS(D20)),"N/A",(H20/ABS(D20))) -> -1 | J20: 0 | K20: 0
A21: Distribution Volumetric Charge | B21: =IF($B$9="kWh",$B$4,$B$5) -> 310 | C21: =VLOOKUP($B$3,'Data Current Rates'!$A:$AP,MATCH('BI Template_EnergyWHSI'!$A21,CurrentHeader,0),FALSE) -> 0 | D21: =B21*C21 -> 0 | E21: =IF($C$9="kWh",$C$4,$C$5) -> 310 | F21: =VLOOKUP($C$3,'Data Proposed Rates'!$A:$AZ,MATCH('BI Template_EnergyWHSI'!$A21,ProposedHeader,0),FALSE) -> 0 | G21: 0 | H21: 0 | I21: N/A | J21: 0 | K21: 0
A22: Rate Rider for Recovery of Incremental Capital | B22: =IF($B$9="kWh",$B$4,$B$5) -> 310 | C22: =VLOOKUP($B$3,'Data Current Rates'!$A:$AP,MATCH('BI Template_EnergyWHSI'!$A22,CurrentHeader,0),FALSE) -> 0.0008 | D22: 0.248 | H22: -0.248 | I22: -1 | J22: 0 | K22: 0
A23: Group 1 Volumetric DVA Rider (General) | E23: =IF($C$9="kWh",$C$4,$C$5) -> 310 | F23: =VLOOKUP($C$3,'Data Proposed Rates'!$A:$AZ,MATCH('BI Template_EnergyWHSI'!$A23,ProposedHeader,0),FALSE) -> -0.0005 | G23: -0.155 | H23: -0.155 | I23: N/A | J23: -0.002384219092 | K23: -0.002325237474
A24: Sub-Total: Distribution (excluding pass through) | D24: =SUM(INDIRECT("D19:D"&ROW()-1)) -> 31.968 | G24: =SUM(INDIRECT("g19:g"&ROW()-1)) -> 29.435 | H24: =G24-D24 -> -2.533 | I24: -0.07923548549 | J24: 0.4527708967 | K24: 0.441570097
A25: Smart Metering Entity Charge | B25: =B19 -> 1 | C25: =VLOOKUP($A25,'Data Pass Through'!$A:$D,2,FALSE) -> 0.57 | D25: =B25*C25 -> 0.57 | E25: =E19 -> 1 | F25: =VLOOKUP($A25,'Data Pass Through'!$A:$D,3,FALSE) -> 0.57 | G25: =E25*F25 -> 0.57 | H25: 0 | I25: 0 | J25: 0.008767773437 | K25: 0.00855087329
A26: Line Losses on Cost of Power (based on two-tier RPP prices) | B26: =B8-B4 -> 13.361 | C26: =IF(B4>B7,C13,C12) -> 0.098 | D26: =B26*C26 -> 1.309378 | E26: =C8-C4 -> 13.33 | F26: =IF(C4>C7,F13,F12) -> 0.098 | G26: =E26*F26 -> 1.30634 | H26: -0.003038 | I26: -0.002320185615 | J26: 0.02009419851 | K26: 0.01959710143
A27: Line Losses on Cost of Power (based on TOU prices) | B27: =B8-B4 -> 13.361 | C27: =VLOOKUP($B$3,'Data Billing Quantities'!$A:$O,MATCH('BI Template_EnergyWHSI'!$A15,'Data Billing Quantities'!$4:$4,0),FALSE)*C15+VLOOKUP($B$3,'Data Billing Quantities'!$A:$O,MATCH('BI Template_EnergyWHSI'!$A16,'Data Billing Quantities'!$4:$4,0),FALSE)*C16+VLOOKUP($B$3,'Data Billing Quantities'!$A:$O,MATCH('BI Template_EnergyWHSI'!$A17,'Data Billing Quantities'!$4:$4,0),FALSE)*C17 -> 0.10342 | D27: =B27*C27 -> 1.38179462 | E27: =C8-C4 -> 13.33 | F27: =VLOOKUP($C$3,'Data Billing Quantities'!$A:$O,MATCH('BI Template_EnergyWHSI'!$A15,'Data Billing Quantities'!$4:$4,0),FALSE)*F15+VLOOKUP($C$3,'Data Billing Quantities'!$A:$O,MATCH('BI Template_EnergyWHSI'!$A16,'Data Billing Quantities'!$4:$4,0),FALSE)*F16+VLOOKUP($C$3,'Data Billing Quantities'!$A:$O,MATCH('BI Template_EnergyWHSI'!$A17,'Data Billing Quantities'!$4:$4,0),FALSE)*F17 -> 0.10342 | G27: =E27*F27 -> 1.3785886 | H27: -0.00320602 | I27: -0.002320185615 | J27: 0.02120553071 | K27: 0.02068094112
A28: Sub-Total: Distribution (based on two-tier RPP prices) | D28: =SUM(D24,D25:D26) -> 33.847378 | G28: =SUM(G24,G25:G26) -> 31.31134 | H28: -2.536038 | I28: -0.07492568553 | J28: 0.4816328686 | K28: 0.4697180717
A29: Sub-Total: Distribution (based on TOU prices) | D29: =SUM(D24,D25,D27) -> 33.91979462 | G29: =SUM(G24,G25,G27) -> 31.3835886 | H29: -2.53620602 | I29: -0.07477067737 | J29: 0.4827442008 | K29: 0.4708019114
A30: Retail Transmission Rate – Network Service Rate | B30: =IF($B$9="kWh",$B$8,$B$5) -> 323.361 | C30: =VLOOKUP($B$3,'Data Current Rates'!$A:$AP,MATCH('BI Template_EnergyWHSI'!$A30,CurrentHeader,0),FALSE) -> 0.0092 | D30: =B30*C30 -> 2.9749212 | E30: =IF($C$9="kWh",$C$8,$C$5) -> 323.33 | F30: =VLOOKUP($C$3,'Data Proposed Rates'!$A:$AZ,MATCH('BI Template_EnergyWHSI'!$A30,ProposedHeader,0),FALSE) -> 0.0106 | G30: =E30*F30 -> 3.427298 | H30: =G30-D30 -> 0.4523768 | I30: 0.1520634563 | J30: 0.05271889888 | K30: 0.05141472092
A31: Retail Transmission Rate – Line and Transformation Connection Service Rate | B31: =IF($B$9="kWh",$B$8,$B$5) -> 323.361 | C31: =VLOOKUP($B$3,'Data Current Rates'!$A:$AP,MATCH('BI Template_EnergyWHSI'!$A31,CurrentHeader,0),FALSE) -> 0.0064 | D31: =B31*C31 -> 2.0695104 | E31: =IF($C$9="kWh",$C$8,$C$5) -> 323.33 | F31: =VLOOKUP($C$3,'Data Proposed Rates'!$A:$AZ,MATCH('BI Template_EnergyWHSI'!$A31,ProposedHeader,0),FALSE) -> 0.0076 | G31: =E31*F31 -> 2.457308 | H31: =G31-D31 -> 0.3877976 | I31: 0.1873861566 | J31: 0.0377984558 | K31: 0.03686338481
A32: Sub-Total: Retail Transmission | D32: =SUM(D30:D31) -> 5.0444316 | G32: =SUM(G30:G31) -> 5.884606 | H32: =G32-D32 -> 0.8401744 | I32: 0.1665548206 | J32: 0.09051735469 | K32: 0.08827810573
A33: Sub-Total: Delivery (based on two-tier RPP prices) | D33: =D28+D32 -> 38.8918096 | G33: =G28+G32 -> 37.195946 | H33: =G33-D33 -> -1.6958636 | I33: -0.04360464626 | J33: 0.5721502233 | K33: 0.5579961774
A34: Sub-Total: Delivery (based on TOU prices) | D34: =D29+D32 -> 38.96422622 | G34: =G29+G32 -> 37.2681946 | H34: =G34-D34 -> -1.69603162 | I34: -0.04352791739 | J34: 0.5732615555 | K34: 0.5590800171
A35: Wholesale Market Service Rate (WMS) - not including CBR | B35: =B8 -> 323.361 | C35: =VLOOKUP($A35,'Data Pass Through'!$A:$D,2,FALSE) -> 0.003 | D35: =B35*C35 -> 0.970083 | E35: =$C$8 -> 323.33 | F35: =VLOOKUP($A35,'Data Pass Through'!$A:$D,3,FALSE) -> 0.003 | G35: =E35*F35 -> 0.96999 | H35: -9.3e-05 | I35: -9.586808551e-05 | J35: 0.01492044308 | K35: 0.01455133611
A36: Capacity Based Recovery (CBR) - Applicable for Class B Customers | B36: =B8 -> 323.361 | C36: =VLOOKUP($A36,'Data Pass Through'!$A:$D,2,FALSE) -> 0.0004 | D36: =B36*C36 -> 0.1293444 | E36: =$C$8 -> 323.33 | F36: =VLOOKUP($A36,'Data Pass Through'!$A:$D,3,FALSE) -> 0.0004 | G36: =E36*F36 -> 0.129332 | H36: -1.24e-05 | I36: -9.586808551e-05 | J36: 0.001989392411 | K36: 0.001940178148
A37: Rural Rate Protection Charge | B37: =B8 -> 323.361 | C37: =VLOOKUP($A37,'Data Pass Through'!$A:$D,2,FALSE) -> 0.0005 | D37: 0.1616805 | E37: 323.33 | F37: =VLOOKUP($A37,'Data Pass Through'!$A:$D,3,FALSE) -> 0.0005 | G37: 0.161665 | H37: -1.55e-05 | I37: -9.586808551e-05 | J37: 0.002486740513 | K37: 0.002425222685
A38: Standard Supply Service – Administration Charge (if applicable) | B38: 1 | C38: =VLOOKUP($A38,'Data Pass Through'!$A:$D,2,FALSE) -> 0.25 | D38: =B38*C38 -> 0.25 | E38: 1 | F38: =VLOOKUP($A38,'Data Pass Through'!$A:$D,3,FALSE) -> 0.25 | G38: 0.25 | H38: 0 | I38: 0 | J38: 0.003845514665 | K38: 0.003750383022
A39: Sub-Total: Regulatory | D39: =SUM(D35:D38) -> 1.5111079 | G39: =SUM(G35:G38) -> 1.510987 | H39: -0.0001209 | I39: -8.000752296e-05 | J39: 0.02324209067 | K39: 0.02266711996
A40: Total Electricty Charge on Two-Tier RPP | D40: =SUM(D14,D24,D25,D26,D32,D39) -> 70.7829175 | G40: =SUM(G14,G24,G25,G26,G32,G39) -> 69.086933 | H40: -1.6959845 | I40: -0.02396036445 | J40: 1.062699256
A41: HST | C41: 0.13 | D41: =D40*C41 -> 9.201779275 | F41: =C41 -> 0.13 | G41: =G40*F41 -> 8.98130129 | H41: -0.220477985 | I41: -0.02396036445 | J41: 0.1381509033
A42: Total Electricity Charge on Two-Tier RPP (including HST) | D42: =SUM(D40:D41) -> 79.98469678 | G42: =SUM(G40:G41) -> 78.06823429 | H42: -1.916462485 | I42: -0.02396036445 | J42: 1.200850159
A43: Ontario Electricity Rebate (OER) | C43: =IF(($B$4*12)<250000,VLOOKUP(A43,'Data Pass Through'!$A$4:$C$20,2,0),0) -> -0.189 | D43: =D40*C43 -> -13.37797141 | F43: =C43 -> -0.189 | G43: =G40*F43 -> -13.05743034 | H43: 0.3205410705 | I43: 0.02396036445 | J43: -0.2008501594
A44: Total Amount on Two-Tier RPP | D44: =SUM(D42:D43) -> 66.60672537 | G44: =SUM(G42:G43) -> 65.01080395 | H44: -1.595921414 | I44: -0.02396036445 | J44: 1
A45: Total Electricty Charge on TOU (before HST) | D45: =SUM(D18,D24,D25,D27,D32,D39) -> 72.53553412 | G45: =SUM(G18,G24,G25,G27,G32,G39) -> 70.8393816 | H45: -1.69615252 | I45: -0.0233837462 | K45: =G45/$G$49 -> 1.062699256
A46: HST | C46: 0.13 | D46: =D45*C46 -> 9.429619436 | F46: =C46 -> 0.13 | G46: =G45*F46 -> 9.209119608 | H46: -0.2204998276 | I46: -0.0233837462 | K46: =G46/$G$49 -> 0.1381509033
A47: Total Electricity Charge on TOU (including HST) | D47: =SUM(D45:D46) -> 81.96515356 | G47: =SUM(G45:G46) -> 80.04850121 | H47: -1.916652348 | I47: -0.0233837462 | K47: =G47/$G$49 -> 1.200850159
A48: Ontario Electricity Rebate (OER) | C48: =IF(($B$4*12)<250000,VLOOKUP(A48,'Data Pass Through'!$A$4:$C$20,2,0),0) -> -0.189 | D48: =D45*C48 -> -13.70921595 | F48: =C48 -> -0.189 | G48: =G45*F48 -> -13.38864312 | H48: 0.3205728263 | I48: 0.0233837462 | K48: =G48/$G$49 -> -0.2008501594
A49: Total Amount on TOU | D49: =SUM(D47:D48) -> 68.25593761 | G49: =SUM(G47:G48) -> 66.65985809 | H49: -1.596079521 | I49: -0.0233837462 | K49: =G49/$G$49 -> 1

Sheet BI Template_DemandWHSI (hidden)
A1: 2023 Bill Impacts (Low Consumption Level) - AUGd_WHSI
A3: Rate Class | B3: =VLOOKUP(A1,'Data BI List Acq_Seas'!C:E,2,FALSE) -> WHSI_GS 50>999 | C3: =VLOOKUP(A1,'Data BI List Acq_Seas'!C:E,3,FALSE) -> AUGd-WHSI
A4: Monthly Consumption (kWh) | B4: =IF(COUNTIF(A1,"*Low*")>0,VLOOKUP(B3,'Data Billing Quantities'!$A:$Z,MATCH("Low kWh",'Data Billing Quantities'!4:4,0),FALSE),IF(COUNTIF(A1,"*Typical*")>0,VLOOKUP(B3,'Data Billing Quantities'!$A:$Z,MATCH("Typical kWh",'Data Billing Quantities'!4:4,0),FALSE),IF(COUNTIF(A1,"*Average*")>0,VLOOKUP(B3,'Data Billing Quantities'!$A:$Z,MATCH("Average kWh",'Data Billing Quantities'!4:4,0),FALSE),IF(COUNTIF(A1,"*High*")>0,VLOOKUP(B3,'Data Billing Quantities'!$A:$Z,MATCH("High kWh",'Data Billing Quantities'!4:4,0),FALSE),"error")))) -> 9370 | C4: =B4 -> 9370
A5: Peak (kW) | B5: =IF(COUNTIF(A1,"*Low*")>0,VLOOKUP(B3,'Data Billing Quantities'!$A:$Z,MATCH("Low kW",'Data Billing Quantities'!4:4,0),FALSE),IF(COUNTIF(A1,"*Typical*")>0,VLOOKUP(B3,'Data Billing Quantities'!$A:$Z,MATCH("Typical kW",'Data Billing Quantities'!4:4,0),FALSE),IF(COUNTIF(A1,"*Average*")>0,VLOOKUP(B3,'Data Billing Quantities'!$A:$Z,MATCH("Average kW",'Data Billing Quantities'!4:4,0),FALSE),IF(COUNTIF(A1,"*High*")>0,VLOOKUP(B3,'Data Billing Quantities'!$A:$Z,MATCH("High kW",'Data Billing Quantities'!4:4,0),FALSE),"error")))) -> 50 | C5: =B5 -> 50
A6: Loss factor | B6: =VLOOKUP(B3,'Data Billing Quantities'!A:D,MATCH(A6,'Data Billing Quantities'!4:4,0),FALSE) -> 1.0431 | C6: =VLOOKUP(C3,'Data Billing Quantities'!A:D,MATCH(A6,'Data Billing Quantities'!4:4,0),FALSE) -> 1.033
A7: Commodity Threshold | B7: =VLOOKUP(B3,'Data Billing Quantities'!A:D,MATCH(A7,'Data Billing Quantities'!4:4,0),FALSE) -> 0 | C7: =B7 -> 0
A8: Monthly Consumption (kWh) - Uplifted | B8: =B4*B6 -> 9773.847 | C8: =C4*C6 -> 9679.21
A9: Charge determinant | B9: =VLOOKUP(B3,'Data Billing Quantities'!A:D,MATCH(A9,'Data Billing Quantities'!4:4,0),FALSE) -> kW | C9: =VLOOKUP(C3,'Data Billing Quantities'!A:D,MATCH(A9,'Data Billing Quantities'!4:4,0),FALSE) -> kW
B11: Volume | C11: Current Rate ($) | D11: Current Charge ($) | E11: Volume | F11: Proposed Rate ($) | G11: Proposed Charge ($) | H11: Change ($) | I11: Change (%) | J11: % of Total Bill
A12: Weighted Average Hourly Spot Price | B12: =B8 -> 9773.847 | C12: =VLOOKUP($A12,'Data Pass Through'!$A:$D,2,FALSE) -> 0.119 | D12: =B12*C12 -> 1163.087793 | E12: =C8 -> 9679.21 | F12: =VLOOKUP($A12,'Data Pass Through'!$A:$D,3,FALSE) -> 0.119 | G12: =E12*F12 -> 1151.82599 | H12: =G12-D12 -> -11.261803 | I12: =IF(ISERROR(H12/ABS(D12)),"N/A",(H12/ABS(D12))) -> -0.009682676637 | J12: =G12/G$32 -> 0.5997837503
A13: Sub-Total: Energy (WAHSP) | D13: =SUM(D12:D12) -> 1163.087793 | G13: =SUM(G12:G12) -> 1151.82599 | H13: -11.261803 | I13: -0.009682676637 | J13: =G13/G$32 -> 0.5997837503
A14: Service Charge | B14: 1 | C14: =VLOOKUP($B$3,'Data Current Rates'!$A:$AP,MATCH('BI Template_DemandWHSI'!$A14,CurrentHeader,0),FALSE) -> 144.9 | D14: =B14*C14 -> 144.9 | E14: 1 | F14: =VLOOKUP($C$3,'Data Proposed Rates'!$A:$AZ,MATCH('BI Template_DemandWHSI'!$A14,ProposedHeader,0),FALSE) -> 150.84 | G14: =E14*F14 -> 150.84 | H14: 5.94 | I14: 0.04099378882 | J14: 0.07854604922
A15: Distribution Volumetric Charge | B15: =IF($B$9="kWh",$B$4,$B$5) -> 50 | C15: =VLOOKUP($B$3,'Data Current Rates'!$A:$AP,MATCH('BI Template_DemandWHSI'!$A15,CurrentHeader,0),FALSE) -> 2.6687 | D15: =B15*C15 -> 133.435 | E15: =IF($C$9="kWh",$C$4,$C$5) -> 50 | F15: =VLOOKUP($C$3,'Data Proposed Rates'!$A:$AZ,MATCH('BI Template_DemandWHSI'!$A15,ProposedHeader,0),FALSE) -> 2.4538 | G15: 122.69 | H15: -10.745 | I15: -0.08052609885 | J15: 0.06388766096
A16: Rate Rider for Recovery of Incremental Capital | B16: =IF($B$9="kWh",$B$4,$B$5) -> 50 | C16: =VLOOKUP($B$3,'Data Current Rates'!$A:$AP,MATCH('BI Template_DemandWHSI'!$A16,CurrentHeader,0),FALSE) -> 0.3251 | D16: 16.255 | H16: -16.255 | I16: -1 | J16: 0
A17: Group 1 Volumetric DVA Rider (General) | E17: =IF($C$9="kWh",$C$4,$C$5) -> 50 | F17: =VLOOKUP($C$3,'Data Proposed Rates'!$A:$AZ,MATCH('BI Template_DemandWHSI'!$A17,ProposedHeader,0),FALSE) -> -0.0383 | G17: -1.915 | H17: -1.915 | I17: N/A | J17: -0.0009971869813
A18: Group 1 Volumetric Deferral/Variance Account Rider (Sub-Account RSVA Wholesale Market Service Charge & RSVA Power) | E18: 50 | F18: =VLOOKUP($C$3,'Data Proposed Rates'!$A:$AZ,MATCH('BI Template_DemandWHSI'!$A18,ProposedHeader,0),FALSE) -> -0.0803 | G18: -4.015 | H18: -4.015 | I18: N/A | J18: -0.002090707953
A19: Group 1 Volumetric Deferral/Variance Account Rider (Sub-Account Global Adjustment) | E19: =C4 -> 9370 | F19: =VLOOKUP($C$3,'Data Proposed Rates'!$A:$AZ,MATCH('BI Template_DemandWHSI'!$A19,ProposedHeader,0),FALSE) -> -0.0007 | G19: -6.559 | H19: -6.559 | I19: N/A | J19: -0.003415430501
A20: Sub-Total: Distribution | D20: =SUM(INDIRECT("D14:D"&ROW()-1)) -> 294.59 | G20: =SUM(INDIRECT("g14:g"&ROW()-1)) -> 261.041 | H20: =G20-D20 -> -33.549 | I20: -0.1138837028 | J20: 0.1359303847
A21: Retail Transmission Rate – Network Service Rate | B21: =IF($B$9="kWh",$B$4,$B$5) -> 50 | C21: =VLOOKUP($B$3,'Data Current Rates'!$A:$AP,MATCH('BI Template_DemandWHSI'!$A21,CurrentHeader,0),FALSE) -> 3.5638 | D21: =B21*C21 -> 178.19 | E21: =IF($C$9="kWh",$C$4,$C$5) -> 50 | F21: =VLOOKUP($C$3,'Data Proposed Rates'!$A:$AZ,MATCH('BI Template_DemandWHSI'!$A21,ProposedHeader,0),FALSE) -> 2.8411 | G21: =E21*F21 -> 142.055 | H21: =G21-D21 -> -36.135 | I21: -0.2027891576 | J21: 0.07397148649
A22: Retail Transmission Rate – Line and Transformation Connection Service Rate | B22: =IF($B$9="kWh",$B$4,$B$5) -> 50 | C22: =VLOOKUP($B$3,'Data Current Rates'!$A:$AP,MATCH('BI Template_DemandWHSI'!$A22,CurrentHeader,0),FALSE) -> 2.5609 | D22: =B22*C22 -> 128.045 | E22: =IF($C$9="kWh",$C$4,$C$5) -> 50 | F22: =VLOOKUP($C$3,'Data Proposed Rates'!$A:$AZ,MATCH('BI Template_DemandWHSI'!$A22,ProposedHeader,0),FALSE) -> 2.131 | G22: =E22*F22 -> 106.55 | H22: =G22-D22 -> -21.495 | I22: -0.1678706705 | J22: 0.0554831712
A23: Sub-Total: Retail Transmission | D23: =SUM(D21:D22) -> 306.235 | G23: =SUM(G21:G22) -> 248.605 | H23: =G23-D23 -> -57.63 | I23: -0.1881888092 | J23: 0.1294546577
A24: Sub-Total: Delivery (based on two-tier RPP prices) | D24: =SUM(D20,D23) -> 600.825 | G24: =SUM(G20,G23) -> 509.646 | H24: =G24-D24 -> -91.179 | I24: -0.151756335 | J24: 0.2653850424
A25: Wholesale Market Service Rate (WMS) - not including CBR | B25: =B8 -> 9773.847 | C25: =VLOOKUP($A25,'Data Pass Through'!$A:$D,2,FALSE) -> 0.003 | D25: =B25*C25 -> 29.321541 | E25: =$C$8 -> 9679.21 | F25: =VLOOKUP($A25,'Data Pass Through'!$A:$D,3,FALSE) -> 0.003 | G25: =E25*F25 -> 29.03763 | H25: =G25-D25 -> -0.283911 | I25: -0.009682676637 | J25: 0.01512059875
A26: Capacity Based Recovery (CBR) - Applicable for Class B Customers | B26: =B8 -> 9773.847 | C26: =VLOOKUP($A26,'Data Pass Through'!$A:$D,2,FALSE) -> 0.0004 | D26: =B26*C26 -> 3.9095388 | E26: =$C$8 -> 9679.21 | F26: =VLOOKUP($A26,'Data Pass Through'!$A:$D,3,FALSE) -> 0.0004 | G26: =E26*F26 -> 3.871684 | H26: -0.0378548 | I26: -0.009682676637 | J26: 0.002016079833
A27: Rural Rate Protection Charge | B27: =B8 -> 9773.847 | C27: =VLOOKUP($A27,'Data Pass Through'!$A:$D,2,FALSE) -> 0.0005 | D27: 4.8869235 | E27: 9679.21 | F27: =VLOOKUP($A27,'Data Pass Through'!$A:$D,3,FALSE) -> 0.0005 | G27: 4.839605 | H27: -0.0473185 | I27: -0.009682676637 | J27: 0.002520099791
A28: Standard Supply Service – Administration Charge (if applicable) | B28: 1 | C28: =VLOOKUP($A28,'Data Pass Through'!$A:$D,2,FALSE) -> 0.25 | D28: =B28*C28 -> 0.25 | E28: =B28 -> 1 | F28: =VLOOKUP($A28,'Data Pass Through'!$A:$D,3,FALSE) -> 0.25 | G28: 0.25 | H28: 0 | I28: 0 | J28: 0.000130181068
A29: Sub-Total: Regulatory | D29: =SUM(D25:D28) -> 38.3680033 | G29: =SUM(G25:G28) -> 37.998919 | H29: -0.3690843 | I29: -0.009619585807 | J29: 0.01978695944
A30: Total Electricty Charge on WAHSP | D30: =SUM(D13,D24,D29) -> 1802.280796 | G30: =SUM(G13,G24,G29) -> 1699.470909 | H30: -102.8098873 | I30: -0.05704432268 | J30: 0.8849557522
A31: HST | C31: 0.13 | D31: =D30*C31 -> 234.2965035 | F31: =C31 -> 0.13 | G31: =G30*F31 -> 220.9312182 | H31: -13.36528535 | I31: -0.05704432268 | J31: 0.1150442478
A32: Total Amount on WAHSP | D32: =SUM(D30:D31) -> 2036.5773 | G32: =SUM(G30:G31) -> 1920.402127 | H32: -116.1751726 | I32: -0.05704432268 | J32: 1

Sheet BI Template_unmWHSI (hidden)
A1: 2023 Bill Impacts (Average Consumption Level) - St Lgt_WHSI
A3: Rate Class | B3: =VLOOKUP(A1,'Data BI List Acq_Seas'!C:E,2,FALSE) -> WHSI_St Lgt | C3: =VLOOKUP(A1,'Data BI List Acq_Seas'!C:E,3,FALSE) -> St Lgt-WHSI
A4: Monthly Consumption (kWh) | B4: =IF(COUNTIF(A1,"*Low*")>0,VLOOKUP(B3,'Data Billing Quantities'!$A:$Z,MATCH("Low kWh",'Data Billing Quantities'!4:4,0),FALSE),IF(COUNTIF(A1,"*Typical*")>0,VLOOKUP(B3,'Data Billing Quantities'!$A:$Z,MATCH("Typical kWh",'Data Billing Quantities'!4:4,0),FALSE),IF(COUNTIF(A1,"*Average*")>0,VLOOKUP(B3,'Data Billing Quantities'!$A:$Z,MATCH("Average kWh",'Data Billing Quantities'!4:4,0),FALSE),IF(COUNTIF(A1,"*High*")>0,VLOOKUP(B3,'Data Billing Quantities'!$A:$Z,MATCH("High kWh",'Data Billing Quantities'!4:4,0),FALSE),"error")))) -> 37079 | C4: =B4 -> 37079
A5: Peak (kW) | B5: =IF(COUNTIF(A1,"*Low*")>0,VLOOKUP(B3,'Data Billing Quantities'!$A:$Z,MATCH("Low kW",'Data Billing Quantities'!4:4,0),FALSE),IF(COUNTIF(A1,"*Typical*")>0,VLOOKUP(B3,'Data Billing Quantities'!$A:$Z,MATCH("Typical kW",'Data Billing Quantities'!4:4,0),FALSE),IF(COUNTIF(A1,"*Average*")>0,VLOOKUP(B3,'Data Billing Quantities'!$A:$Z,MATCH("Average kW",'Data Billing Quantities'!4:4,0),FALSE),IF(COUNTIF(A1,"*High*")>0,VLOOKUP(B3,'Data Billing Quantities'!$A:$Z,MATCH("High kW",'Data Billing Quantities'!4:4,0),FALSE),"error")))) -> 104 | C5: =B5 -> 104
A6: Loss factor | B6: =VLOOKUP(B3,'Data Billing Quantities'!A:D,MATCH(A6,'Data Billing Quantities'!4:4,0),FALSE) -> 1.0431 | C6: =VLOOKUP(C3,'Data Billing Quantities'!A:D,MATCH(A6,'Data Billing Quantities'!4:4,0),FALSE) -> 1.092
A7: Commodity Threshold | B7: =VLOOKUP(B3,'Data Billing Quantities'!A:D,MATCH(A7,'Data Billing Quantities'!4:4,0),FALSE) -> 750 | C7: =B7 -> 750
A8: Monthly Consumption (kWh) - Uplifted | B8: =B4*B6 -> 38677.1049 | C8: =C4*C6 -> 40490.268
A9: Charge determinant | B9: =VLOOKUP(B3,'Data Billing Quantities'!A:D,MATCH(A9,'Data Billing Quantities'!4:4,0),FALSE) -> kW | C9: =VLOOKUP(C3,'Data Billing Quantities'!A:D,MATCH(A9,'Data Billing Quantities'!4:4,0),FALSE) -> kWh
B11: Volume | C11: Current Rate ($) | D11: Current Charge ($) | E11: Volume | F11: Proposed Rate ($) | G11: Proposed Charge ($) | H11: Change ($) | I11: Change (%) | J11: % of Total Bill
A12: Energy First Tier | B12: =IF(B4>B7,B7,B4) -> 750 | C12: =VLOOKUP($A12,'Data Pass Through'!$A:$D,2,FALSE) -> 0.098 | D12: =B12*C12 -> 73.5 | E12: =B12 -> 750 | F12: =VLOOKUP($A12,'Data Pass Through'!$A:$D,3,FALSE) -> 0.098 | G12: =E12*F12 -> 73.5 | H12: =G12-D12 -> 0 | I12: =IF(ISERROR(H12/ABS(D12)),"N/A",(H12/ABS(D12))) -> 0 | J12: =G12/$G$35 -> 0.007119827502
A13: Energy Second Tier | B13: =IF(B4>B7,(B4)-B7,0) -> 36329 | C13: =VLOOKUP($A13,'Data Pass Through'!$A:$D,2,FALSE) -> 0.115 | D13: =B13*C13 -> 4177.835 | E13: =B13 -> 36329 | F13: =VLOOKUP($A13,'Data Pass Through'!$A:$D,3,FALSE) -> 0.115 | G13: =E13*F13 -> 4177.835 | H13: 0 | I13: 0 | J13: 0.4047001977
A14: Sub-Total: Energy (RPP Tiered) | D14: =SUM(D12:D13) -> 4251.335 | G14: =SUM(G12:G13) -> 4251.335 | H14: 0 | I14: 0 | J14: 0.4118200252
A15: Service Charge | B15: =IF(VLOOKUP(B$3,'Data Billing Quantities'!A:P,MATCH("Acquired Street Light Service Charge",'Data Billing Quantities'!$4:$4,0),FALSE)>0,VLOOKUP(B$3,'Data Billing Quantities'!A:P,MATCH("Acquired Street Light Service Charge",'Data Billing Quantities'!$4:$4,0),FALSE),1) -> 786 | C15: =VLOOKUP($B$3,'Data Current Rates'!$A:$AP,MATCH('BI Template_unmWHSI'!$A15,CurrentHeader,0),FALSE) -> 3.19 | D15: =B15*C15 -> 2507.34 | E15: 1 | F15: =VLOOKUP($C$3,'Data Proposed Rates'!$A:$AZ,MATCH('BI Template_unmWHSI'!$A15,ProposedHeader,0),FALSE) -> 2.97 | G15: =E15*F15 -> 2.97 | H15: -2504.37 | I15: -0.9988154778 | J15: 0.0002876991521
A16: Distribution Volumetric Charge | B16: =IF($B$9="kWh",$B$4,$B$5) -> 104 | C16: =VLOOKUP($B$3,'Data Current Rates'!$A:$AP,MATCH('BI Template_unmWHSI'!$A16,CurrentHeader,0),FALSE) -> 12.895 | D16: =B16*C16 -> 1341.08 | E16: =IF($C$9="kWh",$C$4,$C$5) -> 37079 | F16: =VLOOKUP($C$3,'Data Proposed Rates'!$A:$AZ,MATCH('BI Template_unmWHSI'!$A16,ProposedHeader,0),FALSE) -> 0.1064 | G16: 3945.2056 | H16: 2604.1256 | I16: 1.941812271 | J16: 0.3821657596
A17: Rate Rider for Recovery of Incremental Capital | B17: =IF($B$9="kWh",$B$4,$B$5) -> 104 | C17: =VLOOKUP($B$3,'Data Current Rates'!$A:$AP,MATCH('BI Template_unmWHSI'!$A17,CurrentHeader,0),FALSE) -> 0.2187 | D17: 22.7448 | H17: -22.7448 | I17: -1 | J17: 0
A18: Group 1 Volumetric DVA Rider (General) | E18: =IF($C$9="kWh",$C$4,$C$5) -> 37079 | F18: =VLOOKUP($C$3,'Data Proposed Rates'!$A:$AZ,MATCH('BI Template_unmWHSI'!$A18,ProposedHeader,0),FALSE) -> -0.0003 | G18: -11.1237 | H18: -11.1237 | I18: N/A | J18: -0.001077535037
A19: Sub-Total: Distribution (excluding pass through) | D19: =SUM(INDIRECT("D15:D"&ROW()-1)) -> 3871.1648 | G19: =SUM(INDIRECT("g15:g"&ROW()-1)) -> 3937.0519 | H19: =G19-D19 -> 65.8871 | I19: 0.01701996774 | J19: 0.3813759237
A20: Line Losses on Cost of Power (based on two-tier RPP prices) | B20: =B8-B4 -> 1598.1049 | C20: =IF(B4>B7,C13,C12) -> 0.115 | D20: =B20*C20 -> 183.7820635 | E20: =C8-C4 -> 3411.268 | F20: =IF(C4>C7,F13,F12) -> 0.115 | G20: =E20*F20 -> 392.29582 | H20: 208.5137565 | I20: 1.134570766 | J20: 0.03800106895
A21: Sub-Total: Distribution (based on two-tier RPP prices) | D21: =SUM(D19,D20:D20) -> 4054.946863 | G21: =SUM(G19,G20:G20) -> 4329.34772 | H21: 274.4008565 | I21: 0.06767064175 | J21: 0.4193769927
A22: Retail Transmission Rate – Network Service Rate | B22: =IF($B$9="kWh",$B$8,$B$5) -> 104 | C22: =VLOOKUP($B$3,'Data Current Rates'!$A:$AP,MATCH('BI Template_unmWHSI'!$A22,CurrentHeader,0),FALSE) -> 2.6302 | D22: =B22*C22 -> 273.5408 | E22: =IF($C$9="kWh",$C$8,$C$5) -> 40490.268 | F22: =VLOOKUP($C$3,'Data Proposed Rates'!$A:$AZ,MATCH('BI Template_unmWHSI'!$A22,ProposedHeader,0),FALSE) -> 0.0055 | G22: =E22*F22 -> 222.696474 | H22: =G22-D22 -> -50.844326 | I22: -0.1858747434 | J22: 0.02157225143
A23: Retail Transmission Rate – Line and Transformation Connection Service Rate | B23: =IF($B$9="kWh",$B$8,$B$5) -> 104 | C23: =VLOOKUP($B$3,'Data Current Rates'!$A:$AP,MATCH('BI Template_unmWHSI'!$A23,CurrentHeader,0),FALSE) -> 1.8902 | D23: =B23*C23 -> 196.5808 | E23: =IF($C$9="kWh",$C$8,$C$5) -> 40490.268 | F23: =VLOOKUP($C$3,'Data Proposed Rates'!$A:$AZ,MATCH('BI Template_unmWHSI'!$A23,ProposedHeader,0),FALSE) -> 0.0043 | G23: =E23*F23 -> 174.1081524 | H23: =G23-D23 -> -22.4726476 | I23: -0.1143176119 | J23: 0.01686557839
A24: Sub-Total: Retail Transmission | D24: =SUM(D22:D23) -> 470.1216 | G24: =SUM(G22:G23) -> 396.8046264 | H24: =G24-D24 -> -73.3169736 | I24: -0.1559532121 | J24: 0.03843782982
A25: Sub-Total: Delivery (based on two-tier RPP prices) | D25: =D21+D24 -> 4525.068463 | G25: =G21+G24 -> 4726.152346 | H25: =G25-D25 -> 201.0838829 | I25: 0.04443775481 | J25: 0.4578148225
A26: Wholesale Market Service Rate (WMS) - not including CBR | B26: =B8 -> 38677.1049 | C26: =VLOOKUP($A26,'Data Pass Through'!$A:$D,2,FALSE) -> 0.003 | D26: =B26*C26 -> 116.0313147 | E26: =$C$8 -> 40490.268 | F26: =VLOOKUP($A26,'Data Pass Through'!$A:$D,3,FALSE) -> 0.003 | G26: =E26*F26 -> 121.470804 | H26: =G26-D26 -> 5.4394893 | I26: 0.04687949382 | J26: 0.0117666826
A27: Capacity Based Recovery (CBR) - Applicable for Class B Customers | B27: =B8 -> 38677.1049 | C27: =VLOOKUP($A27,'Data Pass Through'!$A:$D,2,FALSE) -> 0.0004 | D27: =B27*C27 -> 15.47084196 | E27: =$C$8 -> 40490.268 | F27: =VLOOKUP($A27,'Data Pass Through'!$A:$D,3,FALSE) -> 0.0004 | G27: =E27*F27 -> 16.1961072 | H27: 0.72526524 | I27: 0.04687949382 | J27: 0.001568891013
A28: Rural Rate Protection Charge | B28: =B8 -> 38677.1049 | C28: =VLOOKUP($A28,'Data Pass Through'!$A:$D,2,FALSE) -> 0.0005 | D28: 19.33855245 | E28: 40490.268 | F28: =VLOOKUP($A28,'Data Pass Through'!$A:$D,3,FALSE) -> 0.0005 | G28: 20.245134 | H28: 0.90658155 | I28: 0.04687949382 | J28: 0.001961113766
A29: Standard Supply Service – Administration Charge (if applicable) | B29: 1 | C29: =VLOOKUP($A29,'Data Pass Through'!$A:$D,2,FALSE) -> 0.25 | D29: =B29*C29 -> 0.25 | E29: 1 | F29: =VLOOKUP($A29,'Data Pass Through'!$A:$D,3,FALSE) -> 0.25 | G29: 0.25 | H29: 0 | I29: 0 | J29: 2.421710035e-05
A30: Sub-Total: Regulatory | D30: =SUM(D26:D29) -> 151.0907091 | G30: =SUM(G26:G29) -> 158.1620452 | H30: 7.07133609 | I30: 0.04680192536 | J30: 0.01532090448
A31: Total Electricty Charge on Two-Tier RPP | D31: =SUM(D25,D30,D14) -> 8927.494173 | G31: =SUM(G25,G30,G14) -> 9135.649392 | H31: 208.155219 | I31: 0.02331619769 | J31: 0.8849557522
A32: HST | C32: 0.13 | D32: =D31*C32 -> 1160.574242 | F32: =C32 -> 0.13 | G32: =G31*F32 -> 1187.634421 | H32: 27.06017847 | I32: 0.02331619769 | J32: 0.1150442478
A33: Total Electricity Charge on Two-Tier RPP (including HST) | D33: =SUM(D31:D32) -> 10088.06842 | G33: =SUM(G31:G32) -> 10323.28381 | H33: 235.2153975 | I33: 0.02331619769 | J33: 1
A34: Ontario Electricity Rebate (OER) | C34: =IF(($B$4*12)<250000,VLOOKUP(A34,'Data Pass Through'!$A$4:$C$20,2,0),0) -> 0 | D34: =D31*C34 -> 0 | F34: =C34 -> 0 | G34: =G31*F34 -> 0 | H34: 0 | I34: N/A | J34: 0
A35: Total Amount on Two-Tier RPP | D35: =SUM(D33:D34) -> 10088.06842 | G35: =SUM(G33:G34) -> 10323.28381 | H35: 235.2153975 | I35: 0.02331619769 | J35: 1

Sheet BI Template_EnergyUNM (hidden)
A1: 2023 Bill Impacts (Average Consumption Level) - USL
A3: Rate Class | B3: =RIGHT(A1,LEN(A1)-FIND("- ",A1,1)-1) -> USL
A4: Monthly Consumption (kWh) | B4: =IF(COUNTIF(A1,"*Low*")>0,VLOOKUP(B3,'Data Billing Quantities'!$A:$Z,MATCH("Low kWh",'Data Billing Quantities'!4:4,0),FALSE),IF(COUNTIF(A1,"*Typical*")>0,VLOOKUP(B3,'Data Billing Quantities'!$A:$Z,MATCH("Typical kWh",'Data Billing Quantities'!4:4,0),FALSE),IF(COUNTIF(A1,"*Average*")>0,VLOOKUP(B3,'Data Billing Quantities'!$A:$Z,MATCH("Average kWh",'Data Billing Quantities'!4:4,0),FALSE),IF(COUNTIF(A1,"*High*")>0,VLOOKUP(B3,'Data Billing Quantities'!$A:$Z,MATCH("High kWh",'Data Billing Quantities'!4:4,0),FALSE),"error")))) -> 477
A5: Peak (kW) | B5: =IF(COUNTIF(A1,"*Low*")>0,VLOOKUP(B3,'Data Billing Quantities'!$A:$Z,MATCH("Low kW",'Data Billing Quantities'!4:4,0),FALSE),IF(COUNTIF(A1,"*Typical*")>0,VLOOKUP(B3,'Data Billing Quantities'!$A:$Z,MATCH("Typical kW",'Data Billing Quantities'!4:4,0),FALSE),IF(COUNTIF(A1,"*Average*")>0,VLOOKUP(B3,'Data Billing Quantities'!$A:$Z,MATCH("Average kW",'Data Billing Quantities'!4:4,0),FALSE),IF(COUNTIF(A1,"*High*")>0,VLOOKUP(B3,'Data Billing Quantities'!$A:$Z,MATCH("High kW",'Data Billing Quantities'!4:4,0),FALSE),"error")))) -> 0
A6: Loss factor | B6: =VLOOKUP(B3,'Data Billing Quantities'!A:D,MATCH(A6,'Data Billing Quantities'!4:4,0),FALSE) -> 1.092
A7: Commodity Threshold | B7: =VLOOKUP(B3,'Data Billing Quantities'!A:D,MATCH(A7,'Data Billing Quantities'!4:4,0),FALSE) -> 750
A8: Monthly Consumption (kWh) - Uplifted | B8: =B4*B6 -> 520.884
A9: Charge determinant | B9: =VLOOKUP(B3,'Data Billing Quantities'!A:D,MATCH(A9,'Data Billing Quantities'!4:4,0),FALSE) -> kWh
B11: Volume | C11: Current Rate ($) | D11: Current Charge ($) | E11: Volume | F11: Proposed Rate ($) | G11: Proposed Charge ($) | H11: Change ($) | I11: Change (%) | J11: % of Total Bill
A12: Energy First Tier | B12: =IF(B4>B7,B7,B4) -> 477 | C12: =VLOOKUP($A12,'Data Pass Through'!$A:$D,2,FALSE) -> 0.098 | D12: =B12*C12 -> 46.746 | E12: =B12 -> 477 | F12: =VLOOKUP($A12,'Data Pass Through'!$A:$D,3,FALSE) -> 0.098 | G12: =E12*F12 -> 46.746 | H12: =G12-D12 -> 0 | I12: =IF(ISERROR(H12/ABS(D12)),"N/A",(H12/ABS(D12))) -> 0 | J12: =G12/$G$37 -> 0.4734952468
A13: Energy Second Tier | B13: =IF(B4>B7,(B4)-B7,0) -> 0 | C13: =VLOOKUP($A13,'Data Pass Through'!$A:$D,2,FALSE) -> 0.115 | D13: =B13*C13 -> 0 | E13: =B13 -> 0 | F13: =VLOOKUP($A13,'Data Pass Through'!$A:$D,3,FALSE) -> 0.115 | G13: =E13*F13 -> 0 | H13: 0 | I13: N/A | J13: =G13/$G$37 -> 0
A14: Sub-Total: Energy (RPP Tiered) | D14: =SUM(D12:D13) -> 46.746 | G14: =SUM(G12:G13) -> 46.746 | H14: 0 | I14: 0 | J14: =G14/$G$37 -> 0.4734952468
A15: Service Charge | B15: 1 | C15: =VLOOKUP($B$3,'Data Current Rates'!$A:$AP,MATCH('BI Template_EnergyUNM'!$A15,CurrentHeader,0),FALSE) -> 39.42 | D15: =B15*C15 -> 39.42 | E15: 1 | F15: =VLOOKUP($B$3,'Data Proposed Rates'!$A:$AZ,MATCH('BI Template_EnergyUNM'!$A15,ProposedHeader,0),FALSE) -> 34.68 | G15: =E15*F15 -> 34.68 | H15: -4.74 | I15: -0.1202435312 | J15: =G15/$G$37 -> 0.3512774389
A16: Fixed Base Rate Adjustment to Recover Past Tax Amounts | B16: 1 | C16: =VLOOKUP($B$3,'Data Current Rates'!$A:$AP,MATCH('BI Template_EnergyUNM'!$A16,CurrentHeader,0),FALSE) -> 0.89 | D16: =B16*C16 -> 0.89 | E16: 1 | F16: =VLOOKUP($B$3,'Data Proposed Rates'!$A:$AZ,MATCH('BI Template_EnergyUNM'!$A16,ProposedHeader,0),FALSE) -> 0.87 | G16: =E16*F16 -> 0.87 | H16: =G16-D16 -> -0.02 | I16: =IF(ISERROR(H16/ABS(D16)),"N/A",(H16/ABS(D16))) -> -0.02247191011
A17: Distribution Volumetric Charge | B17: =IF($B$9="kWh",$B$4,$B$5) -> 477 | C17: =VLOOKUP($B$3,'Data Current Rates'!$A:$AP,MATCH('BI Template_EnergyUNM'!$A17,CurrentHeader,0),FALSE) -> 0.0263 | D17: 12.5451 | E17: 477 | F17: =VLOOKUP($B$3,'Data Proposed Rates'!$A:$AZ,MATCH('BI Template_EnergyUNM'!$A17,ProposedHeader,0),FALSE) -> 0.0216 | G17: 10.3032 | H17: -2.2419 | I17: -0.1787072243 | J17: =G17/$G$37 -> 0.1043622177
A18: Volumetric Base Rate Adjustment to Recover Past Tax Amounts | B18: =IF($B$9="kWh",$B$4,$B$5) -> 477 | C18: =VLOOKUP($B$3,'Data Current Rates'!$A:$AP,MATCH('BI Template_EnergyUNM'!$A18,CurrentHeader,0),FALSE) -> 0.0006 | D18: =B18*C18 -> 0.2862 | E18: =B18 -> 477 | F18: =VLOOKUP($B$3,'Data Proposed Rates'!$A:$AZ,MATCH('BI Template_EnergyUNM'!$A18,ProposedHeader,0),FALSE) -> 0.0005 | G18: =E18*F18 -> 0.2385 | H18: =G18-D18 -> -0.0477 | I18: =IF(ISERROR(H18/ABS(D18)),"N/A",(H18/ABS(D18))) -> -0.1666666667 | J18: 0.002415792075
A19: Group 1 Volumetric DVA Rider (General) | E19: =B4 -> 477 | F19: =VLOOKUP($B$3,'Data Proposed Rates'!$A:$AZ,MATCH('BI Template_EnergyUNM'!$A19,ProposedHeader,0),FALSE) -> -0.0004 | G19: =E19*F19 -> -0.1908 | H19: =G19-D19 -> -0.1908 | I19: =IF(ISERROR(H19/ABS(D19)),"N/A",(H19/ABS(D19))) -> N/A | J19: -0.00193263366
A20: Group 2 Volumetric DVA Rider | E20: =B4 -> 477 | F20: =VLOOKUP($B$3,'Data Proposed Rates'!$A:$AZ,MATCH('BI Template_EnergyUNM'!$A20,ProposedHeader,0),FALSE) -> -0.0002 | G20: -0.0954 | H20: -0.0954 | I20: N/A | J20: -0.0009663168302
A21: Sub-Total: Distribution (excluding pass through) | D21: =SUM(INDIRECT("D15:D"&ROW()-1)) -> 53.1413 | G21: =SUM(INDIRECT("g15:g"&ROW()-1)) -> 45.8055 | H21: =G21-D21 -> -7.3358 | I21: -0.1380432921 | J21: 0.4639688214
A22: Line Losses on Cost of Power (based on two-tier RPP prices) | B22: =B8-B4 -> 43.884 | C22: =IF(B4>B7,C13,C12) -> 0.098 | D22: =B22*C22 -> 4.300632 | E22: 43.884 | F22: =IF(B4>B7,F13,F12) -> 0.098 | G22: =E22*F22 -> 4.300632 | H22: 0 | I22: 0 | J22: 0.0435615627
A23: Sub-Total: Distribution (based on two-tier RPP prices) | D23: =SUM(D21,D22:D22) -> 57.441932 | G23: =SUM(G21,G22:G22) -> 50.106132 | H23: -7.3358 | I23: -0.1277081001 | J23: 0.5075303841
A24: Retail Transmission Rate – Network Service Rate | B24: =B8 -> 520.884 | C24: =VLOOKUP($B$3,'Data Current Rates'!$A:$AP,MATCH('BI Template_EnergyUNM'!$A24,CurrentHeader,0),FALSE) -> 0.0065 | D24: =B24*C24 -> 3.385746 | E24: 520.884 | F24: =VLOOKUP($B$3,'Data Proposed Rates'!$A:$AZ,MATCH('BI Template_EnergyUNM'!$A24,ProposedHeader,0),FALSE) -> 0.0064 | G24: =E24*F24 -> 3.3336576 | H24: =G24-D24 -> -0.0520884 | I24: -0.01538461538 | J24: 0.03376697531
A25: Retail Transmission Rate – Line and Transformation Connection Service Rate | B25: =B8 -> 520.884 | C25: =VLOOKUP($B$3,'Data Current Rates'!$A:$AP,MATCH('BI Template_EnergyUNM'!$A25,CurrentHeader,0),FALSE) -> 0.0046 | D25: =B25*C25 -> 2.3960664 | E25: 520.884 | F25: =VLOOKUP($B$3,'Data Proposed Rates'!$A:$AZ,MATCH('BI Template_EnergyUNM'!$A25,ProposedHeader,0),FALSE) -> 0.0047 | G25: =E25*F25 -> 2.4481548 | H25: =G25-D25 -> 0.0520884 | I25: 0.02173913043 | J25: 0.0247976225
A26: Sub-Total: Retail Transmission | D26: =SUM(D24:D25) -> 5.7818124 | G26: =SUM(G24:G25) -> 5.7818124 | H26: =G26-D26 -> 0 | I26: 0 | J26: 0.05856459781
A27: Sub-Total: Delivery (based on two-tier RPP prices) | D27: =D23+D26 -> 63.2237444 | G27: =G23+G26 -> 55.8879444 | H27: =G27-D27 -> -7.3358 | I27: -0.1160291923 | J27: 0.5660949819
A28: Wholesale Market Service Rate (WMS) - not including CBR | B28: =B8 -> 520.884 | C28: =VLOOKUP($A28,'Data Pass Through'!$A:$D,2,FALSE) -> 0.003 | D28: =B28*C28 -> 1.562652 | E28: =$B$8 -> 520.884 | F28: =VLOOKUP($A28,'Data Pass Through'!$A:$D,3,FALSE) -> 0.003 | G28: =E28*F28 -> 1.562652 | H28: =G28-D28 -> 0 | I28: 0 | J28: 0.01582826968
A29: Capacity Based Recovery (CBR) - Applicable for Class B Customers | B29: =B8 -> 520.884 | C29: =VLOOKUP($A29,'Data Pass Through'!$A:$D,2,FALSE) -> 0.0004 | D29: =B29*C29 -> 0.2083536 | E29: =$B$8 -> 520.884 | F29: =VLOOKUP($A29,'Data Pass Through'!$A:$D,3,FALSE) -> 0.0004 | G29: =E29*F29 -> 0.2083536 | H29: 0 | I29: 0 | J29: 0.002110435957
A30: Rural Rate Protection Charge | B30: =B8 -> 520.884 | C30: =VLOOKUP($A30,'Data Pass Through'!$A:$D,2,FALSE) -> 0.0005 | D30: 0.260442 | E30: 520.884 | F30: =VLOOKUP($A30,'Data Pass Through'!$A:$D,3,FALSE) -> 0.0005 | G30: 0.260442 | H30: 0 | I30: 0 | J30: 0.002638044946
A31: Standard Supply Service – Administration Charge (if applicable) | B31: 1 | C31: =VLOOKUP($A31,'Data Pass Through'!$A:$D,2,FALSE) -> 0.25 | D31: =B31*C31 -> 0.25 | E31: 1 | F31: =VLOOKUP($A31,'Data Pass Through'!$A:$D,3,FALSE) -> 0.25 | G31: 0.25 | H31: 0 | I31: 0 | J31: 0.002532276809
A32: Sub-Total: Regulatory | D32: =SUM(D28:D31) -> 2.2814476 | G32: =SUM(G28:G31) -> 2.2814476 | H32: 0 | I32: 0 | J32: 0.02310902739
A33: Total Electricty Charge on Two-Tier RPP | D33: =SUM(D14,D21,D22,D26,D32) -> 112.251192 | G33: =SUM(G14,G21,G22,G26,G32) -> 104.915392 | H33: -7.3358 | I33: -0.06535164455 | J33: 1.062699256
A34: HST | C34: 0.13 | D34: =D33*C34 -> 14.59265496 | F34: =C34 -> 0.13 | G34: =G33*F34 -> 13.63900096 | H34: -0.953654 | I34: -0.06535164455 | J34: 0.1381509033
A35: Total Electricity Charge on Two-Tier RPP (including HST) | D35: =SUM(D33:D34) -> 126.843847 | G35: =SUM(G33:G34) -> 118.554393 | H35: -8.289454 | I35: -0.06535164455 | J35: 1.200850159
A36: Ontario Electricity Rebate (OER) | C36: =IF(($B$4*12)<250000,VLOOKUP(A36,'Data Pass Through'!$A$4:$C$20,2,0),0) -> -0.189 | D36: =D33*C36 -> -21.21547529 | F36: =C36 -> -0.189 | G36: =G33*F36 -> -19.82900909 | H36: 1.3864662 | I36: 0.06535164455 | J36: -0.2008501594
A37: Total Amount on Two-Tier RPP | D37: =SUM(D35:D36) -> 105.6283717 | G37: =SUM(G35:G36) -> 98.72538387 | H37: -6.9029878 | I37: -0.06535164455 | J37: 1

Sheet BI Template_Demand (hidden)
A1: 2023 Bill Impacts (Average Consumption Level) - GSd
A3: Rate Class | B3: =RIGHT(A1,LEN(A1)-FIND("- ",A1,1)-1) -> GSd
A4: Monthly Consumption (kWh) | B4: =IF(COUNTIF(A1,"*Low*")>0,VLOOKUP(B3,'Data Billing Quantities'!$A:$Z,MATCH("Low kWh",'Data Billing Quantities'!4:4,0),FALSE),IF(COUNTIF(A1,"*Typical*")>0,VLOOKUP(B3,'Data Billing Quantities'!$A:$Z,MATCH("Typical kWh",'Data Billing Quantities'!4:4,0),FALSE),IF(COUNTIF(A1,"*Average*")>0,VLOOKUP(B3,'Data Billing Quantities'!$A:$Z,MATCH("Average kWh",'Data Billing Quantities'!4:4,0),FALSE),IF(COUNTIF(A1,"*High*")>0,VLOOKUP(B3,'Data Billing Quantities'!$A:$Z,MATCH("High kWh",'Data Billing Quantities'!4:4,0),FALSE),"error")))) -> 34334
A5: Peak (kW) | B5: =IF(COUNTIF(A1,"*Low*")>0,VLOOKUP(B3,'Data Billing Quantities'!$A:$Z,MATCH("Low kW",'Data Billing Quantities'!4:4,0),FALSE),IF(COUNTIF(A1,"*Typical*")>0,VLOOKUP(B3,'Data Billing Quantities'!$A:$Z,MATCH("Typical kW",'Data Billing Quantities'!4:4,0),FALSE),IF(COUNTIF(A1,"*Average*")>0,VLOOKUP(B3,'Data Billing Quantities'!$A:$Z,MATCH("Average kW",'Data Billing Quantities'!4:4,0),FALSE),IF(COUNTIF(A1,"*High*")>0,VLOOKUP(B3,'Data Billing Quantities'!$A:$Z,MATCH("High kW",'Data Billing Quantities'!4:4,0),FALSE),"error")))) -> 110
A6: Loss factor | B6: =VLOOKUP(B3,'Data Billing Quantities'!A:D,MATCH(A6,'Data Billing Quantities'!4:4,0),FALSE) -> 1.061
A7: Load factor | B7: =B4/(B5*730) -> 0.4275716065
A8: Monthly Consumption (kWh) - Uplifted | B8: =B4*B6 -> 36428.374
A9: Charge determinant | B9: =VLOOKUP(B3,'Data Billing Quantities'!A:D,MATCH(A9,'Data Billing Quantities'!4:4,0),FALSE) -> kW
B11: Volume | C11: Current Rate ($) | D11: Current Charge ($) | E11: Volume | F11: Proposed Rate ($) | G11: Proposed Charge ($) | H11: Change ($) | I11: Change (%) | J11: % of Total Bill
A12: Weighted Average Hourly Spot Price | B12: =B8 -> 36428.374 | C12: =VLOOKUP($A12,'Data Pass Through'!$A:$D,2,FALSE) -> 0.119 | D12: =B12*C12 -> 4334.976506 | E12: =B8 -> 36428.374 | F12: =VLOOKUP($A12,'Data Pass Through'!$A:$D,3,FALSE) -> 0.119 | G12: =E12*F12 -> 4334.976506 | H12: =G12-D12 -> 0 | I12: =IF(ISERROR(H12/ABS(D12)),"N/A",(H12/ABS(D12))) -> 0 | J12: =G12/$G$34 -> 0.5381682961
A13: Sub-Total: Energy (WAHSP) | D13: =SUM(D12:D12) -> 4334.976506 | G13: =SUM(G12:G12) -> 4334.976506 | H13: =G13-D13 -> 0 | I13: 0 | J13: 0.5381682961
A14: Service Charge | B14: 1 | C14: =VLOOKUP($B$3,'Data Current Rates'!$A:$AQ,MATCH($A14,CurrentHeader,0),FALSE) -> 112.58 | D14: =B14*C14 -> 112.58 | E14: =B14 -> 1 | F14: =VLOOKUP($B$3,'Data Proposed Rates'!$A:$AZ,MATCH($A14,ProposedHeader,0),FALSE) -> 99.8 | G14: =E14*F14 -> 99.8 | H14: -12.78 | I14: -0.1135192752 | J14: 0.01238973173
A15: Fixed Base Rate Adjustment to Recover Past Tax Amounts | B15: 1 | C15: =VLOOKUP($B$3,'Data Current Rates'!$A:$AQ,MATCH($A15,CurrentHeader,0),FALSE) -> 4.34 | D15: =B15*C15 -> 4.34 | E15: 1 | F15: =VLOOKUP($B$3,'Data Proposed Rates'!$A:$AZ,MATCH($A15,ProposedHeader,0),FALSE) -> 4.43 | G15: =E15*F15 -> 4.43 | H15: 0.09 | I15: 0.02073732719 | J15: 0.0005499650456
A16: Distribution Volumetric Charge | B16: =IF($B$9="kWh",$B$4,$B$5) -> 110 | C16: =VLOOKUP($B$3,'Data Current Rates'!$A:$AQ,MATCH($A16,CurrentHeader,0),FALSE) -> 19.1989 | D16: =B16*C16 -> 2111.879 | E16: =$B$5 -> 110 | F16: =VLOOKUP($B$3,'Data Proposed Rates'!$A:$AZ,MATCH($A16,ProposedHeader,0),FALSE) -> 18.4174 | G16: 2025.914 | H16: -85.965 | I16: =IF(ISERROR(H16/ABS(D16)),"N/A",(H16/ABS(D16))) -> -0.04070545708 | J16: 0.2515083263
A17: Volumetric Base Rate Adjustment to Recover Past Tax Amounts | B17: =IF($B$9="kWh",$B$4,$B$5) -> 110 | C17: =VLOOKUP($B$3,'Data Current Rates'!$A:$AQ,MATCH($A17,CurrentHeader,0),FALSE) -> 0.7338 | D17: 80.718 | E17: =$B$5 -> 110 | F17: =VLOOKUP($B$3,'Data Proposed Rates'!$A:$AZ,MATCH($A17,ProposedHeader,0),FALSE) -> 0.8111 | G17: 89.221 | H17: 8.503 | I17: =IF(ISERROR(H17/ABS(D17)),"N/A",(H17/ABS(D17))) -> 0.1053420551 | J17: 0.01107639533
A18: Group 1 Volumetric DVA Rider (General) | E18: 110 | F18: =VLOOKUP($B$3,'Data Proposed Rates'!$A:$AZ,MATCH($A18,ProposedHeader,0),FALSE) -> -0.0509 | G18: -5.599 | H18: -5.599 | I18: N/A | J18: -0.0006950912619
A19: Group 1 Volumetric Deferral/Variance Account Rider (Sub-Account RSVA Wholesale Market Service Charge & RSVA Power) | E19: 110 | F19: =VLOOKUP($B$3,'Data Proposed Rates'!$A:$AZ,MATCH($A19,ProposedHeader,0),FALSE) -> -0.071 | G19: -7.81 | H19: -7.81 | I19: N/A | J19: -0.0009695772022
A20: Group 1 Volumetric Deferral/Variance Account Rider (Sub-Account Global Adjustment) | E20: =B4 -> 34334 | F20: =VLOOKUP($B$3,'Data Proposed Rates'!$A:$AZ,MATCH($A20,ProposedHeader,0),FALSE) -> -0.0007 | G20: -24.0338 | H20: -24.0338 | I20: N/A | J20: -0.002983690725
A21: Group 2 Volumetric DVA Rider | E21: =B5 -> 110 | F21: =VLOOKUP($B$3,'Data Proposed Rates'!$A:$AZ,MATCH($A21,ProposedHeader,0),FALSE) -> -0.0466 | G21: =E21*F21 -> -5.126 | H21: =G21-D21 -> -5.126 | I21: =IF(ISERROR(H21/ABS(D21)),"N/A",(H21/ABS(D21))) -> N/A | J21: -0.000636370389
A22: Sub-Total: Distribution | D22: =SUM(INDIRECT("D14:D"&ROW()-1)) -> 2309.517 | G22: =SUM(INDIRECT("g14:g"&ROW()-1)) -> 2176.7962 | H22: -132.7208 | I22: -0.05746690758 | J22: 0.2702396888
A23: Retail Transmission Rate – Network Service Rate | B23: =IF($B$9="kWh",$B$4,$B$5) -> 110 | C23: =VLOOKUP($B$3,'Data Current Rates'!$A:$AQ,MATCH($A23,CurrentHeader,0),FALSE) -> 2.4328 | D23: =B23*C23 -> 267.608 | E23: 110 | F23: =VLOOKUP($B$3,'Data Proposed Rates'!$A:$AZ,MATCH($A23,ProposedHeader,0),FALSE) -> 2.442 | G23: =E23*F23 -> 268.62 | H23: 1.012 | I23: 0.003781650773 | J23: 0.03334799335
A24: Retail Transmission Rate – Line and Transformation Connection Service Rate | B24: =IF($B$9="kWh",$B$4,$B$5) -> 110 | C24: =VLOOKUP($B$3,'Data Current Rates'!$A:$AQ,MATCH($A24,CurrentHeader,0),FALSE) -> 1.7088 | D24: =B24*C24 -> 187.968 | E24: 110 | F24: =VLOOKUP($B$3,'Data Proposed Rates'!$A:$AZ,MATCH($A24,ProposedHeader,0),FALSE) -> 1.8696 | G24: =E24*F24 -> 205.656 | H24: 17.688 | I24: 0.0941011236 | J24: 0.02553128926
A25: Sub-Total: Retail Transmission | D25: =SUM(D23:D24) -> 455.576 | G25: =SUM(G23:G24) -> 474.276 | H25: 18.7 | I25: 0.04104693838 | J25: 0.05887928261
A26: Sub-Total: Delivery | D26: =D22+D25 -> 2765.093 | G26: =G22+G25 -> 2651.0722 | H26: -114.0208 | I26: -0.04123579207 | J26: 0.3291189714
A27: Wholesale Market Service Rate (WMS) - not including CBR | B27: =$B$8 -> 36428.374 | C27: =VLOOKUP($A27,'Data Pass Through'!$A:$D,2,FALSE) -> 0.003 | D27: =B27*C27 -> 109.285122 | E27: =$B$8 -> 36428.374 | F27: =VLOOKUP($A27,'Data Pass Through'!$A:$D,3,FALSE) -> 0.003 | G27: =E27*F27 -> 109.285122 | H27: 0 | I27: 0 | J27: 0.01356726797
A28: Capacity Based Recovery (CBR) - Applicable for Class B Customers | B28: =$B$8 -> 36428.374 | C28: =VLOOKUP($A28,'Data Pass Through'!$A:$D,2,FALSE) -> 0.0004 | D28: =B28*C28 -> 14.5713496 | E28: =$B$8 -> 36428.374 | F28: =VLOOKUP($A28,'Data Pass Through'!$A:$D,3,FALSE) -> 0.0004 | G28: =E28*F28 -> 14.5713496 | H28: =G28-D28 -> 0 | I28: 0 | J28: 0.001808969062
A29: Rural Rate Protection Charge | B29: =$B$8 -> 36428.374 | C29: =VLOOKUP($A29,'Data Pass Through'!$A:$D,2,FALSE) -> 0.0005 | D29: =B29*C29 -> 18.214187 | E29: =$B$8 -> 36428.374 | F29: =VLOOKUP($A29,'Data Pass Through'!$A:$D,3,FALSE) -> 0.0005 | G29: =E29*F29 -> 18.214187 | H29: =G29-D29 -> 0 | I29: 0 | J29: 0.002261211328
A30: Standard Supply Service – Administration Charge (if applicable) | B30: 1 | C30: =VLOOKUP($A30,'Data Pass Through'!$A:$D,2,FALSE) -> 0.25 | D30: =B30*C30 -> 0.25 | E30: 1 | F30: =VLOOKUP($A30,'Data Pass Through'!$A:$D,3,FALSE) -> 0.25 | G30: =E30*F30 -> 0.25 | H30: 0 | I30: 0 | J30: 3.103640212e-05
A31: Sub-Total: Regulatory | D31: =SUM(D27:D30) -> 142.3206586 | G31: =SUM(G27:G30) -> 142.3206586 | H31: 0 | I31: 0 | J31: 0.01766848476
A32: Total Electricity Charge on Two-Tier RPP (before HST) | D32: =SUM(D13,D22,D25,D31) -> 7242.390165 | G32: =SUM(G13,G22,G25,G31) -> 7128.369365 | H32: -114.0208 | I32: -0.01574353182 | J32: 0.8849557522
A33: HST | C33: 0.13 | D33: =D32*C33 -> 941.5107214 | F33: =C33 -> 0.13 | G33: =G32*F33 -> 926.6880174 | H33: -14.822704 | I33: -0.01574353182 | J33: 0.1150442478
A34: Total Amount on WAHSP | D34: =SUM(D32:D33) -> 8183.900886 | G34: =SUM(G32:G33) -> 8055.057382 | H34: -128.843504 | I34: -0.01574353182 | J34: 1

Sheet BI_UR_Low
A1: 2023 Bill Impacts (Low Consumption Level) - UR
A3: Rate Class | B3: =RIGHT(A1,LEN(A1)-FIND("- ",A1,1)-1) -> UR
A4: Monthly Consumption (kWh) | B4: =IF(COUNTIF(A1,"*Low*")>0,VLOOKUP(B3,'Data Billing Quantities'!$A:$Z,MATCH("Low kWh",'Data Billing Quantities'!4:4,0),FALSE),IF(COUNTIF(A1,"*Typical*")>0,VLOOKUP(B3,'Data Billing Quantities'!$A:$Z,MATCH("Typical kWh",'Data Billing Quantities'!4:4,0),FALSE),IF(COUNTIF(A1,"*Average*")>0,VLOOKUP(B3,'Data Billing Quantities'!$A:$Z,MATCH("Average kWh",'Data Billing Quantities'!4:4,0),FALSE),IF(COUNTIF(A1,"*High*")>0,VLOOKUP(B3,'Data Billing Quantities'!$A:$Z,MATCH("High kWh",'Data Billing Quantities'!4:4,0),FALSE),"error")))) -> 340
A5: Peak (kW) | B5: =IF(COUNTIF(A1,"*Low*")>0,VLOOKUP(B3,'Data Billing Quantities'!$A:$Z,MATCH("Low kW",'Data Billing Quantities'!4:4,0),FALSE),IF(COUNTIF(A1,"*Typical*")>0,VLOOKUP(B3,'Data Billing Quantities'!$A:$Z,MATCH("Typical kW",'Data Billing Quantities'!4:4,0),FALSE),IF(COUNTIF(A1,"*Average*")>0,VLOOKUP(B3,'Data Billing Quantities'!$A:$Z,MATCH("Average kW",'Data Billing Quantities'!4:4,0),FALSE),IF(COUNTIF(A1,"*High*")>0,VLOOKUP(B3,'Data Billing Quantities'!$A:$Z,MATCH("High kW",'Data Billing Quantities'!4:4,0),FALSE),"error")))) -> 0
A6: Loss factor | B6: =VLOOKUP(B3,'Data Billing Quantities'!A:D,MATCH(A6,'Data Billing Quantities'!4:4,0),FALSE) -> 1.057
A7: Commodity Threshold | B7: =VLOOKUP(B3,'Data Billing Quantities'!A:D,MATCH(A7,'Data Billing Quantities'!4:4,0),FALSE) -> 600
A8: Monthly Consumption (kWh) - Uplifted | B8: =B4*B6 -> 359.38
A9: Charge determinant | B9: =VLOOKUP(B3,'Data Billing Quantities'!A:D,MATCH(A9,'Data Billing Quantities'!4:4,0),FALSE) -> kWh
B11: Volume | C11: Current Rate ($) | D11: Current Charge ($) | E11: Volume | F11: Proposed Rate ($) | G11: Proposed Charge ($) | H11: Change ($) | I11: Change (%) | J11: % of Total Bill on RPP | K11: % of Total Bill
A12: Energy First Tier | B12: =IF(B4>B7,B7,B4) -> 340 | C12: =VLOOKUP($A12,'Data Pass Through'!$A:$D,2,FALSE) -> 0.098 | D12: =B12*C12 -> 33.32 | E12: =B12 -> 340 | F12: =VLOOKUP($A12,'Data Pass Through'!$A:$D,3,FALSE) -> 0.098 | G12: =E12*F12 -> 33.32 | H12: =G12-D12 -> 0 | I12: =IF(ISERROR(H12/ABS(D12)),"N/A",(H12/ABS(D12))) -> 0 | J12: =G12/$G$47 -> 0.4413458673
A13: Energy Second Tier | B13: =IF(B4>B7,(B4)-B7,0) -> 0 | C13: =VLOOKUP($A13,'Data Pass Through'!$A:$D,2,FALSE) -> 0.115 | D13: =B13*C13 -> 0 | E13: =B13 -> 0 | F13: =VLOOKUP($A13,'Data Pass Through'!$A:$D,3,FALSE) -> 0.115 | G13: =E13*F13 -> 0 | H13: 0 | I13: N/A | J13: =G13/$G$47 -> 0
A14: Sub-Total: Energy (RPP Tiered) | D14: =SUM(D12:D13) -> 33.32 | G14: =SUM(G12:G13) -> 33.32 | H14: 0 | I14: 0 | J14: =G14/$G$47 -> 0.4413458673
A15: TOU-Off Peak | B15: =B$4*VLOOKUP($B$3,'Data Billing Quantities'!$A:$O,MATCH(BI_UR_Low!$A15,'Data Billing Quantities'!$4:$4,0),FALSE) -> 217.6 | C15: =VLOOKUP($A15,'Data Pass Through'!$A:$D,2,FALSE) -> 0.082 | D15: =B15*C15 -> 17.8432 | E15: 217.6 | F15: =VLOOKUP($A15,'Data Pass Through'!$A:$D,3,FALSE) -> 0.082 | G15: =E15*F15 -> 17.8432 | H15: 0 | I15: 0 | K15: =G15/$G$52 -> 0.2307431812
A16: TOU-Mid Peak | B16: =B$4*VLOOKUP($B$3,'Data Billing Quantities'!$A:$O,MATCH(BI_UR_Low!$A16,'Data Billing Quantities'!$4:$4,0),FALSE) -> 61.2 | C16: =VLOOKUP($A16,'Data Pass Through'!$A:$D,2,FALSE) -> 0.113 | D16: =B16*C16 -> 6.9156 | E16: 61.2 | F16: =VLOOKUP($A16,'Data Pass Through'!$A:$D,3,FALSE) -> 0.113 | G16: =E16*F16 -> 6.9156 | H16: 0 | I16: 0 | K16: 0.08943056985
A17: TOU-On Peak | B17: =B$4*VLOOKUP($B$3,'Data Billing Quantities'!$A:$O,MATCH(BI_UR_Low!$A17,'Data Billing Quantities'!$4:$4,0),FALSE) -> 61.2 | C17: =VLOOKUP($A17,'Data Pass Through'!$A:$D,2,FALSE) -> 0.17 | D17: =B17*C17 -> 10.404 | E17: 61.2 | F17: =VLOOKUP($A17,'Data Pass Through'!$A:$D,3,FALSE) -> 0.17 | G17: =E17*F17 -> 10.404 | H17: 0 | I17: 0 | K17: 0.1345415653
A18: Sub-Total: Energy (RPP TOU) | D18: =SUM(D15:D17) -> 35.1628 | G18: =SUM(G15:G17) -> 35.1628 | H18: 0 | I18: 0 | J18: =G18/$G$47 -> 0.4657549959 | K18: 0.4547153163
A19: Service Charge | B19: 1 | C19: =VLOOKUP($B$3,'Data Current Rates'!$A:$AP,MATCH(BI_UR_Low!$A19,CurrentHeader,0),FALSE) -> 37.66 | D19: =B19*C19 -> 37.66 | E19: 1 | F19: =VLOOKUP($B$3,'Data Proposed Rates'!$A:$AZ,MATCH(BI_UR_Low!$A19,ProposedHeader,0),FALSE) -> 35.88 | G19: =E19*F19 -> 35.88 | H19: -1.78 | I19: -0.04726500266 | J19: 0.4752547935 | K19: 0.4639899425
A20: Fixed Base Rate Adjustment to Recover Past Tax Amounts | B20: 1 | C20: =VLOOKUP($B$3,'Data Current Rates'!$A:$AP,MATCH(BI_UR_Low!$A20,CurrentHeader,0),FALSE) -> 0.83 | D20: 0.83 | E20: 1 | F20: =VLOOKUP($B$3,'Data Proposed Rates'!$A:$AZ,MATCH(BI_UR_Low!$A20,ProposedHeader,0),FALSE) -> 0.8 | G20: 0.8 | H20: -0.03 | I20: -0.03614457831 | J20: 0.01059653943 | K20: 0.01034537218
A21: Group 2 Fixed DVA Rider | E21: 1 | F21: =VLOOKUP($B$3,'Data Proposed Rates'!$A:$AZ,MATCH(BI_UR_Low!$A21,ProposedHeader,0),FALSE) -> -0.08 | G21: -0.08 | H21: -0.08 | I21: N/A | J21: -0.001059653943 | K21: -0.001034537218
A22: Distribution Volumetric Charge | B22: =IF($B$9="kWh",$B$4,$B$5) -> 340 | C22: =VLOOKUP($B$3,'Data Current Rates'!$A:$AP,MATCH(BI_UR_Low!$A22,CurrentHeader,0),FALSE) -> 0 | D22: 0 | E22: 340 | F22: =VLOOKUP($B$3,'Data Proposed Rates'!$A:$AZ,MATCH(BI_UR_Low!$A22,ProposedHeader,0),FALSE) -> 0 | G22: 0 | H22: 0 | I22: N/A | J22: 0 | K22: 0
A23: Volumetric Base Rate Adjustment to Recover Past Tax Amounts | B23: =IF($B$9="kWh",$B$4,$B$5) -> 340 | C23: =VLOOKUP($B$3,'Data Current Rates'!$A:$AP,MATCH(BI_UR_Low!$A23,CurrentHeader,0),FALSE) -> 0 | D23: 0 | E23: 340 | F23: =VLOOKUP($B$3,'Data Proposed Rates'!$A:$AZ,MATCH(BI_UR_Low!$A23,ProposedHeader,0),FALSE) -> 0 | G23: 0 | H23: 0 | I23: N/A | J23: 0 | K23: 0
A24: Group 1 Volumetric DVA Rider (General) | E24: =B4 -> 340 | F24: =VLOOKUP($B$3,'Data Proposed Rates'!$A:$AZ,MATCH(BI_UR_Low!$A24,ProposedHeader,0),FALSE) -> -0.0004 | G24: -0.136 | H24: -0.136 | I24: N/A | J24: -0.001801411703 | K24: -0.001758713271
A25: Group 2 Volumetric DVA Rider | E25: =B4 -> 340 | F25: =VLOOKUP($B$3,'Data Proposed Rates'!$A:$AZ,MATCH(BI_UR_Low!$A25,ProposedHeader,0),FALSE) -> 0 | G25: 0 | H25: 0 | I25: N/A | J25: 0 | K25: 0
A26: Fair Hydro Plan - Distribution Rate Protection Savings* | D26: =IF(AND(B3<>"R1",B3<>"R2"),0,IF(VLOOKUP($A26,'Data Pass Through'!$A:$D,2,FALSE)=0,0,IF(SUM(D19:D20,D22:D23)<VLOOKUP($A26,'Data Pass Through'!$A:$D,2,FALSE),0,VLOOKUP($A26,'Data Pass Through'!$A:$D,2,FALSE)-SUM(D19:D20,D22:D23)))) -> 0 | G26: =IF(AND(B3<>"R1",B3<>"R2"),0,IF(VLOOKUP($A26,'Data Pass Through'!$A:$D,2,FALSE)=0,0,IF(SUM(G19:G20,G22:G23)<VLOOKUP($A26,'Data Pass Through'!$A:$D,2,FALSE),0,VLOOKUP($A26,'Data Pass Through'!$A:$D,2,FALSE)-SUM(G19:G20,G22:G23)))) -> 0 | H26: 0 | I26: N/A | J26: 0 | K26: 0
A27: Sub-Total: Distribution (excluding pass through) | D27: =SUM(INDIRECT("D19:D"&ROW()-1)) -> 38.49 | G27: =SUM(INDIRECT("g19:g"&ROW()-1)) -> 36.464 | H27: =G27-D27 -> -2.026 | I27: -0.05263704858 | J27: 0.4829902673 | K27: 0.4715420642
A28: Smart Metering Entity Charge | B28: 1 | C28: =VLOOKUP($A28,'Data Pass Through'!$A:$D,2,FALSE) -> 0.57 | D28: =B28*C28 -> 0.57 | E28: 1 | F28: =VLOOKUP($A28,'Data Pass Through'!$A:$D,3,FALSE) -> 0.57 | G28: =E28*F28 -> 0.57 | H28: 0 | I28: 0 | J28: 0.007550034345 | K28: 0.007371077681
A29: Line Losses on Cost of Power (based on two-tier RPP prices) | B29: =B8-B4 -> 19.38 | C29: =IF(B4>B7,C13,C12) -> 0.098 | D29: =B29*C29 -> 1.89924 | E29: 19.38 | F29: =IF(B4>B7,F13,F12) -> 0.098 | G29: =E29*F29 -> 1.89924 | H29: 0 | I29: 0 | J29: 0.02515671444 | K29: 0.02456043083
A30: Line Losses on Cost of Power (based on TOU prices) | B30: =B8-B4 -> 19.38 | C30: =VLOOKUP($B$3,'Data Billing Quantities'!$A:$O,MATCH(BI_UR_Low!$A15,'Data Billing Quantities'!$4:$4,0),FALSE)*C15+VLOOKUP($B$3,'Data Billing Quantities'!$A:$O,MATCH(BI_UR_Low!$A16,'Data Billing Quantities'!$4:$4,0),FALSE)*C16+VLOOKUP($B$3,'Data Billing Quantities'!$A:$O,MATCH(BI_UR_Low!$A17,'Data Billing Quantities'!$4:$4,0),FALSE)*C17 -> 0.10342 | D30: =B30*C30 -> 2.0042796 | E30: 19.38 | F30: =VLOOKUP($B$3,'Data Billing Quantities'!$A:$O,MATCH(BI_UR_Low!$A15,'Data Billing Quantities'!$4:$4,0),FALSE)*F15+VLOOKUP($B$3,'Data Billing Quantities'!$A:$O,MATCH(BI_UR_Low!$A16,'Data Billing Quantities'!$4:$4,0),FALSE)*F16+VLOOKUP($B$3,'Data Billing Quantities'!$A:$O,MATCH(BI_UR_Low!$A17,'Data Billing Quantities'!$4:$4,0),FALSE)*F17 -> 0.10342 | G30: =E30*F30 -> 2.0042796 | H30: 0 | I30: 0 | J30: 0.02654803477 | K30: 0.02591877303
A31: Sub-Total: Distribution (based on two-tier RPP prices) | D31: =SUM(D27,D28:D29) -> 40.95924 | G31: =SUM(G27,G28:G29) -> 38.93324 | H31: -2.026 | I31: -0.04946380841 | J31: 0.5156970161 | K31: 0.5034735727
A32: Sub-Total: Distribution (based on TOU prices) | D32: =SUM(D27,D28,D30) -> 41.0642796 | G32: =SUM(G27,G28,G30) -> 39.0382796 | H32: -2.026 | I32: -0.04933728339 | J32: 0.5170883364 | K32: 0.5048319149
A33: Retail Transmission Rate – Network Service Rate | B33: =B8 -> 359.38 | C33: =VLOOKUP($B$3,'Data Current Rates'!$A:$AP,MATCH(BI_UR_Low!$A33,CurrentHeader,0),FALSE) -> 0.0106 | D33: =B33*C33 -> 3.809428 | E33: 359.38 | F33: =VLOOKUP($B$3,'Data Proposed Rates'!$A:$AZ,MATCH(BI_UR_Low!$A33,ProposedHeader,0),FALSE) -> 0.0102 | G33: =E33*F33 -> 3.665676 | H33: =G33-D33 -> -0.143752 | I33: -0.03773584906 | J33: 0.04855435035 | K33: 0.04740347816
A34: Retail Transmission Rate – Line and Transformation Connection Service Rate | B34: =B8 -> 359.38 | C34: =VLOOKUP($B$3,'Data Current Rates'!$A:$AP,MATCH(BI_UR_Low!$A34,CurrentHeader,0),FALSE) -> 0.0077 | D34: =B34*C34 -> 2.767226 | E34: 359.38 | F34: =VLOOKUP($B$3,'Data Proposed Rates'!$A:$AZ,MATCH(BI_UR_Low!$A34,ProposedHeader,0),FALSE) -> 0.0074 | G34: =E34*F34 -> 2.659412 | H34: =G34-D34 -> -0.107814 | I34: -0.03896103896 | J34: 0.03522570515 | K34: 0.03439075866
A35: Sub-Total: Retail Transmission | D35: =SUM(D33:D34) -> 6.576654 | G35: =SUM(G33:G34) -> 6.325088 | H35: =G35-D35 -> -0.251566 | I35: -0.03825136612 | J35: 0.0837800555 | K35: 0.08179423682
A36: Sub-Total: Delivery (based on two-tier RPP prices) | D36: =D31+D35 -> 47.535894 | G36: =G31+G35 -> 45.258328 | H36: =G36-D36 -> -2.277566 | I36: -0.04791255214 | J36: 0.5994770716 | K36: 0.5852678095
A37: Sub-Total: Delivery (based on TOU prices) | D37: =D32+D35 -> 47.6409336 | G37: =G32+G35 -> 45.3633676 | H37: =G37-D37 -> -2.277566 | I37: -0.04780691367 | J37: 0.6008683919 | K37: 0.5866261517
A38: Wholesale Market Service Rate (WMS) - not including CBR | B38: =B8 -> 359.38 | C38: =VLOOKUP($A38,'Data Pass Through'!$A:$D,2,FALSE) -> 0.003 | D38: =B38*C38 -> 1.07814 | E38: =$B$8 -> 359.38 | F38: =VLOOKUP($A38,'Data Pass Through'!$A:$D,3,FALSE) -> 0.003 | G38: =E38*F38 -> 1.07814 | H38: 0 | I38: 0 | J38: 0.01428069128 | K38: 0.01394219946
A39: Capacity Based Recovery (CBR) - Applicable for Class B Customers | B39: =B8 -> 359.38 | C39: =VLOOKUP($A39,'Data Pass Through'!$A:$D,2,FALSE) -> 0.0004 | D39: =B39*C39 -> 0.143752 | E39: =$B$8 -> 359.38 | F39: =VLOOKUP($A39,'Data Pass Through'!$A:$D,3,FALSE) -> 0.0004 | G39: =E39*F39 -> 0.143752 | H39: 0 | I39: 0 | J39: 0.00190409217 | K39: 0.001858959928
A40: Rural Rate Protection Charge | B40: =B8 -> 359.38 | C40: =VLOOKUP($A40,'Data Pass Through'!$A:$D,2,FALSE) -> 0.0005 | D40: 0.17969 | E40: 359.38 | F40: =VLOOKUP($A40,'Data Pass Through'!$A:$D,3,FALSE) -> 0.0005 | G40: 0.17969 | H40: 0 | I40: 0 | J40: 0.002380115213 | K40: 0.00232369991
A41: Standard Supply Service – Administration Charge (if applicable) | B41: 1 | C41: =VLOOKUP($A41,'Data Pass Through'!$A:$D,2,FALSE) -> 0.25 | D41: =B41*C41 -> 0.25 | E41: 1 | F41: =VLOOKUP($A41,'Data Pass Through'!$A:$D,3,FALSE) -> 0.25 | G41: 0.25 | H41: 0 | I41: 0 | J41: 0.003311418572 | K41: 0.003232928808
A42: Sub-Total: Regulatory | D42: =SUM(D38:D41) -> 1.651582 | G42: =SUM(G38:G41) -> 1.651582 | H42: 0 | I42: 0 | J42: 0.02187631723 | K42: 0.0213577881
A43: Total Electricty Charge on Two-Tier RPP | D43: =SUM(D14,D27,D28,D29,D35,D42) -> 82.507476 | G43: =SUM(G14,G27,G28,G29,G35,G42) -> 80.22991 | H43: -2.277566 | I43: -0.02760435915 | J43: 1.062699256
A44: HST | C44: 0.13 | D44: =D43*C44 -> 10.72597188 | F44: =C44 -> 0.13 | G44: =G43*F44 -> 10.4298883 | H44: -0.29608358 | I44: -0.02760435915 | J44: 0.1381509033
A45: Total Electricity Charge on Two-Tier RPP (including HST) | D45: =SUM(D43:D44) -> 93.23344788 | G45: =SUM(G43:G44) -> 90.6597983 | H45: -2.57364958 | I45: -0.02760435915 | J45: 1.200850159
A46: Ontario Electricity Rebate (OER) | C46: =IF(($B$4*12)<250000,VLOOKUP(A46,'Data Pass Through'!$A$4:$C$20,2,0),0) -> -0.189 | D46: =D43*C46 -> -15.59391296 | F46: =C46 -> -0.189 | G46: =G43*F46 -> -15.16345299 | H46: 0.430459974 | I46: 0.02760435915 | J46: -0.2008501594
A47: Total Amount on Two-Tier RPP | D47: =SUM(D45:D46) -> 77.63953492 | G47: =SUM(G45:G46) -> 75.49634531 | H47: -2.143189606 | I47: -0.02760435915 | J47: 1
A48: Total Electricty Charge on TOU (before HST) | D48: =SUM(D18,D27,D28,D30,D35,D42) -> 84.4553156 | G48: =SUM(G18,G27,G28,G30,G35,G42) -> 82.1777496 | H48: -2.277566 | I48: -0.02696770456 | K48: =G48/$G$52 -> 1.062699256
A49: HST | C49: 0.13 | D49: =D48*C49 -> 10.97919103 | F49: =C49 -> 0.13 | G49: =G48*F49 -> 10.68310745 | H49: -0.29608358 | I49: -0.02696770456 | K49: =G49/$G$52 -> 0.1381509033
A50: Total Electricity Charge on TOU (including HST) | D50: =SUM(D48:D49) -> 95.43450663 | G50: =SUM(G48:G49) -> 92.86085705 | H50: -2.57364958 | I50: -0.02696770456 | K50: =G50/$G$52 -> 1.200850159
A51: Ontario Electricity Rebate (OER) | C51: =IF(($B$4*12)<250000,VLOOKUP(A51,'Data Pass Through'!$A$4:$C$20,2,0),0) -> -0.189 | D51: =D48*C51 -> -15.96205465 | F51: =C51 -> -0.189 | G51: =G48*F51 -> -15.53159467 | H51: 0.430459974 | I51: 0.02696770456 | K51: =G51/$G$52 -> -0.2008501594
A52: Total Amount on TOU | D52: =SUM(D50:D51) -> 79.47245198 | G52: =SUM(G50:G51) -> 77.32926237 | H52: -2.143189606 | I52: -0.02696770456 | K52: =G52/$G$52 -> 1
A53: * Distribution rate protection applies to R1 and R2 customers

Sheet BI_UR_Typical
A1: 2023 Bill Impacts (Typical Consumption Level) - UR
A3: Rate Class | B3: =RIGHT(A1,LEN(A1)-FIND("- ",A1,1)-1) -> UR
A4: Monthly Consumption (kWh) | B4: =IF(COUNTIF(A1,"*Low*")>0,VLOOKUP(B3,'Data Billing Quantities'!$A:$Z,MATCH("Low kWh",'Data Billing Quantities'!4:4,0),FALSE),IF(COUNTIF(A1,"*Typical*")>0,VLOOKUP(B3,'Data Billing Quantities'!$A:$Z,MATCH("Typical kWh",'Data Billing Quantities'!4:4,0),FALSE),IF(COUNTIF(A1,"*Average*")>0,VLOOKUP(B3,'Data Billing Quantities'!$A:$Z,MATCH("Average kWh",'Data Billing Quantities'!4:4,0),FALSE),IF(COUNTIF(A1,"*High*")>0,VLOOKUP(B3,'Data Billing Quantities'!$A:$Z,MATCH("High kWh",'Data Billing Quantities'!4:4,0),FALSE),"error")))) -> 750
A5: Peak (kW) | B5: =IF(COUNTIF(A1,"*Low*")>0,VLOOKUP(B3,'Data Billing Quantities'!$A:$Z,MATCH("Low kW",'Data Billing Quantities'!4:4,0),FALSE),IF(COUNTIF(A1,"*Typical*")>0,VLOOKUP(B3,'Data Billing Quantities'!$A:$Z,MATCH("Typical kW",'Data Billing Quantities'!4:4,0),FALSE),IF(COUNTIF(A1,"*Average*")>0,VLOOKUP(B3,'Data Billing Quantities'!$A:$Z,MATCH("Average kW",'Data Billing Quantities'!4:4,0),FALSE),IF(COUNTIF(A1,"*High*")>0,VLOOKUP(B3,'Data Billing Quantities'!$A:$Z,MATCH("High kW",'Data Billing Quantities'!4:4,0),FALSE),"error")))) -> 0
A6: Loss factor | B6: =VLOOKUP(B3,'Data Billing Quantities'!A:D,MATCH(A6,'Data Billing Quantities'!4:4,0),FALSE) -> 1.057
